Workbook

Sheet Analysis (Distt) (hidden)
A1: District | B1: =MAX(B4:B15) -> 2016-12-01 | C1: =MAX(C4:C15) -> 2017-12-01 | D1: =Analysis!AH3 -> Chitrakoot | K1: =Analysis!BI3 -> Gonda | R1: =Analysis!D3 -> Barabanki_DWH-DH | X1: =Analysis!G3 -> UP-0005-BBK-001-DH
D2: =TEXT($B$4,"mmm-yy")&" to "&TEXT($B$1,"mmm-yy") -> Apr-16 to Dec-16 | G2: =TEXT($C$4,"mmm-yy")&" to "&TEXT($C$1,"mmm-yy") -> Apr-17 to Dec-17 | K2: =TEXT($B$4,"mmm-yy")&" to "&TEXT($B$1,"mmm-yy") -> Apr-16 to Dec-16 | N2: =TEXT($C$4,"mmm-yy")&" to "&TEXT($C$1,"mmm-yy") -> Apr-17 to Dec-17 | R2: =TEXT($B$4,"mmm-yy")&" to "&TEXT($B$1,"mmm-yy") -> Apr-16 to Dec-16 | U2: =TEXT($C$4,"mmm-yy")&" to "&TEXT($C$1,"mmm-yy") -> Apr-17 to Dec-17
A3: =Analysis!I2 -> 2016-12-01 | D3: Delivery | E3: Acceptance | F3: % PPIUCD Acceptance | G3: Delivery | H3: Acceptance | I3: % PPIUCD Acceptance | K3: Delivery | L3: Acceptance | M3: % PPIUCD Acceptance | N3: Delivery | O3: Acceptance | P3: % PPIUCD Acceptance | R3: Delivery | S3: Acceptance | T3: % PPIUCD Acceptance | U3: Delivery | V3: Acceptance | W3: % PPIUCD Acceptance
A4: =Analysis!H2 -> 2016-04-01 | B4: =IF(A$3<A4,"",A4) -> 2016-04-01 | C4: =DATE(YEAR(B4), MONTH(B4)+12,1) -> 2017-04-01 | D4: =SUMIFS(Monthly_Report!$P:$P,Monthly_Report!$K:$K,'Analysis (Distt)'!$B4,Monthly_Report!$G:$G,'Analysis (Distt)'!D$1) -> 484 | E4: =SUMIFS(Monthly_Report!$AF:$AF,Monthly_Report!$K:$K,'Analysis (Distt)'!$B4,Monthly_Report!$G:$G,'Analysis (Distt)'!D$1) -> 93 | F4: =IF(D4=0,"",E4/D4) -> 0.1921487603 | G4: =SUMIFS(Monthly_Report!$P:$P,Monthly_Report!$K:$K,'Analysis (Distt)'!$C4,Monthly_Report!$G:$G,'Analysis (Distt)'!D$1) -> 595 | H4: =SUMIFS(Monthly_Report!$AF:$AF,Monthly_Report!$K:$K,'Analysis (Distt)'!$C4,Monthly_Report!$G:$G,'Analysis (Distt)'!D$1) -> 152 | I4: =IF(G4=0,"",H4/G4) -> 0.2554621849 | K4: =SUMIFS(Monthly_Report!$P:$P,Monthly_Report!$K:$K,'Analysis (Distt)'!$B4,Monthly_Report!$BR:$BR,'Analysis (Distt)'!K$1) -> 4459 | L4: =SUMIFS(Monthly_Report!$AF:$AF,Monthly_Report!$K:$K,'Analysis (Distt)'!$B4,Monthly_Report!$BR:$BR,'Analysis (Distt)'!K$1) -> 529 | M4: =IF(K4=0,"",L4/K4) -> 0.1186364656 | N4: =SUMIFS(Monthly_Report!$P:$P,Monthly_Report!$K:$K,'Analysis (Distt)'!$C4,Monthly_Report!$BR:$BR,'Analysis (Distt)'!K$1) -> 5837 | O4: =SUMIFS(Monthly_Report!$AF:$AF,Monthly_Report!$K:$K,'Analysis (Distt)'!$C4,Monthly_Report!$BR:$BR,'Analysis (Distt)'!K$1) -> 732 | P4: =IF(N4=0,"",O4/N4) -> 0.1254068871 | R4: =SUMIFS(Monthly_Report!$P:$P,Monthly_Report!$K:$K,'Analysis (Distt)'!$B4,Monthly_Report!$F:$F,'Analysis (Distt)'!X$1) -> 299 | S4: =SUMIFS(Monthly_Report!$AF:$AF,Monthly_Report!$K:$K,'Analysis (Distt)'!$B4,Monthly_Report!$F:$F,'Analysis (Distt)'!X$1) -> 83 | T4: =IF(R4=0,"",S4/R4) -> 0.2775919732 | U4: =SUMIFS(Monthly_Report!$P:$P,Monthly_Report!$K:$K,'Analysis (Distt)'!$C4,Monthly_Report!$F:$F,'Analysis (Distt)'!X$1) -> 296 | V4: =SUMIFS(Monthly_Report!$AF:$AF,Monthly_Report!$K:$K,'Analysis (Distt)'!$C4,Monthly_Report!$F:$F,'Analysis (Distt)'!X$1) -> 245 | W4: =IF(U4=0,"",V4/U4) -> 0.8277027027
A5: =DATE(YEAR(A4), MONTH(A4)+1,1) -> 2016-05-01 | B5: 2016-05-01 | C5: =IF(B5="","",DATE(YEAR(C4),MONTH(C4)+1,1)) -> 2017-05-01 | D5: =SUMIFS(Monthly_Report!$P:$P,Monthly_Report!$K:$K,'Analysis (Distt)'!$B5,Monthly_Report!$G:$G,'Analysis (Distt)'!D$1) -> 793 | E5: =SUMIFS(Monthly_Report!$AF:$AF,Monthly_Report!$K:$K,'Analysis (Distt)'!$B5,Monthly_Report!$G:$G,'Analysis (Distt)'!D$1) -> 126 | F5: 0.15889029 | G5: =SUMIFS(Monthly_Report!$P:$P,Monthly_Report!$K:$K,'Analysis (Distt)'!$C5,Monthly_Report!$G:$G,'Analysis (Distt)'!D$1) -> 1015 | H5: =SUMIFS(Monthly_Report!$AF:$AF,Monthly_Report!$K:$K,'Analysis (Distt)'!$C5,Monthly_Report!$G:$G,'Analysis (Distt)'!D$1) -> 251 | I5: 0.2472906404 | K5: =SUMIFS(Monthly_Report!$P:$P,Monthly_Report!$K:$K,'Analysis (Distt)'!$B5,Monthly_Report!$BR:$BR,'Analysis (Distt)'!K$1) -> 6178 | L5: =SUMIFS(Monthly_Report!$AF:$AF,Monthly_Report!$K:$K,'Analysis (Distt)'!$B5,Monthly_Report!$BR:$BR,'Analysis (Distt)'!K$1) -> 768 | M5: 0.1243120751 | N5: =SUMIFS(Monthly_Report!$P:$P,Monthly_Report!$K:$K,'Analysis (Distt)'!$C5,Monthly_Report!$BR:$BR,'Analysis (Distt)'!K$1) -> 8037 | O5: =SUMIFS(Monthly_Report!$AF:$AF,Monthly_Report!$K:$K,'Analysis (Distt)'!$C5,Monthly_Report!$BR:$BR,'Analysis (Distt)'!K$1) -> 897 | P5: 0.1116088093 | R5: =SUMIFS(Monthly_Report!$P:$P,Monthly_Report!$K:$K,'Analysis (Distt)'!$B5,Monthly_Report!$F:$F,'Analysis (Distt)'!X$1) -> 412 | S5: =SUMIFS(Monthly_Report!$AF:$AF,Monthly_Report!$K:$K,'Analysis (Distt)'!$B5,Monthly_Report!$F:$F,'Analysis (Distt)'!X$1) -> 83 | T5: 0.2014563107 | U5: =SUMIFS(Monthly_Report!$P:$P,Monthly_Report!$K:$K,'Analysis (Distt)'!$C5,Monthly_Report!$F:$F,'Analysis (Distt)'!X$1) -> 459 | V5: =SUMIFS(Monthly_Report!$AF:$AF,Monthly_Report!$K:$K,'Analysis (Distt)'!$C5,Monthly_Report!$F:$F,'Analysis (Distt)'!X$1) -> 274 | W5: 0.5969498911
A6: 2016-06-01 | B6: 2016-06-01 | C6: 2017-06-01 | D6: =SUMIFS(Monthly_Report!$P:$P,Monthly_Report!$K:$K,'Analysis (Distt)'!$B6,Monthly_Report!$G:$G,'Analysis (Distt)'!D$1) -> 896 | E6: =SUMIFS(Monthly_Report!$AF:$AF,Monthly_Report!$K:$K,'Analysis (Distt)'!$B6,Monthly_Report!$G:$G,'Analysis (Distt)'!D$1) -> 194 | F6: 0.2165178571 | G6: =SUMIFS(Monthly_Report!$P:$P,Monthly_Report!$K:$K,'Analysis (Distt)'!$C6,Monthly_Report!$G:$G,'Analysis (Distt)'!D$1) -> 1192 | H6: =SUMIFS(Monthly_Report!$AF:$AF,Monthly_Report!$K:$K,'Analysis (Distt)'!$C6,Monthly_Report!$G:$G,'Analysis (Distt)'!D$1) -> 240 | I6: 0.2013422819 | K6: =SUMIFS(Monthly_Report!$P:$P,Monthly_Report!$K:$K,'Analysis (Distt)'!$B6,Monthly_Report!$BR:$BR,'Analysis (Distt)'!K$1) -> 6365 | L6: =SUMIFS(Monthly_Report!$AF:$AF,Monthly_Report!$K:$K,'Analysis (Distt)'!$B6,Monthly_Report!$BR:$BR,'Analysis (Distt)'!K$1) -> 903 | M6: 0.1418695994 | N6: =SUMIFS(Monthly_Report!$P:$P,Monthly_Report!$K:$K,'Analysis (Distt)'!$C6,Monthly_Report!$BR:$BR,'Analysis (Distt)'!K$1) -> 8895 | O6: =SUMIFS(Monthly_Report!$AF:$AF,Monthly_Report!$K:$K,'Analysis (Distt)'!$C6,Monthly_Report!$BR:$BR,'Analysis (Distt)'!K$1) -> 758 | P6: 0.08521641372 | R6: =SUMIFS(Monthly_Report!$P:$P,Monthly_Report!$K:$K,'Analysis (Distt)'!$B6,Monthly_Report!$F:$F,'Analysis (Distt)'!X$1) -> 346 | S6: =SUMIFS(Monthly_Report!$AF:$AF,Monthly_Report!$K:$K,'Analysis (Distt)'!$B6,Monthly_Report!$F:$F,'Analysis (Distt)'!X$1) -> 90 | T6: 0.2601156069 | U6: =SUMIFS(Monthly_Report!$P:$P,Monthly_Report!$K:$K,'Analysis (Distt)'!$C6,Monthly_Report!$F:$F,'Analysis (Distt)'!X$1) -> 597 | V6: =SUMIFS(Monthly_Report!$AF:$AF,Monthly_Report!$K:$K,'Analysis (Distt)'!$C6,Monthly_Report!$F:$F,'Analysis (Distt)'!X$1) -> 336 | W6: 0.5628140704
A7: 2016-07-01 | B7: 2016-07-01 | C7: 2017-07-01 | D7: =SUMIFS(Monthly_Report!$P:$P,Monthly_Report!$K:$K,'Analysis (Distt)'!$B7,Monthly_Report!$G:$G,'Analysis (Distt)'!D$1) -> 1131 | E7: =SUMIFS(Monthly_Report!$AF:$AF,Monthly_Report!$K:$K,'Analysis (Distt)'!$B7,Monthly_Report!$G:$G,'Analysis (Distt)'!D$1) -> 231 | F7: 0.2042440318 | G7: =SUMIFS(Monthly_Report!$P:$P,Monthly_Report!$K:$K,'Analysis (Distt)'!$C7,Monthly_Report!$G:$G,'Analysis (Distt)'!D$1) -> 1497 | H7: =SUMIFS(Monthly_Report!$AF:$AF,Monthly_Report!$K:$K,'Analysis (Distt)'!$C7,Monthly_Report!$G:$G,'Analysis (Distt)'!D$1) -> 289 | I7: 0.1930527722 | K7: =SUMIFS(Monthly_Report!$P:$P,Monthly_Report!$K:$K,'Analysis (Distt)'!$B7,Monthly_Report!$BR:$BR,'Analysis (Distt)'!K$1) -> 7609 | L7: =SUMIFS(Monthly_Report!$AF:$AF,Monthly_Report!$K:$K,'Analysis (Distt)'!$B7,Monthly_Report!$BR:$BR,'Analysis (Distt)'!K$1) -> 974 | M7: 0.1280063083 | N7: =SUMIFS(Monthly_Report!$P:$P,Monthly_Report!$K:$K,'Analysis (Distt)'!$C7,Monthly_Report!$BR:$BR,'Analysis (Distt)'!K$1) -> 9562 | O7: =SUMIFS(Monthly_Report!$AF:$AF,Monthly_Report!$K:$K,'Analysis (Distt)'!$C7,Monthly_Report!$BR:$BR,'Analysis (Distt)'!K$1) -> 901 | P7: 0.09422714913 | R7: =SUMIFS(Monthly_Report!$P:$P,Monthly_Report!$K:$K,'Analysis (Distt)'!$B7,Monthly_Report!$F:$F,'Analysis (Distt)'!X$1) -> 441 | S7: =SUMIFS(Monthly_Report!$AF:$AF,Monthly_Report!$K:$K,'Analysis (Distt)'!$B7,Monthly_Report!$F:$F,'Analysis (Distt)'!X$1) -> 165 | T7: 0.3741496599 | U7: =SUMIFS(Monthly_Report!$P:$P,Monthly_Report!$K:$K,'Analysis (Distt)'!$C7,Monthly_Report!$F:$F,'Analysis (Distt)'!X$1) -> 529 | V7: =SUMIFS(Monthly_Report!$AF:$AF,Monthly_Report!$K:$K,'Analysis (Distt)'!$C7,Monthly_Report!$F:$F,'Analysis (Distt)'!X$1) -> 224 | W7: 0.4234404537
A8: 2016-08-01 | B8: 2016-08-01 | C8: 2017-08-01 | D8: =SUMIFS(Monthly_Report!$P:$P,Monthly_Report!$K:$K,'Analysis (Distt)'!$B8,Monthly_Report!$G:$G,'Analysis (Distt)'!D$1) -> 1354 | E8: =SUMIFS(Monthly_Report!$AF:$AF,Monthly_Report!$K:$K,'Analysis (Distt)'!$B8,Monthly_Report!$G:$G,'Analysis (Distt)'!D$1) -> 343 | F8: 0.253323486 | G8: =SUMIFS(Monthly_Report!$P:$P,Monthly_Report!$K:$K,'Analysis (Distt)'!$C8,Monthly_Report!$G:$G,'Analysis (Distt)'!D$1) -> 2149 | H8: =SUMIFS(Monthly_Report!$AF:$AF,Monthly_Report!$K:$K,'Analysis (Distt)'!$C8,Monthly_Report!$G:$G,'Analysis (Distt)'!D$1) -> 333 | I8: 0.1549557934 | K8: =SUMIFS(Monthly_Report!$P:$P,Monthly_Report!$K:$K,'Analysis (Distt)'!$B8,Monthly_Report!$BR:$BR,'Analysis (Distt)'!K$1) -> 9306 | L8: =SUMIFS(Monthly_Report!$AF:$AF,Monthly_Report!$K:$K,'Analysis (Distt)'!$B8,Monthly_Report!$BR:$BR,'Analysis (Distt)'!K$1) -> 1015 | M8: 0.1090694176 | N8: =SUMIFS(Monthly_Report!$P:$P,Monthly_Report!$K:$K,'Analysis (Distt)'!$C8,Monthly_Report!$BR:$BR,'Analysis (Distt)'!K$1) -> 11642 | O8: =SUMIFS(Monthly_Report!$AF:$AF,Monthly_Report!$K:$K,'Analysis (Distt)'!$C8,Monthly_Report!$BR:$BR,'Analysis (Distt)'!K$1) -> 1047 | P8: 0.0899330012 | R8: =SUMIFS(Monthly_Report!$P:$P,Monthly_Report!$K:$K,'Analysis (Distt)'!$B8,Monthly_Report!$F:$F,'Analysis (Distt)'!X$1) -> 591 | S8: =SUMIFS(Monthly_Report!$AF:$AF,Monthly_Report!$K:$K,'Analysis (Distt)'!$B8,Monthly_Report!$F:$F,'Analysis (Distt)'!X$1) -> 240 | T8: 0.4060913706 | U8: =SUMIFS(Monthly_Report!$P:$P,Monthly_Report!$K:$K,'Analysis (Distt)'!$C8,Monthly_Report!$F:$F,'Analysis (Distt)'!X$1) -> 680 | V8: =SUMIFS(Monthly_Report!$AF:$AF,Monthly_Report!$K:$K,'Analysis (Distt)'!$C8,Monthly_Report!$F:$F,'Analysis (Distt)'!X$1) -> 180 | W8: 0.2647058824
A9: 2016-09-01 | B9: 2016-09-01 | C9: 2017-09-01 | D9: =SUMIFS(Monthly_Report!$P:$P,Monthly_Report!$K:$K,'Analysis (Distt)'!$B9,Monthly_Report!$G:$G,'Analysis (Distt)'!D$1) -> 1239 | E9: =SUMIFS(Monthly_Report!$AF:$AF,Monthly_Report!$K:$K,'Analysis (Distt)'!$B9,Monthly_Report!$G:$G,'Analysis (Distt)'!D$1) -> 185 | F9: 0.1493139629 | G9: =SUMIFS(Monthly_Report!$P:$P,Monthly_Report!$K:$K,'Analysis (Distt)'!$C9,Monthly_Report!$G:$G,'Analysis (Distt)'!D$1) -> 1997 | H9: =SUMIFS(Monthly_Report!$AF:$AF,Monthly_Report!$K:$K,'Analysis (Distt)'!$C9,Monthly_Report!$G:$G,'Analysis (Distt)'!D$1) -> 252 | I9: 0.1261892839 | K9: =SUMIFS(Monthly_Report!$P:$P,Monthly_Report!$K:$K,'Analysis (Distt)'!$B9,Monthly_Report!$BR:$BR,'Analysis (Distt)'!K$1) -> 9934 | L9: =SUMIFS(Monthly_Report!$AF:$AF,Monthly_Report!$K:$K,'Analysis (Distt)'!$B9,Monthly_Report!$BR:$BR,'Analysis (Distt)'!K$1) -> 852 | M9: 0.08576605597 | N9: =SUMIFS(Monthly_Report!$P:$P,Monthly_Report!$K:$K,'Analysis (Distt)'!$C9,Monthly_Report!$BR:$BR,'Analysis (Distt)'!K$1) -> 12946 | O9: =SUMIFS(Monthly_Report!$AF:$AF,Monthly_Report!$K:$K,'Analysis (Distt)'!$C9,Monthly_Report!$BR:$BR,'Analysis (Distt)'!K$1) -> 981 | P9: 0.07577630156 | R9: =SUMIFS(Monthly_Report!$P:$P,Monthly_Report!$K:$K,'Analysis (Distt)'!$B9,Monthly_Report!$F:$F,'Analysis (Distt)'!X$1) -> 637 | S9: =SUMIFS(Monthly_Report!$AF:$AF,Monthly_Report!$K:$K,'Analysis (Distt)'!$B9,Monthly_Report!$F:$F,'Analysis (Distt)'!X$1) -> 253 | T9: 0.3971742543 | U9: =SUMIFS(Monthly_Report!$P:$P,Monthly_Report!$K:$K,'Analysis (Distt)'!$C9,Monthly_Report!$F:$F,'Analysis (Distt)'!X$1) -> 695 | V9: =SUMIFS(Monthly_Report!$AF:$AF,Monthly_Report!$K:$K,'Analysis (Distt)'!$C9,Monthly_Report!$F:$F,'Analysis (Distt)'!X$1) -> 86 | W9: 0.1237410072
A10: 2016-10-01 | B10: 2016-10-01 | C10: 2017-10-01 | D10: =SUMIFS(Monthly_Report!$P:$P,Monthly_Report!$K:$K,'Analysis (Distt)'!$B10,Monthly_Report!$G:$G,'Analysis (Distt)'!D$1) -> 1180 | E10: =SUMIFS(Monthly_Report!$AF:$AF,Monthly_Report!$K:$K,'Analysis (Distt)'!$B10,Monthly_Report!$G:$G,'Analysis (Distt)'!D$1) -> 191 | F10: 0.1618644068 | G10: =SUMIFS(Monthly_Report!$P:$P,Monthly_Report!$K:$K,'Analysis (Distt)'!$C10,Monthly_Report!$G:$G,'Analysis (Distt)'!D$1) -> 1550 | H10: =SUMIFS(Monthly_Report!$AF:$AF,Monthly_Report!$K:$K,'Analysis (Distt)'!$C10,Monthly_Report!$G:$G,'Analysis (Distt)'!D$1) -> 258 | I10: 0.1664516129 | K10: =SUMIFS(Monthly_Report!$P:$P,Monthly_Report!$K:$K,'Analysis (Distt)'!$B10,Monthly_Report!$BR:$BR,'Analysis (Distt)'!K$1) -> 9257 | L10: =SUMIFS(Monthly_Report!$AF:$AF,Monthly_Report!$K:$K,'Analysis (Distt)'!$B10,Monthly_Report!$BR:$BR,'Analysis (Distt)'!K$1) -> 717 | M10: 0.077454899 | N10: =SUMIFS(Monthly_Report!$P:$P,Monthly_Report!$K:$K,'Analysis (Distt)'!$C10,Monthly_Report!$BR:$BR,'Analysis (Distt)'!K$1) -> 11043 | O10: =SUMIFS(Monthly_Report!$AF:$AF,Monthly_Report!$K:$K,'Analysis (Distt)'!$C10,Monthly_Report!$BR:$BR,'Analysis (Distt)'!K$1) -> 930 | P10: 0.08421624559 | R10: =SUMIFS(Monthly_Report!$P:$P,Monthly_Report!$K:$K,'Analysis (Distt)'!$B10,Monthly_Report!$F:$F,'Analysis (Distt)'!X$1) -> 626 | S10: =SUMIFS(Monthly_Report!$AF:$AF,Monthly_Report!$K:$K,'Analysis (Distt)'!$B10,Monthly_Report!$F:$F,'Analysis (Distt)'!X$1) -> 348 | T10: 0.5559105431 | U10: =SUMIFS(Monthly_Report!$P:$P,Monthly_Report!$K:$K,'Analysis (Distt)'!$C10,Monthly_Report!$F:$F,'Analysis (Distt)'!X$1) -> 617 | V10: =SUMIFS(Monthly_Report!$AF:$AF,Monthly_Report!$K:$K,'Analysis (Distt)'!$C10,Monthly_Report!$F:$F,'Analysis (Distt)'!X$1) -> 51 | W10: 0.08265802269
A11: 2016-11-01 | B11: 2016-11-01 | C11: 2017-11-01 | D11: =SUMIFS(Monthly_Report!$P:$P,Monthly_Report!$K:$K,'Analysis (Distt)'!$B11,Monthly_Report!$G:$G,'Analysis (Distt)'!D$1) -> 1172 | E11: =SUMIFS(Monthly_Report!$AF:$AF,Monthly_Report!$K:$K,'Analysis (Distt)'!$B11,Monthly_Report!$G:$G,'Analysis (Distt)'!D$1) -> 204 | F11: 0.1740614334 | G11: =SUMIFS(Monthly_Report!$P:$P,Monthly_Report!$K:$K,'Analysis (Distt)'!$C11,Monthly_Report!$G:$G,'Analysis (Distt)'!D$1) -> 1411 | H11: =SUMIFS(Monthly_Report!$AF:$AF,Monthly_Report!$K:$K,'Analysis (Distt)'!$C11,Monthly_Report!$G:$G,'Analysis (Distt)'!D$1) -> 244 | I11: 0.1729270021 | K11: =SUMIFS(Monthly_Report!$P:$P,Monthly_Report!$K:$K,'Analysis (Distt)'!$B11,Monthly_Report!$BR:$BR,'Analysis (Distt)'!K$1) -> 8086 | L11: =SUMIFS(Monthly_Report!$AF:$AF,Monthly_Report!$K:$K,'Analysis (Distt)'!$B11,Monthly_Report!$BR:$BR,'Analysis (Distt)'!K$1) -> 618 | M11: 0.07642839476 | N11: =SUMIFS(Monthly_Report!$P:$P,Monthly_Report!$K:$K,'Analysis (Distt)'!$C11,Monthly_Report!$BR:$BR,'Analysis (Distt)'!K$1) -> 10417 | O11: =SUMIFS(Monthly_Report!$AF:$AF,Monthly_Report!$K:$K,'Analysis (Distt)'!$C11,Monthly_Report!$BR:$BR,'Analysis (Distt)'!K$1) -> 1036 | P11: 0.09945281751 | R11: =SUMIFS(Monthly_Report!$P:$P,Monthly_Report!$K:$K,'Analysis (Distt)'!$B11,Monthly_Report!$F:$F,'Analysis (Distt)'!X$1) -> 620 | S11: =SUMIFS(Monthly_Report!$AF:$AF,Monthly_Report!$K:$K,'Analysis (Distt)'!$B11,Monthly_Report!$F:$F,'Analysis (Distt)'!X$1) -> 346 | T11: =IF(R11=0,"",S11/R11) -> 0.5580645161 | U11: =SUMIFS(Monthly_Report!$P:$P,Monthly_Report!$K:$K,'Analysis (Distt)'!$C11,Monthly_Report!$F:$F,'Analysis (Distt)'!X$1) -> 608 | V11: =SUMIFS(Monthly_Report!$AF:$AF,Monthly_Report!$K:$K,'Analysis (Distt)'!$C11,Monthly_Report!$F:$F,'Analysis (Distt)'!X$1) -> 67 | W11: =IF(U11=0,"",V11/U11) -> 0.1101973684
A12: 2016-12-01 | B12: 2016-12-01 | C12: 2017-12-01 | D12: =SUMIFS(Monthly_Report!$P:$P,Monthly_Report!$K:$K,'Analysis (Distt)'!$B12,Monthly_Report!$G:$G,'Analysis (Distt)'!D$1) -> 1093 | E12: =SUMIFS(Monthly_Report!$AF:$AF,Monthly_Report!$K:$K,'Analysis (Distt)'!$B12,Monthly_Report!$G:$G,'Analysis (Distt)'!D$1) -> 266 | F12: 0.2433668801 | G12: =SUMIFS(Monthly_Report!$P:$P,Monthly_Report!$K:$K,'Analysis (Distt)'!$C12,Monthly_Report!$G:$G,'Analysis (Distt)'!D$1) -> 1259 | H12: =SUMIFS(Monthly_Report!$AF:$AF,Monthly_Report!$K:$K,'Analysis (Distt)'!$C12,Monthly_Report!$G:$G,'Analysis (Distt)'!D$1) -> 312 | I12: 0.2478157268 | K12: =SUMIFS(Monthly_Report!$P:$P,Monthly_Report!$K:$K,'Analysis (Distt)'!$B12,Monthly_Report!$BR:$BR,'Analysis (Distt)'!K$1) -> 7464 | L12: =SUMIFS(Monthly_Report!$AF:$AF,Monthly_Report!$K:$K,'Analysis (Distt)'!$B12,Monthly_Report!$BR:$BR,'Analysis (Distt)'!K$1) -> 729 | M12: 0.09766881029 | N12: =SUMIFS(Monthly_Report!$P:$P,Monthly_Report!$K:$K,'Analysis (Distt)'!$C12,Monthly_Report!$BR:$BR,'Analysis (Distt)'!K$1) -> 8941 | O12: =SUMIFS(Monthly_Report!$AF:$AF,Monthly_Report!$K:$K,'Analysis (Distt)'!$C12,Monthly_Report!$BR:$BR,'Analysis (Distt)'!K$1) -> 1175 | P12: 0.1314170674 | R12: =SUMIFS(Monthly_Report!$P:$P,Monthly_Report!$K:$K,'Analysis (Distt)'!$B12,Monthly_Report!$F:$F,'Analysis (Distt)'!X$1) -> 450 | S12: =SUMIFS(Monthly_Report!$AF:$AF,Monthly_Report!$K:$K,'Analysis (Distt)'!$B12,Monthly_Report!$F:$F,'Analysis (Distt)'!X$1) -> 260 | T12: 0.5777777778 | U12: =SUMIFS(Monthly_Report!$P:$P,Monthly_Report!$K:$K,'Analysis (Distt)'!$C12,Monthly_Report!$F:$F,'Analysis (Distt)'!X$1) -> 476 | V12: =SUMIFS(Monthly_Report!$AF:$AF,Monthly_Report!$K:$K,'Analysis (Distt)'!$C12,Monthly_Report!$F:$F,'Analysis (Distt)'!X$1) -> 76 | W12: 0.1596638655
A13: 2017-01-01 | D13: =SUMIFS(Monthly_Report!$P:$P,Monthly_Report!$K:$K,'Analysis (Distt)'!$B13,Monthly_Report!$G:$G,'Analysis (Distt)'!D$1) -> 0 | E13: =SUMIFS(Monthly_Report!$AF:$AF,Monthly_Report!$K:$K,'Analysis (Distt)'!$B13,Monthly_Report!$G:$G,'Analysis (Distt)'!D$1) -> 0 | G13: =SUMIFS(Monthly_Report!$P:$P,Monthly_Report!$K:$K,'Analysis (Distt)'!$C13,Monthly_Report!$G:$G,'Analysis (Distt)'!D$1) -> 0 | H13: =SUMIFS(Monthly_Report!$AF:$AF,Monthly_Report!$K:$K,'Analysis (Distt)'!$C13,Monthly_Report!$G:$G,'Analysis (Distt)'!D$1) -> 0 | K13: =SUMIFS(Monthly_Report!$P:$P,Monthly_Report!$K:$K,'Analysis (Distt)'!$B13,Monthly_Report!$BR:$BR,'Analysis (Distt)'!K$1) -> 0 | L13: =SUMIFS(Monthly_Report!$AF:$AF,Monthly_Report!$K:$K,'Analysis (Distt)'!$B13,Monthly_Report!$BR:$BR,'Analysis (Distt)'!K$1) -> 0 | N13: =SUMIFS(Monthly_Report!$P:$P,Monthly_Report!$K:$K,'Analysis (Distt)'!$C13,Monthly_Report!$BR:$BR,'Analysis (Distt)'!K$1) -> 0 | O13: =SUMIFS(Monthly_Report!$AF:$AF,Monthly_Report!$K:$K,'Analysis (Distt)'!$C13,Monthly_Report!$BR:$BR,'Analysis (Distt)'!K$1) -> 0 | R13: =SUMIFS(Monthly_Report!$P:$P,Monthly_Report!$K:$K,'Analysis (Distt)'!$B13,Monthly_Report!$F:$F,'Analysis (Distt)'!X$1) -> 0 | S13: =SUMIFS(Monthly_Report!$AF:$AF,Monthly_Report!$K:$K,'Analysis (Distt)'!$B13,Monthly_Report!$F:$F,'Analysis (Distt)'!X$1) -> 0 | U13: =SUMIFS(Monthly_Report!$P:$P,Monthly_Report!$K:$K,'Analysis (Distt)'!$C13,Monthly_Report!$F:$F,'Analysis (Distt)'!X$1) -> 0 | V13: =SUMIFS(Monthly_Report!$AF:$AF,Monthly_Report!$K:$K,'Analysis (Distt)'!$C13,Monthly_Report!$F:$F,'Analysis (Distt)'!X$1) -> 0
A14: 2017-02-01 | D14: =SUMIFS(Monthly_Report!$P:$P,Monthly_Report!$K:$K,'Analysis (Distt)'!$B14,Monthly_Report!$G:$G,'Analysis (Distt)'!D$1) -> 0 | E14: =SUMIFS(Monthly_Report!$AF:$AF,Monthly_Report!$K:$K,'Analysis (Distt)'!$B14,Monthly_Report!$G:$G,'Analysis (Distt)'!D$1) -> 0 | G14: =SUMIFS(Monthly_Report!$P:$P,Monthly_Report!$K:$K,'Analysis (Distt)'!$C14,Monthly_Report!$G:$G,'Analysis (Distt)'!D$1) -> 0 | H14: =SUMIFS(Monthly_Report!$AF:$AF,Monthly_Report!$K:$K,'Analysis (Distt)'!$C14,Monthly_Report!$G:$G,'Analysis (Distt)'!D$1) -> 0 | K14: =SUMIFS(Monthly_Report!$P:$P,Monthly_Report!$K:$K,'Analysis (Distt)'!$B14,Monthly_Report!$BR:$BR,'Analysis (Distt)'!K$1) -> 0 | L14: =SUMIFS(Monthly_Report!$AF:$AF,Monthly_Report!$K:$K,'Analysis (Distt)'!$B14,Monthly_Report!$BR:$BR,'Analysis (Distt)'!K$1) -> 0 | N14: =SUMIFS(Monthly_Report!$P:$P,Monthly_Report!$K:$K,'Analysis (Distt)'!$C14,Monthly_Report!$BR:$BR,'Analysis (Distt)'!K$1) -> 0 | O14: =SUMIFS(Monthly_Report!$AF:$AF,Monthly_Report!$K:$K,'Analysis (Distt)'!$C14,Monthly_Report!$BR:$BR,'Analysis (Distt)'!K$1) -> 0 | R14: =SUMIFS(Monthly_Report!$P:$P,Monthly_Report!$K:$K,'Analysis (Distt)'!$B14,Monthly_Report!$F:$F,'Analysis (Distt)'!X$1) -> 0 | S14: =SUMIFS(Monthly_Report!$AF:$AF,Monthly_Report!$K:$K,'Analysis (Distt)'!$B14,Monthly_Report!$F:$F,'Analysis (Distt)'!X$1) -> 0 | U14: =SUMIFS(Monthly_Report!$P:$P,Monthly_Report!$K:$K,'Analysis (Distt)'!$C14,Monthly_Report!$F:$F,'Analysis (Distt)'!X$1) -> 0 | V14: =SUMIFS(Monthly_Report!$AF:$AF,Monthly_Report!$K:$K,'Analysis (Distt)'!$C14,Monthly_Report!$F:$F,'Analysis (Distt)'!X$1) -> 0
A15: 2017-03-01 | D15: =SUMIFS(Monthly_Report!$P:$P,Monthly_Report!$K:$K,'Analysis (Distt)'!$B15,Monthly_Report!$G:$G,'Analysis (Distt)'!D$1) -> 0 | E15: =SUMIFS(Monthly_Report!$AF:$AF,Monthly_Report!$K:$K,'Analysis (Distt)'!$B15,Monthly_Report!$G:$G,'Analysis (Distt)'!D$1) -> 0 | G15: =SUMIFS(Monthly_Report!$P:$P,Monthly_Report!$K:$K,'Analysis (Distt)'!$C15,Monthly_Report!$G:$G,'Analysis (Distt)'!D$1) -> 0 | H15: =SUMIFS(Monthly_Report!$AF:$AF,Monthly_Report!$K:$K,'Analysis (Distt)'!$C15,Monthly_Report!$G:$G,'Analysis (Distt)'!D$1) -> 0 | K15: =SUMIFS(Monthly_Report!$P:$P,Monthly_Report!$K:$K,'Analysis (Distt)'!$B15,Monthly_Report!$BR:$BR,'Analysis (Distt)'!K$1) -> 0 | L15: =SUMIFS(Monthly_Report!$AF:$AF,Monthly_Report!$K:$K,'Analysis (Distt)'!$B15,Monthly_Report!$BR:$BR,'Analysis (Distt)'!K$1) -> 0 | N15: =SUMIFS(Monthly_Report!$P:$P,Monthly_Report!$K:$K,'Analysis (Distt)'!$C15,Monthly_Report!$BR:$BR,'Analysis (Distt)'!K$1) -> 0 | O15: =SUMIFS(Monthly_Report!$AF:$AF,Monthly_Report!$K:$K,'Analysis (Distt)'!$C15,Monthly_Report!$BR:$BR,'Analysis (Distt)'!K$1) -> 0 | R15: =SUMIFS(Monthly_Report!$P:$P,Monthly_Report!$K:$K,'Analysis (Distt)'!$B15,Monthly_Report!$F:$F,'Analysis (Distt)'!X$1) -> 0 | S15: =SUMIFS(Monthly_Report!$AF:$AF,Monthly_Report!$K:$K,'Analysis (Distt)'!$B15,Monthly_Report!$F:$F,'Analysis (Distt)'!X$1) -> 0 | U15: =SUMIFS(Monthly_Report!$P:$P,Monthly_Report!$K:$K,'Analysis (Distt)'!$C15,Monthly_Report!$F:$F,'Analysis (Distt)'!X$1) -> 0 | V15: =SUMIFS(Monthly_Report!$AF:$AF,Monthly_Report!$K:$K,'Analysis (Distt)'!$C15,Monthly_Report!$F:$F,'Analysis (Distt)'!X$1) -> 0
B16: total | D16: =SUM(D4:D15) -> 9342 | E16: =SUM(E4:E15) -> 1833 | F16: =E16/D16 -> 0.1962106615 | G16: =SUM(G4:G15) -> 12665 | H16: =SUM(H4:H15) -> 2331 | I16: =H16/G16 -> 0.184050533 | K16: =SUM(K4:K15) -> 68658 | L16: =SUM(L4:L15) -> 7105 | M16: =L16/K16 -> 0.1034839349 | N16: =SUM(N4:N15) -> 87320 | O16: =SUM(O4:O15) -> 8457 | P16: =O16/N16 -> 0.09685066422 | R16: =SUM(R4:R15) -> 4422 | S16: =SUM(S4:S15) -> 1868 | T16: =S16/R16 -> 0.4224332881 | U16: =SUM(U4:U15) -> 4957 | V16: =SUM(V4:V15) -> 1539 | W16: =V16/U16 -> 0.3104700424
E17: =ROUND(F17,0) -> 20 | F17: =E16/D16*100 -> 19.62106615 | H17: =ROUND(I17,0) -> 18 | I17: =H16/G16*100 -> 18.4050533 | L17: =ROUND(M17,0) -> 10 | M17: =L16/K16*100 -> 10.34839349 | O17: =ROUND(P17,0) -> 10 | P17: =O16/N16*100 -> 9.685066422 | S17: =ROUND(T17,0) -> 42 | T17: =S16/R16*100 -> 42.24332881 | V17: =ROUND(W17,0) -> 31 | W17: =V16/U16*100 -> 31.04700424
D18: Total Delivery | E18: =$D18&""&" - "&D16 -> Total Delivery - 9342 | H18: =$D18&""&" - "&G16 -> Total Delivery - 12665 | K18: Total Delivery | L18: =$D18&""&" - "&K16 -> Total Delivery - 68658 | O18: =$D18&""&" - "&N16 -> Total Delivery - 87320 | R18: Total Delivery | S18: =$D18&""&" - "&R16 -> Total Delivery - 4422 | V18: =$D18&""&" - "&U16 -> Total Delivery - 4957
A19: ="PPIUCD Report of "&$D$1&" District" -> PPIUCD Report of Chitrakoot District
A20: =TEXT(B4,"mmm-yy")&" to "&TEXT(B1,"mmm-yy") -> Apr-16 to Dec-16 | D20: Total PPIUCD | E20: =$D20&""&" - "&E16 -> Total PPIUCD - 1833 | H20: =$D20&""&" - "&H16 -> Total PPIUCD - 2331 | K20: Total PPIUCD | L20: =$D20&""&" - "&L16 -> Total PPIUCD - 7105 | O20: =$D20&""&" - "&O16 -> Total PPIUCD - 8457 | R20: Total PPIUCD | S20: =$D20&""&" - "&S16 -> Total PPIUCD - 1868 | V20: =$D20&""&" - "&V16 -> Total PPIUCD - 1539
A21: =TEXT(C4,"mmm-yy")&" to "&TEXT(C1,"mmm-yy") -> Apr-17 to Dec-17 | D21: Average: | E21: =$D21&""&E17&"%" -> Average: 20% | H21: =$D21&""&H17&"%" -> Average: 18% | K21: Average: | L21: =$D21&""&L17&"%" -> Average: 10% | O21: =$D21&""&O17&"%" -> Average: 10% | R21: Average: | S21: =$D21&""&S17&"%" -> Average: 42% | V21: =$D21&""&V17&"%" -> Average: 31%
A23: ="PPIUCD Report of "&$K$1&" Division" -> PPIUCD Report of Gonda Division
A24: ="Acceptance and Follow-up Districts of "&$K$1&" Division" -> Acceptance and Follow-up Districts of Gonda Division
A25: ="Acceptance and Follow-up status of "&$D$1&" District Facilities" -> Acceptance and Follow-up status of Chitrakoot District Facilities
A26: ="PPIUCD Report of "&$R$1&"" -> PPIUCD Report of Barabanki_DWH-DH
A27: ="Acceptance and Follow-up status of "&$R$1&"" -> Acceptance and Follow-up status of Barabanki_DWH-DH

Sheet Monthly_Report (hidden)
A1: ID | B1: New_Key | C1: Project | D1: State | E1: Facility_Name | F1: Facility_Code | G1: District | H1: Facility_Type | I1: Year_Name | J1: Month_Name | K1: Year_Month | L1: DOR | M1: ANC_Attd | N1: Del_Vaginal | O1: Del_Caesareans | P1: Del_Total | Q1: Coun_ANC | R1: Coun_Early_PP | S1: Coun_Total | T1: PP_Sterilization | U1: Female_Sterilization | V1: Total_Female_Steri | W1: Male_Steri | X1: OCP | Y1: Condom | Z1: Interval_IUCD | AA1: ECP | AB1: DMPA | AC1: Post_Placental | AD1: Post_Partum | AE1: Intra_Cesarean | AF1: PPIUCD_Total | AG1: IUCD_Forceps | AH1: Ring_Forceps | AI1: Manual_Insertion | AJ1: FUP_Phone_upto6week | AK1: FUP_Phone_after6week | AL1: FUP_Phone_total | AM1: FUP_Clinic_upto6week | AN1: FUP_Clinic_after6week | AO1: FUP_Clinic_total | AP1: FUP_upto6week_total | AQ1: FUP_after6week_total | AR1: FUP_Total | AS1: FUP_upto6week_Expulsion | AT1: FUP_upto6week_Infection | AU1: FUP_upto6week_MS | AV1: FUP_upto6week_Other_Specify | AW1: FUP_upto6week_NoComplaints | AX1: FUP_upto6week_Removal | AY1: FUP_after6week_Expulsion | AZ1: FUP_after6week_Infection | BA1: FUP_after6week_MS | BB1: FUP_after6week_Other_Specify | BC1: FUP_after6week_NoComplaints | BD1: FUP_after6week_Removal | BE1: Total_Expulsion | BF1: Total_Infection | BG1: Total_MS | BH1: Total_NoComplaints | BI1: Total_Removal | BJ1: DOE | BK1: DOU | BL1: Other_Complaints | BM1: Doctor | BN1: Nurse | BO1: Doctor | BP1: Nurse | BR1: DIVISION | BS1: others | BT1: PPIUCD | BU1: re | BV1: Doctor | BW1: Nurse | BX1: Doctor | BY1: Nurse
A2: 16594 | B2: UP-0001-AGR-001-DH_2016_Apr | C2: BMGF (MCHIP-SUP) | D2: Uttar Pradesh | E2: Agra-DH | F2: UP-0001-AGR-001-DH | G2: Agra | H2: District Hospital | I2: 2016 | J2: Apr | K2: 2016-04-01 | L2: 2016-04-30 | M2: 633 | N2: 222 | O2: 21 | P2: 243 | Q2: 216 | R2: 186 | S2: 402 | T2: 5 | U2: 19 | V2: 24 | W2: 0 | X2: 0 | Y2: 1332 | Z2: 12 | AA2: 22 | AB2: 0 | AC2: 28 | AD2: 4 | AE2: 3 | AF2: 35 | AJ2: 0 | AK2: 16 | AL2: 16 | AM2: 0 | AN2: 8 | AO2: 8 | AP2: 0 | AQ2: 24 | AR2: 24 | AS2: 0 | AT2: 0 | AU2: 0 | AV2: 0 | AW2: 0 | AX2: 0 | AY2: 0 | AZ2: 0 | BA2: 0 | BB2: 22 | BC2: 0 | BD2: 2 | BE2: 0 | BF2: 0 | BG2: 0 | BH2: 0 | BI2: 2 | BJ2: 2016-05-02T11:42:36 | BL2: =AV2+BB2 -> 22 | BM2: =IF(B2="","",SUMIFS(Provider_Status!$D:$D,Provider_Status!$B:$B,Monthly_Report!$B2,Provider_Status!$C:$C,Monthly_Report!BM$1)) -> 0 | BN2: =IF(B2="","",SUMIFS(Provider_Status!$D:$D,Provider_Status!$B:$B,Monthly_Report!$B2,Provider_Status!$C:$C,Monthly_Report!BN$1)) -> 0 | BO2: =IF(B2="","",SUMIFS(Provider_Status!$E:$E,Provider_Status!$B:$B,Monthly_Report!$B2,Provider_Status!$C:$C,Monthly_Report!BO$1)) -> 0 | BP2: =IF(B2="","",SUMIFS(Provider_Status!$E:$E,Provider_Status!$B:$B,Monthly_Report!$B2,Provider_Status!$C:$C,Monthly_Report!BP$1)) -> 0 | BQ2: =IF(F2="","",SUMIFS(Training_BMGF!P:P,Training_BMGF!C:C,Monthly_Report!F2,Training_BMGF!L:L,Monthly_Report!K2)) -> 0 | BR2: =VLOOKUP(G2,'Facility List'!Q:R,2,FALSE) -> Agra | BT2: =IF(AF2>0,1,"") -> 1 | BU2: =IF(BL2="","",1) -> 1 | BV2: =SUMIFS(Training_BMGF!P:P,Training_BMGF!C:C,Monthly_Report!F2,Training_BMGF!D:D,Monthly_Report!BV$1,Training_BMGF!L:L,"<="&K2) -> 9 | BW2: =SUMIFS(Training_BMGF!P:P,Training_BMGF!C:C,Monthly_Report!F2,Training_BMGF!D:D,Monthly_Report!BW$1,Training_BMGF!L:L,"<="&K2) -> 18 | BX2: =COUNTIFS('Service Data'!$E:$E,">=1",'Service Data'!$I:$I,Monthly_Report!$E2,'Service Data'!$J:$J,Monthly_Report!BX$1,'Service Data'!$C:$C,Monthly_Report!$K2) -> 5 | BY2: =COUNTIFS('Service Data'!$E:$E,">=1",'Service Data'!$I:$I,Monthly_Report!$E2,'Service Data'!$J:$J,Monthly_Report!BY$1,'Service Data'!$C:$C,Monthly_Report!$K2) -> 0
A3: 18500 | B3: UP-0001-AGR-001-DH_2016_Aug | C3: BMGF (MCHIP-SUP) | D3: Uttar Pradesh | E3: Agra-DH | F3: UP-0001-AGR-001-DH | G3: Agra | H3: District Hospital | I3: 2016 | J3: Aug | K3: 2016-08-01 | L3: 2016-08-28 | M3: 991 | N3: 604 | O3: 94 | P3: 698 | Q3: 482 | R3: 596 | S3: 1078 | T3: 21 | U3: 14 | V3: 35 | W3: 0 | X3: 304 | Y3: 4140 | Z3: 30 | AA3: 33 | AB3: 0 | AC3: 85 | AD3: 26 | AE3: 25 | AF3: 136 | AJ3: 0 | AK3: 18 | AL3: 18 | AM3: 0 | AN3: 29 | AO3: 29 | AP3: 0 | AQ3: 47 | AR3: 47 | AS3: 0 | AT3: 0 | AU3: 0 | AV3: 0 | AW3: 0 | AX3: 0 | AY3: 0 | AZ3: 0 | BA3: 0 | BB3: 8 | BC3: 35 | BD3: 4 | BE3: 0 | BF3: 0 | BG3: 0 | BH3: 35 | BI3: 4 | BJ3: 2016-08-29T14:49:05 | BL3: =AV3+BB3 -> 8 | BM3: =IF(B3="","",SUMIFS(Provider_Status!$D:$D,Provider_Status!$B:$B,Monthly_Report!$B3,Provider_Status!$C:$C,Monthly_Report!BM$1)) -> 0 | BN3: =IF(B3="","",SUMIFS(Provider_Status!$D:$D,Provider_Status!$B:$B,Monthly_Report!$B3,Provider_Status!$C:$C,Monthly_Report!BN$1)) -> 0 | BO3: =IF(B3="","",SUMIFS(Provider_Status!$E:$E,Provider_Status!$B:$B,Monthly_Report!$B3,Provider_Status!$C:$C,Monthly_Report!BO$1)) -> 0 | BP3: =IF(B3="","",SUMIFS(Provider_Status!$E:$E,Provider_Status!$B:$B,Monthly_Report!$B3,Provider_Status!$C:$C,Monthly_Report!BP$1)) -> 0 | BQ3: =IF(F3="","",SUMIFS(Training_BMGF!P:P,Training_BMGF!C:C,Monthly_Report!F3,Training_BMGF!L:L,Monthly_Report!K3)) -> 0 | BR3: =VLOOKUP(G3,'Facility List'!Q:R,2,FALSE) -> Agra | BT3: =IF(AF3>0,1,"") -> 1 | BU3: =IF(BL3="","",1) -> 1 | BV3: =SUMIFS(Training_BMGF!P:P,Training_BMGF!C:C,Monthly_Report!F3,Training_BMGF!D:D,Monthly_Report!BV$1,Training_BMGF!L:L,"<="&K3) -> 9 | BW3: =SUMIFS(Training_BMGF!P:P,Training_BMGF!C:C,Monthly_Report!F3,Training_BMGF!D:D,Monthly_Report!BW$1,Training_BMGF!L:L,"<="&K3) -> 18 | BX3: =COUNTIFS('Service Data'!$E:$E,">=1",'Service Data'!$I:$I,Monthly_Report!$E3,'Service Data'!$J:$J,Monthly_Report!BX$1,'Service Data'!$C:$C,Monthly_Report!$K3) -> 9 | BY3: =COUNTIFS('Service Data'!$E:$E,">=1",'Service Data'!$I:$I,Monthly_Report!$E3,'Service Data'!$J:$J,Monthly_Report!BY$1,'Service Data'!$C:$C,Monthly_Report!$K3) -> 8
A4: 20620 | B4: UP-0001-AGR-001-DH_2016_Dec | C4: BMGF (MCHIP-SUP) | D4: Uttar Pradesh | E4: Agra-DH | F4: UP-0001-AGR-001-DH | G4: Agra | H4: District Hospital | I4: 2016 | J4: Dec | K4: 2016-12-01 | L4: 2017-01-03 | M4: 958 | N4: 461 | O4: 63 | P4: 524 | Q4: 462 | R4: 422 | S4: 884 | T4: 16 | U4: 123 | V4: 139 | W4: 0 | X4: 384 | Y4: 6000 | Z4: 26 | AA4: 43 | AB4: 0 | AC4: 76 | AD4: 32 | AE4: 11 | AF4: 119 | AJ4: 0 | AK4: 46 | AL4: 46 | AM4: 0 | AN4: 24 | AO4: 24 | AP4: 0 | AQ4: 70 | AR4: 70 | AS4: 0 | AT4: 0 | AU4: 0 | AV4: 0 | AW4: 0 | AX4: 0 | AY4: 0 | AZ4: 0 | BA4: 0 | BB4: 12 | BC4: 54 | BD4: 4 | BE4: 0 | BF4: 0 | BG4: 0 | BH4: 54 | BI4: 4 | BJ4: 2017-01-06T13:55:11 | BL4: =AV4+BB4 -> 12 | BM4: =IF(B4="","",SUMIFS(Provider_Status!$D:$D,Provider_Status!$B:$B,Monthly_Report!$B4,Provider_Status!$C:$C,Monthly_Report!BM$1)) -> 14 | BN4: =IF(B4="","",SUMIFS(Provider_Status!$D:$D,Provider_Status!$B:$B,Monthly_Report!$B4,Provider_Status!$C:$C,Monthly_Report!BN$1)) -> 28 | BO4: =IF(B4="","",SUMIFS(Provider_Status!$E:$E,Provider_Status!$B:$B,Monthly_Report!$B4,Provider_Status!$C:$C,Monthly_Report!BO$1)) -> 10 | BP4: =IF(B4="","",SUMIFS(Provider_Status!$E:$E,Provider_Status!$B:$B,Monthly_Report!$B4,Provider_Status!$C:$C,Monthly_Report!BP$1)) -> 3 | BQ4: =IF(F4="","",SUMIFS(Training_BMGF!P:P,Training_BMGF!C:C,Monthly_Report!F4,Training_BMGF!L:L,Monthly_Report!K4)) -> 0 | BR4: =VLOOKUP(G4,'Facility List'!Q:R,2,FALSE) -> Agra | BT4: 1 | BU4: 1 | BV4: =SUMIFS(Training_BMGF!P:P,Training_BMGF!C:C,Monthly_Report!F4,Training_BMGF!D:D,Monthly_Report!BV$1,Training_BMGF!L:L,"<="&K4) -> 9 | BW4: =SUMIFS(Training_BMGF!P:P,Training_BMGF!C:C,Monthly_Report!F4,Training_BMGF!D:D,Monthly_Report!BW$1,Training_BMGF!L:L,"<="&K4) -> 18 | BX4: =COUNTIFS('Service Data'!$E:$E,">=1",'Service Data'!$I:$I,Monthly_Report!$E4,'Service Data'!$J:$J,Monthly_Report!BX$1,'Service Data'!$C:$C,Monthly_Report!$K4) -> 8 | BY4: =COUNTIFS('Service Data'!$E:$E,">=1",'Service Data'!$I:$I,Monthly_Report!$E4,'Service Data'!$J:$J,Monthly_Report!BY$1,'Service Data'!$C:$C,Monthly_Report!$K4) -> 2
A5: 15547 | B5: UP-0001-AGR-001-DH_2016_Feb | C5: BMGF (MCHIP-SUP) | D5: Uttar Pradesh | E5: Agra-DH | F5: UP-0001-AGR-001-DH | G5: Agra | H5: District Hospital | I5: 2016 | J5: Feb | K5: 2016-02-01 | L5: 2016-02-25 | M5: 712 | N5: 363 | O5: 69 | P5: 432 | Q5: 442 | R5: 372 | S5: 814 | T5: 106 | U5: 10 | V5: 116 | W5: 0 | X5: 280 | Y5: 4590 | Z5: 8 | AA5: 16 | AB5: 0 | AC5: 57 | AD5: 16 | AE5: 18 | AF5: 91 | AJ5: 0 | AK5: 34 | AL5: 34 | AM5: 0 | AN5: 18 | AO5: 18 | AP5: 0 | AQ5: 52 | AR5: 52 | AS5: 0 | AT5: 0 | AU5: 0 | AV5: 0 | AW5: 0 | AX5: 0 | AY5: 0 | AZ5: 0 | BA5: 0 | BB5: 8 | BC5: 44 | BD5: 0 | BE5: 0 | BF5: 0 | BG5: 0 | BH5: 44 | BI5: 0 | BJ5: 2016-02-26T12:35:38 | BL5: 8 | BM5: =IF(B5="","",SUMIFS(Provider_Status!$D:$D,Provider_Status!$B:$B,Monthly_Report!$B5,Provider_Status!$C:$C,Monthly_Report!BM$1)) -> 0 | BN5: =IF(B5="","",SUMIFS(Provider_Status!$D:$D,Provider_Status!$B:$B,Monthly_Report!$B5,Provider_Status!$C:$C,Monthly_Report!BN$1)) -> 0 | BO5: =IF(B5="","",SUMIFS(Provider_Status!$E:$E,Provider_Status!$B:$B,Monthly_Report!$B5,Provider_Status!$C:$C,Monthly_Report!BO$1)) -> 0 | BP5: =IF(B5="","",SUMIFS(Provider_Status!$E:$E,Provider_Status!$B:$B,Monthly_Report!$B5,Provider_Status!$C:$C,Monthly_Report!BP$1)) -> 0 | BQ5: =IF(F5="","",SUMIFS(Training_BMGF!P:P,Training_BMGF!C:C,Monthly_Report!F5,Training_BMGF!L:L,Monthly_Report!K5)) -> 5 | BR5: =VLOOKUP(G5,'Facility List'!Q:R,2,FALSE) -> Agra | BT5: 1 | BU5: 1 | BV5: =SUMIFS(Training_BMGF!P:P,Training_BMGF!C:C,Monthly_Report!F5,Training_BMGF!D:D,Monthly_Report!BV$1,Training_BMGF!L:L,"<="&K5) -> 9 | BW5: =SUMIFS(Training_BMGF!P:P,Training_BMGF!C:C,Monthly_Report!F5,Training_BMGF!D:D,Monthly_Report!BW$1,Training_BMGF!L:L,"<="&K5) -> 18 | BX5: =COUNTIFS('Service Data'!$E:$E,">=1",'Service Data'!$I:$I,Monthly_Report!$E5,'Service Data'!$J:$J,Monthly_Report!BX$1,'Service Data'!$C:$C,Monthly_Report!$K5) -> 4 | BY5: =COUNTIFS('Service Data'!$E:$E,">=1",'Service Data'!$I:$I,Monthly_Report!$E5,'Service Data'!$J:$J,Monthly_Report!BY$1,'Service Data'!$C:$C,Monthly_Report!$K5) -> 3
A6: 15246 | B6: UP-0001-AGR-001-DH_2016_Jan | C6: BMGF (MCHIP-SUP) | D6: Uttar Pradesh | E6: Agra-DH | F6: UP-0001-AGR-001-DH | G6: Agra | H6: District Hospital | I6: 2016 | J6: Jan | K6: 2016-01-01 | L6: 2016-01-30 | M6: 777 | N6: 433 | O6: 81 | P6: 514 | Q6: 280 | R6: 296 | S6: 576 | T6: 131 | U6: 3 | V6: 134 | W6: 0 | X6: 7 | Y6: 3555 | Z6: 6 | AA6: 0 | AB6: 0 | AC6: 72 | AD6: 14 | AE6: 10 | AF6: 96 | AJ6: 0 | AK6: 12 | AL6: 12 | AM6: 0 | AN6: 8 | AO6: 8 | AP6: 0 | AQ6: 20 | AR6: 20 | AS6: 0 | AT6: 0 | AU6: 0 | AV6: 0 | AW6: 0 | AX6: 0 | AY6: 0 | AZ6: 0 | BA6: 0 | BB6: 4 | BC6: 16 | BD6: 0 | BE6: 0 | BF6: 0 | BG6: 0 | BH6: 16 | BI6: 0 | BJ6: 2016-02-02T11:38:50 | BL6: 4 | BM6: =IF(B6="","",SUMIFS(Provider_Status!$D:$D,Provider_Status!$B:$B,Monthly_Report!$B6,Provider_Status!$C:$C,Monthly_Report!BM$1)) -> 0 | BN6: =IF(B6="","",SUMIFS(Provider_Status!$D:$D,Provider_Status!$B:$B,Monthly_Report!$B6,Provider_Status!$C:$C,Monthly_Report!BN$1)) -> 0 | BO6: =IF(B6="","",SUMIFS(Provider_Status!$E:$E,Provider_Status!$B:$B,Monthly_Report!$B6,Provider_Status!$C:$C,Monthly_Report!BO$1)) -> 0 | BP6: =IF(B6="","",SUMIFS(Provider_Status!$E:$E,Provider_Status!$B:$B,Monthly_Report!$B6,Provider_Status!$C:$C,Monthly_Report!BP$1)) -> 0 | BQ6: =IF(F6="","",SUMIFS(Training_BMGF!P:P,Training_BMGF!C:C,Monthly_Report!F6,Training_BMGF!L:L,Monthly_Report!K6)) -> 0 | BR6: =VLOOKUP(G6,'Facility List'!Q:R,2,FALSE) -> Agra | BT6: 1 | BU6: 1 | BV6: =SUMIFS(Training_BMGF!P:P,Training_BMGF!C:C,Monthly_Report!F6,Training_BMGF!D:D,Monthly_Report!BV$1,Training_BMGF!L:L,"<="&K6) -> 8 | BW6: =SUMIFS(Training_BMGF!P:P,Training_BMGF!C:C,Monthly_Report!F6,Training_BMGF!D:D,Monthly_Report!BW$1,Training_BMGF!L:L,"<="&K6) -> 14 | BX6: =COUNTIFS('Service Data'!$E:$E,">=1",'Service Data'!$I:$I,Monthly_Report!$E6,'Service Data'!$J:$J,Monthly_Report!BX$1,'Service Data'!$C:$C,Monthly_Report!$K6) -> 5 | BY6: =COUNTIFS('Service Data'!$E:$E,">=1",'Service Data'!$I:$I,Monthly_Report!$E6,'Service Data'!$J:$J,Monthly_Report!BY$1,'Service Data'!$C:$C,Monthly_Report!$K6) -> 1
A7: 17904 | B7: UP-0001-AGR-001-DH_2016_Jul | C7: BMGF (MCHIP-SUP) | D7: Uttar Pradesh | E7: Agra-DH | F7: UP-0001-AGR-001-DH | G7: Agra | H7: District Hospital | I7: 2016 | J7: Jul | K7: 2016-07-01 | L7: 2016-07-25 | M7: 1015 | N7: 472 | O7: 99 | P7: 571 | Q7: 426 | R7: 487 | S7: 913 | T7: 22 | U7: 12 | V7: 34 | W7: 0 | X7: 204 | Y7: 3339 | Z7: 25 | AA7: 58 | AB7: 0 | AC7: 58 | AD7: 22 | AE7: 21 | AF7: 101 | AJ7: 0 | AK7: 18 | AL7: 18 | AM7: 0 | AN7: 12 | AO7: 12 | AP7: 0 | AQ7: 30 | AR7: 30 | AS7: 0 | AT7: 0 | AU7: 0 | AV7: 0 | AW7: 0 | AX7: 0 | AY7: 0 | AZ7: 0 | BA7: 0 | BB7: 4 | BC7: 24 | BD7: 2 | BE7: 0 | BF7: 0 | BG7: 0 | BH7: 24 | BI7: 2 | BJ7: 2016-07-25T15:38:53 | BL7: 4 | BM7: =IF(B7="","",SUMIFS(Provider_Status!$D:$D,Provider_Status!$B:$B,Monthly_Report!$B7,Provider_Status!$C:$C,Monthly_Report!BM$1)) -> 0 | BN7: =IF(B7="","",SUMIFS(Provider_Status!$D:$D,Provider_Status!$B:$B,Monthly_Report!$B7,Provider_Status!$C:$C,Monthly_Report!BN$1)) -> 0 | BO7: =IF(B7="","",SUMIFS(Provider_Status!$E:$E,Provider_Status!$B:$B,Monthly_Report!$B7,Provider_Status!$C:$C,Monthly_Report!BO$1)) -> 0 | BP7: =IF(B7="","",SUMIFS(Provider_Status!$E:$E,Provider_Status!$B:$B,Monthly_Report!$B7,Provider_Status!$C:$C,Monthly_Report!BP$1)) -> 0 | BQ7: =IF(F7="","",SUMIFS(Training_BMGF!P:P,Training_BMGF!C:C,Monthly_Report!F7,Training_BMGF!L:L,Monthly_Report!K7)) -> 0 | BR7: =VLOOKUP(G7,'Facility List'!Q:R,2,FALSE) -> Agra | BT7: 1 | BU7: 1 | BV7: =SUMIFS(Training_BMGF!P:P,Training_BMGF!C:C,Monthly_Report!F7,Training_BMGF!D:D,Monthly_Report!BV$1,Training_BMGF!L:L,"<="&K7) -> 9 | BW7: =SUMIFS(Training_BMGF!P:P,Training_BMGF!C:C,Monthly_Report!F7,Training_BMGF!D:D,Monthly_Report!BW$1,Training_BMGF!L:L,"<="&K7) -> 18 | BX7: =COUNTIFS('Service Data'!$E:$E,">=1",'Service Data'!$I:$I,Monthly_Report!$E7,'Service Data'!$J:$J,Monthly_Report!BX$1,'Service Data'!$C:$C,Monthly_Report!$K7) -> 7 | BY7: =COUNTIFS('Service Data'!$E:$E,">=1",'Service Data'!$I:$I,Monthly_Report!$E7,'Service Data'!$J:$J,Monthly_Report!BY$1,'Service Data'!$C:$C,Monthly_Report!$K7) -> 3
A8: 17471 | B8: UP-0001-AGR-001-DH_2016_Jun | C8: BMGF (MCHIP-SUP) | D8: Uttar Pradesh | E8: Agra-DH | F8: UP-0001-AGR-001-DH | G8: Agra | H8: District Hospital | I8: 2016 | J8: Jun | K8: 2016-06-01 | L8: 2016-06-27 | M8: 1080 | N8: 427 | O8: 74 | P8: 501 | Q8: 510 | R8: 424 | S8: 934 | T8: 11 | U8: 24 | V8: 35 | W8: 0 | X8: 105 | Y8: 2295 | Z8: 48 | AA8: 32 | AB8: 0 | AC8: 55 | AD8: 15 | AE8: 11 | AF8: 81 | AJ8: 0 | AK8: 42 | AL8: 42 | AM8: 1 | AN8: 26 | AO8: 27 | AP8: 1 | AQ8: 68 | AR8: 69 | AS8: 0 | AT8: 0 | AU8: 0 | AV8: 0 | AW8: 1 | AX8: 0 | AY8: 0 | AZ8: 0 | BA8: 0 | BB8: 12 | BC8: 54 | BD8: 2 | BE8: 0 | BF8: 0 | BG8: 0 | BH8: 55 | BI8: 2 | BJ8: 2016-06-27T12:02:13 | BL8: 12 | BM8: =IF(B8="","",SUMIFS(Provider_Status!$D:$D,Provider_Status!$B:$B,Monthly_Report!$B8,Provider_Status!$C:$C,Monthly_Report!BM$1)) -> 0 | BN8: =IF(B8="","",SUMIFS(Provider_Status!$D:$D,Provider_Status!$B:$B,Monthly_Report!$B8,Provider_Status!$C:$C,Monthly_Report!BN$1)) -> 0 | BO8: =IF(B8="","",SUMIFS(Provider_Status!$E:$E,Provider_Status!$B:$B,Monthly_Report!$B8,Provider_Status!$C:$C,Monthly_Report!BO$1)) -> 0 | BP8: =IF(B8="","",SUMIFS(Provider_Status!$E:$E,Provider_Status!$B:$B,Monthly_Report!$B8,Provider_Status!$C:$C,Monthly_Report!BP$1)) -> 0 | BQ8: =IF(F8="","",SUMIFS(Training_BMGF!P:P,Training_BMGF!C:C,Monthly_Report!F8,Training_BMGF!L:L,Monthly_Report!K8)) -> 0 | BR8: =VLOOKUP(G8,'Facility List'!Q:R,2,FALSE) -> Agra | BT8: 1 | BU8: 1 | BV8: =SUMIFS(Training_BMGF!P:P,Training_BMGF!C:C,Monthly_Report!F8,Training_BMGF!D:D,Monthly_Report!BV$1,Training_BMGF!L:L,"<="&K8) -> 9 | BW8: =SUMIFS(Training_BMGF!P:P,Training_BMGF!C:C,Monthly_Report!F8,Training_BMGF!D:D,Monthly_Report!BW$1,Training_BMGF!L:L,"<="&K8) -> 18 | BX8: =COUNTIFS('Service Data'!$E:$E,">=1",'Service Data'!$I:$I,Monthly_Report!$E8,'Service Data'!$J:$J,Monthly_Report!BX$1,'Service Data'!$C:$C,Monthly_Report!$K8) -> 7 | BY8: =COUNTIFS('Service Data'!$E:$E,">=1",'Service Data'!$I:$I,Monthly_Report!$E8,'Service Data'!$J:$J,Monthly_Report!BY$1,'Service Data'!$C:$C,Monthly_Report!$K8) -> 3
A9: 16087 | B9: UP-0001-AGR-001-DH_2016_Mar | C9: BMGF (MCHIP-SUP) | D9: Uttar Pradesh | E9: Agra-DH | F9: UP-0001-AGR-001-DH | G9: Agra | H9: District Hospital | I9: 2016 | J9: Mar | K9: 2016-03-01 | L9: 2016-04-11 | M9: 1146 | N9: 571 | O9: 48 | P9: 619 | Q9: 562 | R9: 524 | S9: 1086 | T9: 75 | U9: 9 | V9: 84 | W9: 0 | X9: 620 | Y9: 6111 | Z9: 28 | AA9: 24 | AB9: 0 | AC9: 77 | AD9: 5 | AE9: 8 | AF9: 90 | AJ9: 0 | AK9: 39 | AL9: 39 | AM9: 0 | AN9: 32 | AO9: 32 | AP9: 0 | AQ9: 71 | AR9: 71 | AS9: 0 | AT9: 0 | AU9: 0 | AV9: 0 | AW9: 0 | AX9: 0 | AY9: 0 | AZ9: 0 | BA9: 0 | BB9: 0 | BC9: 71 | BD9: 0 | BE9: 0 | BF9: 0 | BG9: 0 | BH9: 71 | BI9: 0 | BJ9: 2016-04-11T15:41:55 | BL9: 0 | BM9: =IF(B9="","",SUMIFS(Provider_Status!$D:$D,Provider_Status!$B:$B,Monthly_Report!$B9,Provider_Status!$C:$C,Monthly_Report!BM$1)) -> 0 | BN9: =IF(B9="","",SUMIFS(Provider_Status!$D:$D,Provider_Status!$B:$B,Monthly_Report!$B9,Provider_Status!$C:$C,Monthly_Report!BN$1)) -> 0 | BO9: =IF(B9="","",SUMIFS(Provider_Status!$E:$E,Provider_Status!$B:$B,Monthly_Report!$B9,Provider_Status!$C:$C,Monthly_Report!BO$1)) -> 0 | BP9: =IF(B9="","",SUMIFS(Provider_Status!$E:$E,Provider_Status!$B:$B,Monthly_Report!$B9,Provider_Status!$C:$C,Monthly_Report!BP$1)) -> 0 | BQ9: =IF(F9="","",SUMIFS(Training_BMGF!P:P,Training_BMGF!C:C,Monthly_Report!F9,Training_BMGF!L:L,Monthly_Report!K9)) -> 0 | BR9: =VLOOKUP(G9,'Facility List'!Q:R,2,FALSE) -> Agra | BT9: 1 | BU9: 1 | BV9: =SUMIFS(Training_BMGF!P:P,Training_BMGF!C:C,Monthly_Report!F9,Training_BMGF!D:D,Monthly_Report!BV$1,Training_BMGF!L:L,"<="&K9) -> 9 | BW9: =SUMIFS(Training_BMGF!P:P,Training_BMGF!C:C,Monthly_Report!F9,Training_BMGF!D:D,Monthly_Report!BW$1,Training_BMGF!L:L,"<="&K9) -> 18 | BX9: =COUNTIFS('Service Data'!$E:$E,">=1",'Service Data'!$I:$I,Monthly_Report!$E9,'Service Data'!$J:$J,Monthly_Report!BX$1,'Service Data'!$C:$C,Monthly_Report!$K9) -> 5 | BY9: =COUNTIFS('Service Data'!$E:$E,">=1",'Service Data'!$I:$I,Monthly_Report!$E9,'Service Data'!$J:$J,Monthly_Report!BY$1,'Service Data'!$C:$C,Monthly_Report!$K9) -> 2
A10: 17225 | B10: UP-0001-AGR-001-DH_2016_May | C10: BMGF (MCHIP-SUP) | D10: Uttar Pradesh | E10: Agra-DH | F10: UP-0001-AGR-001-DH | G10: Agra | H10: District Hospital | I10: 2016 | J10: May | K10: 2016-05-01 | L10: 2016-06-10 | M10: 980 | N10: 384 | O10: 69 | P10: 453 | Q10: 426 | R10: 379 | S10: 805 | T10: 15 | U10: 21 | V10: 36 | W10: 0 | X10: 42 | Y10: 1071 | Z10: 21 | AA10: 28 | AB10: 0 | AC10: 48 | AD10: 35 | AE10: 16 | AF10: 99 | AJ10: 0 | AK10: 21 | AL10: 21 | AM10: 0 | AN10: 24 | AO10: 24 | AP10: 0 | AQ10: 45 | AR10: 45 | AS10: 0 | AT10: 0 | AU10: 0 | AV10: 0 | AW10: 0 | AX10: 0 | AY10: 0 | AZ10: 0 | BA10: 0 | BB10: 10 | BC10: 32 | BD10: 3 | BE10: 0 | BF10: 0 | BG10: 0 | BH10: 32 | BI10: 3 | BJ10: 2016-06-10T10:07:09 | BL10: 10 | BM10: =IF(B10="","",SUMIFS(Provider_Status!$D:$D,Provider_Status!$B:$B,Monthly_Report!$B10,Provider_Status!$C:$C,Monthly_Report!BM$1)) -> 0 | BN10: =IF(B10="","",SUMIFS(Provider_Status!$D:$D,Provider_Status!$B:$B,Monthly_Report!$B10,Provider_Status!$C:$C,Monthly_Report!BN$1)) -> 0 | BO10: =IF(B10="","",SUMIFS(Provider_Status!$E:$E,Provider_Status!$B:$B,Monthly_Report!$B10,Provider_Status!$C:$C,Monthly_Report!BO$1)) -> 0 | BP10: =IF(B10="","",SUMIFS(Provider_Status!$E:$E,Provider_Status!$B:$B,Monthly_Report!$B10,Provider_Status!$C:$C,Monthly_Report!BP$1)) -> 0 | BQ10: =IF(F10="","",SUMIFS(Training_BMGF!P:P,Training_BMGF!C:C,Monthly_Report!F10,Training_BMGF!L:L,Monthly_Report!K10)) -> 0 | BR10: =VLOOKUP(G10,'Facility List'!Q:R,2,FALSE) -> Agra | BT10: 1 | BU10: 1 | BV10: =SUMIFS(Training_BMGF!P:P,Training_BMGF!C:C,Monthly_Report!F10,Training_BMGF!D:D,Monthly_Report!BV$1,Training_BMGF!L:L,"<="&K10) -> 9 | BW10: =SUMIFS(Training_BMGF!P:P,Training_BMGF!C:C,Monthly_Report!F10,Training_BMGF!D:D,Monthly_Report!BW$1,Training_BMGF!L:L,"<="&K10) -> 18 | BX10: =COUNTIFS('Service Data'!$E:$E,">=1",'Service Data'!$I:$I,Monthly_Report!$E10,'Service Data'!$J:$J,Monthly_Report!BX$1,'Service Data'!$C:$C,Monthly_Report!$K10) -> 7 | BY10: =COUNTIFS('Service Data'!$E:$E,">=1",'Service Data'!$I:$I,Monthly_Report!$E10,'Service Data'!$J:$J,Monthly_Report!BY$1,'Service Data'!$C:$C,Monthly_Report!$K10) -> 7
A11: 20124 | B11: UP-0001-AGR-001-DH_2016_Nov | C11: BMGF (MCHIP-SUP) | D11: Uttar Pradesh | E11: Agra-DH | F11: UP-0001-AGR-001-DH | G11: Agra | H11: District Hospital | I11: 2016 | J11: Nov | K11: 2016-11-01 | L11: 2016-12-01 | M11: 718 | N11: 581 | O11: 96 | P11: 677 | Q11: 526 | R11: 421 | S11: 947 | T11: 17 | U11: 63 | V11: 80 | W11: 0 | X11: 385 | Y11: 3600 | Z11: 22 | AA11: 36 | AB11: 0 | AC11: 95 | AD11: 20 | AE11: 24 | AF11: 139 | AJ11: 0 | AK11: 26 | AL11: 26 | AM11: 0 | AN11: 21 | AO11: 21 | AP11: 0 | AQ11: 47 | AR11: 47 | AS11: 0 | AT11: 0 | AU11: 0 | AV11: 0 | AW11: 0 | AX11: 0 | AY11: 1 | AZ11: 0 | BA11: 0 | BB11: 10 | BC11: 34 | BD11: 2 | BE11: 1 | BF11: 0 | BG11: 0 | BH11: 34 | BI11: 2 | BJ11: 2016-12-02T09:21:10 | BL11: 10 | BM11: =IF(B11="","",SUMIFS(Provider_Status!$D:$D,Provider_Status!$B:$B,Monthly_Report!$B11,Provider_Status!$C:$C,Monthly_Report!BM$1)) -> 0 | BN11: =IF(B11="","",SUMIFS(Provider_Status!$D:$D,Provider_Status!$B:$B,Monthly_Report!$B11,Provider_Status!$C:$C,Monthly_Report!BN$1)) -> 0 | BO11: =IF(B11="","",SUMIFS(Provider_Status!$E:$E,Provider_Status!$B:$B,Monthly_Report!$B11,Provider_Status!$C:$C,Monthly_Report!BO$1)) -> 0 | BP11: =IF(B11="","",SUMIFS(Provider_Status!$E:$E,Provider_Status!$B:$B,Monthly_Report!$B11,Provider_Status!$C:$C,Monthly_Report!BP$1)) -> 0 | BQ11: =IF(F11="","",SUMIFS(Training_BMGF!P:P,Training_BMGF!C:C,Monthly_Report!F11,Training_BMGF!L:L,Monthly_Report!K11)) -> 0 | BR11: =VLOOKUP(G11,'Facility List'!Q:R,2,FALSE) -> Agra | BT11: 1 | BU11: 1 | BV11: =SUMIFS(Training_BMGF!P:P,Training_BMGF!C:C,Monthly_Report!F11,Training_BMGF!D:D,Monthly_Report!BV$1,Training_BMGF!L:L,"<="&K11) -> 9 | BW11: =SUMIFS(Training_BMGF!P:P,Training_BMGF!C:C,Monthly_Report!F11,Training_BMGF!D:D,Monthly_Report!BW$1,Training_BMGF!L:L,"<="&K11) -> 18 | BX11: =COUNTIFS('Service Data'!$E:$E,">=1",'Service Data'!$I:$I,Monthly_Report!$E11,'Service Data'!$J:$J,Monthly_Report!BX$1,'Service Data'!$C:$C,Monthly_Report!$K11) -> 9 | BY11: =COUNTIFS('Service Data'!$E:$E,">=1",'Service Data'!$I:$I,Monthly_Report!$E11,'Service Data'!$J:$J,Monthly_Report!BY$1,'Service Data'!$C:$C,Monthly_Report!$K11) -> 2
A12: 19515 | B12: UP-0001-AGR-001-DH_2016_Oct | C12: BMGF (MCHIP-SUP) | D12: Uttar Pradesh | E12: Agra-DH | F12: UP-0001-AGR-001-DH | G12: Agra | H12: District Hospital | I12: 2016 | J12: Oct | K12: 2016-10-01 | L12: 2016-11-02 | M12: 1008 | N12: 566 | O12: 85 | P12: 651 | Q12: 544 | R12: 464 | S12: 1008 | T12: 6 | U12: 15 | V12: 21 | W12: 21 | X12: 350 | Y12: 4750 | Z12: 25 | AA12: 42 | AB12: 0 | AC12: 75 | AD12: 21 | AE12: 18 | AF12: 114 | AJ12: 0 | AK12: 34 | AL12: 34 | AM12: 1 | AN12: 28 | AO12: 29 | AP12: 1 | AQ12: 62 | AR12: 63 | AS12: 0 | AT12: 0 | AU12: 0 | AV12: 0 | AW12: 1 | AX12: 0 | AY12: 0 | AZ12: 0 | BA12: 0 | BB12: 12 | BC12: 50 | BD12: 0 | BE12: 0 | BF12: 0 | BG12: 0 | BH12: 51 | BI12: 0 | BJ12: 2016-11-03T11:38:46 | BL12: 12 | BM12: =IF(B12="","",SUMIFS(Provider_Status!$D:$D,Provider_Status!$B:$B,Monthly_Report!$B12,Provider_Status!$C:$C,Monthly_Report!BM$1)) -> 0 | BN12: =IF(B12="","",SUMIFS(Provider_Status!$D:$D,Provider_Status!$B:$B,Monthly_Report!$B12,Provider_Status!$C:$C,Monthly_Report!BN$1)) -> 0 | BO12: =IF(B12="","",SUMIFS(Provider_Status!$E:$E,Provider_Status!$B:$B,Monthly_Report!$B12,Provider_Status!$C:$C,Monthly_Report!BO$1)) -> 0 | BP12: =IF(B12="","",SUMIFS(Provider_Status!$E:$E,Provider_Status!$B:$B,Monthly_Report!$B12,Provider_Status!$C:$C,Monthly_Report!BP$1)) -> 0 | BQ12: =IF(F12="","",SUMIFS(Training_BMGF!P:P,Training_BMGF!C:C,Monthly_Report!F12,Training_BMGF!L:L,Monthly_Report!K12)) -> 0 | BR12: =VLOOKUP(G12,'Facility List'!Q:R,2,FALSE) -> Agra | BT12: 1 | BU12: 1 | BV12: =SUMIFS(Training_BMGF!P:P,Training_BMGF!C:C,Monthly_Report!F12,Training_BMGF!D:D,Monthly_Report!BV$1,Training_BMGF!L:L,"<="&K12) -> 9 | BW12: =SUMIFS(Training_BMGF!P:P,Training_BMGF!C:C,Monthly_Report!F12,Training_BMGF!D:D,Monthly_Report!BW$1,Training_BMGF!L:L,"<="&K12) -> 18 | BX12: =COUNTIFS('Service Data'!$E:$E,">=1",'Service Data'!$I:$I,Monthly_Report!$E12,'Service Data'!$J:$J,Monthly_Report!BX$1,'Service Data'!$C:$C,Monthly_Report!$K12) -> 9 | BY12: =COUNTIFS('Service Data'!$E:$E,">=1",'Service Data'!$I:$I,Monthly_Report!$E12,'Service Data'!$J:$J,Monthly_Report!BY$1,'Service Data'!$C:$C,Monthly_Report!$K12) -> 4
A13: 19033 | B13: UP-0001-AGR-001-DH_2016_Sep | C13: BMGF (MCHIP-SUP) | D13: Uttar Pradesh | E13: Agra-DH | F13: UP-0001-AGR-001-DH | G13: Agra | H13: District Hospital | I13: 2016 | J13: Sep | K13: 2016-09-01 | L13: 2016-09-29 | M13: 996 | N13: 637 | O13: 100 | P13: 737 | Q13: 426 | R13: 286 | S13: 712 | T13: 12 | U13: 28 | V13: 40 | W13: 0 | X13: 285 | Y13: 3800 | Z13: 21 | AA13: 38 | AB13: 0 | AC13: 87 | AD13: 36 | AE13: 20 | AF13: 143 | AJ13: 0 | AK13: 24 | AL13: 24 | AM13: 0 | AN13: 12 | AO13: 12 | AP13: 0 | AQ13: 36 | AR13: 36 | AS13: 0 | AT13: 0 | AU13: 0 | AV13: 0 | AW13: 0 | AX13: 0 | AY13: 0 | AZ13: 0 | BA13: 0 | BB13: 4 | BC13: 32 | BD13: 0 | BE13: 0 | BF13: 0 | BG13: 0 | BH13: 32 | BI13: 0 | BJ13: 2016-09-29T12:24:05 | BL13: 4 | BM13: =IF(B13="","",SUMIFS(Provider_Status!$D:$D,Provider_Status!$B:$B,Monthly_Report!$B13,Provider_Status!$C:$C,Monthly_Report!BM$1)) -> 0 | BN13: =IF(B13="","",SUMIFS(Provider_Status!$D:$D,Provider_Status!$B:$B,Monthly_Report!$B13,Provider_Status!$C:$C,Monthly_Report!BN$1)) -> 0 | BO13: =IF(B13="","",SUMIFS(Provider_Status!$E:$E,Provider_Status!$B:$B,Monthly_Report!$B13,Provider_Status!$C:$C,Monthly_Report!BO$1)) -> 0 | BP13: =IF(B13="","",SUMIFS(Provider_Status!$E:$E,Provider_Status!$B:$B,Monthly_Report!$B13,Provider_Status!$C:$C,Monthly_Report!BP$1)) -> 0 | BQ13: =IF(F13="","",SUMIFS(Training_BMGF!P:P,Training_BMGF!C:C,Monthly_Report!F13,Training_BMGF!L:L,Monthly_Report!K13)) -> 0 | BR13: =VLOOKUP(G13,'Facility List'!Q:R,2,FALSE) -> Agra | BT13: 1 | BU13: 1 | BV13: =SUMIFS(Training_BMGF!P:P,Training_BMGF!C:C,Monthly_Report!F13,Training_BMGF!D:D,Monthly_Report!BV$1,Training_BMGF!L:L,"<="&K13) -> 9 | BW13: =SUMIFS(Training_BMGF!P:P,Training_BMGF!C:C,Monthly_Report!F13,Training_BMGF!D:D,Monthly_Report!BW$1,Training_BMGF!L:L,"<="&K13) -> 18 | BX13: =COUNTIFS('Service Data'!$E:$E,">=1",'Service Data'!$I:$I,Monthly_Report!$E13,'Service Data'!$J:$J,Monthly_Report!BX$1,'Service Data'!$C:$C,Monthly_Report!$K13) -> 9 | BY13: =COUNTIFS('Service Data'!$E:$E,">=1",'Service Data'!$I:$I,Monthly_Report!$E13,'Service Data'!$J:$J,Monthly_Report!BY$1,'Service Data'!$C:$C,Monthly_Report!$K13) -> 6
A14: 23552 | B14: UP-0001-AGR-001-DH_2017_Apr | C14: BMGF (MCHIP-SUP) | D14: Uttar Pradesh | E14: Agra-DH | F14: UP-0001-AGR-001-DH | G14: Agra | H14: District Hospital | I14: 2017 | J14: Apr | K14: 2017-04-01 | L14: 2017-05-25 | M14: 705 | N14: 233 | O14: 71 | P14: 304 | Q14: 194 | R14: 212 | S14: 406 | T14: 0 | U14: 39 | V14: 39 | W14: 0 | X14: 0 | Y14: 504 | Z14: 21 | AA14: 32 | AB14: 0 | AC14: 41 | AD14: 8 | AE14: 11 | AF14: 60 | AJ14: 0 | AK14: 12 | AL14: 12 | AM14: 0 | AN14: 8 | AO14: 8 | AP14: 0 | AQ14: 20 | AR14: 20 | AS14: 0 | AT14: 0 | AU14: 0 | AV14: 0 | AW14: 0 | AX14: 0 | AY14: 0 | AZ14: 0 | BA14: 0 | BB14: 2 | BC14: 18 | BD14: 0 | BE14: 0 | BF14: 0 | BG14: 0 | BH14: 18 | BI14: 0 | BJ14: 2017-05-29T13:57:33 | BL14: 2 | BM14: =IF(B14="","",SUMIFS(Provider_Status!$D:$D,Provider_Status!$B:$B,Monthly_Report!$B14,Provider_Status!$C:$C,Monthly_Report!BM$1)) -> 16 | BN14: =IF(B14="","",SUMIFS(Provider_Status!$D:$D,Provider_Status!$B:$B,Monthly_Report!$B14,Provider_Status!$C:$C,Monthly_Report!BN$1)) -> 30 | BO14: =IF(B14="","",SUMIFS(Provider_Status!$E:$E,Provider_Status!$B:$B,Monthly_Report!$B14,Provider_Status!$C:$C,Monthly_Report!BO$1)) -> 8 | BP14: =IF(B14="","",SUMIFS(Provider_Status!$E:$E,Provider_Status!$B:$B,Monthly_Report!$B14,Provider_Status!$C:$C,Monthly_Report!BP$1)) -> 5 | BQ14: =IF(F14="","",SUMIFS(Training_BMGF!P:P,Training_BMGF!C:C,Monthly_Report!F14,Training_BMGF!L:L,Monthly_Report!K14)) -> 0 | BR14: =VLOOKUP(G14,'Facility List'!Q:R,2,FALSE) -> Agra | BT14: 1 | BU14: 1 | BV14: =SUMIFS(Training_BMGF!P:P,Training_BMGF!C:C,Monthly_Report!F14,Training_BMGF!D:D,Monthly_Report!BV$1,Training_BMGF!L:L,"<="&K14) -> 12 | BW14: =SUMIFS(Training_BMGF!P:P,Training_BMGF!C:C,Monthly_Report!F14,Training_BMGF!D:D,Monthly_Report!BW$1,Training_BMGF!L:L,"<="&K14) -> 21 | BX14: =COUNTIFS('Service Data'!$E:$E,">=1",'Service Data'!$I:$I,Monthly_Report!$E14,'Service Data'!$J:$J,Monthly_Report!BX$1,'Service Data'!$C:$C,Monthly_Report!$K14) -> 8 | BY14: =COUNTIFS('Service Data'!$E:$E,">=1",'Service Data'!$I:$I,Monthly_Report!$E14,'Service Data'!$J:$J,Monthly_Report!BY$1,'Service Data'!$C:$C,Monthly_Report!$K14) -> 5
A15: 26103 | B15: UP-0001-AGR-001-DH_2017_Aug | C15: BMGF (MCHIP-SUP) | D15: Uttar Pradesh | E15: Agra-DH | F15: UP-0001-AGR-001-DH | G15: Agra | H15: District Hospital | I15: 2017 | J15: Aug | K15: 2017-08-01 | L15: 2017-09-04 | M15: 571 | N15: 673 | O15: 123 | P15: 796 | Q15: 436 | R15: 527 | S15: 963 | T15: 12 | U15: 29 | V15: 41 | W15: 0 | X15: 18 | Y15: 2628 | Z15: 45 | AA15: 38 | AB15: 0 | AC15: 63 | AD15: 12 | AE15: 6 | AF15: 81 | AJ15: 0 | AK15: 20 | AL15: 20 | AM15: 0 | AN15: 6 | AO15: 6 | AP15: 0 | AQ15: 26 | AR15: 26 | AS15: 0 | AT15: 0 | AU15: 0 | AV15: 0 | AW15: 0 | AX15: 0 | AY15: 0 | AZ15: 0 | BA15: 0 | BB15: 3 | BC15: 21 | BD15: 2 | BE15: 0 | BF15: 0 | BG15: 0 | BH15: 21 | BI15: 2 | BJ15: 2017-09-04T12:56:48 | BL15: 3 | BM15: =IF(B15="","",SUMIFS(Provider_Status!$D:$D,Provider_Status!$B:$B,Monthly_Report!$B15,Provider_Status!$C:$C,Monthly_Report!BM$1)) -> 16 | BN15: =IF(B15="","",SUMIFS(Provider_Status!$D:$D,Provider_Status!$B:$B,Monthly_Report!$B15,Provider_Status!$C:$C,Monthly_Report!BN$1)) -> 30 | BO15: =IF(B15="","",SUMIFS(Provider_Status!$E:$E,Provider_Status!$B:$B,Monthly_Report!$B15,Provider_Status!$C:$C,Monthly_Report!BO$1)) -> 13 | BP15: =IF(B15="","",SUMIFS(Provider_Status!$E:$E,Provider_Status!$B:$B,Monthly_Report!$B15,Provider_Status!$C:$C,Monthly_Report!BP$1)) -> 2 | BQ15: =IF(F15="","",SUMIFS(Training_BMGF!P:P,Training_BMGF!C:C,Monthly_Report!F15,Training_BMGF!L:L,Monthly_Report!K15)) -> 0 | BR15: =VLOOKUP(G15,'Facility List'!Q:R,2,FALSE) -> Agra | BT15: 1 | BU15: 1 | BV15: =SUMIFS(Training_BMGF!P:P,Training_BMGF!C:C,Monthly_Report!F15,Training_BMGF!D:D,Monthly_Report!BV$1,Training_BMGF!L:L,"<="&K15) -> 12 | BW15: =SUMIFS(Training_BMGF!P:P,Training_BMGF!C:C,Monthly_Report!F15,Training_BMGF!D:D,Monthly_Report!BW$1,Training_BMGF!L:L,"<="&K15) -> 21 | BX15: =COUNTIFS('Service Data'!$E:$E,">=1",'Service Data'!$I:$I,Monthly_Report!$E15,'Service Data'!$J:$J,Monthly_Report!BX$1,'Service Data'!$C:$C,Monthly_Report!$K15) -> 10 | BY15: =COUNTIFS('Service Data'!$E:$E,">=1",'Service Data'!$I:$I,Monthly_Report!$E15,'Service Data'!$J:$J,Monthly_Report!BY$1,'Service Data'!$C:$C,Monthly_Report!$K15) -> 0
A16: 28519 | B16: UP-0001-AGR-001-DH_2017_Dec | C16: BMGF (MCHIP-SUP) | D16: Uttar Pradesh | E16: Agra-DH | F16: UP-0001-AGR-001-DH | G16: Agra | H16: District Hospital | I16: 2017 | J16: Dec | K16: 2017-12-01 | L16: 2017-12-27 | M16: 372 | N16: 466 | O16: 106 | P16: 572 | Q16: 250 | R16: 455 | S16: 705 | T16: 135 | U16: 30 | V16: 165 | W16: 0 | X16: 60 | Y16: 1440 | Z16: 27 | AA16: 12 | AB16: 0 | AC16: 63 | AD16: 11 | AE16: 27 | AF16: 101 | AJ16: 0 | AK16: 42 | AL16: 42 | AM16: 0 | AN16: 3 | AO16: 3 | AP16: 0 | AQ16: 45 | AR16: 45 | AS16: 0 | AT16: 0 | AU16: 0 | AV16: 0 | AW16: 0 | AX16: 0 | AY16: 3 | AZ16: 0 | BA16: 0 | BB16: 40 | BC16: 2 | BD16: 0 | BE16: 3 | BF16: 0 | BG16: 0 | BH16: 2 | BI16: 0 | BJ16: 2018-01-03T09:53:24 | BL16: 40 | BM16: =IF(B16="","",SUMIFS(Provider_Status!$D:$D,Provider_Status!$B:$B,Monthly_Report!$B16,Provider_Status!$C:$C,Monthly_Report!BM$1)) -> 0 | BN16: =IF(B16="","",SUMIFS(Provider_Status!$D:$D,Provider_Status!$B:$B,Monthly_Report!$B16,Provider_Status!$C:$C,Monthly_Report!BN$1)) -> 0 | BO16: =IF(B16="","",SUMIFS(Provider_Status!$E:$E,Provider_Status!$B:$B,Monthly_Report!$B16,Provider_Status!$C:$C,Monthly_Report!BO$1)) -> 0 | BP16: =IF(B16="","",SUMIFS(Provider_Status!$E:$E,Provider_Status!$B:$B,Monthly_Report!$B16,Provider_Status!$C:$C,Monthly_Report!BP$1)) -> 0 | BQ16: =IF(F16="","",SUMIFS(Training_BMGF!P:P,Training_BMGF!C:C,Monthly_Report!F16,Training_BMGF!L:L,Monthly_Report!K16)) -> 0 | BR16: =VLOOKUP(G16,'Facility List'!Q:R,2,FALSE) -> Agra | BT16: 1 | BU16: 1 | BV16: =SUMIFS(Training_BMGF!P:P,Training_BMGF!C:C,Monthly_Report!F16,Training_BMGF!D:D,Monthly_Report!BV$1,Training_BMGF!L:L,"<="&K16) -> 12 | BW16: =SUMIFS(Training_BMGF!P:P,Training_BMGF!C:C,Monthly_Report!F16,Training_BMGF!D:D,Monthly_Report!BW$1,Training_BMGF!L:L,"<="&K16) -> 21 | BX16: =COUNTIFS('Service Data'!$E:$E,">=1",'Service Data'!$I:$I,Monthly_Report!$E16,'Service Data'!$J:$J,Monthly_Report!BX$1,'Service Data'!$C:$C,Monthly_Report!$K16) -> 10 | BY16: =COUNTIFS('Service Data'!$E:$E,">=1",'Service Data'!$I:$I,Monthly_Report!$E16,'Service Data'!$J:$J,Monthly_Report!BY$1,'Service Data'!$C:$C,Monthly_Report!$K16) -> 2
A17: 22012 | B17: UP-0001-AGR-001-DH_2017_Feb | C17: BMGF (MCHIP-SUP) | D17: Uttar Pradesh | E17: Agra-DH | F17: UP-0001-AGR-001-DH | G17: Agra | H17: District Hospital | I17: 2017 | J17: Feb | K17: 2017-02-01 | L17: 2017-03-06 | M17: 1016 | N17: 570 | O17: 97 | P17: 667 | Q17: 524 | R17: 427 | S17: 951 | T17: 10 | U17: 173 | V17: 183 | W17: 0 | X17: 236 | Y17: 0 | Z17: 34 | AA17: 64 | AB17: 0 | AC17: 122 | AD17: 22 | AE17: 18 | AF17: 162 | AJ17: 0 | AK17: 34 | AL17: 34 | AM17: 0 | AN17: 44 | AO17: 44 | AP17: 0 | AQ17: 78 | AR17: 78 | AS17: 0 | AT17: 0 | AU17: 0 | AV17: 0 | AW17: 0 | AX17: 0 | AY17: 1 | AZ17: 0 | BA17: 0 | BB17: 4 | BC17: 71 | BD17: 2 | BE17: 1 | BF17: 0 | BG17: 0 | BH17: 71 | BI17: 2 | BJ17: 2017-03-08T16:58:10 | BL17: 4 | BM17: =IF(B17="","",SUMIFS(Provider_Status!$D:$D,Provider_Status!$B:$B,Monthly_Report!$B17,Provider_Status!$C:$C,Monthly_Report!BM$1)) -> 15 | BN17: =IF(B17="","",SUMIFS(Provider_Status!$D:$D,Provider_Status!$B:$B,Monthly_Report!$B17,Provider_Status!$C:$C,Monthly_Report!BN$1)) -> 29 | BO17: =IF(B17="","",SUMIFS(Provider_Status!$E:$E,Provider_Status!$B:$B,Monthly_Report!$B17,Provider_Status!$C:$C,Monthly_Report!BO$1)) -> 12 | BP17: =IF(B17="","",SUMIFS(Provider_Status!$E:$E,Provider_Status!$B:$B,Monthly_Report!$B17,Provider_Status!$C:$C,Monthly_Report!BP$1)) -> 6 | BQ17: =IF(F17="","",SUMIFS(Training_BMGF!P:P,Training_BMGF!C:C,Monthly_Report!F17,Training_BMGF!L:L,Monthly_Report!K17)) -> 2 | BR17: =VLOOKUP(G17,'Facility List'!Q:R,2,FALSE) -> Agra | BT17: 1 | BU17: 1 | BV17: =SUMIFS(Training_BMGF!P:P,Training_BMGF!C:C,Monthly_Report!F17,Training_BMGF!D:D,Monthly_Report!BV$1,Training_BMGF!L:L,"<="&K17) -> 10 | BW17: =SUMIFS(Training_BMGF!P:P,Training_BMGF!C:C,Monthly_Report!F17,Training_BMGF!D:D,Monthly_Report!BW$1,Training_BMGF!L:L,"<="&K17) -> 19 | BX17: =COUNTIFS('Service Data'!$E:$E,">=1",'Service Data'!$I:$I,Monthly_Report!$E17,'Service Data'!$J:$J,Monthly_Report!BX$1,'Service Data'!$C:$C,Monthly_Report!$K17) -> 10 | BY17: =COUNTIFS('Service Data'!$E:$E,">=1",'Service Data'!$I:$I,Monthly_Report!$E17,'Service Data'!$J:$J,Monthly_Report!BY$1,'Service Data'!$C:$C,Monthly_Report!$K17) -> 4
A18: 21170 | B18: UP-0001-AGR-001-DH_2017_Jan | C18: BMGF (MCHIP-SUP) | D18: Uttar Pradesh | E18: Agra-DH | F18: UP-0001-AGR-001-DH | G18: Agra | H18: District Hospital | I18: 2017 | J18: Jan | K18: 2017-01-01 | L18: 2017-01-30 | M18: 957 | N18: 602 | O18: 94 | P18: 696 | Q18: 526 | R18: 437 | S18: 963 | T18: 19 | U18: 179 | V18: 198 | W18: 0 | X18: 405 | Y18: 2070 | Z18: 33 | AA18: 52 | AB18: 0 | AC18: 85 | AD18: 38 | AE18: 22 | AF18: 145 | AJ18: 0 | AK18: 21 | AL18: 21 | AM18: 0 | AN18: 38 | AO18: 38 | AP18: 0 | AQ18: 59 | AR18: 59 | AS18: 0 | AT18: 0 | AU18: 0 | AV18: 0 | AW18: 0 | AX18: 0 | AY18: 0 | AZ18: 0 | BA18: 0 | BB18: 4 | BC18: 51 | BD18: 4 | BE18: 0 | BF18: 0 | BG18: 0 | BH18: 51 | BI18: 4 | BJ18: 2017-01-30T14:50:19 | BL18: 4 | BM18: =IF(B18="","",SUMIFS(Provider_Status!$D:$D,Provider_Status!$B:$B,Monthly_Report!$B18,Provider_Status!$C:$C,Monthly_Report!BM$1)) -> 14 | BN18: =IF(B18="","",SUMIFS(Provider_Status!$D:$D,Provider_Status!$B:$B,Monthly_Report!$B18,Provider_Status!$C:$C,Monthly_Report!BN$1)) -> 28 | BO18: =IF(B18="","",SUMIFS(Provider_Status!$E:$E,Provider_Status!$B:$B,Monthly_Report!$B18,Provider_Status!$C:$C,Monthly_Report!BO$1)) -> 10 | BP18: =IF(B18="","",SUMIFS(Provider_Status!$E:$E,Provider_Status!$B:$B,Monthly_Report!$B18,Provider_Status!$C:$C,Monthly_Report!BP$1)) -> 3 | BQ18: =IF(F18="","",SUMIFS(Training_BMGF!P:P,Training_BMGF!C:C,Monthly_Report!F18,Training_BMGF!L:L,Monthly_Report!K18)) -> 0 | BR18: =VLOOKUP(G18,'Facility List'!Q:R,2,FALSE) -> Agra | BT18: 1 | BU18: 1 | BV18: =SUMIFS(Training_BMGF!P:P,Training_BMGF!C:C,Monthly_Report!F18,Training_BMGF!D:D,Monthly_Report!BV$1,Training_BMGF!L:L,"<="&K18) -> 9 | BW18: =SUMIFS(Training_BMGF!P:P,Training_BMGF!C:C,Monthly_Report!F18,Training_BMGF!D:D,Monthly_Report!BW$1,Training_BMGF!L:L,"<="&K18) -> 18 | BX18: =COUNTIFS('Service Data'!$E:$E,">=1",'Service Data'!$I:$I,Monthly_Report!$E18,'Service Data'!$J:$J,Monthly_Report!BX$1,'Service Data'!$C:$C,Monthly_Report!$K18) -> 9 | BY18: =COUNTIFS('Service Data'!$E:$E,">=1",'Service Data'!$I:$I,Monthly_Report!$E18,'Service Data'!$J:$J,Monthly_Report!BY$1,'Service Data'!$C:$C,Monthly_Report!$K18) -> 2
A19: 25111 | B19: UP-0001-AGR-001-DH_2017_Jul | C19: BMGF (MCHIP-SUP) | D19: Uttar Pradesh | E19: Agra-DH | F19: UP-0001-AGR-001-DH | G19: Agra | H19: District Hospital | I19: 2017 | J19: Jul | K19: 2017-07-01 | L19: 2017-07-26 | M19: 955 | N19: 481 | O19: 98 | P19: 579 | Q19: 563 | R19: 412 | S19: 975 | T19: 10 | U19: 53 | V19: 63 | W19: 0 | X19: 130 | Y19: 2070 | Z19: 46 | AA19: 26 | AB19: 0 | AC19: 42 | AD19: 8 | AE19: 10 | AF19: 60 | AJ19: 0 | AK19: 21 | AL19: 21 | AM19: 0 | AN19: 12 | AO19: 12 | AP19: 0 | AQ19: 33 | AR19: 33 | AS19: 0 | AT19: 0 | AU19: 0 | AV19: 0 | AW19: 0 | AX19: 0 | AY19: 0 | AZ19: 0 | BA19: 0 | BB19: 4 | BC19: 23 | BD19: 6 | BE19: 0 | BF19: 0 | BG19: 0 | BH19: 23 | BI19: 6 | BJ19: 2017-07-27T09:44:18 | BL19: 4 | BM19: =IF(B19="","",SUMIFS(Provider_Status!$D:$D,Provider_Status!$B:$B,Monthly_Report!$B19,Provider_Status!$C:$C,Monthly_Report!BM$1)) -> 16 | BN19: =IF(B19="","",SUMIFS(Provider_Status!$D:$D,Provider_Status!$B:$B,Monthly_Report!$B19,Provider_Status!$C:$C,Monthly_Report!BN$1)) -> 30 | BO19: =IF(B19="","",SUMIFS(Provider_Status!$E:$E,Provider_Status!$B:$B,Monthly_Report!$B19,Provider_Status!$C:$C,Monthly_Report!BO$1)) -> 10 | BP19: =IF(B19="","",SUMIFS(Provider_Status!$E:$E,Provider_Status!$B:$B,Monthly_Report!$B19,Provider_Status!$C:$C,Monthly_Report!BP$1)) -> 1 | BQ19: =IF(F19="","",SUMIFS(Training_BMGF!P:P,Training_BMGF!C:C,Monthly_Report!F19,Training_BMGF!L:L,Monthly_Report!K19)) -> 0 | BR19: =VLOOKUP(G19,'Facility List'!Q:R,2,FALSE) -> Agra | BT19: 1 | BU19: 1 | BV19: =SUMIFS(Training_BMGF!P:P,Training_BMGF!C:C,Monthly_Report!F19,Training_BMGF!D:D,Monthly_Report!BV$1,Training_BMGF!L:L,"<="&K19) -> 12 | BW19: =SUMIFS(Training_BMGF!P:P,Training_BMGF!C:C,Monthly_Report!F19,Training_BMGF!D:D,Monthly_Report!BW$1,Training_BMGF!L:L,"<="&K19) -> 21 | BX19: =COUNTIFS('Service Data'!$E:$E,">=1",'Service Data'!$I:$I,Monthly_Report!$E19,'Service Data'!$J:$J,Monthly_Report!BX$1,'Service Data'!$C:$C,Monthly_Report!$K19) -> 10 | BY19: =COUNTIFS('Service Data'!$E:$E,">=1",'Service Data'!$I:$I,Monthly_Report!$E19,'Service Data'!$J:$J,Monthly_Report!BY$1,'Service Data'!$C:$C,Monthly_Report!$K19) -> 1
A20: 24370 | B20: UP-0001-AGR-001-DH_2017_Jun | C20: BMGF (MCHIP-SUP) | D20: Uttar Pradesh | E20: Agra-DH | F20: UP-0001-AGR-001-DH | G20: Agra | H20: District Hospital | I20: 2017 | J20: Jun | K20: 2017-06-01 | L20: 2017-06-26 | M20: 1045 | N20: 457 | O20: 90 | P20: 547 | Q20: 428 | R20: 481 | S20: 909 | T20: 17 | U20: 44 | V20: 61 | W20: 0 | X20: 102 | Y20: 1557 | Z20: 46 | AA20: 32 | AB20: 0 | AC20: 29 | AD20: 8 | AE20: 18 | AF20: 55 | AJ20: 0 | AK20: 15 | AL20: 15 | AM20: 0 | AN20: 29 | AO20: 29 | AP20: 0 | AQ20: 44 | AR20: 44 | AS20: 0 | AT20: 0 | AU20: 0 | AV20: 0 | AW20: 0 | AX20: 0 | AY20: 0 | AZ20: 0 | BA20: 0 | BB20: 2 | BC20: 38 | BD20: 4 | BE20: 0 | BF20: 0 | BG20: 0 | BH20: 38 | BI20: 4 | BJ20: 2017-06-28T15:16:49 | BL20: 2 | BM20: =IF(B20="","",SUMIFS(Provider_Status!$D:$D,Provider_Status!$B:$B,Monthly_Report!$B20,Provider_Status!$C:$C,Monthly_Report!BM$1)) -> 16 | BN20: =IF(B20="","",SUMIFS(Provider_Status!$D:$D,Provider_Status!$B:$B,Monthly_Report!$B20,Provider_Status!$C:$C,Monthly_Report!BN$1)) -> 30 | BO20: =IF(B20="","",SUMIFS(Provider_Status!$E:$E,Provider_Status!$B:$B,Monthly_Report!$B20,Provider_Status!$C:$C,Monthly_Report!BO$1)) -> 10 | BP20: =IF(B20="","",SUMIFS(Provider_Status!$E:$E,Provider_Status!$B:$B,Monthly_Report!$B20,Provider_Status!$C:$C,Monthly_Report!BP$1)) -> 3 | BQ20: =IF(F20="","",SUMIFS(Training_BMGF!P:P,Training_BMGF!C:C,Monthly_Report!F20,Training_BMGF!L:L,Monthly_Report!K20)) -> 0 | BR20: =VLOOKUP(G20,'Facility List'!Q:R,2,FALSE) -> Agra | BT20: 1 | BU20: 1 | BV20: =SUMIFS(Training_BMGF!P:P,Training_BMGF!C:C,Monthly_Report!F20,Training_BMGF!D:D,Monthly_Report!BV$1,Training_BMGF!L:L,"<="&K20) -> 12 | BW20: =SUMIFS(Training_BMGF!P:P,Training_BMGF!C:C,Monthly_Report!F20,Training_BMGF!D:D,Monthly_Report!BW$1,Training_BMGF!L:L,"<="&K20) -> 21 | BX20: =COUNTIFS('Service Data'!$E:$E,">=1",'Service Data'!$I:$I,Monthly_Report!$E20,'Service Data'!$J:$J,Monthly_Report!BX$1,'Service Data'!$C:$C,Monthly_Report!$K20) -> 10 | BY20: =COUNTIFS('Service Data'!$E:$E,">=1",'Service Data'!$I:$I,Monthly_Report!$E20,'Service Data'!$J:$J,Monthly_Report!BY$1,'Service Data'!$C:$C,Monthly_Report!$K20) -> 2
A21: 22479 | B21: UP-0001-AGR-001-DH_2017_Mar | C21: BMGF (MCHIP-SUP) | D21: Uttar Pradesh | E21: Agra-DH | F21: UP-0001-AGR-001-DH | G21: Agra | H21: District Hospital | I21: 2017 | J21: Mar | K21: 2017-03-01 | L21: 2017-04-09 | M21: 1101 | N21: 477 | O21: 83 | P21: 560 | Q21: 560 | R21: 382 | S21: 942 | T21: 49 | U21: 132 | V21: 181 | W21: 0 | X21: 0 | Y21: 3546 | Z21: 46 | AA21: 65 | AB21: 0 | AC21: 130 | AD21: 18 | AE21: 15 | AF21: 163 | AJ21: 0 | AK21: 27 | AL21: 27 | AM21: 1 | AN21: 49 | AO21: 50 | AP21: 1 | AQ21: 76 | AR21: 77 | AS21: 0 | AT21: 0 | AU21: 0 | AV21: 0 | AW21: 1 | AX21: 0 | AY21: 0 | AZ21: 0 | BA21: 0 | BB21: 2 | BC21: 67 | BD21: 7 | BE21: 0 | BF21: 0 | BG21: 0 | BH21: 68 | BI21: 7 | BJ21: 2017-04-14T19:13:45 | BL21: 2 | BM21: =IF(B21="","",SUMIFS(Provider_Status!$D:$D,Provider_Status!$B:$B,Monthly_Report!$B21,Provider_Status!$C:$C,Monthly_Report!BM$1)) -> 16 | BN21: =IF(B21="","",SUMIFS(Provider_Status!$D:$D,Provider_Status!$B:$B,Monthly_Report!$B21,Provider_Status!$C:$C,Monthly_Report!BN$1)) -> 30 | BO21: =IF(B21="","",SUMIFS(Provider_Status!$E:$E,Provider_Status!$B:$B,Monthly_Report!$B21,Provider_Status!$C:$C,Monthly_Report!BO$1)) -> 10 | BP21: =IF(B21="","",SUMIFS(Provider_Status!$E:$E,Provider_Status!$B:$B,Monthly_Report!$B21,Provider_Status!$C:$C,Monthly_Report!BP$1)) -> 11 | BQ21: =IF(F21="","",SUMIFS(Training_BMGF!P:P,Training_BMGF!C:C,Monthly_Report!F21,Training_BMGF!L:L,Monthly_Report!K21)) -> 4 | BR21: =VLOOKUP(G21,'Facility List'!Q:R,2,FALSE) -> Agra | BT21: 1 | BU21: 1 | BV21: =SUMIFS(Training_BMGF!P:P,Training_BMGF!C:C,Monthly_Report!F21,Training_BMGF!D:D,Monthly_Report!BV$1,Training_BMGF!L:L,"<="&K21) -> 12 | BW21: =SUMIFS(Training_BMGF!P:P,Training_BMGF!C:C,Monthly_Report!F21,Training_BMGF!D:D,Monthly_Report!BW$1,Training_BMGF!L:L,"<="&K21) -> 21 | BX21: =COUNTIFS('Service Data'!$E:$E,">=1",'Service Data'!$I:$I,Monthly_Report!$E21,'Service Data'!$J:$J,Monthly_Report!BX$1,'Service Data'!$C:$C,Monthly_Report!$K21) -> 10 | BY21: =COUNTIFS('Service Data'!$E:$E,">=1",'Service Data'!$I:$I,Monthly_Report!$E21,'Service Data'!$J:$J,Monthly_Report!BY$1,'Service Data'!$C:$C,Monthly_Report!$K21) -> 11
A22: 23792 | B22: UP-0001-AGR-001-DH_2017_May | C22: BMGF (MCHIP-SUP) | D22: Uttar Pradesh | E22: Agra-DH | F22: UP-0001-AGR-001-DH | G22: Agra | H22: District Hospital | I22: 2017 | J22: May | K22: 2017-05-01 | L22: 2017-05-26 | M22: 1134 | N22: 398 | O22: 86 | P22: 484 | Q22: 536 | R22: 322 | S22: 858 | T22: 61 | U22: 0 | V22: 61 | W22: 0 | X22: 0 | Y22: 0 | Z22: 42 | AA22: 15 | AB22: 0 | AC22: 44 | AD22: 8 | AE22: 16 | AF22: 68 | AJ22: 0 | AK22: 22 | AL22: 22 | AM22: 0 | AN22: 32 | AO22: 32 | AP22: 0 | AQ22: 54 | AR22: 54 | AS22: 0 | AT22: 0 | AU22: 0 | AV22: 0 | AW22: 0 | AX22: 0 | AY22: 0 | AZ22: 0 | BA22: 0 | BB22: 8 | BC22: 40 | BD22: 6 | BE22: 0 | BF22: 0 | BG22: 0 | BH22: 40 | BI22: 6 | BJ22: 2017-06-06T10:53:41 | BL22: 8 | BM22: =IF(B22="","",SUMIFS(Provider_Status!$D:$D,Provider_Status!$B:$B,Monthly_Report!$B22,Provider_Status!$C:$C,Monthly_Report!BM$1)) -> 16 | BN22: =IF(B22="","",SUMIFS(Provider_Status!$D:$D,Provider_Status!$B:$B,Monthly_Report!$B22,Provider_Status!$C:$C,Monthly_Report!BN$1)) -> 30 | BO22: =IF(B22="","",SUMIFS(Provider_Status!$E:$E,Provider_Status!$B:$B,Monthly_Report!$B22,Provider_Status!$C:$C,Monthly_Report!BO$1)) -> 11 | BP22: =IF(B22="","",SUMIFS(Provider_Status!$E:$E,Provider_Status!$B:$B,Monthly_Report!$B22,Provider_Status!$C:$C,Monthly_Report!BP$1)) -> 6 | BQ22: =IF(F22="","",SUMIFS(Training_BMGF!P:P,Training_BMGF!C:C,Monthly_Report!F22,Training_BMGF!L:L,Monthly_Report!K22)) -> 0 | BR22: =VLOOKUP(G22,'Facility List'!Q:R,2,FALSE) -> Agra | BT22: 1 | BU22: 1 | BV22: =SUMIFS(Training_BMGF!P:P,Training_BMGF!C:C,Monthly_Report!F22,Training_BMGF!D:D,Monthly_Report!BV$1,Training_BMGF!L:L,"<="&K22) -> 12 | BW22: =SUMIFS(Training_BMGF!P:P,Training_BMGF!C:C,Monthly_Report!F22,Training_BMGF!D:D,Monthly_Report!BW$1,Training_BMGF!L:L,"<="&K22) -> 21 | BX22: =COUNTIFS('Service Data'!$E:$E,">=1",'Service Data'!$I:$I,Monthly_Report!$E22,'Service Data'!$J:$J,Monthly_Report!BX$1,'Service Data'!$C:$C,Monthly_Report!$K22) -> 11 | BY22: =COUNTIFS('Service Data'!$E:$E,">=1",'Service Data'!$I:$I,Monthly_Report!$E22,'Service Data'!$J:$J,Monthly_Report!BY$1,'Service Data'!$C:$C,Monthly_Report!$K22) -> 6
A23: 27794 | B23: UP-0001-AGR-001-DH_2017_Nov | C23: BMGF (MCHIP-SUP) | D23: Uttar Pradesh | E23: Agra-DH | F23: UP-0001-AGR-001-DH | G23: Agra | H23: District Hospital | I23: 2017 | J23: Nov | K23: 2017-11-01 | L23: 2017-11-25 | M23: 419 | N23: 534 | O23: 129 | P23: 663 | Q23: 403 | R23: 561 | S23: 964 | T23: 31 | U23: 117 | V23: 148 | W23: 0 | X23: 70 | Y23: 2880 | Z23: 36 | AA23: 36 | AB23: 0 | AC23: 38 | AD23: 22 | AE23: 27 | AF23: 87 | AJ23: 5 | AK23: 18 | AL23: 23 | AM23: 2 | AN23: 14 | AO23: 16 | AP23: 7 | AQ23: 32 | AR23: 39 | AS23: 0 | AT23: 0 | AU23: 0 | AV23: 5 | AW23: 0 | AX23: 2 | AY23: 0 | AZ23: 0 | BA23: 0 | BB23: 24 | BC23: 0 | BD23: 8 | BE23: 0 | BF23: 0 | BG23: 0 | BH23: 0 | BI23: 10 | BJ23: 2017-11-28T12:08:53 | BL23: 29 | BM23: =IF(B23="","",SUMIFS(Provider_Status!$D:$D,Provider_Status!$B:$B,Monthly_Report!$B23,Provider_Status!$C:$C,Monthly_Report!BM$1)) -> 16 | BN23: =IF(B23="","",SUMIFS(Provider_Status!$D:$D,Provider_Status!$B:$B,Monthly_Report!$B23,Provider_Status!$C:$C,Monthly_Report!BN$1)) -> 30 | BO23: =IF(B23="","",SUMIFS(Provider_Status!$E:$E,Provider_Status!$B:$B,Monthly_Report!$B23,Provider_Status!$C:$C,Monthly_Report!BO$1)) -> 13 | BP23: =IF(B23="","",SUMIFS(Provider_Status!$E:$E,Provider_Status!$B:$B,Monthly_Report!$B23,Provider_Status!$C:$C,Monthly_Report!BP$1)) -> 2 | BQ23: =IF(F23="","",SUMIFS(Training_BMGF!P:P,Training_BMGF!C:C,Monthly_Report!F23,Training_BMGF!L:L,Monthly_Report!K23)) -> 0 | BR23: =VLOOKUP(G23,'Facility List'!Q:R,2,FALSE) -> Agra | BT23: 1 | BU23: 1 | BV23: =SUMIFS(Training_BMGF!P:P,Training_BMGF!C:C,Monthly_Report!F23,Training_BMGF!D:D,Monthly_Report!BV$1,Training_BMGF!L:L,"<="&K23) -> 12 | BW23: =SUMIFS(Training_BMGF!P:P,Training_BMGF!C:C,Monthly_Report!F23,Training_BMGF!D:D,Monthly_Report!BW$1,Training_BMGF!L:L,"<="&K23) -> 21 | BX23: =COUNTIFS('Service Data'!$E:$E,">=1",'Service Data'!$I:$I,Monthly_Report!$E23,'Service Data'!$J:$J,Monthly_Report!BX$1,'Service Data'!$C:$C,Monthly_Report!$K23) -> 9 | BY23: =COUNTIFS('Service Data'!$E:$E,">=1",'Service Data'!$I:$I,Monthly_Report!$E23,'Service Data'!$J:$J,Monthly_Report!BY$1,'Service Data'!$C:$C,Monthly_Report!$K23) -> 1
A24: 27304 | B24: UP-0001-AGR-001-DH_2017_Oct | C24: BMGF (MCHIP-SUP) | D24: Uttar Pradesh | E24: Agra-DH | F24: UP-0001-AGR-001-DH | G24: Agra | H24: District Hospital | I24: 2017 | J24: Oct | K24: 2017-10-01 | L24: 2017-10-31 | M24: 465 | N24: 588 | O24: 107 | P24: 695 | Q24: 384 | R24: 576 | S24: 960 | T24: 14 | U24: 37 | V24: 51 | W24: 0 | X24: 30 | Y24: 990 | Z24: 35 | AA24: 28 | AB24: 0 | AC24: 23 | AD24: 0 | AE24: 17 | AF24: 40 | AJ24: 0 | AK24: 36 | AL24: 36 | AM24: 1 | AN24: 15 | AO24: 16 | AP24: 1 | AQ24: 51 | AR24: 52 | AS24: 1 | AT24: 0 | AU24: 0 | AV24: 0 | AW24: 0 | AX24: 0 | AY24: 2 | AZ24: 0 | BA24: 0 | BB24: 12 | BC24: 29 | BD24: 8 | BE24: 3 | BF24: 0 | BG24: 0 | BH24: 29 | BI24: 8 | BJ24: 2017-11-02T09:46:33 | BL24: 12 | BM24: =IF(B24="","",SUMIFS(Provider_Status!$D:$D,Provider_Status!$B:$B,Monthly_Report!$B24,Provider_Status!$C:$C,Monthly_Report!BM$1)) -> 16 | BN24: =IF(B24="","",SUMIFS(Provider_Status!$D:$D,Provider_Status!$B:$B,Monthly_Report!$B24,Provider_Status!$C:$C,Monthly_Report!BN$1)) -> 30 | BO24: =IF(B24="","",SUMIFS(Provider_Status!$E:$E,Provider_Status!$B:$B,Monthly_Report!$B24,Provider_Status!$C:$C,Monthly_Report!BO$1)) -> 11 | BP24: =IF(B24="","",SUMIFS(Provider_Status!$E:$E,Provider_Status!$B:$B,Monthly_Report!$B24,Provider_Status!$C:$C,Monthly_Report!BP$1)) -> 1 | BQ24: =IF(F24="","",SUMIFS(Training_BMGF!P:P,Training_BMGF!C:C,Monthly_Report!F24,Training_BMGF!L:L,Monthly_Report!K24)) -> 0 | BR24: =VLOOKUP(G24,'Facility List'!Q:R,2,FALSE) -> Agra | BT24: 1 | BU24: 1 | BV24: =SUMIFS(Training_BMGF!P:P,Training_BMGF!C:C,Monthly_Report!F24,Training_BMGF!D:D,Monthly_Report!BV$1,Training_BMGF!L:L,"<="&K24) -> 12 | BW24: =SUMIFS(Training_BMGF!P:P,Training_BMGF!C:C,Monthly_Report!F24,Training_BMGF!D:D,Monthly_Report!BW$1,Training_BMGF!L:L,"<="&K24) -> 21 | BX24: =COUNTIFS('Service Data'!$E:$E,">=1",'Service Data'!$I:$I,Monthly_Report!$E24,'Service Data'!$J:$J,Monthly_Report!BX$1,'Service Data'!$C:$C,Monthly_Report!$K24) -> 9 | BY24: =COUNTIFS('Service Data'!$E:$E,">=1",'Service Data'!$I:$I,Monthly_Report!$E24,'Service Data'!$J:$J,Monthly_Report!BY$1,'Service Data'!$C:$C,Monthly_Report!$K24) -> 1
A25: 26446 | B25: UP-0001-AGR-001-DH_2017_Sep | C25: BMGF (MCHIP-SUP) | D25: Uttar Pradesh | E25: Agra-DH | F25: UP-0001-AGR-001-DH | G25: Agra | H25: District Hospital | I25: 2017 | J25: Sep | K25: 2017-09-01 | L25: 2017-09-26 | M25: 551 | N25: 667 | O25: 138 | P25: 805 | Q25: 492 | R25: 508 | S25: 1000 | T25: 60 | U25: 34 | V25: 94 | W25: 0 | X25: 0 | Y25: 1764 | Z25: 34 | AA25: 32 | AB25: 0 | AC25: 51 | AD25: 10 | AE25: 24 | AF25: 85 | AJ25: 0 | AK25: 25 | AL25: 25 | AM25: 2 | AN25: 13 | AO25: 15 | AP25: 2 | AQ25: 38 | AR25: 40 | AS25: 0 | AT25: 0 | AU25: 0 | AV25: 0 | AW25: 2 | AX25: 0 | AY25: 0 | AZ25: 0 | BA25: 0 | BB25: 12 | BC25: 26 | BD25: 0 | BE25: 0 | BF25: 0 | BG25: 0 | BH25: 28 | BI25: 0 | BJ25: 2017-09-26T14:28:56 | BL25: 12 | BM25: =IF(B25="","",SUMIFS(Provider_Status!$D:$D,Provider_Status!$B:$B,Monthly_Report!$B25,Provider_Status!$C:$C,Monthly_Report!BM$1)) -> 16 | BN25: =IF(B25="","",SUMIFS(Provider_Status!$D:$D,Provider_Status!$B:$B,Monthly_Report!$B25,Provider_Status!$C:$C,Monthly_Report!BN$1)) -> 30 | BO25: =IF(B25="","",SUMIFS(Provider_Status!$E:$E,Provider_Status!$B:$B,Monthly_Report!$B25,Provider_Status!$C:$C,Monthly_Report!BO$1)) -> 10 | BP25: =IF(B25="","",SUMIFS(Provider_Status!$E:$E,Provider_Status!$B:$B,Monthly_Report!$B25,Provider_Status!$C:$C,Monthly_Report!BP$1)) -> 1 | BQ25: =IF(F25="","",SUMIFS(Training_BMGF!P:P,Training_BMGF!C:C,Monthly_Report!F25,Training_BMGF!L:L,Monthly_Report!K25)) -> 0 | BR25: =VLOOKUP(G25,'Facility List'!Q:R,2,FALSE) -> Agra | BT25: 1 | BU25: 1 | BV25: =SUMIFS(Training_BMGF!P:P,Training_BMGF!C:C,Monthly_Report!F25,Training_BMGF!D:D,Monthly_Report!BV$1,Training_BMGF!L:L,"<="&K25) -> 12 | BW25: =SUMIFS(Training_BMGF!P:P,Training_BMGF!C:C,Monthly_Report!F25,Training_BMGF!D:D,Monthly_Report!BW$1,Training_BMGF!L:L,"<="&K25) -> 21 | BX25: =COUNTIFS('Service Data'!$E:$E,">=1",'Service Data'!$I:$I,Monthly_Report!$E25,'Service Data'!$J:$J,Monthly_Report!BX$1,'Service Data'!$C:$C,Monthly_Report!$K25) -> 10 | BY25: =COUNTIFS('Service Data'!$E:$E,">=1",'Service Data'!$I:$I,Monthly_Report!$E25,'Service Data'!$J:$J,Monthly_Report!BY$1,'Service Data'!$C:$C,Monthly_Report!$K25) -> 1
A26: 16696 | B26: UP-0002-AGR-002-MC_2016_Apr | C26: BMGF (MCHIP-SUP) | D26: Uttar Pradesh | E26: Agra-MC | F26: UP-0002-AGR-002-MC | G26: Agra | H26: Medical College | I26: 2016 | J26: Apr | K26: 2016-04-01 | L26: 2016-05-04 | M26: 210 | N26: 58 | O26: 73 | P26: 131 | Q26: 210 | R26: 134 | S26: 344 | T26: 5 | U26: 1 | V26: 6 | W26: 0 | X26: 75 | Y26: 300 | Z26: 3 | AA26: 0 | AB26: 2 | AC26: 5 | AD26: 3 | AE26: 28 | AF26: 36 | AJ26: 2 | AK26: 2 | AL26: 4 | AM26: 4 | AN26: 5 | AO26: 9 | AP26: 6 | AQ26: 7 | AR26: 13 | AS26: 1 | AT26: 0 | AU26: 1 | AV26: 2 | AW26: 2 | AX26: 0 | AY26: 2 | AZ26: 1 | BA26: 1 | BB26: 1 | BC26: 1 | BD26: 1 | BE26: 3 | BF26: 1 | BG26: 2 | BH26: 3 | BI26: 1 | BJ26: 2016-05-04T11:11:21 | BL26: 3 | BM26: =IF(B26="","",SUMIFS(Provider_Status!$D:$D,Provider_Status!$B:$B,Monthly_Report!$B26,Provider_Status!$C:$C,Monthly_Report!BM$1)) -> 0 | BN26: =IF(B26="","",SUMIFS(Provider_Status!$D:$D,Provider_Status!$B:$B,Monthly_Report!$B26,Provider_Status!$C:$C,Monthly_Report!BN$1)) -> 0 | BO26: =IF(B26="","",SUMIFS(Provider_Status!$E:$E,Provider_Status!$B:$B,Monthly_Report!$B26,Provider_Status!$C:$C,Monthly_Report!BO$1)) -> 0 | BP26: =IF(B26="","",SUMIFS(Provider_Status!$E:$E,Provider_Status!$B:$B,Monthly_Report!$B26,Provider_Status!$C:$C,Monthly_Report!BP$1)) -> 0 | BQ26: =IF(F26="","",SUMIFS(Training_BMGF!P:P,Training_BMGF!C:C,Monthly_Report!F26,Training_BMGF!L:L,Monthly_Report!K26)) -> 0 | BR26: =VLOOKUP(G26,'Facility List'!Q:R,2,FALSE) -> Agra | BT26: 1 | BU26: 1 | BV26: =SUMIFS(Training_BMGF!P:P,Training_BMGF!C:C,Monthly_Report!F26,Training_BMGF!D:D,Monthly_Report!BV$1,Training_BMGF!L:L,"<="&K26) -> 15 | BW26: =SUMIFS(Training_BMGF!P:P,Training_BMGF!C:C,Monthly_Report!F26,Training_BMGF!D:D,Monthly_Report!BW$1,Training_BMGF!L:L,"<="&K26) -> 0 | BX26: =COUNTIFS('Service Data'!$E:$E,">=1",'Service Data'!$I:$I,Monthly_Report!$E26,'Service Data'!$J:$J,Monthly_Report!BX$1,'Service Data'!$C:$C,Monthly_Report!$K26) -> 13 | BY26: =COUNTIFS('Service Data'!$E:$E,">=1",'Service Data'!$I:$I,Monthly_Report!$E26,'Service Data'!$J:$J,Monthly_Report!BY$1,'Service Data'!$C:$C,Monthly_Report!$K26) -> 0
A27: 18558 | B27: UP-0002-AGR-002-MC_2016_Aug | C27: BMGF (MCHIP-SUP) | D27: Uttar Pradesh | E27: Agra-MC | F27: UP-0002-AGR-002-MC | G27: Agra | H27: Medical College | I27: 2016 | J27: Aug | K27: 2016-08-01 | L27: 2016-08-29 | M27: 345 | N27: 161 | O27: 137 | P27: 298 | Q27: 345 | R27: 298 | S27: 643 | T27: 11 | U27: 1 | V27: 12 | W27: 0 | X27: 350 | Y27: 1225 | Z27: 4 | AA27: 0 | AB27: 0 | AC27: 8 | AD27: 4 | AE27: 34 | AF27: 46 | AJ27: 2 | AK27: 1 | AL27: 3 | AM27: 8 | AN27: 5 | AO27: 13 | AP27: 10 | AQ27: 6 | AR27: 16 | AS27: 2 | AT27: 0 | AU27: 1 | AV27: 1 | AW27: 4 | AX27: 0 | AY27: 3 | AZ27: 0 | BA27: 2 | BB27: 1 | BC27: 2 | BD27: 0 | BE27: 5 | BF27: 0 | BG27: 3 | BH27: 6 | BI27: 0 | BJ27: 2016-08-30T10:36:08 | BL27: 2 | BM27: =IF(B27="","",SUMIFS(Provider_Status!$D:$D,Provider_Status!$B:$B,Monthly_Report!$B27,Provider_Status!$C:$C,Monthly_Report!BM$1)) -> 0 | BN27: =IF(B27="","",SUMIFS(Provider_Status!$D:$D,Provider_Status!$B:$B,Monthly_Report!$B27,Provider_Status!$C:$C,Monthly_Report!BN$1)) -> 0 | BO27: =IF(B27="","",SUMIFS(Provider_Status!$E:$E,Provider_Status!$B:$B,Monthly_Report!$B27,Provider_Status!$C:$C,Monthly_Report!BO$1)) -> 0 | BP27: =IF(B27="","",SUMIFS(Provider_Status!$E:$E,Provider_Status!$B:$B,Monthly_Report!$B27,Provider_Status!$C:$C,Monthly_Report!BP$1)) -> 0 | BQ27: =IF(F27="","",SUMIFS(Training_BMGF!P:P,Training_BMGF!C:C,Monthly_Report!F27,Training_BMGF!L:L,Monthly_Report!K27)) -> 0 | BR27: =VLOOKUP(G27,'Facility List'!Q:R,2,FALSE) -> Agra | BT27: 1 | BU27: 1 | BV27: =SUMIFS(Training_BMGF!P:P,Training_BMGF!C:C,Monthly_Report!F27,Training_BMGF!D:D,Monthly_Report!BV$1,Training_BMGF!L:L,"<="&K27) -> 15 | BW27: =SUMIFS(Training_BMGF!P:P,Training_BMGF!C:C,Monthly_Report!F27,Training_BMGF!D:D,Monthly_Report!BW$1,Training_BMGF!L:L,"<="&K27) -> 0 | BX27: =COUNTIFS('Service Data'!$E:$E,">=1",'Service Data'!$I:$I,Monthly_Report!$E27,'Service Data'!$J:$J,Monthly_Report!BX$1,'Service Data'!$C:$C,Monthly_Report!$K27) -> 15 | BY27: =COUNTIFS('Service Data'!$E:$E,">=1",'Service Data'!$I:$I,Monthly_Report!$E27,'Service Data'!$J:$J,Monthly_Report!BY$1,'Service Data'!$C:$C,Monthly_Report!$K27) -> 0
A28: 20770 | B28: UP-0002-AGR-002-MC_2016_Dec | C28: BMGF (MCHIP-SUP) | D28: Uttar Pradesh | E28: Agra-MC | F28: UP-0002-AGR-002-MC | G28: Agra | H28: Medical College | I28: 2016 | J28: Dec | K28: 2016-12-01 | L28: 2017-01-05 | M28: 346 | N28: 130 | O28: 91 | P28: 221 | Q28: 346 | R28: 221 | S28: 567 | T28: 11 | U28: 3 | V28: 14 | W28: 0 | X28: 675 | Y28: 1875 | Z28: 7 | AA28: 0 | AB28: 0 | AC28: 10 | AD28: 7 | AE28: 24 | AF28: 41 | AJ28: 4 | AK28: 2 | AL28: 6 | AM28: 3 | AN28: 2 | AO28: 5 | AP28: 7 | AQ28: 4 | AR28: 11 | AS28: 1 | AT28: 0 | AU28: 0 | AV28: 0 | AW28: 3 | AX28: 0 | AY28: 1 | AZ28: 0 | BA28: 1 | BB28: 1 | BC28: 4 | BD28: 0 | BE28: 2 | BF28: 0 | BG28: 1 | BH28: 7 | BI28: 0 | BJ28: 2017-01-09T13:46:55 | BL28: 1 | BM28: =IF(B28="","",SUMIFS(Provider_Status!$D:$D,Provider_Status!$B:$B,Monthly_Report!$B28,Provider_Status!$C:$C,Monthly_Report!BM$1)) -> 17 | BN28: =IF(B28="","",SUMIFS(Provider_Status!$D:$D,Provider_Status!$B:$B,Monthly_Report!$B28,Provider_Status!$C:$C,Monthly_Report!BN$1)) -> 0 | BO28: =IF(B28="","",SUMIFS(Provider_Status!$E:$E,Provider_Status!$B:$B,Monthly_Report!$B28,Provider_Status!$C:$C,Monthly_Report!BO$1)) -> 17 | BP28: =IF(B28="","",SUMIFS(Provider_Status!$E:$E,Provider_Status!$B:$B,Monthly_Report!$B28,Provider_Status!$C:$C,Monthly_Report!BP$1)) -> 0 | BQ28: =IF(F28="","",SUMIFS(Training_BMGF!P:P,Training_BMGF!C:C,Monthly_Report!F28,Training_BMGF!L:L,Monthly_Report!K28)) -> 0 | BR28: =VLOOKUP(G28,'Facility List'!Q:R,2,FALSE) -> Agra | BT28: 1 | BU28: 1 | BV28: =SUMIFS(Training_BMGF!P:P,Training_BMGF!C:C,Monthly_Report!F28,Training_BMGF!D:D,Monthly_Report!BV$1,Training_BMGF!L:L,"<="&K28) -> 15 | BW28: =SUMIFS(Training_BMGF!P:P,Training_BMGF!C:C,Monthly_Report!F28,Training_BMGF!D:D,Monthly_Report!BW$1,Training_BMGF!L:L,"<="&K28) -> 0 | BX28: =COUNTIFS('Service Data'!$E:$E,">=1",'Service Data'!$I:$I,Monthly_Report!$E28,'Service Data'!$J:$J,Monthly_Report!BX$1,'Service Data'!$C:$C,Monthly_Report!$K28) -> 14 | BY28: =COUNTIFS('Service Data'!$E:$E,">=1",'Service Data'!$I:$I,Monthly_Report!$E28,'Service Data'!$J:$J,Monthly_Report!BY$1,'Service Data'!$C:$C,Monthly_Report!$K28) -> 0
A29: 15672 | B29: UP-0002-AGR-002-MC_2016_Feb | C29: BMGF (MCHIP-SUP) | D29: Uttar Pradesh | E29: Agra-MC | F29: UP-0002-AGR-002-MC | G29: Agra | H29: Medical College | I29: 2016 | J29: Feb | K29: 2016-02-01 | L29: 2016-03-02 | M29: 352 | N29: 117 | O29: 67 | P29: 184 | Q29: 352 | R29: 184 | S29: 536 | T29: 10 | U29: 8 | V29: 18 | W29: 0 | X29: 2100 | Y29: 540 | Z29: 3 | AA29: 0 | AB29: 2 | AC29: 27 | AD29: 6 | AE29: 29 | AF29: 62 | AJ29: 3 | AK29: 4 | AL29: 7 | AM29: 6 | AN29: 4 | AO29: 10 | AP29: 9 | AQ29: 8 | AR29: 17 | AS29: 4 | AT29: 0 | AU29: 0 | AV29: 2 | AW29: 2 | AX29: 0 | AY29: 2 | AZ29: 0 | BA29: 1 | BB29: 3 | BC29: 1 | BD29: 2 | BE29: 6 | BF29: 0 | BG29: 1 | BH29: 3 | BI29: 2 | BJ29: 2016-03-03T09:46:35 | BL29: 5 | BM29: =IF(B29="","",SUMIFS(Provider_Status!$D:$D,Provider_Status!$B:$B,Monthly_Report!$B29,Provider_Status!$C:$C,Monthly_Report!BM$1)) -> 0 | BN29: =IF(B29="","",SUMIFS(Provider_Status!$D:$D,Provider_Status!$B:$B,Monthly_Report!$B29,Provider_Status!$C:$C,Monthly_Report!BN$1)) -> 0 | BO29: =IF(B29="","",SUMIFS(Provider_Status!$E:$E,Provider_Status!$B:$B,Monthly_Report!$B29,Provider_Status!$C:$C,Monthly_Report!BO$1)) -> 0 | BP29: =IF(B29="","",SUMIFS(Provider_Status!$E:$E,Provider_Status!$B:$B,Monthly_Report!$B29,Provider_Status!$C:$C,Monthly_Report!BP$1)) -> 0 | BQ29: =IF(F29="","",SUMIFS(Training_BMGF!P:P,Training_BMGF!C:C,Monthly_Report!F29,Training_BMGF!L:L,Monthly_Report!K29)) -> 0 | BR29: =VLOOKUP(G29,'Facility List'!Q:R,2,FALSE) -> Agra | BT29: 1 | BU29: 1 | BV29: =SUMIFS(Training_BMGF!P:P,Training_BMGF!C:C,Monthly_Report!F29,Training_BMGF!D:D,Monthly_Report!BV$1,Training_BMGF!L:L,"<="&K29) -> 15 | BW29: =SUMIFS(Training_BMGF!P:P,Training_BMGF!C:C,Monthly_Report!F29,Training_BMGF!D:D,Monthly_Report!BW$1,Training_BMGF!L:L,"<="&K29) -> 0 | BX29: =COUNTIFS('Service Data'!$E:$E,">=1",'Service Data'!$I:$I,Monthly_Report!$E29,'Service Data'!$J:$J,Monthly_Report!BX$1,'Service Data'!$C:$C,Monthly_Report!$K29) -> 13 | BY29: =COUNTIFS('Service Data'!$E:$E,">=1",'Service Data'!$I:$I,Monthly_Report!$E29,'Service Data'!$J:$J,Monthly_Report!BY$1,'Service Data'!$C:$C,Monthly_Report!$K29) -> 0
A30: 15118 | B30: UP-0002-AGR-002-MC_2016_Jan | C30: BMGF (MCHIP-SUP) | D30: Uttar Pradesh | E30: Agra-MC | F30: UP-0002-AGR-002-MC | G30: Agra | H30: Medical College | I30: 2016 | J30: Jan | K30: 2016-01-01 | L30: 2016-01-22 | M30: 312 | N30: 164 | O30: 135 | P30: 299 | Q30: 312 | R30: 299 | S30: 611 | T30: 14 | U30: 5 | V30: 19 | W30: 0 | X30: 480 | Y30: 1950 | Z30: 3 | AA30: 0 | AB30: 3 | AC30: 13 | AD30: 7 | AE30: 33 | AF30: 53 | AJ30: 12 | AK30: 11 | AL30: 23 | AM30: 6 | AN30: 3 | AO30: 9 | AP30: 18 | AQ30: 14 | AR30: 32 | AS30: 5 | AT30: 0 | AU30: 3 | AV30: 8 | AW30: 2 | AX30: 0 | AY30: 3 | AZ30: 1 | BA30: 4 | BB30: 2 | BC30: 3 | BD30: 1 | BE30: 8 | BF30: 1 | BG30: 7 | BH30: 5 | BI30: 1 | BJ30: 2016-01-25T12:14:53 | BL30: 10 | BM30: =IF(B30="","",SUMIFS(Provider_Status!$D:$D,Provider_Status!$B:$B,Monthly_Report!$B30,Provider_Status!$C:$C,Monthly_Report!BM$1)) -> 0 | BN30: =IF(B30="","",SUMIFS(Provider_Status!$D:$D,Provider_Status!$B:$B,Monthly_Report!$B30,Provider_Status!$C:$C,Monthly_Report!BN$1)) -> 0 | BO30: =IF(B30="","",SUMIFS(Provider_Status!$E:$E,Provider_Status!$B:$B,Monthly_Report!$B30,Provider_Status!$C:$C,Monthly_Report!BO$1)) -> 0 | BP30: =IF(B30="","",SUMIFS(Provider_Status!$E:$E,Provider_Status!$B:$B,Monthly_Report!$B30,Provider_Status!$C:$C,Monthly_Report!BP$1)) -> 0 | BQ30: =IF(F30="","",SUMIFS(Training_BMGF!P:P,Training_BMGF!C:C,Monthly_Report!F30,Training_BMGF!L:L,Monthly_Report!K30)) -> 0 | BR30: =VLOOKUP(G30,'Facility List'!Q:R,2,FALSE) -> Agra | BT30: 1 | BU30: 1 | BV30: =SUMIFS(Training_BMGF!P:P,Training_BMGF!C:C,Monthly_Report!F30,Training_BMGF!D:D,Monthly_Report!BV$1,Training_BMGF!L:L,"<="&K30) -> 15 | BW30: =SUMIFS(Training_BMGF!P:P,Training_BMGF!C:C,Monthly_Report!F30,Training_BMGF!D:D,Monthly_Report!BW$1,Training_BMGF!L:L,"<="&K30) -> 0 | BX30: =COUNTIFS('Service Data'!$E:$E,">=1",'Service Data'!$I:$I,Monthly_Report!$E30,'Service Data'!$J:$J,Monthly_Report!BX$1,'Service Data'!$C:$C,Monthly_Report!$K30) -> 13 | BY30: =COUNTIFS('Service Data'!$E:$E,">=1",'Service Data'!$I:$I,Monthly_Report!$E30,'Service Data'!$J:$J,Monthly_Report!BY$1,'Service Data'!$C:$C,Monthly_Report!$K30) -> 0
A31: 17948 | B31: UP-0002-AGR-002-MC_2016_Jul | C31: BMGF (MCHIP-SUP) | D31: Uttar Pradesh | E31: Agra-MC | F31: UP-0002-AGR-002-MC | G31: Agra | H31: Medical College | I31: 2016 | J31: Jul | K31: 2016-07-01 | L31: 2016-07-26 | M31: 321 | N31: 105 | O31: 98 | P31: 203 | Q31: 321 | R31: 203 | S31: 524 | T31: 11 | U31: 1 | V31: 12 | W31: 0 | X31: 240 | Y31: 750 | Z31: 0 | AA31: 0 | AB31: 2 | AC31: 3 | AD31: 3 | AE31: 29 | AF31: 35 | AJ31: 2 | AK31: 3 | AL31: 5 | AM31: 4 | AN31: 7 | AO31: 11 | AP31: 6 | AQ31: 10 | AR31: 16 | AS31: 1 | AT31: 0 | AU31: 0 | AV31: 3 | AW31: 0 | AX31: 0 | AY31: 1 | AZ31: 1 | BA31: 2 | BB31: 5 | BC31: 0 | BD31: 0 | BE31: 2 | BF31: 1 | BG31: 2 | BH31: 0 | BI31: 0 | BJ31: 2016-07-26T12:50:05 | BL31: 8 | BM31: =IF(B31="","",SUMIFS(Provider_Status!$D:$D,Provider_Status!$B:$B,Monthly_Report!$B31,Provider_Status!$C:$C,Monthly_Report!BM$1)) -> 0 | BN31: =IF(B31="","",SUMIFS(Provider_Status!$D:$D,Provider_Status!$B:$B,Monthly_Report!$B31,Provider_Status!$C:$C,Monthly_Report!BN$1)) -> 0 | BO31: =IF(B31="","",SUMIFS(Provider_Status!$E:$E,Provider_Status!$B:$B,Monthly_Report!$B31,Provider_Status!$C:$C,Monthly_Report!BO$1)) -> 0 | BP31: =IF(B31="","",SUMIFS(Provider_Status!$E:$E,Provider_Status!$B:$B,Monthly_Report!$B31,Provider_Status!$C:$C,Monthly_Report!BP$1)) -> 0 | BQ31: =IF(F31="","",SUMIFS(Training_BMGF!P:P,Training_BMGF!C:C,Monthly_Report!F31,Training_BMGF!L:L,Monthly_Report!K31)) -> 0 | BR31: =VLOOKUP(G31,'Facility List'!Q:R,2,FALSE) -> Agra | BT31: 1 | BU31: 1 | BV31: =SUMIFS(Training_BMGF!P:P,Training_BMGF!C:C,Monthly_Report!F31,Training_BMGF!D:D,Monthly_Report!BV$1,Training_BMGF!L:L,"<="&K31) -> 15 | BW31: =SUMIFS(Training_BMGF!P:P,Training_BMGF!C:C,Monthly_Report!F31,Training_BMGF!D:D,Monthly_Report!BW$1,Training_BMGF!L:L,"<="&K31) -> 0 | BX31: =COUNTIFS('Service Data'!$E:$E,">=1",'Service Data'!$I:$I,Monthly_Report!$E31,'Service Data'!$J:$J,Monthly_Report!BX$1,'Service Data'!$C:$C,Monthly_Report!$K31) -> 10 | BY31: =COUNTIFS('Service Data'!$E:$E,">=1",'Service Data'!$I:$I,Monthly_Report!$E31,'Service Data'!$J:$J,Monthly_Report!BY$1,'Service Data'!$C:$C,Monthly_Report!$K31) -> 0
A32: 17638 | B32: UP-0002-AGR-002-MC_2016_Jun | C32: BMGF (MCHIP-SUP) | D32: Uttar Pradesh | E32: Agra-MC | F32: UP-0002-AGR-002-MC | G32: Agra | H32: Medical College | I32: 2016 | J32: Jun | K32: 2016-06-01 | L32: 2016-06-30 | M32: 401 | N32: 92 | O32: 75 | P32: 167 | Q32: 401 | R32: 167 | S32: 568 | T32: 15 | U32: 3 | V32: 18 | W32: 0 | X32: 225 | Y32: 600 | Z32: 2 | AA32: 0 | AB32: 0 | AC32: 6 | AD32: 2 | AE32: 21 | AF32: 29 | AJ32: 2 | AK32: 1 | AL32: 3 | AM32: 4 | AN32: 7 | AO32: 11 | AP32: 6 | AQ32: 8 | AR32: 14 | AS32: 1 | AT32: 0 | AU32: 1 | AV32: 0 | AW32: 4 | AX32: 0 | AY32: 2 | AZ32: 0 | BA32: 1 | BB32: 2 | BC32: 2 | BD32: 1 | BE32: 3 | BF32: 0 | BG32: 2 | BH32: 6 | BI32: 1 | BJ32: 2016-06-30T12:54:17 | BL32: 2 | BM32: =IF(B32="","",SUMIFS(Provider_Status!$D:$D,Provider_Status!$B:$B,Monthly_Report!$B32,Provider_Status!$C:$C,Monthly_Report!BM$1)) -> 0 | BN32: =IF(B32="","",SUMIFS(Provider_Status!$D:$D,Provider_Status!$B:$B,Monthly_Report!$B32,Provider_Status!$C:$C,Monthly_Report!BN$1)) -> 0 | BO32: =IF(B32="","",SUMIFS(Provider_Status!$E:$E,Provider_Status!$B:$B,Monthly_Report!$B32,Provider_Status!$C:$C,Monthly_Report!BO$1)) -> 0 | BP32: =IF(B32="","",SUMIFS(Provider_Status!$E:$E,Provider_Status!$B:$B,Monthly_Report!$B32,Provider_Status!$C:$C,Monthly_Report!BP$1)) -> 0 | BQ32: =IF(F32="","",SUMIFS(Training_BMGF!P:P,Training_BMGF!C:C,Monthly_Report!F32,Training_BMGF!L:L,Monthly_Report!K32)) -> 0 | BR32: =VLOOKUP(G32,'Facility List'!Q:R,2,FALSE) -> Agra | BT32: 1 | BU32: 1 | BV32: =SUMIFS(Training_BMGF!P:P,Training_BMGF!C:C,Monthly_Report!F32,Training_BMGF!D:D,Monthly_Report!BV$1,Training_BMGF!L:L,"<="&K32) -> 15 | BW32: =SUMIFS(Training_BMGF!P:P,Training_BMGF!C:C,Monthly_Report!F32,Training_BMGF!D:D,Monthly_Report!BW$1,Training_BMGF!L:L,"<="&K32) -> 0 | BX32: =COUNTIFS('Service Data'!$E:$E,">=1",'Service Data'!$I:$I,Monthly_Report!$E32,'Service Data'!$J:$J,Monthly_Report!BX$1,'Service Data'!$C:$C,Monthly_Report!$K32) -> 8 | BY32: =COUNTIFS('Service Data'!$E:$E,">=1",'Service Data'!$I:$I,Monthly_Report!$E32,'Service Data'!$J:$J,Monthly_Report!BY$1,'Service Data'!$C:$C,Monthly_Report!$K32) -> 0
A33: 16065 | B33: UP-0002-AGR-002-MC_2016_Mar | C33: BMGF (MCHIP-SUP) | D33: Uttar Pradesh | E33: Agra-MC | F33: UP-0002-AGR-002-MC | G33: Agra | H33: Medical College | I33: 2016 | J33: Mar | K33: 2016-03-01 | L33: 2016-04-10 | M33: 395 | N33: 127 | O33: 115 | P33: 242 | Q33: 395 | R33: 242 | S33: 637 | T33: 17 | U33: 11 | V33: 28 | W33: 0 | X33: 600 | Y33: 2250 | Z33: 10 | AA33: 0 | AB33: 3 | AC33: 20 | AD33: 11 | AE33: 48 | AF33: 79 | AJ33: 4 | AK33: 5 | AL33: 9 | AM33: 8 | AN33: 10 | AO33: 18 | AP33: 12 | AQ33: 15 | AR33: 27 | AS33: 5 | AT33: 0 | AU33: 2 | AV33: 1 | AW33: 6 | AX33: 0 | AY33: 2 | AZ33: 0 | BA33: 1 | BB33: 3 | BC33: 5 | BD33: 2 | BE33: 7 | BF33: 0 | BG33: 3 | BH33: 11 | BI33: 2 | BJ33: 2016-04-11T12:25:13 | BL33: 4 | BM33: =IF(B33="","",SUMIFS(Provider_Status!$D:$D,Provider_Status!$B:$B,Monthly_Report!$B33,Provider_Status!$C:$C,Monthly_Report!BM$1)) -> 0 | BN33: =IF(B33="","",SUMIFS(Provider_Status!$D:$D,Provider_Status!$B:$B,Monthly_Report!$B33,Provider_Status!$C:$C,Monthly_Report!BN$1)) -> 0 | BO33: =IF(B33="","",SUMIFS(Provider_Status!$E:$E,Provider_Status!$B:$B,Monthly_Report!$B33,Provider_Status!$C:$C,Monthly_Report!BO$1)) -> 0 | BP33: =IF(B33="","",SUMIFS(Provider_Status!$E:$E,Provider_Status!$B:$B,Monthly_Report!$B33,Provider_Status!$C:$C,Monthly_Report!BP$1)) -> 0 | BQ33: =IF(F33="","",SUMIFS(Training_BMGF!P:P,Training_BMGF!C:C,Monthly_Report!F33,Training_BMGF!L:L,Monthly_Report!K33)) -> 0 | BR33: =VLOOKUP(G33,'Facility List'!Q:R,2,FALSE) -> Agra | BT33: 1 | BU33: 1 | BV33: =SUMIFS(Training_BMGF!P:P,Training_BMGF!C:C,Monthly_Report!F33,Training_BMGF!D:D,Monthly_Report!BV$1,Training_BMGF!L:L,"<="&K33) -> 15 | BW33: =SUMIFS(Training_BMGF!P:P,Training_BMGF!C:C,Monthly_Report!F33,Training_BMGF!D:D,Monthly_Report!BW$1,Training_BMGF!L:L,"<="&K33) -> 0 | BX33: =COUNTIFS('Service Data'!$E:$E,">=1",'Service Data'!$I:$I,Monthly_Report!$E33,'Service Data'!$J:$J,Monthly_Report!BX$1,'Service Data'!$C:$C,Monthly_Report!$K33) -> 13 | BY33: =COUNTIFS('Service Data'!$E:$E,">=1",'Service Data'!$I:$I,Monthly_Report!$E33,'Service Data'!$J:$J,Monthly_Report!BY$1,'Service Data'!$C:$C,Monthly_Report!$K33) -> 0
A34: 17147 | B34: UP-0002-AGR-002-MC_2016_May | C34: BMGF (MCHIP-SUP) | D34: Uttar Pradesh | E34: Agra-MC | F34: UP-0002-AGR-002-MC | G34: Agra | H34: Medical College | I34: 2016 | J34: May | K34: 2016-05-01 | L34: 2016-06-02 | M34: 368 | N34: 126 | O34: 116 | P34: 242 | Q34: 368 | R34: 242 | S34: 610 | T34: 11 | U34: 4 | V34: 15 | W34: 0 | X34: 150 | Y34: 450 | Z34: 2 | AA34: 0 | AB34: 0 | AC34: 10 | AD34: 6 | AE34: 21 | AF34: 37 | AJ34: 3 | AK34: 2 | AL34: 5 | AM34: 5 | AN34: 9 | AO34: 14 | AP34: 8 | AQ34: 11 | AR34: 19 | AS34: 2 | AT34: 0 | AU34: 2 | AV34: 1 | AW34: 4 | AX34: 0 | AY34: 0 | AZ34: 1 | BA34: 3 | BB34: 2 | BC34: 3 | BD34: 1 | BE34: 2 | BF34: 1 | BG34: 5 | BH34: 7 | BI34: 1 | BJ34: 2016-06-03T11:12:36 | BL34: 3 | BM34: =IF(B34="","",SUMIFS(Provider_Status!$D:$D,Provider_Status!$B:$B,Monthly_Report!$B34,Provider_Status!$C:$C,Monthly_Report!BM$1)) -> 0 | BN34: =IF(B34="","",SUMIFS(Provider_Status!$D:$D,Provider_Status!$B:$B,Monthly_Report!$B34,Provider_Status!$C:$C,Monthly_Report!BN$1)) -> 0 | BO34: =IF(B34="","",SUMIFS(Provider_Status!$E:$E,Provider_Status!$B:$B,Monthly_Report!$B34,Provider_Status!$C:$C,Monthly_Report!BO$1)) -> 0 | BP34: =IF(B34="","",SUMIFS(Provider_Status!$E:$E,Provider_Status!$B:$B,Monthly_Report!$B34,Provider_Status!$C:$C,Monthly_Report!BP$1)) -> 0 | BQ34: =IF(F34="","",SUMIFS(Training_BMGF!P:P,Training_BMGF!C:C,Monthly_Report!F34,Training_BMGF!L:L,Monthly_Report!K34)) -> 0 | BR34: =VLOOKUP(G34,'Facility List'!Q:R,2,FALSE) -> Agra | BT34: 1 | BU34: 1 | BV34: =SUMIFS(Training_BMGF!P:P,Training_BMGF!C:C,Monthly_Report!F34,Training_BMGF!D:D,Monthly_Report!BV$1,Training_BMGF!L:L,"<="&K34) -> 15 | BW34: =SUMIFS(Training_BMGF!P:P,Training_BMGF!C:C,Monthly_Report!F34,Training_BMGF!D:D,Monthly_Report!BW$1,Training_BMGF!L:L,"<="&K34) -> 0 | BX34: =COUNTIFS('Service Data'!$E:$E,">=1",'Service Data'!$I:$I,Monthly_Report!$E34,'Service Data'!$J:$J,Monthly_Report!BX$1,'Service Data'!$C:$C,Monthly_Report!$K34) -> 13 | BY34: =COUNTIFS('Service Data'!$E:$E,">=1",'Service Data'!$I:$I,Monthly_Report!$E34,'Service Data'!$J:$J,Monthly_Report!BY$1,'Service Data'!$C:$C,Monthly_Report!$K34) -> 0
A35: 20189 | B35: UP-0002-AGR-002-MC_2016_Nov | C35: BMGF (MCHIP-SUP) | D35: Uttar Pradesh | E35: Agra-MC | F35: UP-0002-AGR-002-MC | G35: Agra | H35: Medical College | I35: 2016 | J35: Nov | K35: 2016-11-01 | L35: 2016-12-05 | M35: 423 | N35: 148 | O35: 131 | P35: 279 | Q35: 423 | R35: 279 | S35: 702 | T35: 17 | U35: 3 | V35: 20 | W35: 0 | X35: 525 | Y35: 1575 | Z35: 10 | AA35: 0 | AB35: 0 | AC35: 8 | AD35: 4 | AE35: 26 | AF35: 38 | AJ35: 2 | AK35: 3 | AL35: 5 | AM35: 5 | AN35: 3 | AO35: 8 | AP35: 7 | AQ35: 6 | AR35: 13 | AS35: 1 | AT35: 0 | AU35: 1 | AV35: 2 | AW35: 3 | AX35: 0 | AY35: 2 | AZ35: 0 | BA35: 1 | BB35: 0 | BC35: 3 | BD35: 0 | BE35: 3 | BF35: 0 | BG35: 2 | BH35: 6 | BI35: 0 | BJ35: 2016-12-06T13:46:51 | BL35: 2 | BM35: =IF(B35="","",SUMIFS(Provider_Status!$D:$D,Provider_Status!$B:$B,Monthly_Report!$B35,Provider_Status!$C:$C,Monthly_Report!BM$1)) -> 0 | BN35: =IF(B35="","",SUMIFS(Provider_Status!$D:$D,Provider_Status!$B:$B,Monthly_Report!$B35,Provider_Status!$C:$C,Monthly_Report!BN$1)) -> 0 | BO35: =IF(B35="","",SUMIFS(Provider_Status!$E:$E,Provider_Status!$B:$B,Monthly_Report!$B35,Provider_Status!$C:$C,Monthly_Report!BO$1)) -> 0 | BP35: =IF(B35="","",SUMIFS(Provider_Status!$E:$E,Provider_Status!$B:$B,Monthly_Report!$B35,Provider_Status!$C:$C,Monthly_Report!BP$1)) -> 0 | BQ35: =IF(F35="","",SUMIFS(Training_BMGF!P:P,Training_BMGF!C:C,Monthly_Report!F35,Training_BMGF!L:L,Monthly_Report!K35)) -> 0 | BR35: =VLOOKUP(G35,'Facility List'!Q:R,2,FALSE) -> Agra | BT35: 1 | BU35: 1 | BV35: =SUMIFS(Training_BMGF!P:P,Training_BMGF!C:C,Monthly_Report!F35,Training_BMGF!D:D,Monthly_Report!BV$1,Training_BMGF!L:L,"<="&K35) -> 15 | BW35: =SUMIFS(Training_BMGF!P:P,Training_BMGF!C:C,Monthly_Report!F35,Training_BMGF!D:D,Monthly_Report!BW$1,Training_BMGF!L:L,"<="&K35) -> 0 | BX35: =COUNTIFS('Service Data'!$E:$E,">=1",'Service Data'!$I:$I,Monthly_Report!$E35,'Service Data'!$J:$J,Monthly_Report!BX$1,'Service Data'!$C:$C,Monthly_Report!$K35) -> 14 | BY35: =COUNTIFS('Service Data'!$E:$E,">=1",'Service Data'!$I:$I,Monthly_Report!$E35,'Service Data'!$J:$J,Monthly_Report!BY$1,'Service Data'!$C:$C,Monthly_Report!$K35) -> 0
A36: 19769 | B36: UP-0002-AGR-002-MC_2016_Oct | C36: BMGF (MCHIP-SUP) | D36: Uttar Pradesh | E36: Agra-MC | F36: UP-0002-AGR-002-MC | G36: Agra | H36: Medical College | I36: 2016 | J36: Oct | K36: 2016-10-01 | L36: 2016-11-10 | M36: 423 | N36: 148 | O36: 131 | P36: 279 | Q36: 423 | R36: 279 | S36: 702 | T36: 17 | U36: 3 | V36: 20 | W36: 0 | X36: 525 | Y36: 1575 | Z36: 10 | AA36: 0 | AB36: 0 | AC36: 8 | AD36: 4 | AE36: 26 | AF36: 38 | AJ36: 2 | AK36: 3 | AL36: 5 | AM36: 5 | AN36: 3 | AO36: 8 | AP36: 7 | AQ36: 6 | AR36: 13 | AS36: 1 | AT36: 0 | AU36: 1 | AV36: 2 | AW36: 4 | AX36: 0 | AY36: 2 | AZ36: 0 | BA36: 1 | BB36: 0 | BC36: 2 | BD36: 0 | BE36: 3 | BF36: 0 | BG36: 2 | BH36: 6 | BI36: 0 | BJ36: 2016-11-10T12:48:14 | BL36: 2 | BM36: =IF(B36="","",SUMIFS(Provider_Status!$D:$D,Provider_Status!$B:$B,Monthly_Report!$B36,Provider_Status!$C:$C,Monthly_Report!BM$1)) -> 0 | BN36: =IF(B36="","",SUMIFS(Provider_Status!$D:$D,Provider_Status!$B:$B,Monthly_Report!$B36,Provider_Status!$C:$C,Monthly_Report!BN$1)) -> 0 | BO36: =IF(B36="","",SUMIFS(Provider_Status!$E:$E,Provider_Status!$B:$B,Monthly_Report!$B36,Provider_Status!$C:$C,Monthly_Report!BO$1)) -> 0 | BP36: =IF(B36="","",SUMIFS(Provider_Status!$E:$E,Provider_Status!$B:$B,Monthly_Report!$B36,Provider_Status!$C:$C,Monthly_Report!BP$1)) -> 0 | BQ36: =IF(F36="","",SUMIFS(Training_BMGF!P:P,Training_BMGF!C:C,Monthly_Report!F36,Training_BMGF!L:L,Monthly_Report!K36)) -> 0 | BR36: =VLOOKUP(G36,'Facility List'!Q:R,2,FALSE) -> Agra | BT36: 1 | BU36: 1 | BV36: =SUMIFS(Training_BMGF!P:P,Training_BMGF!C:C,Monthly_Report!F36,Training_BMGF!D:D,Monthly_Report!BV$1,Training_BMGF!L:L,"<="&K36) -> 15 | BW36: =SUMIFS(Training_BMGF!P:P,Training_BMGF!C:C,Monthly_Report!F36,Training_BMGF!D:D,Monthly_Report!BW$1,Training_BMGF!L:L,"<="&K36) -> 0 | BX36: =COUNTIFS('Service Data'!$E:$E,">=1",'Service Data'!$I:$I,Monthly_Report!$E36,'Service Data'!$J:$J,Monthly_Report!BX$1,'Service Data'!$C:$C,Monthly_Report!$K36) -> 15 | BY36: =COUNTIFS('Service Data'!$E:$E,">=1",'Service Data'!$I:$I,Monthly_Report!$E36,'Service Data'!$J:$J,Monthly_Report!BY$1,'Service Data'!$C:$C,Monthly_Report!$K36) -> 0
A37: 19106 | B37: UP-0002-AGR-002-MC_2016_Sep | C37: BMGF (MCHIP-SUP) | D37: Uttar Pradesh | E37: Agra-MC | F37: UP-0002-AGR-002-MC | G37: Agra | H37: Medical College | I37: 2016 | J37: Sep | K37: 2016-09-01 | L37: 2016-10-03 | M37: 400 | N37: 120 | O37: 116 | P37: 236 | Q37: 400 | R37: 236 | S37: 636 | T37: 17 | U37: 4 | V37: 21 | W37: 0 | X37: 425 | Y37: 1375 | Z37: 1 | AA37: 0 | AB37: 0 | AC37: 8 | AD37: 6 | AE37: 34 | AF37: 48 | AJ37: 2 | AK37: 3 | AL37: 5 | AM37: 6 | AN37: 5 | AO37: 11 | AP37: 8 | AQ37: 8 | AR37: 16 | AS37: 2 | AT37: 0 | AU37: 1 | AV37: 0 | AW37: 5 | AX37: 0 | AY37: 2 | AZ37: 0 | BA37: 1 | BB37: 0 | BC37: 5 | BD37: 0 | BE37: 4 | BF37: 0 | BG37: 2 | BH37: 10 | BI37: 0 | BJ37: 2016-10-03T11:06:00 | BL37: 0 | BM37: =IF(B37="","",SUMIFS(Provider_Status!$D:$D,Provider_Status!$B:$B,Monthly_Report!$B37,Provider_Status!$C:$C,Monthly_Report!BM$1)) -> 0 | BN37: =IF(B37="","",SUMIFS(Provider_Status!$D:$D,Provider_Status!$B:$B,Monthly_Report!$B37,Provider_Status!$C:$C,Monthly_Report!BN$1)) -> 0 | BO37: =IF(B37="","",SUMIFS(Provider_Status!$E:$E,Provider_Status!$B:$B,Monthly_Report!$B37,Provider_Status!$C:$C,Monthly_Report!BO$1)) -> 0 | BP37: =IF(B37="","",SUMIFS(Provider_Status!$E:$E,Provider_Status!$B:$B,Monthly_Report!$B37,Provider_Status!$C:$C,Monthly_Report!BP$1)) -> 0 | BQ37: =IF(F37="","",SUMIFS(Training_BMGF!P:P,Training_BMGF!C:C,Monthly_Report!F37,Training_BMGF!L:L,Monthly_Report!K37)) -> 0 | BR37: =VLOOKUP(G37,'Facility List'!Q:R,2,FALSE) -> Agra | BT37: 1 | BU37: 1 | BV37: =SUMIFS(Training_BMGF!P:P,Training_BMGF!C:C,Monthly_Report!F37,Training_BMGF!D:D,Monthly_Report!BV$1,Training_BMGF!L:L,"<="&K37) -> 15 | BW37: =SUMIFS(Training_BMGF!P:P,Training_BMGF!C:C,Monthly_Report!F37,Training_BMGF!D:D,Monthly_Report!BW$1,Training_BMGF!L:L,"<="&K37) -> 0 | BX37: =COUNTIFS('Service Data'!$E:$E,">=1",'Service Data'!$I:$I,Monthly_Report!$E37,'Service Data'!$J:$J,Monthly_Report!BX$1,'Service Data'!$C:$C,Monthly_Report!$K37) -> 14 | BY37: =COUNTIFS('Service Data'!$E:$E,">=1",'Service Data'!$I:$I,Monthly_Report!$E37,'Service Data'!$J:$J,Monthly_Report!BY$1,'Service Data'!$C:$C,Monthly_Report!$K37) -> 0
A38: 23256 | B38: UP-0002-AGR-002-MC_2017_Apr | C38: BMGF (MCHIP-SUP) | D38: Uttar Pradesh | E38: Agra-MC | F38: UP-0002-AGR-002-MC | G38: Agra | H38: Medical College | I38: 2017 | J38: Apr | K38: 2017-04-01 | L38: 2017-05-03 | M38: 205 | N38: 51 | O38: 53 | P38: 104 | Q38: 205 | R38: 104 | S38: 309 | T38: 6 | U38: 1 | V38: 7 | W38: 0 | X38: 0 | Y38: 0 | Z38: 6 | AA38: 0 | AB38: 3 | AC38: 3 | AD38: 2 | AE38: 14 | AF38: 19 | AJ38: 2 | AK38: 3 | AL38: 5 | AM38: 4 | AN38: 5 | AO38: 9 | AP38: 6 | AQ38: 8 | AR38: 14 | AS38: 0 | AT38: 0 | AU38: 1 | AV38: 2 | AW38: 3 | AX38: 0 | AY38: 1 | AZ38: 0 | BA38: 1 | BB38: 1 | BC38: 4 | BD38: 1 | BE38: 1 | BF38: 0 | BG38: 2 | BH38: 7 | BI38: 1 | BJ38: 2017-05-11T15:39:58 | BL38: 3 | BM38: =IF(B38="","",SUMIFS(Provider_Status!$D:$D,Provider_Status!$B:$B,Monthly_Report!$B38,Provider_Status!$C:$C,Monthly_Report!BM$1)) -> 17 | BN38: =IF(B38="","",SUMIFS(Provider_Status!$D:$D,Provider_Status!$B:$B,Monthly_Report!$B38,Provider_Status!$C:$C,Monthly_Report!BN$1)) -> 0 | BO38: =IF(B38="","",SUMIFS(Provider_Status!$E:$E,Provider_Status!$B:$B,Monthly_Report!$B38,Provider_Status!$C:$C,Monthly_Report!BO$1)) -> 17 | BP38: =IF(B38="","",SUMIFS(Provider_Status!$E:$E,Provider_Status!$B:$B,Monthly_Report!$B38,Provider_Status!$C:$C,Monthly_Report!BP$1)) -> 0 | BQ38: =IF(F38="","",SUMIFS(Training_BMGF!P:P,Training_BMGF!C:C,Monthly_Report!F38,Training_BMGF!L:L,Monthly_Report!K38)) -> 0 | BR38: =VLOOKUP(G38,'Facility List'!Q:R,2,FALSE) -> Agra | BT38: 1 | BU38: 1 | BV38: =SUMIFS(Training_BMGF!P:P,Training_BMGF!C:C,Monthly_Report!F38,Training_BMGF!D:D,Monthly_Report!BV$1,Training_BMGF!L:L,"<="&K38) -> 15 | BW38: =SUMIFS(Training_BMGF!P:P,Training_BMGF!C:C,Monthly_Report!F38,Training_BMGF!D:D,Monthly_Report!BW$1,Training_BMGF!L:L,"<="&K38) -> 0 | BX38: =COUNTIFS('Service Data'!$E:$E,">=1",'Service Data'!$I:$I,Monthly_Report!$E38,'Service Data'!$J:$J,Monthly_Report!BX$1,'Service Data'!$C:$C,Monthly_Report!$K38) -> 10 | BY38: =COUNTIFS('Service Data'!$E:$E,">=1",'Service Data'!$I:$I,Monthly_Report!$E38,'Service Data'!$J:$J,Monthly_Report!BY$1,'Service Data'!$C:$C,Monthly_Report!$K38) -> 0
A39: 25838 | B39: UP-0002-AGR-002-MC_2017_Aug | C39: BMGF (MCHIP-SUP) | D39: Uttar Pradesh | E39: Agra-MC | F39: UP-0002-AGR-002-MC | G39: Agra | H39: Medical College | I39: 2017 | J39: Aug | K39: 2017-08-01 | L39: 2017-08-28 | M39: 207 | N39: 119 | O39: 114 | P39: 233 | Q39: 207 | R39: 233 | S39: 440 | T39: 5 | U39: 1 | V39: 6 | W39: 0 | X39: 45 | Y39: 750 | Z39: 4 | AA39: 0 | AB39: 2 | AC39: 6 | AD39: 4 | AE39: 36 | AF39: 46 | AJ39: 2 | AK39: 3 | AL39: 5 | AM39: 4 | AN39: 7 | AO39: 11 | AP39: 6 | AQ39: 10 | AR39: 16 | AS39: 2 | AT39: 0 | AU39: 1 | AV39: 2 | AW39: 1 | AX39: 0 | AY39: 1 | AZ39: 0 | BA39: 1 | BB39: 2 | BC39: 6 | BD39: 0 | BE39: 3 | BF39: 0 | BG39: 2 | BH39: 7 | BI39: 0 | BJ39: 2017-08-28T15:02:44 | BL39: 4 | BM39: =IF(B39="","",SUMIFS(Provider_Status!$D:$D,Provider_Status!$B:$B,Monthly_Report!$B39,Provider_Status!$C:$C,Monthly_Report!BM$1)) -> 17 | BN39: =IF(B39="","",SUMIFS(Provider_Status!$D:$D,Provider_Status!$B:$B,Monthly_Report!$B39,Provider_Status!$C:$C,Monthly_Report!BN$1)) -> 0 | BO39: =IF(B39="","",SUMIFS(Provider_Status!$E:$E,Provider_Status!$B:$B,Monthly_Report!$B39,Provider_Status!$C:$C,Monthly_Report!BO$1)) -> 17 | BP39: =IF(B39="","",SUMIFS(Provider_Status!$E:$E,Provider_Status!$B:$B,Monthly_Report!$B39,Provider_Status!$C:$C,Monthly_Report!BP$1)) -> 0 | BQ39: =IF(F39="","",SUMIFS(Training_BMGF!P:P,Training_BMGF!C:C,Monthly_Report!F39,Training_BMGF!L:L,Monthly_Report!K39)) -> 0 | BR39: =VLOOKUP(G39,'Facility List'!Q:R,2,FALSE) -> Agra | BT39: 1 | BU39: 1 | BV39: =SUMIFS(Training_BMGF!P:P,Training_BMGF!C:C,Monthly_Report!F39,Training_BMGF!D:D,Monthly_Report!BV$1,Training_BMGF!L:L,"<="&K39) -> 15 | BW39: =SUMIFS(Training_BMGF!P:P,Training_BMGF!C:C,Monthly_Report!F39,Training_BMGF!D:D,Monthly_Report!BW$1,Training_BMGF!L:L,"<="&K39) -> 0 | BX39: =COUNTIFS('Service Data'!$E:$E,">=1",'Service Data'!$I:$I,Monthly_Report!$E39,'Service Data'!$J:$J,Monthly_Report!BX$1,'Service Data'!$C:$C,Monthly_Report!$K39) -> 13 | BY39: =COUNTIFS('Service Data'!$E:$E,">=1",'Service Data'!$I:$I,Monthly_Report!$E39,'Service Data'!$J:$J,Monthly_Report!BY$1,'Service Data'!$C:$C,Monthly_Report!$K39) -> 0
A40: 28703 | B40: UP-0002-AGR-002-MC_2017_Dec | C40: BMGF (MCHIP-SUP) | D40: Uttar Pradesh | E40: Agra-MC | F40: UP-0002-AGR-002-MC | G40: Agra | H40: Medical College | I40: 2017 | J40: Dec | K40: 2017-12-01 | L40: 2018-01-03 | M40: 258 | N40: 156 | O40: 149 | P40: 305 | Q40: 258 | R40: 305 | S40: 563 | T40: 0 | U40: 10 | V40: 10 | W40: 1 | X40: 11 | Y40: 45 | Z40: 1350 | AA40: 4 | AB40: 0 | AC40: 0 | AD40: 14 | AE40: 29 | AF40: 43 | AJ40: 3 | AK40: 3 | AL40: 6 | AM40: 2 | AN40: 4 | AO40: 6 | AP40: 5 | AQ40: 7 | AR40: 12 | AS40: 3 | AT40: 0 | AU40: 0 | AV40: 0 | AW40: 2 | AX40: 0 | AY40: 1 | AZ40: 0 | BA40: 2 | BB40: 0 | BC40: 4 | BD40: 0 | BE40: 4 | BF40: 0 | BG40: 2 | BH40: 6 | BI40: 0 | BJ40: 2018-01-04T12:52:49 | BL40: 0 | BM40: =IF(B40="","",SUMIFS(Provider_Status!$D:$D,Provider_Status!$B:$B,Monthly_Report!$B40,Provider_Status!$C:$C,Monthly_Report!BM$1)) -> 0 | BN40: =IF(B40="","",SUMIFS(Provider_Status!$D:$D,Provider_Status!$B:$B,Monthly_Report!$B40,Provider_Status!$C:$C,Monthly_Report!BN$1)) -> 0 | BO40: =IF(B40="","",SUMIFS(Provider_Status!$E:$E,Provider_Status!$B:$B,Monthly_Report!$B40,Provider_Status!$C:$C,Monthly_Report!BO$1)) -> 0 | BP40: =IF(B40="","",SUMIFS(Provider_Status!$E:$E,Provider_Status!$B:$B,Monthly_Report!$B40,Provider_Status!$C:$C,Monthly_Report!BP$1)) -> 0 | BQ40: =IF(F40="","",SUMIFS(Training_BMGF!P:P,Training_BMGF!C:C,Monthly_Report!F40,Training_BMGF!L:L,Monthly_Report!K40)) -> 0 | BR40: =VLOOKUP(G40,'Facility List'!Q:R,2,FALSE) -> Agra | BT40: 1 | BU40: 1 | BV40: =SUMIFS(Training_BMGF!P:P,Training_BMGF!C:C,Monthly_Report!F40,Training_BMGF!D:D,Monthly_Report!BV$1,Training_BMGF!L:L,"<="&K40) -> 15 | BW40: =SUMIFS(Training_BMGF!P:P,Training_BMGF!C:C,Monthly_Report!F40,Training_BMGF!D:D,Monthly_Report!BW$1,Training_BMGF!L:L,"<="&K40) -> 0 | BX40: =COUNTIFS('Service Data'!$E:$E,">=1",'Service Data'!$I:$I,Monthly_Report!$E40,'Service Data'!$J:$J,Monthly_Report!BX$1,'Service Data'!$C:$C,Monthly_Report!$K40) -> 12 | BY40: =COUNTIFS('Service Data'!$E:$E,">=1",'Service Data'!$I:$I,Monthly_Report!$E40,'Service Data'!$J:$J,Monthly_Report!BY$1,'Service Data'!$C:$C,Monthly_Report!$K40) -> 0
A41: 21887 | B41: UP-0002-AGR-002-MC_2017_Feb | C41: BMGF (MCHIP-SUP) | D41: Uttar Pradesh | E41: Agra-MC | F41: UP-0002-AGR-002-MC | G41: Agra | H41: Medical College | I41: 2017 | J41: Feb | K41: 2017-02-01 | L41: 2017-03-02 | M41: 438 | N41: 121 | O41: 127 | P41: 248 | Q41: 438 | R41: 248 | S41: 686 | T41: 7 | U41: 5 | V41: 12 | W41: 0 | X41: 750 | Y41: 2175 | Z41: 5 | AA41: 0 | AB41: 3 | AC41: 4 | AD41: 7 | AE41: 31 | AF41: 42 | AJ41: 3 | AK41: 4 | AL41: 7 | AM41: 6 | AN41: 4 | AO41: 10 | AP41: 9 | AQ41: 8 | AR41: 17 | AS41: 1 | AT41: 0 | AU41: 2 | AV41: 1 | AW41: 5 | AX41: 0 | AY41: 1 | AZ41: 0 | BA41: 1 | BB41: 2 | BC41: 4 | BD41: 0 | BE41: 2 | BF41: 0 | BG41: 3 | BH41: 9 | BI41: 0 | BJ41: 2017-03-07T14:44:44 | BL41: 3 | BM41: =IF(B41="","",SUMIFS(Provider_Status!$D:$D,Provider_Status!$B:$B,Monthly_Report!$B41,Provider_Status!$C:$C,Monthly_Report!BM$1)) -> 17 | BN41: =IF(B41="","",SUMIFS(Provider_Status!$D:$D,Provider_Status!$B:$B,Monthly_Report!$B41,Provider_Status!$C:$C,Monthly_Report!BN$1)) -> 0 | BO41: =IF(B41="","",SUMIFS(Provider_Status!$E:$E,Provider_Status!$B:$B,Monthly_Report!$B41,Provider_Status!$C:$C,Monthly_Report!BO$1)) -> 17 | BP41: =IF(B41="","",SUMIFS(Provider_Status!$E:$E,Provider_Status!$B:$B,Monthly_Report!$B41,Provider_Status!$C:$C,Monthly_Report!BP$1)) -> 0 | BQ41: =IF(F41="","",SUMIFS(Training_BMGF!P:P,Training_BMGF!C:C,Monthly_Report!F41,Training_BMGF!L:L,Monthly_Report!K41)) -> 0 | BR41: =VLOOKUP(G41,'Facility List'!Q:R,2,FALSE) -> Agra | BT41: 1 | BU41: 1 | BV41: =SUMIFS(Training_BMGF!P:P,Training_BMGF!C:C,Monthly_Report!F41,Training_BMGF!D:D,Monthly_Report!BV$1,Training_BMGF!L:L,"<="&K41) -> 15 | BW41: =SUMIFS(Training_BMGF!P:P,Training_BMGF!C:C,Monthly_Report!F41,Training_BMGF!D:D,Monthly_Report!BW$1,Training_BMGF!L:L,"<="&K41) -> 0 | BX41: =COUNTIFS('Service Data'!$E:$E,">=1",'Service Data'!$I:$I,Monthly_Report!$E41,'Service Data'!$J:$J,Monthly_Report!BX$1,'Service Data'!$C:$C,Monthly_Report!$K41) -> 12 | BY41: =COUNTIFS('Service Data'!$E:$E,">=1",'Service Data'!$I:$I,Monthly_Report!$E41,'Service Data'!$J:$J,Monthly_Report!BY$1,'Service Data'!$C:$C,Monthly_Report!$K41) -> 0
A42: 21423 | B42: UP-0002-AGR-002-MC_2017_Jan | C42: BMGF (MCHIP-SUP) | D42: Uttar Pradesh | E42: Agra-MC | F42: UP-0002-AGR-002-MC | G42: Agra | H42: Medical College | I42: 2017 | J42: Jan | K42: 2017-01-01 | L42: 2017-02-04 | M42: 426 | N42: 154 | O42: 115 | P42: 269 | Q42: 426 | R42: 269 | S42: 695 | T42: 6 | U42: 2 | V42: 8 | W42: 0 | X42: 750 | Y42: 2025 | Z42: 5 | AA42: 0 | AB42: 2 | AC42: 33 | AD42: 4 | AE42: 5 | AF42: 42 | AJ42: 2 | AK42: 2 | AL42: 4 | AM42: 4 | AN42: 7 | AO42: 11 | AP42: 6 | AQ42: 9 | AR42: 15 | AS42: 1 | AT42: 0 | AU42: 0 | AV42: 2 | AW42: 3 | AX42: 0 | AY42: 2 | AZ42: 0 | BA42: 1 | BB42: 2 | BC42: 4 | BD42: 0 | BE42: 3 | BF42: 0 | BG42: 1 | BH42: 7 | BI42: 0 | BJ42: 2017-02-06T12:25:02 | BL42: 4 | BM42: =IF(B42="","",SUMIFS(Provider_Status!$D:$D,Provider_Status!$B:$B,Monthly_Report!$B42,Provider_Status!$C:$C,Monthly_Report!BM$1)) -> 17 | BN42: =IF(B42="","",SUMIFS(Provider_Status!$D:$D,Provider_Status!$B:$B,Monthly_Report!$B42,Provider_Status!$C:$C,Monthly_Report!BN$1)) -> 0 | BO42: =IF(B42="","",SUMIFS(Provider_Status!$E:$E,Provider_Status!$B:$B,Monthly_Report!$B42,Provider_Status!$C:$C,Monthly_Report!BO$1)) -> 17 | BP42: =IF(B42="","",SUMIFS(Provider_Status!$E:$E,Provider_Status!$B:$B,Monthly_Report!$B42,Provider_Status!$C:$C,Monthly_Report!BP$1)) -> 0 | BQ42: =IF(F42="","",SUMIFS(Training_BMGF!P:P,Training_BMGF!C:C,Monthly_Report!F42,Training_BMGF!L:L,Monthly_Report!K42)) -> 0 | BR42: =VLOOKUP(G42,'Facility List'!Q:R,2,FALSE) -> Agra | BT42: 1 | BU42: 1 | BV42: =SUMIFS(Training_BMGF!P:P,Training_BMGF!C:C,Monthly_Report!F42,Training_BMGF!D:D,Monthly_Report!BV$1,Training_BMGF!L:L,"<="&K42) -> 15 | BW42: =SUMIFS(Training_BMGF!P:P,Training_BMGF!C:C,Monthly_Report!F42,Training_BMGF!D:D,Monthly_Report!BW$1,Training_BMGF!L:L,"<="&K42) -> 0 | BX42: =COUNTIFS('Service Data'!$E:$E,">=1",'Service Data'!$I:$I,Monthly_Report!$E42,'Service Data'!$J:$J,Monthly_Report!BX$1,'Service Data'!$C:$C,Monthly_Report!$K42) -> 14 | BY42: =COUNTIFS('Service Data'!$E:$E,">=1",'Service Data'!$I:$I,Monthly_Report!$E42,'Service Data'!$J:$J,Monthly_Report!BY$1,'Service Data'!$C:$C,Monthly_Report!$K42) -> 0
A43: 25284 | B43: UP-0002-AGR-002-MC_2017_Jul | C43: BMGF (MCHIP-SUP) | D43: Uttar Pradesh | E43: Agra-MC | F43: UP-0002-AGR-002-MC | G43: Agra | H43: Medical College | I43: 2017 | J43: Jul | K43: 2017-07-01 | L43: 2017-07-31 | M43: 341 | N43: 173 | O43: 154 | P43: 327 | Q43: 341 | R43: 327 | S43: 668 | T43: 9 | U43: 1 | V43: 10 | W43: 0 | X43: 75 | Y43: 600 | Z43: 7 | AA43: 0 | AB43: 5 | AC43: 1 | AD43: 2 | AE43: 10 | AF43: 13 | AJ43: 2 | AK43: 4 | AL43: 6 | AM43: 2 | AN43: 5 | AO43: 7 | AP43: 4 | AQ43: 9 | AR43: 13 | AS43: 2 | AT43: 0 | AU43: 1 | AV43: 0 | AW43: 0 | AX43: 1 | AY43: 1 | AZ43: 0 | BA43: 1 | BB43: 0 | BC43: 6 | BD43: 1 | BE43: 3 | BF43: 0 | BG43: 2 | BH43: 6 | BI43: 2 | BJ43: 2017-07-31T15:08:00 | BL43: 0 | BM43: =IF(B43="","",SUMIFS(Provider_Status!$D:$D,Provider_Status!$B:$B,Monthly_Report!$B43,Provider_Status!$C:$C,Monthly_Report!BM$1)) -> 13 | BN43: =IF(B43="","",SUMIFS(Provider_Status!$D:$D,Provider_Status!$B:$B,Monthly_Report!$B43,Provider_Status!$C:$C,Monthly_Report!BN$1)) -> 0 | BO43: =IF(B43="","",SUMIFS(Provider_Status!$E:$E,Provider_Status!$B:$B,Monthly_Report!$B43,Provider_Status!$C:$C,Monthly_Report!BO$1)) -> 6 | BP43: =IF(B43="","",SUMIFS(Provider_Status!$E:$E,Provider_Status!$B:$B,Monthly_Report!$B43,Provider_Status!$C:$C,Monthly_Report!BP$1)) -> 0 | BQ43: =IF(F43="","",SUMIFS(Training_BMGF!P:P,Training_BMGF!C:C,Monthly_Report!F43,Training_BMGF!L:L,Monthly_Report!K43)) -> 0 | BR43: =VLOOKUP(G43,'Facility List'!Q:R,2,FALSE) -> Agra | BT43: 1 | BU43: 1 | BV43: =SUMIFS(Training_BMGF!P:P,Training_BMGF!C:C,Monthly_Report!F43,Training_BMGF!D:D,Monthly_Report!BV$1,Training_BMGF!L:L,"<="&K43) -> 15 | BW43: =SUMIFS(Training_BMGF!P:P,Training_BMGF!C:C,Monthly_Report!F43,Training_BMGF!D:D,Monthly_Report!BW$1,Training_BMGF!L:L,"<="&K43) -> 0 | BX43: =COUNTIFS('Service Data'!$E:$E,">=1",'Service Data'!$I:$I,Monthly_Report!$E43,'Service Data'!$J:$J,Monthly_Report!BX$1,'Service Data'!$C:$C,Monthly_Report!$K43) -> 5 | BY43: =COUNTIFS('Service Data'!$E:$E,">=1",'Service Data'!$I:$I,Monthly_Report!$E43,'Service Data'!$J:$J,Monthly_Report!BY$1,'Service Data'!$C:$C,Monthly_Report!$K43) -> 0
A44: 24713 | B44: UP-0002-AGR-002-MC_2017_Jun | C44: BMGF (MCHIP-SUP) | D44: Uttar Pradesh | E44: Agra-MC | F44: UP-0002-AGR-002-MC | G44: Agra | H44: Medical College | I44: 2017 | J44: Jun | K44: 2017-06-01 | L44: 2017-07-05 | M44: 346 | N44: 152 | O44: 126 | P44: 278 | Q44: 346 | R44: 278 | S44: 624 | T44: 6 | U44: 6 | V44: 12 | W44: 0 | X44: 0 | Y44: 450 | Z44: 12 | AA44: 0 | AB44: 6 | AC44: 2 | AD44: 2 | AE44: 18 | AF44: 22 | AJ44: 2 | AK44: 3 | AL44: 5 | AM44: 4 | AN44: 6 | AO44: 10 | AP44: 6 | AQ44: 9 | AR44: 15 | AS44: 1 | AT44: 0 | AU44: 1 | AV44: 2 | AW44: 0 | AX44: 2 | AY44: 0 | AZ44: 0 | BA44: 2 | BB44: 4 | BC44: 0 | BD44: 3 | BE44: 1 | BF44: 0 | BG44: 3 | BH44: 0 | BI44: 5 | BJ44: 2017-07-05T14:03:24 | BL44: 6 | BM44: =IF(B44="","",SUMIFS(Provider_Status!$D:$D,Provider_Status!$B:$B,Monthly_Report!$B44,Provider_Status!$C:$C,Monthly_Report!BM$1)) -> 17 | BN44: =IF(B44="","",SUMIFS(Provider_Status!$D:$D,Provider_Status!$B:$B,Monthly_Report!$B44,Provider_Status!$C:$C,Monthly_Report!BN$1)) -> 0 | BO44: =IF(B44="","",SUMIFS(Provider_Status!$E:$E,Provider_Status!$B:$B,Monthly_Report!$B44,Provider_Status!$C:$C,Monthly_Report!BO$1)) -> 17 | BP44: =IF(B44="","",SUMIFS(Provider_Status!$E:$E,Provider_Status!$B:$B,Monthly_Report!$B44,Provider_Status!$C:$C,Monthly_Report!BP$1)) -> 0 | BQ44: =IF(F44="","",SUMIFS(Training_BMGF!P:P,Training_BMGF!C:C,Monthly_Report!F44,Training_BMGF!L:L,Monthly_Report!K44)) -> 0 | BR44: =VLOOKUP(G44,'Facility List'!Q:R,2,FALSE) -> Agra | BT44: 1 | BU44: 1 | BV44: =SUMIFS(Training_BMGF!P:P,Training_BMGF!C:C,Monthly_Report!F44,Training_BMGF!D:D,Monthly_Report!BV$1,Training_BMGF!L:L,"<="&K44) -> 15 | BW44: =SUMIFS(Training_BMGF!P:P,Training_BMGF!C:C,Monthly_Report!F44,Training_BMGF!D:D,Monthly_Report!BW$1,Training_BMGF!L:L,"<="&K44) -> 0 | BX44: =COUNTIFS('Service Data'!$E:$E,">=1",'Service Data'!$I:$I,Monthly_Report!$E44,'Service Data'!$J:$J,Monthly_Report!BX$1,'Service Data'!$C:$C,Monthly_Report!$K44) -> 10 | BY44: =COUNTIFS('Service Data'!$E:$E,">=1",'Service Data'!$I:$I,Monthly_Report!$E44,'Service Data'!$J:$J,Monthly_Report!BY$1,'Service Data'!$C:$C,Monthly_Report!$K44) -> 0
A45: 22639 | B45: UP-0002-AGR-002-MC_2017_Mar | C45: BMGF (MCHIP-SUP) | D45: Uttar Pradesh | E45: Agra-MC | F45: UP-0002-AGR-002-MC | G45: Agra | H45: Medical College | I45: 2017 | J45: Mar | K45: 2017-03-01 | L45: 2017-04-12 | M45: 423 | N45: 205 | O45: 163 | P45: 368 | Q45: 423 | R45: 368 | S45: 791 | T45: 0 | U45: 7 | V45: 7 | W45: 0 | X45: 0 | Y45: 0 | Z45: 4 | AA45: 0 | AB45: 3 | AC45: 4 | AD45: 2 | AE45: 44 | AF45: 50 | AJ45: 2 | AK45: 3 | AL45: 5 | AM45: 8 | AN45: 3 | AO45: 11 | AP45: 10 | AQ45: 6 | AR45: 16 | AS45: 1 | AT45: 0 | AU45: 0 | AV45: 0 | AW45: 9 | AX45: 0 | AY45: 0 | AZ45: 0 | BA45: 1 | BB45: 0 | BC45: 4 | BD45: 1 | BE45: 1 | BF45: 0 | BG45: 1 | BH45: 13 | BI45: 1 | BJ45: 2017-04-17T13:37:21 | BL45: 0 | BM45: =IF(B45="","",SUMIFS(Provider_Status!$D:$D,Provider_Status!$B:$B,Monthly_Report!$B45,Provider_Status!$C:$C,Monthly_Report!BM$1)) -> 17 | BN45: =IF(B45="","",SUMIFS(Provider_Status!$D:$D,Provider_Status!$B:$B,Monthly_Report!$B45,Provider_Status!$C:$C,Monthly_Report!BN$1)) -> 0 | BO45: =IF(B45="","",SUMIFS(Provider_Status!$E:$E,Provider_Status!$B:$B,Monthly_Report!$B45,Provider_Status!$C:$C,Monthly_Report!BO$1)) -> 17 | BP45: =IF(B45="","",SUMIFS(Provider_Status!$E:$E,Provider_Status!$B:$B,Monthly_Report!$B45,Provider_Status!$C:$C,Monthly_Report!BP$1)) -> 0 | BQ45: =IF(F45="","",SUMIFS(Training_BMGF!P:P,Training_BMGF!C:C,Monthly_Report!F45,Training_BMGF!L:L,Monthly_Report!K45)) -> 0 | BR45: =VLOOKUP(G45,'Facility List'!Q:R,2,FALSE) -> Agra | BT45: 1 | BU45: 1 | BV45: =SUMIFS(Training_BMGF!P:P,Training_BMGF!C:C,Monthly_Report!F45,Training_BMGF!D:D,Monthly_Report!BV$1,Training_BMGF!L:L,"<="&K45) -> 15 | BW45: =SUMIFS(Training_BMGF!P:P,Training_BMGF!C:C,Monthly_Report!F45,Training_BMGF!D:D,Monthly_Report!BW$1,Training_BMGF!L:L,"<="&K45) -> 0 | BX45: =COUNTIFS('Service Data'!$E:$E,">=1",'Service Data'!$I:$I,Monthly_Report!$E45,'Service Data'!$J:$J,Monthly_Report!BX$1,'Service Data'!$C:$C,Monthly_Report!$K45) -> 14 | BY45: =COUNTIFS('Service Data'!$E:$E,">=1",'Service Data'!$I:$I,Monthly_Report!$E45,'Service Data'!$J:$J,Monthly_Report!BY$1,'Service Data'!$C:$C,Monthly_Report!$K45) -> 0
A46: 23924 | B46: UP-0002-AGR-002-MC_2017_May | C46: BMGF (MCHIP-SUP) | D46: Uttar Pradesh | E46: Agra-MC | F46: UP-0002-AGR-002-MC | G46: Agra | H46: Medical College | I46: 2017 | J46: May | K46: 2017-05-01 | L46: 2017-06-12 | M46: 373 | N46: 111 | O46: 119 | P46: 230 | Q46: 373 | R46: 230 | S46: 603 | T46: 10 | U46: 2 | V46: 12 | W46: 0 | X46: 75 | Y46: 380 | Z46: 18 | AA46: 0 | AB46: 3 | AC46: 2 | AD46: 3 | AE46: 19 | AF46: 24 | AJ46: 2 | AK46: 2 | AL46: 4 | AM46: 3 | AN46: 4 | AO46: 7 | AP46: 5 | AQ46: 6 | AR46: 11 | AS46: 1 | AT46: 0 | AU46: 0 | AV46: 1 | AW46: 3 | AX46: 0 | AY46: 0 | AZ46: 0 | BA46: 1 | BB46: 1 | BC46: 4 | BD46: 0 | BE46: 1 | BF46: 0 | BG46: 1 | BH46: 7 | BI46: 0 | BJ46: 2017-06-12T12:15:50 | BL46: 2 | BM46: =IF(B46="","",SUMIFS(Provider_Status!$D:$D,Provider_Status!$B:$B,Monthly_Report!$B46,Provider_Status!$C:$C,Monthly_Report!BM$1)) -> 17 | BN46: =IF(B46="","",SUMIFS(Provider_Status!$D:$D,Provider_Status!$B:$B,Monthly_Report!$B46,Provider_Status!$C:$C,Monthly_Report!BN$1)) -> 0 | BO46: =IF(B46="","",SUMIFS(Provider_Status!$E:$E,Provider_Status!$B:$B,Monthly_Report!$B46,Provider_Status!$C:$C,Monthly_Report!BO$1)) -> 17 | BP46: =IF(B46="","",SUMIFS(Provider_Status!$E:$E,Provider_Status!$B:$B,Monthly_Report!$B46,Provider_Status!$C:$C,Monthly_Report!BP$1)) -> 0 | BQ46: =IF(F46="","",SUMIFS(Training_BMGF!P:P,Training_BMGF!C:C,Monthly_Report!F46,Training_BMGF!L:L,Monthly_Report!K46)) -> 0 | BR46: =VLOOKUP(G46,'Facility List'!Q:R,2,FALSE) -> Agra | BT46: 1 | BU46: 1 | BV46: =SUMIFS(Training_BMGF!P:P,Training_BMGF!C:C,Monthly_Report!F46,Training_BMGF!D:D,Monthly_Report!BV$1,Training_BMGF!L:L,"<="&K46) -> 15 | BW46: =SUMIFS(Training_BMGF!P:P,Training_BMGF!C:C,Monthly_Report!F46,Training_BMGF!D:D,Monthly_Report!BW$1,Training_BMGF!L:L,"<="&K46) -> 0 | BX46: =COUNTIFS('Service Data'!$E:$E,">=1",'Service Data'!$I:$I,Monthly_Report!$E46,'Service Data'!$J:$J,Monthly_Report!BX$1,'Service Data'!$C:$C,Monthly_Report!$K46) -> 10 | BY46: =COUNTIFS('Service Data'!$E:$E,">=1",'Service Data'!$I:$I,Monthly_Report!$E46,'Service Data'!$J:$J,Monthly_Report!BY$1,'Service Data'!$C:$C,Monthly_Report!$K46) -> 0
A47: 27788 | B47: UP-0002-AGR-002-MC_2017_Nov | C47: BMGF (MCHIP-SUP) | D47: Uttar Pradesh | E47: Agra-MC | F47: UP-0002-AGR-002-MC | G47: Agra | H47: Medical College | I47: 2017 | J47: Nov | K47: 2017-11-01 | L47: 2017-11-25 | M47: 292 | N47: 177 | O47: 165 | P47: 342 | Q47: 292 | R47: 342 | S47: 634 | T47: 6 | U47: 0 | V47: 6 | W47: 0 | X47: 75 | Y47: 1200 | Z47: 5 | AA47: 0 | AB47: 3 | AC47: 9 | AD47: 6 | AE47: 26 | AF47: 41 | AJ47: 4 | AK47: 3 | AL47: 7 | AM47: 6 | AN47: 4 | AO47: 10 | AP47: 10 | AQ47: 7 | AR47: 17 | AS47: 2 | AT47: 0 | AU47: 3 | AV47: 1 | AW47: 4 | AX47: 0 | AY47: 1 | AZ47: 0 | BA47: 2 | BB47: 1 | BC47: 3 | BD47: 0 | BE47: 3 | BF47: 0 | BG47: 5 | BH47: 7 | BI47: 0 | BJ47: 2017-11-28T11:53:07 | BL47: 2 | BM47: =IF(B47="","",SUMIFS(Provider_Status!$D:$D,Provider_Status!$B:$B,Monthly_Report!$B47,Provider_Status!$C:$C,Monthly_Report!BM$1)) -> 17 | BN47: =IF(B47="","",SUMIFS(Provider_Status!$D:$D,Provider_Status!$B:$B,Monthly_Report!$B47,Provider_Status!$C:$C,Monthly_Report!BN$1)) -> 0 | BO47: =IF(B47="","",SUMIFS(Provider_Status!$E:$E,Provider_Status!$B:$B,Monthly_Report!$B47,Provider_Status!$C:$C,Monthly_Report!BO$1)) -> 17 | BP47: =IF(B47="","",SUMIFS(Provider_Status!$E:$E,Provider_Status!$B:$B,Monthly_Report!$B47,Provider_Status!$C:$C,Monthly_Report!BP$1)) -> 0 | BQ47: =IF(F47="","",SUMIFS(Training_BMGF!P:P,Training_BMGF!C:C,Monthly_Report!F47,Training_BMGF!L:L,Monthly_Report!K47)) -> 0 | BR47: =VLOOKUP(G47,'Facility List'!Q:R,2,FALSE) -> Agra | BT47: 1 | BU47: 1 | BV47: =SUMIFS(Training_BMGF!P:P,Training_BMGF!C:C,Monthly_Report!F47,Training_BMGF!D:D,Monthly_Report!BV$1,Training_BMGF!L:L,"<="&K47) -> 15 | BW47: =SUMIFS(Training_BMGF!P:P,Training_BMGF!C:C,Monthly_Report!F47,Training_BMGF!D:D,Monthly_Report!BW$1,Training_BMGF!L:L,"<="&K47) -> 0 | BX47: =COUNTIFS('Service Data'!$E:$E,">=1",'Service Data'!$I:$I,Monthly_Report!$E47,'Service Data'!$J:$J,Monthly_Report!BX$1,'Service Data'!$C:$C,Monthly_Report!$K47) -> 12 | BY47: =COUNTIFS('Service Data'!$E:$E,">=1",'Service Data'!$I:$I,Monthly_Report!$E47,'Service Data'!$J:$J,Monthly_Report!BY$1,'Service Data'!$C:$C,Monthly_Report!$K47) -> 0
A48: 27298 | B48: UP-0002-AGR-002-MC_2017_Oct | C48: BMGF (MCHIP-SUP) | D48: Uttar Pradesh | E48: Agra-MC | F48: UP-0002-AGR-002-MC | G48: Agra | H48: Medical College | I48: 2017 | J48: Oct | K48: 2017-10-01 | L48: 2017-10-31 | M48: 190 | N48: 149 | O48: 139 | P48: 288 | Q48: 190 | R48: 285 | S48: 475 | T48: 5 | U48: 4 | V48: 9 | W48: 0 | X48: 75 | Y48: 1050 | Z48: 4 | AA48: 0 | AB48: 3 | AC48: 3 | AD48: 1 | AE48: 20 | AF48: 24 | AJ48: 2 | AK48: 3 | AL48: 5 | AM48: 3 | AN48: 4 | AO48: 7 | AP48: 5 | AQ48: 7 | AR48: 12 | AS48: 1 | AT48: 0 | AU48: 1 | AV48: 0 | AW48: 3 | AX48: 0 | AY48: 1 | AZ48: 0 | BA48: 2 | BB48: 0 | BC48: 4 | BD48: 0 | BE48: 2 | BF48: 0 | BG48: 3 | BH48: 7 | BI48: 0 | BJ48: 2017-11-02T09:35:51 | BL48: 0 | BM48: =IF(B48="","",SUMIFS(Provider_Status!$D:$D,Provider_Status!$B:$B,Monthly_Report!$B48,Provider_Status!$C:$C,Monthly_Report!BM$1)) -> 17 | BN48: =IF(B48="","",SUMIFS(Provider_Status!$D:$D,Provider_Status!$B:$B,Monthly_Report!$B48,Provider_Status!$C:$C,Monthly_Report!BN$1)) -> 0 | BO48: =IF(B48="","",SUMIFS(Provider_Status!$E:$E,Provider_Status!$B:$B,Monthly_Report!$B48,Provider_Status!$C:$C,Monthly_Report!BO$1)) -> 17 | BP48: =IF(B48="","",SUMIFS(Provider_Status!$E:$E,Provider_Status!$B:$B,Monthly_Report!$B48,Provider_Status!$C:$C,Monthly_Report!BP$1)) -> 0 | BQ48: =IF(F48="","",SUMIFS(Training_BMGF!P:P,Training_BMGF!C:C,Monthly_Report!F48,Training_BMGF!L:L,Monthly_Report!K48)) -> 0 | BR48: =VLOOKUP(G48,'Facility List'!Q:R,2,FALSE) -> Agra | BT48: 1 | BU48: 1 | BV48: =SUMIFS(Training_BMGF!P:P,Training_BMGF!C:C,Monthly_Report!F48,Training_BMGF!D:D,Monthly_Report!BV$1,Training_BMGF!L:L,"<="&K48) -> 15 | BW48: =SUMIFS(Training_BMGF!P:P,Training_BMGF!C:C,Monthly_Report!F48,Training_BMGF!D:D,Monthly_Report!BW$1,Training_BMGF!L:L,"<="&K48) -> 0 | BX48: =COUNTIFS('Service Data'!$E:$E,">=1",'Service Data'!$I:$I,Monthly_Report!$E48,'Service Data'!$J:$J,Monthly_Report!BX$1,'Service Data'!$C:$C,Monthly_Report!$K48) -> 13 | BY48: =COUNTIFS('Service Data'!$E:$E,">=1",'Service Data'!$I:$I,Monthly_Report!$E48,'Service Data'!$J:$J,Monthly_Report!BY$1,'Service Data'!$C:$C,Monthly_Report!$K48) -> 0
A49: 26486 | B49: UP-0002-AGR-002-MC_2017_Sep | C49: BMGF (MCHIP-SUP) | D49: Uttar Pradesh | E49: Agra-MC | F49: UP-0002-AGR-002-MC | G49: Agra | H49: Medical College | I49: 2017 | J49: Sep | K49: 2017-09-01 | L49: 2017-09-26 | M49: 271 | N49: 193 | O49: 186 | P49: 379 | Q49: 271 | R49: 379 | S49: 650 | T49: 6 | U49: 1 | V49: 7 | W49: 0 | X49: 0 | Y49: 900 | Z49: 3 | AA49: 0 | AB49: 2 | AC49: 2 | AD49: 1 | AE49: 19 | AF49: 22 | AJ49: 3 | AK49: 2 | AL49: 5 | AM49: 2 | AN49: 4 | AO49: 6 | AP49: 5 | AQ49: 6 | AR49: 11 | AS49: 3 | AT49: 0 | AU49: 0 | AV49: 0 | AW49: 2 | AX49: 0 | AY49: 1 | AZ49: 0 | BA49: 1 | BB49: 0 | BC49: 4 | BD49: 0 | BE49: 4 | BF49: 0 | BG49: 1 | BH49: 6 | BI49: 0 | BJ49: 2017-09-27T10:36:52 | BL49: 0 | BM49: =IF(B49="","",SUMIFS(Provider_Status!$D:$D,Provider_Status!$B:$B,Monthly_Report!$B49,Provider_Status!$C:$C,Monthly_Report!BM$1)) -> 17 | BN49: =IF(B49="","",SUMIFS(Provider_Status!$D:$D,Provider_Status!$B:$B,Monthly_Report!$B49,Provider_Status!$C:$C,Monthly_Report!BN$1)) -> 0 | BO49: =IF(B49="","",SUMIFS(Provider_Status!$E:$E,Provider_Status!$B:$B,Monthly_Report!$B49,Provider_Status!$C:$C,Monthly_Report!BO$1)) -> 17 | BP49: =IF(B49="","",SUMIFS(Provider_Status!$E:$E,Provider_Status!$B:$B,Monthly_Report!$B49,Provider_Status!$C:$C,Monthly_Report!BP$1)) -> 0 | BQ49: =IF(F49="","",SUMIFS(Training_BMGF!P:P,Training_BMGF!C:C,Monthly_Report!F49,Training_BMGF!L:L,Monthly_Report!K49)) -> 0 | BR49: =VLOOKUP(G49,'Facility List'!Q:R,2,FALSE) -> Agra | BT49: 1 | BU49: 1 | BV49: =SUMIFS(Training_BMGF!P:P,Training_BMGF!C:C,Monthly_Report!F49,Training_BMGF!D:D,Monthly_Report!BV$1,Training_BMGF!L:L,"<="&K49) -> 15 | BW49: =SUMIFS(Training_BMGF!P:P,Training_BMGF!C:C,Monthly_Report!F49,Training_BMGF!D:D,Monthly_Report!BW$1,Training_BMGF!L:L,"<="&K49) -> 0 | BX49: =COUNTIFS('Service Data'!$E:$E,">=1",'Service Data'!$I:$I,Monthly_Report!$E49,'Service Data'!$J:$J,Monthly_Report!BX$1,'Service Data'!$C:$C,Monthly_Report!$K49) -> 11 | BY49: =COUNTIFS('Service Data'!$E:$E,">=1",'Service Data'!$I:$I,Monthly_Report!$E49,'Service Data'!$J:$J,Monthly_Report!BY$1,'Service Data'!$C:$C,Monthly_Report!$K49) -> 0
A50: 16462 | B50: UP-0003-AHB-001-DH_2016_Apr | C50: BMGF (MCHIP-SUP) | D50: Uttar Pradesh | E50: Allahabad_DWH-DH | F50: UP-0003-AHB-001-DH | G50: Allahabad | H50: District Hospital | I50: 2016 | J50: Apr | K50: 2016-04-01 | L50: 2016-04-28 | M50: 333 | N50: 216 | O50: 138 | P50: 354 | Q50: 300 | R50: 350 | S50: 650 | T50: 17 | U50: 19 | V50: 36 | W50: 0 | X50: 336 | Y50: 3250 | Z50: 28 | AA50: 0 | AB50: 0 | AC50: 10 | AD50: 93 | AE50: 27 | AF50: 130 | AJ50: 0 | AK50: 9 | AL50: 9 | AM50: 0 | AN50: 58 | AO50: 58 | AP50: 0 | AQ50: 67 | AR50: 67 | AS50: 0 | AT50: 0 | AU50: 0 | AV50: 0 | AW50: 0 | AX50: 0 | AY50: 5 | AZ50: 0 | BA50: 3 | BB50: 17 | BC50: 42 | BD50: 0 | BE50: 5 | BF50: 0 | BG50: 3 | BH50: 42 | BI50: 0 | BJ50: 2016-04-28T13:55:06 | BL50: 17 | BM50: =IF(B50="","",SUMIFS(Provider_Status!$D:$D,Provider_Status!$B:$B,Monthly_Report!$B50,Provider_Status!$C:$C,Monthly_Report!BM$1)) -> 0 | BN50: =IF(B50="","",SUMIFS(Provider_Status!$D:$D,Provider_Status!$B:$B,Monthly_Report!$B50,Provider_Status!$C:$C,Monthly_Report!BN$1)) -> 0 | BO50: =IF(B50="","",SUMIFS(Provider_Status!$E:$E,Provider_Status!$B:$B,Monthly_Report!$B50,Provider_Status!$C:$C,Monthly_Report!BO$1)) -> 0 | BP50: =IF(B50="","",SUMIFS(Provider_Status!$E:$E,Provider_Status!$B:$B,Monthly_Report!$B50,Provider_Status!$C:$C,Monthly_Report!BP$1)) -> 0 | BQ50: =IF(F50="","",SUMIFS(Training_BMGF!P:P,Training_BMGF!C:C,Monthly_Report!F50,Training_BMGF!L:L,Monthly_Report!K50)) -> 0 | BR50: =VLOOKUP(G50,'Facility List'!Q:R,2,FALSE) -> Allahabad | BT50: 1 | BU50: 1 | BV50: =SUMIFS(Training_BMGF!P:P,Training_BMGF!C:C,Monthly_Report!F50,Training_BMGF!D:D,Monthly_Report!BV$1,Training_BMGF!L:L,"<="&K50) -> 9 | BW50: =SUMIFS(Training_BMGF!P:P,Training_BMGF!C:C,Monthly_Report!F50,Training_BMGF!D:D,Monthly_Report!BW$1,Training_BMGF!L:L,"<="&K50) -> 11 | BX50: =COUNTIFS('Service Data'!$E:$E,">=1",'Service Data'!$I:$I,Monthly_Report!$E50,'Service Data'!$J:$J,Monthly_Report!BX$1,'Service Data'!$C:$C,Monthly_Report!$K50) -> 8 | BY50: =COUNTIFS('Service Data'!$E:$E,">=1",'Service Data'!$I:$I,Monthly_Report!$E50,'Service Data'!$J:$J,Monthly_Report!BY$1,'Service Data'!$C:$C,Monthly_Report!$K50) -> 5
A51: 18513 | B51: UP-0003-AHB-001-DH_2016_Aug | C51: BMGF (MCHIP-SUP) | D51: Uttar Pradesh | E51: Allahabad_DWH-DH | F51: UP-0003-AHB-001-DH | G51: Allahabad | H51: District Hospital | I51: 2016 | J51: Aug | K51: 2016-08-01 | L51: 2016-08-28 | M51: 390 | N51: 274 | O51: 139 | P51: 413 | Q51: 360 | R51: 380 | S51: 740 | T51: 23 | U51: 41 | V51: 64 | W51: 0 | X51: 165 | Y51: 1008 | Z51: 65 | AA51: 0 | AB51: 0 | AC51: 29 | AD51: 62 | AE51: 37 | AF51: 128 | AJ51: 1 | AK51: 16 | AL51: 17 | AM51: 6 | AN51: 40 | AO51: 46 | AP51: 7 | AQ51: 56 | AR51: 63 | AS51: 0 | AT51: 0 | AU51: 0 | AV51: 0 | AW51: 7 | AX51: 0 | AY51: 1 | AZ51: 0 | BA51: 1 | BB51: 2 | BC51: 49 | BD51: 3 | BE51: 1 | BF51: 0 | BG51: 1 | BH51: 56 | BI51: 3 | BJ51: 2016-08-29T15:38:37 | BL51: 2 | BM51: =IF(B51="","",SUMIFS(Provider_Status!$D:$D,Provider_Status!$B:$B,Monthly_Report!$B51,Provider_Status!$C:$C,Monthly_Report!BM$1)) -> 0 | BN51: =IF(B51="","",SUMIFS(Provider_Status!$D:$D,Provider_Status!$B:$B,Monthly_Report!$B51,Provider_Status!$C:$C,Monthly_Report!BN$1)) -> 0 | BO51: =IF(B51="","",SUMIFS(Provider_Status!$E:$E,Provider_Status!$B:$B,Monthly_Report!$B51,Provider_Status!$C:$C,Monthly_Report!BO$1)) -> 0 | BP51: =IF(B51="","",SUMIFS(Provider_Status!$E:$E,Provider_Status!$B:$B,Monthly_Report!$B51,Provider_Status!$C:$C,Monthly_Report!BP$1)) -> 0 | BQ51: =IF(F51="","",SUMIFS(Training_BMGF!P:P,Training_BMGF!C:C,Monthly_Report!F51,Training_BMGF!L:L,Monthly_Report!K51)) -> 1 | BR51: =VLOOKUP(G51,'Facility List'!Q:R,2,FALSE) -> Allahabad | BT51: 1 | BU51: 1 | BV51: =SUMIFS(Training_BMGF!P:P,Training_BMGF!C:C,Monthly_Report!F51,Training_BMGF!D:D,Monthly_Report!BV$1,Training_BMGF!L:L,"<="&K51) -> 11 | BW51: =SUMIFS(Training_BMGF!P:P,Training_BMGF!C:C,Monthly_Report!F51,Training_BMGF!D:D,Monthly_Report!BW$1,Training_BMGF!L:L,"<="&K51) -> 11 | BX51: =COUNTIFS('Service Data'!$E:$E,">=1",'Service Data'!$I:$I,Monthly_Report!$E51,'Service Data'!$J:$J,Monthly_Report!BX$1,'Service Data'!$C:$C,Monthly_Report!$K51) -> 9 | BY51: =COUNTIFS('Service Data'!$E:$E,">=1",'Service Data'!$I:$I,Monthly_Report!$E51,'Service Data'!$J:$J,Monthly_Report!BY$1,'Service Data'!$C:$C,Monthly_Report!$K51) -> 5
A52: 20622 | B52: UP-0003-AHB-001-DH_2016_Dec | C52: BMGF (MCHIP-SUP) | D52: Uttar Pradesh | E52: Allahabad_DWH-DH | F52: UP-0003-AHB-001-DH | G52: Allahabad | H52: District Hospital | I52: 2016 | J52: Dec | K52: 2016-12-01 | L52: 2017-01-03 | M52: 219 | N52: 248 | O52: 154 | P52: 402 | Q52: 209 | R52: 390 | S52: 599 | T52: 24 | U52: 83 | V52: 107 | W52: 0 | X52: 219 | Y52: 3640 | Z52: 23 | AA52: 0 | AB52: 0 | AC52: 60 | AD52: 78 | AE52: 44 | AF52: 182 | AJ52: 0 | AK52: 15 | AL52: 15 | AM52: 1 | AN52: 64 | AO52: 65 | AP52: 1 | AQ52: 79 | AR52: 80 | AS52: 0 | AT52: 0 | AU52: 0 | AV52: 1 | AW52: 0 | AX52: 0 | AY52: 2 | AZ52: 0 | BA52: 2 | BB52: 13 | BC52: 61 | BD52: 1 | BE52: 2 | BF52: 0 | BG52: 2 | BH52: 61 | BI52: 1 | BJ52: 2017-01-06T14:02:59 | BK52: 42814.67201 | BL52: 14 | BM52: =IF(B52="","",SUMIFS(Provider_Status!$D:$D,Provider_Status!$B:$B,Monthly_Report!$B52,Provider_Status!$C:$C,Monthly_Report!BM$1)) -> 12 | BN52: =IF(B52="","",SUMIFS(Provider_Status!$D:$D,Provider_Status!$B:$B,Monthly_Report!$B52,Provider_Status!$C:$C,Monthly_Report!BN$1)) -> 13 | BO52: =IF(B52="","",SUMIFS(Provider_Status!$E:$E,Provider_Status!$B:$B,Monthly_Report!$B52,Provider_Status!$C:$C,Monthly_Report!BO$1)) -> 9 | BP52: =IF(B52="","",SUMIFS(Provider_Status!$E:$E,Provider_Status!$B:$B,Monthly_Report!$B52,Provider_Status!$C:$C,Monthly_Report!BP$1)) -> 7 | BQ52: =IF(F52="","",SUMIFS(Training_BMGF!P:P,Training_BMGF!C:C,Monthly_Report!F52,Training_BMGF!L:L,Monthly_Report!K52)) -> 0 | BR52: =VLOOKUP(G52,'Facility List'!Q:R,2,FALSE) -> Allahabad | BT52: 1 | BU52: 1 | BV52: =SUMIFS(Training_BMGF!P:P,Training_BMGF!C:C,Monthly_Report!F52,Training_BMGF!D:D,Monthly_Report!BV$1,Training_BMGF!L:L,"<="&K52) -> 11 | BW52: =SUMIFS(Training_BMGF!P:P,Training_BMGF!C:C,Monthly_Report!F52,Training_BMGF!D:D,Monthly_Report!BW$1,Training_BMGF!L:L,"<="&K52) -> 12 | BX52: =COUNTIFS('Service Data'!$E:$E,">=1",'Service Data'!$I:$I,Monthly_Report!$E52,'Service Data'!$J:$J,Monthly_Report!BX$1,'Service Data'!$C:$C,Monthly_Report!$K52) -> 10 | BY52: =COUNTIFS('Service Data'!$E:$E,">=1",'Service Data'!$I:$I,Monthly_Report!$E52,'Service Data'!$J:$J,Monthly_Report!BY$1,'Service Data'!$C:$C,Monthly_Report!$K52) -> 5
A53: 15675 | B53: UP-0003-AHB-001-DH_2016_Feb | C53: BMGF (MCHIP-SUP) | D53: Uttar Pradesh | E53: Allahabad_DWH-DH | F53: UP-0003-AHB-001-DH | G53: Allahabad | H53: District Hospital | I53: 2016 | J53: Feb | K53: 2016-02-01 | L53: 2016-03-03 | M53: 264 | N53: 206 | O53: 128 | P53: 334 | Q53: 260 | R53: 310 | S53: 570 | T53: 20 | U53: 119 | V53: 139 | W53: 0 | X53: 207 | Y53: 5020 | Z53: 37 | AA53: 0 | AB53: 0 | AC53: 11 | AD53: 144 | AE53: 33 | AF53: 188 | AJ53: 4 | AK53: 6 | AL53: 10 | AM53: 35 | AN53: 82 | AO53: 117 | AP53: 39 | AQ53: 88 | AR53: 127 | AS53: 1 | AT53: 0 | AU53: 0 | AV53: 7 | AW53: 31 | AX53: 0 | AY53: 1 | AZ53: 0 | BA53: 0 | BB53: 12 | BC53: 75 | BD53: 0 | BE53: 2 | BF53: 0 | BG53: 0 | BH53: 106 | BI53: 0 | BJ53: 2016-03-03T15:00:46 | BL53: 19 | BM53: =IF(B53="","",SUMIFS(Provider_Status!$D:$D,Provider_Status!$B:$B,Monthly_Report!$B53,Provider_Status!$C:$C,Monthly_Report!BM$1)) -> 0 | BN53: =IF(B53="","",SUMIFS(Provider_Status!$D:$D,Provider_Status!$B:$B,Monthly_Report!$B53,Provider_Status!$C:$C,Monthly_Report!BN$1)) -> 0 | BO53: =IF(B53="","",SUMIFS(Provider_Status!$E:$E,Provider_Status!$B:$B,Monthly_Report!$B53,Provider_Status!$C:$C,Monthly_Report!BO$1)) -> 0 | BP53: =IF(B53="","",SUMIFS(Provider_Status!$E:$E,Provider_Status!$B:$B,Monthly_Report!$B53,Provider_Status!$C:$C,Monthly_Report!BP$1)) -> 0 | BQ53: =IF(F53="","",SUMIFS(Training_BMGF!P:P,Training_BMGF!C:C,Monthly_Report!F53,Training_BMGF!L:L,Monthly_Report!K53)) -> 0 | BR53: =VLOOKUP(G53,'Facility List'!Q:R,2,FALSE) -> Allahabad | BT53: 1 | BU53: 1 | BV53: =SUMIFS(Training_BMGF!P:P,Training_BMGF!C:C,Monthly_Report!F53,Training_BMGF!D:D,Monthly_Report!BV$1,Training_BMGF!L:L,"<="&K53) -> 9 | BW53: =SUMIFS(Training_BMGF!P:P,Training_BMGF!C:C,Monthly_Report!F53,Training_BMGF!D:D,Monthly_Report!BW$1,Training_BMGF!L:L,"<="&K53) -> 11 | BX53: =COUNTIFS('Service Data'!$E:$E,">=1",'Service Data'!$I:$I,Monthly_Report!$E53,'Service Data'!$J:$J,Monthly_Report!BX$1,'Service Data'!$C:$C,Monthly_Report!$K53) -> 8 | BY53: =COUNTIFS('Service Data'!$E:$E,">=1",'Service Data'!$I:$I,Monthly_Report!$E53,'Service Data'!$J:$J,Monthly_Report!BY$1,'Service Data'!$C:$C,Monthly_Report!$K53) -> 7
A54: 15411 | B54: UP-0003-AHB-001-DH_2016_Jan | C54: BMGF (MCHIP-SUP) | D54: Uttar Pradesh | E54: Allahabad_DWH-DH | F54: UP-0003-AHB-001-DH | G54: Allahabad | H54: District Hospital | I54: 2016 | J54: Jan | K54: 2016-01-01 | L54: 2016-02-08 | M54: 207 | N54: 268 | O54: 158 | P54: 426 | Q54: 202 | R54: 400 | S54: 602 | T54: 30 | U54: 114 | V54: 144 | W54: 0 | X54: 422 | Y54: 0 | Z54: 37 | AA54: 0 | AB54: 0 | AC54: 16 | AD54: 154 | AE54: 70 | AF54: 240 | AJ54: 3 | AK54: 15 | AL54: 18 | AM54: 12 | AN54: 88 | AO54: 100 | AP54: 15 | AQ54: 103 | AR54: 118 | AS54: 0 | AT54: 1 | AU54: 0 | AV54: 4 | AW54: 10 | AX54: 0 | AY54: 3 | AZ54: 2 | BA54: 0 | BB54: 21 | BC54: 77 | BD54: 0 | BE54: 3 | BF54: 3 | BG54: 0 | BH54: 87 | BI54: 0 | BJ54: 2016-02-08T16:08:13 | BL54: 25 | BM54: =IF(B54="","",SUMIFS(Provider_Status!$D:$D,Provider_Status!$B:$B,Monthly_Report!$B54,Provider_Status!$C:$C,Monthly_Report!BM$1)) -> 0 | BN54: =IF(B54="","",SUMIFS(Provider_Status!$D:$D,Provider_Status!$B:$B,Monthly_Report!$B54,Provider_Status!$C:$C,Monthly_Report!BN$1)) -> 0 | BO54: =IF(B54="","",SUMIFS(Provider_Status!$E:$E,Provider_Status!$B:$B,Monthly_Report!$B54,Provider_Status!$C:$C,Monthly_Report!BO$1)) -> 0 | BP54: =IF(B54="","",SUMIFS(Provider_Status!$E:$E,Provider_Status!$B:$B,Monthly_Report!$B54,Provider_Status!$C:$C,Monthly_Report!BP$1)) -> 0 | BQ54: =IF(F54="","",SUMIFS(Training_BMGF!P:P,Training_BMGF!C:C,Monthly_Report!F54,Training_BMGF!L:L,Monthly_Report!K54)) -> 0 | BR54: =VLOOKUP(G54,'Facility List'!Q:R,2,FALSE) -> Allahabad | BT54: 1 | BU54: 1 | BV54: =SUMIFS(Training_BMGF!P:P,Training_BMGF!C:C,Monthly_Report!F54,Training_BMGF!D:D,Monthly_Report!BV$1,Training_BMGF!L:L,"<="&K54) -> 9 | BW54: =SUMIFS(Training_BMGF!P:P,Training_BMGF!C:C,Monthly_Report!F54,Training_BMGF!D:D,Monthly_Report!BW$1,Training_BMGF!L:L,"<="&K54) -> 11 | BX54: =COUNTIFS('Service Data'!$E:$E,">=1",'Service Data'!$I:$I,Monthly_Report!$E54,'Service Data'!$J:$J,Monthly_Report!BX$1,'Service Data'!$C:$C,Monthly_Report!$K54) -> 8 | BY54: =COUNTIFS('Service Data'!$E:$E,">=1",'Service Data'!$I:$I,Monthly_Report!$E54,'Service Data'!$J:$J,Monthly_Report!BY$1,'Service Data'!$C:$C,Monthly_Report!$K54) -> 5
A55: 18073 | B55: UP-0003-AHB-001-DH_2016_Jul | C55: BMGF (MCHIP-SUP) | D55: Uttar Pradesh | E55: Allahabad_DWH-DH | F55: UP-0003-AHB-001-DH | G55: Allahabad | H55: District Hospital | I55: 2016 | J55: Jul | K55: 2016-07-01 | L55: 2016-07-28 | M55: 275 | N55: 235 | O55: 124 | P55: 359 | Q55: 250 | R55: 320 | S55: 570 | T55: 22 | U55: 22 | V55: 44 | W55: 0 | X55: 579 | Y55: 4640 | Z55: 33 | AA55: 0 | AB55: 0 | AC55: 10 | AD55: 15 | AE55: 16 | AF55: 41 | AJ55: 0 | AK55: 21 | AL55: 21 | AM55: 14 | AN55: 45 | AO55: 59 | AP55: 14 | AQ55: 66 | AR55: 80 | AS55: 0 | AT55: 0 | AU55: 2 | AV55: 8 | AW55: 7 | AX55: 0 | AY55: 1 | AZ55: 0 | BA55: 1 | BB55: 5 | BC55: 50 | BD55: 3 | BE55: 1 | BF55: 0 | BG55: 3 | BH55: 57 | BI55: 3 | BJ55: 2016-07-28T15:19:07 | BL55: 13 | BM55: =IF(B55="","",SUMIFS(Provider_Status!$D:$D,Provider_Status!$B:$B,Monthly_Report!$B55,Provider_Status!$C:$C,Monthly_Report!BM$1)) -> 0 | BN55: =IF(B55="","",SUMIFS(Provider_Status!$D:$D,Provider_Status!$B:$B,Monthly_Report!$B55,Provider_Status!$C:$C,Monthly_Report!BN$1)) -> 0 | BO55: =IF(B55="","",SUMIFS(Provider_Status!$E:$E,Provider_Status!$B:$B,Monthly_Report!$B55,Provider_Status!$C:$C,Monthly_Report!BO$1)) -> 0 | BP55: =IF(B55="","",SUMIFS(Provider_Status!$E:$E,Provider_Status!$B:$B,Monthly_Report!$B55,Provider_Status!$C:$C,Monthly_Report!BP$1)) -> 0 | BQ55: =IF(F55="","",SUMIFS(Training_BMGF!P:P,Training_BMGF!C:C,Monthly_Report!F55,Training_BMGF!L:L,Monthly_Report!K55)) -> 1 | BR55: =VLOOKUP(G55,'Facility List'!Q:R,2,FALSE) -> Allahabad | BT55: 1 | BU55: 1 | BV55: =SUMIFS(Training_BMGF!P:P,Training_BMGF!C:C,Monthly_Report!F55,Training_BMGF!D:D,Monthly_Report!BV$1,Training_BMGF!L:L,"<="&K55) -> 10 | BW55: =SUMIFS(Training_BMGF!P:P,Training_BMGF!C:C,Monthly_Report!F55,Training_BMGF!D:D,Monthly_Report!BW$1,Training_BMGF!L:L,"<="&K55) -> 11 | BX55: =COUNTIFS('Service Data'!$E:$E,">=1",'Service Data'!$I:$I,Monthly_Report!$E55,'Service Data'!$J:$J,Monthly_Report!BX$1,'Service Data'!$C:$C,Monthly_Report!$K55) -> 7 | BY55: =COUNTIFS('Service Data'!$E:$E,">=1",'Service Data'!$I:$I,Monthly_Report!$E55,'Service Data'!$J:$J,Monthly_Report!BY$1,'Service Data'!$C:$C,Monthly_Report!$K55) -> 2
A56: 17632 | B56: UP-0003-AHB-001-DH_2016_Jun | C56: BMGF (MCHIP-SUP) | D56: Uttar Pradesh | E56: Allahabad_DWH-DH | F56: UP-0003-AHB-001-DH | G56: Allahabad | H56: District Hospital | I56: 2016 | J56: Jun | K56: 2016-06-01 | L56: 2016-06-29 | M56: 306 | N56: 223 | O56: 143 | P56: 366 | Q56: 200 | R56: 300 | S56: 500 | T56: 24 | U56: 24 | V56: 48 | W56: 0 | X56: 456 | Y56: 3000 | Z56: 40 | AA56: 0 | AB56: 0 | AC56: 29 | AD56: 90 | AE56: 51 | AF56: 170 | AJ56: 1 | AK56: 40 | AL56: 41 | AM56: 19 | AN56: 63 | AO56: 82 | AP56: 20 | AQ56: 103 | AR56: 123 | AS56: 2 | AT56: 0 | AU56: 0 | AV56: 2 | AW56: 16 | AX56: 0 | AY56: 1 | AZ56: 1 | BA56: 0 | BB56: 15 | BC56: 88 | BD56: 0 | BE56: 3 | BF56: 1 | BG56: 0 | BH56: 104 | BI56: 0 | BJ56: 2016-06-30T10:07:16 | BL56: 17 | BM56: =IF(B56="","",SUMIFS(Provider_Status!$D:$D,Provider_Status!$B:$B,Monthly_Report!$B56,Provider_Status!$C:$C,Monthly_Report!BM$1)) -> 0 | BN56: =IF(B56="","",SUMIFS(Provider_Status!$D:$D,Provider_Status!$B:$B,Monthly_Report!$B56,Provider_Status!$C:$C,Monthly_Report!BN$1)) -> 0 | BO56: =IF(B56="","",SUMIFS(Provider_Status!$E:$E,Provider_Status!$B:$B,Monthly_Report!$B56,Provider_Status!$C:$C,Monthly_Report!BO$1)) -> 0 | BP56: =IF(B56="","",SUMIFS(Provider_Status!$E:$E,Provider_Status!$B:$B,Monthly_Report!$B56,Provider_Status!$C:$C,Monthly_Report!BP$1)) -> 0 | BQ56: =IF(F56="","",SUMIFS(Training_BMGF!P:P,Training_BMGF!C:C,Monthly_Report!F56,Training_BMGF!L:L,Monthly_Report!K56)) -> 0 | BR56: =VLOOKUP(G56,'Facility List'!Q:R,2,FALSE) -> Allahabad | BT56: 1 | BU56: 1 | BV56: =SUMIFS(Training_BMGF!P:P,Training_BMGF!C:C,Monthly_Report!F56,Training_BMGF!D:D,Monthly_Report!BV$1,Training_BMGF!L:L,"<="&K56) -> 9 | BW56: =SUMIFS(Training_BMGF!P:P,Training_BMGF!C:C,Monthly_Report!F56,Training_BMGF!D:D,Monthly_Report!BW$1,Training_BMGF!L:L,"<="&K56) -> 11 | BX56: =COUNTIFS('Service Data'!$E:$E,">=1",'Service Data'!$I:$I,Monthly_Report!$E56,'Service Data'!$J:$J,Monthly_Report!BX$1,'Service Data'!$C:$C,Monthly_Report!$K56) -> 10 | BY56: =COUNTIFS('Service Data'!$E:$E,">=1",'Service Data'!$I:$I,Monthly_Report!$E56,'Service Data'!$J:$J,Monthly_Report!BY$1,'Service Data'!$C:$C,Monthly_Report!$K56) -> 8
A57: 15960 | B57: UP-0003-AHB-001-DH_2016_Mar | C57: BMGF (MCHIP-SUP) | D57: Uttar Pradesh | E57: Allahabad_DWH-DH | F57: UP-0003-AHB-001-DH | G57: Allahabad | H57: District Hospital | I57: 2016 | J57: Mar | K57: 2016-03-01 | L57: 2016-04-06 | M57: 309 | N57: 191 | O57: 114 | P57: 305 | Q57: 260 | R57: 300 | S57: 560 | T57: 27 | U57: 47 | V57: 74 | W57: 0 | X57: 351 | Y57: 5130 | Z57: 44 | AA57: 0 | AB57: 0 | AC57: 32 | AD57: 167 | AE57: 50 | AF57: 249 | AJ57: 0 | AK57: 13 | AL57: 13 | AM57: 0 | AN57: 100 | AO57: 100 | AP57: 0 | AQ57: 113 | AR57: 113 | AS57: 0 | AT57: 0 | AU57: 0 | AV57: 0 | AW57: 0 | AX57: 0 | AY57: 2 | AZ57: 0 | BA57: 0 | BB57: 18 | BC57: 93 | BD57: 0 | BE57: 2 | BF57: 0 | BG57: 0 | BH57: 93 | BI57: 0 | BJ57: 2016-04-07T09:40:50 | BL57: 18 | BM57: =IF(B57="","",SUMIFS(Provider_Status!$D:$D,Provider_Status!$B:$B,Monthly_Report!$B57,Provider_Status!$C:$C,Monthly_Report!BM$1)) -> 0 | BN57: =IF(B57="","",SUMIFS(Provider_Status!$D:$D,Provider_Status!$B:$B,Monthly_Report!$B57,Provider_Status!$C:$C,Monthly_Report!BN$1)) -> 0 | BO57: =IF(B57="","",SUMIFS(Provider_Status!$E:$E,Provider_Status!$B:$B,Monthly_Report!$B57,Provider_Status!$C:$C,Monthly_Report!BO$1)) -> 0 | BP57: =IF(B57="","",SUMIFS(Provider_Status!$E:$E,Provider_Status!$B:$B,Monthly_Report!$B57,Provider_Status!$C:$C,Monthly_Report!BP$1)) -> 0 | BQ57: =IF(F57="","",SUMIFS(Training_BMGF!P:P,Training_BMGF!C:C,Monthly_Report!F57,Training_BMGF!L:L,Monthly_Report!K57)) -> 0 | BR57: =VLOOKUP(G57,'Facility List'!Q:R,2,FALSE) -> Allahabad | BT57: 1 | BU57: 1 | BV57: =SUMIFS(Training_BMGF!P:P,Training_BMGF!C:C,Monthly_Report!F57,Training_BMGF!D:D,Monthly_Report!BV$1,Training_BMGF!L:L,"<="&K57) -> 9 | BW57: =SUMIFS(Training_BMGF!P:P,Training_BMGF!C:C,Monthly_Report!F57,Training_BMGF!D:D,Monthly_Report!BW$1,Training_BMGF!L:L,"<="&K57) -> 11 | BX57: =COUNTIFS('Service Data'!$E:$E,">=1",'Service Data'!$I:$I,Monthly_Report!$E57,'Service Data'!$J:$J,Monthly_Report!BX$1,'Service Data'!$C:$C,Monthly_Report!$K57) -> 8 | BY57: =COUNTIFS('Service Data'!$E:$E,">=1",'Service Data'!$I:$I,Monthly_Report!$E57,'Service Data'!$J:$J,Monthly_Report!BY$1,'Service Data'!$C:$C,Monthly_Report!$K57) -> 8
A58: 16874 | B58: UP-0003-AHB-001-DH_2016_May | C58: BMGF (MCHIP-SUP) | D58: Uttar Pradesh | E58: Allahabad_DWH-DH | F58: UP-0003-AHB-001-DH | G58: Allahabad | H58: District Hospital | I58: 2016 | J58: May | K58: 2016-05-01 | L58: 2016-05-25 | M58: 216 | N58: 166 | O58: 145 | P58: 311 | Q58: 210 | R58: 300 | S58: 510 | T58: 26 | U58: 27 | V58: 53 | W58: 0 | X58: 300 | Y58: 4040 | Z58: 40 | AA58: 0 | AB58: 0 | AC58: 55 | AD58: 75 | AE58: 65 | AF58: 195 | AJ58: 0 | AK58: 14 | AL58: 14 | AM58: 0 | AN58: 93 | AO58: 93 | AP58: 0 | AQ58: 107 | AR58: 107 | AS58: 0 | AT58: 0 | AU58: 0 | AV58: 0 | AW58: 0 | AX58: 0 | AY58: 4 | AZ58: 1 | BA58: 1 | BB58: 25 | BC58: 75 | BD58: 2 | BE58: 4 | BF58: 1 | BG58: 1 | BH58: 75 | BI58: 2 | BJ58: 2016-05-26T11:57:22 | BL58: 25 | BM58: =IF(B58="","",SUMIFS(Provider_Status!$D:$D,Provider_Status!$B:$B,Monthly_Report!$B58,Provider_Status!$C:$C,Monthly_Report!BM$1)) -> 0 | BN58: =IF(B58="","",SUMIFS(Provider_Status!$D:$D,Provider_Status!$B:$B,Monthly_Report!$B58,Provider_Status!$C:$C,Monthly_Report!BN$1)) -> 0 | BO58: =IF(B58="","",SUMIFS(Provider_Status!$E:$E,Provider_Status!$B:$B,Monthly_Report!$B58,Provider_Status!$C:$C,Monthly_Report!BO$1)) -> 0 | BP58: =IF(B58="","",SUMIFS(Provider_Status!$E:$E,Provider_Status!$B:$B,Monthly_Report!$B58,Provider_Status!$C:$C,Monthly_Report!BP$1)) -> 0 | BQ58: =IF(F58="","",SUMIFS(Training_BMGF!P:P,Training_BMGF!C:C,Monthly_Report!F58,Training_BMGF!L:L,Monthly_Report!K58)) -> 0 | BR58: =VLOOKUP(G58,'Facility List'!Q:R,2,FALSE) -> Allahabad | BT58: 1 | BU58: 1 | BV58: =SUMIFS(Training_BMGF!P:P,Training_BMGF!C:C,Monthly_Report!F58,Training_BMGF!D:D,Monthly_Report!BV$1,Training_BMGF!L:L,"<="&K58) -> 9 | BW58: =SUMIFS(Training_BMGF!P:P,Training_BMGF!C:C,Monthly_Report!F58,Training_BMGF!D:D,Monthly_Report!BW$1,Training_BMGF!L:L,"<="&K58) -> 11 | BX58: =COUNTIFS('Service Data'!$E:$E,">=1",'Service Data'!$I:$I,Monthly_Report!$E58,'Service Data'!$J:$J,Monthly_Report!BX$1,'Service Data'!$C:$C,Monthly_Report!$K58) -> 9 | BY58: =COUNTIFS('Service Data'!$E:$E,">=1",'Service Data'!$I:$I,Monthly_Report!$E58,'Service Data'!$J:$J,Monthly_Report!BY$1,'Service Data'!$C:$C,Monthly_Report!$K58) -> 8
A59: 20091 | B59: UP-0003-AHB-001-DH_2016_Nov | C59: BMGF (MCHIP-SUP) | D59: Uttar Pradesh | E59: Allahabad_DWH-DH | F59: UP-0003-AHB-001-DH | G59: Allahabad | H59: District Hospital | I59: 2016 | J59: Nov | K59: 2016-11-01 | L59: 2016-11-30 | M59: 199 | N59: 296 | O59: 132 | P59: 428 | Q59: 200 | R59: 400 | S59: 600 | T59: 23 | U59: 39 | V59: 62 | W59: 0 | X59: 60 | Y59: 2240 | Z59: 25 | AA59: 0 | AB59: 0 | AC59: 5 | AD59: 105 | AE59: 37 | AF59: 147 | AJ59: 0 | AK59: 18 | AL59: 18 | AM59: 0 | AN59: 55 | AO59: 55 | AP59: 0 | AQ59: 73 | AR59: 73 | AS59: 0 | AT59: 0 | AU59: 0 | AV59: 0 | AW59: 0 | AX59: 0 | AY59: 1 | AZ59: 0 | BA59: 0 | BB59: 14 | BC59: 57 | BD59: 1 | BE59: 1 | BF59: 0 | BG59: 0 | BH59: 57 | BI59: 1 | BJ59: 2016-11-30T16:26:51 | BL59: 14 | BM59: =IF(B59="","",SUMIFS(Provider_Status!$D:$D,Provider_Status!$B:$B,Monthly_Report!$B59,Provider_Status!$C:$C,Monthly_Report!BM$1)) -> 0 | BN59: =IF(B59="","",SUMIFS(Provider_Status!$D:$D,Provider_Status!$B:$B,Monthly_Report!$B59,Provider_Status!$C:$C,Monthly_Report!BN$1)) -> 0 | BO59: =IF(B59="","",SUMIFS(Provider_Status!$E:$E,Provider_Status!$B:$B,Monthly_Report!$B59,Provider_Status!$C:$C,Monthly_Report!BO$1)) -> 0 | BP59: =IF(B59="","",SUMIFS(Provider_Status!$E:$E,Provider_Status!$B:$B,Monthly_Report!$B59,Provider_Status!$C:$C,Monthly_Report!BP$1)) -> 0 | BQ59: =IF(F59="","",SUMIFS(Training_BMGF!P:P,Training_BMGF!C:C,Monthly_Report!F59,Training_BMGF!L:L,Monthly_Report!K59)) -> 0 | BR59: =VLOOKUP(G59,'Facility List'!Q:R,2,FALSE) -> Allahabad | BT59: 1 | BU59: 1 | BV59: =SUMIFS(Training_BMGF!P:P,Training_BMGF!C:C,Monthly_Report!F59,Training_BMGF!D:D,Monthly_Report!BV$1,Training_BMGF!L:L,"<="&K59) -> 11 | BW59: =SUMIFS(Training_BMGF!P:P,Training_BMGF!C:C,Monthly_Report!F59,Training_BMGF!D:D,Monthly_Report!BW$1,Training_BMGF!L:L,"<="&K59) -> 12 | BX59: =COUNTIFS('Service Data'!$E:$E,">=1",'Service Data'!$I:$I,Monthly_Report!$E59,'Service Data'!$J:$J,Monthly_Report!BX$1,'Service Data'!$C:$C,Monthly_Report!$K59) -> 11 | BY59: =COUNTIFS('Service Data'!$E:$E,">=1",'Service Data'!$I:$I,Monthly_Report!$E59,'Service Data'!$J:$J,Monthly_Report!BY$1,'Service Data'!$C:$C,Monthly_Report!$K59) -> 5
A60: 19581 | B60: UP-0003-AHB-001-DH_2016_Oct | C60: BMGF (MCHIP-SUP) | D60: Uttar Pradesh | E60: Allahabad_DWH-DH | F60: UP-0003-AHB-001-DH | G60: Allahabad | H60: District Hospital | I60: 2016 | J60: Oct | K60: 2016-10-01 | L60: 2016-11-02 | M60: 205 | N60: 277 | O60: 135 | P60: 412 | Q60: 200 | R60: 302 | S60: 502 | T60: 18 | U60: 28 | V60: 46 | W60: 0 | X60: 342 | Y60: 1278 | Z60: 13 | AA60: 0 | AB60: 0 | AC60: 7 | AD60: 85 | AE60: 42 | AF60: 134 | AJ60: 1 | AK60: 17 | AL60: 18 | AM60: 1 | AN60: 51 | AO60: 52 | AP60: 2 | AQ60: 68 | AR60: 70 | AS60: 2 | AT60: 0 | AU60: 0 | AV60: 0 | AW60: 0 | AX60: 0 | AY60: 0 | AZ60: 0 | BA60: 13 | BB60: 0 | BC60: 55 | BD60: 0 | BE60: 2 | BF60: 0 | BG60: 13 | BH60: 55 | BI60: 0 | BJ60: 2016-11-04T08:57:34 | BL60: 0 | BM60: =IF(B60="","",SUMIFS(Provider_Status!$D:$D,Provider_Status!$B:$B,Monthly_Report!$B60,Provider_Status!$C:$C,Monthly_Report!BM$1)) -> 0 | BN60: =IF(B60="","",SUMIFS(Provider_Status!$D:$D,Provider_Status!$B:$B,Monthly_Report!$B60,Provider_Status!$C:$C,Monthly_Report!BN$1)) -> 0 | BO60: =IF(B60="","",SUMIFS(Provider_Status!$E:$E,Provider_Status!$B:$B,Monthly_Report!$B60,Provider_Status!$C:$C,Monthly_Report!BO$1)) -> 0 | BP60: =IF(B60="","",SUMIFS(Provider_Status!$E:$E,Provider_Status!$B:$B,Monthly_Report!$B60,Provider_Status!$C:$C,Monthly_Report!BP$1)) -> 0 | BQ60: =IF(F60="","",SUMIFS(Training_BMGF!P:P,Training_BMGF!C:C,Monthly_Report!F60,Training_BMGF!L:L,Monthly_Report!K60)) -> 1 | BR60: =VLOOKUP(G60,'Facility List'!Q:R,2,FALSE) -> Allahabad | BT60: 1 | BU60: 1 | BV60: =SUMIFS(Training_BMGF!P:P,Training_BMGF!C:C,Monthly_Report!F60,Training_BMGF!D:D,Monthly_Report!BV$1,Training_BMGF!L:L,"<="&K60) -> 11 | BW60: =SUMIFS(Training_BMGF!P:P,Training_BMGF!C:C,Monthly_Report!F60,Training_BMGF!D:D,Monthly_Report!BW$1,Training_BMGF!L:L,"<="&K60) -> 12 | BX60: =COUNTIFS('Service Data'!$E:$E,">=1",'Service Data'!$I:$I,Monthly_Report!$E60,'Service Data'!$J:$J,Monthly_Report!BX$1,'Service Data'!$C:$C,Monthly_Report!$K60) -> 9 | BY60: =COUNTIFS('Service Data'!$E:$E,">=1",'Service Data'!$I:$I,Monthly_Report!$E60,'Service Data'!$J:$J,Monthly_Report!BY$1,'Service Data'!$C:$C,Monthly_Report!$K60) -> 1
A61: 19263 | B61: UP-0003-AHB-001-DH_2016_Sep | C61: BMGF (MCHIP-SUP) | D61: Uttar Pradesh | E61: Allahabad_DWH-DH | F61: UP-0003-AHB-001-DH | G61: Allahabad | H61: District Hospital | I61: 2016 | J61: Sep | K61: 2016-09-01 | L61: 2016-10-10 | M61: 248 | N61: 297 | O61: 112 | P61: 409 | Q61: 240 | R61: 320 | S61: 560 | T61: 23 | U61: 31 | V61: 54 | W61: 0 | X61: 493 | Y61: 372 | Z61: 33 | AA61: 0 | AB61: 0 | AC61: 20 | AD61: 53 | AE61: 37 | AF61: 110 | AJ61: 1 | AK61: 15 | AL61: 16 | AM61: 3 | AN61: 41 | AO61: 44 | AP61: 4 | AQ61: 56 | AR61: 60 | AS61: 0 | AT61: 0 | AU61: 0 | AV61: 3 | AW61: 1 | AX61: 0 | AY61: 2 | AZ61: 0 | BA61: 0 | BB61: 9 | BC61: 42 | BD61: 1 | BE61: 2 | BF61: 0 | BG61: 0 | BH61: 44 | BI61: 1 | BJ61: 2016-10-12T10:04:26 | BL61: 12 | BM61: =IF(B61="","",SUMIFS(Provider_Status!$D:$D,Provider_Status!$B:$B,Monthly_Report!$B61,Provider_Status!$C:$C,Monthly_Report!BM$1)) -> 0 | BN61: =IF(B61="","",SUMIFS(Provider_Status!$D:$D,Provider_Status!$B:$B,Monthly_Report!$B61,Provider_Status!$C:$C,Monthly_Report!BN$1)) -> 0 | BO61: =IF(B61="","",SUMIFS(Provider_Status!$E:$E,Provider_Status!$B:$B,Monthly_Report!$B61,Provider_Status!$C:$C,Monthly_Report!BO$1)) -> 0 | BP61: =IF(B61="","",SUMIFS(Provider_Status!$E:$E,Provider_Status!$B:$B,Monthly_Report!$B61,Provider_Status!$C:$C,Monthly_Report!BP$1)) -> 0 | BQ61: =IF(F61="","",SUMIFS(Training_BMGF!P:P,Training_BMGF!C:C,Monthly_Report!F61,Training_BMGF!L:L,Monthly_Report!K61)) -> 0 | BR61: =VLOOKUP(G61,'Facility List'!Q:R,2,FALSE) -> Allahabad | BT61: 1 | BU61: 1 | BV61: =SUMIFS(Training_BMGF!P:P,Training_BMGF!C:C,Monthly_Report!F61,Training_BMGF!D:D,Monthly_Report!BV$1,Training_BMGF!L:L,"<="&K61) -> 11 | BW61: =SUMIFS(Training_BMGF!P:P,Training_BMGF!C:C,Monthly_Report!F61,Training_BMGF!D:D,Monthly_Report!BW$1,Training_BMGF!L:L,"<="&K61) -> 11 | BX61: =COUNTIFS('Service Data'!$E:$E,">=1",'Service Data'!$I:$I,Monthly_Report!$E61,'Service Data'!$J:$J,Monthly_Report!BX$1,'Service Data'!$C:$C,Monthly_Report!$K61) -> 10 | BY61: =COUNTIFS('Service Data'!$E:$E,">=1",'Service Data'!$I:$I,Monthly_Report!$E61,'Service Data'!$J:$J,Monthly_Report!BY$1,'Service Data'!$C:$C,Monthly_Report!$K61) -> 3
A62: 23025 | B62: UP-0003-AHB-001-DH_2017_Apr | C62: BMGF (MCHIP-SUP) | D62: Uttar Pradesh | E62: Allahabad_DWH-DH | F62: UP-0003-AHB-001-DH | G62: Allahabad | H62: District Hospital | I62: 2017 | J62: Apr | K62: 2017-04-01 | L62: 2017-04-24 | M62: 264 | N62: 212 | O62: 149 | P62: 361 | Q62: 300 | R62: 356 | S62: 656 | T62: 19 | U62: 37 | V62: 56 | W62: 0 | X62: 330 | Y62: 1960 | Z62: 20 | AA62: 0 | AB62: 0 | AC62: 69 | AD62: 50 | AE62: 39 | AF62: 158 | AJ62: 0 | AK62: 21 | AL62: 21 | AM62: 0 | AN62: 59 | AO62: 59 | AP62: 0 | AQ62: 80 | AR62: 80 | AS62: 0 | AT62: 0 | AU62: 0 | AV62: 0 | AW62: 0 | AX62: 0 | AY62: 0 | AZ62: 0 | BA62: 0 | BB62: 10 | BC62: 70 | BD62: 0 | BE62: 0 | BF62: 0 | BG62: 0 | BH62: 70 | BI62: 0 | BJ62: 2017-05-01T14:12:26 | BL62: 10 | BM62: =IF(B62="","",SUMIFS(Provider_Status!$D:$D,Provider_Status!$B:$B,Monthly_Report!$B62,Provider_Status!$C:$C,Monthly_Report!BM$1)) -> 13 | BN62: =IF(B62="","",SUMIFS(Provider_Status!$D:$D,Provider_Status!$B:$B,Monthly_Report!$B62,Provider_Status!$C:$C,Monthly_Report!BN$1)) -> 13 | BO62: =IF(B62="","",SUMIFS(Provider_Status!$E:$E,Provider_Status!$B:$B,Monthly_Report!$B62,Provider_Status!$C:$C,Monthly_Report!BO$1)) -> 13 | BP62: =IF(B62="","",SUMIFS(Provider_Status!$E:$E,Provider_Status!$B:$B,Monthly_Report!$B62,Provider_Status!$C:$C,Monthly_Report!BP$1)) -> 10 | BQ62: =IF(F62="","",SUMIFS(Training_BMGF!P:P,Training_BMGF!C:C,Monthly_Report!F62,Training_BMGF!L:L,Monthly_Report!K62)) -> 0 | BR62: =VLOOKUP(G62,'Facility List'!Q:R,2,FALSE) -> Allahabad | BT62: 1 | BU62: 1 | BV62: =SUMIFS(Training_BMGF!P:P,Training_BMGF!C:C,Monthly_Report!F62,Training_BMGF!D:D,Monthly_Report!BV$1,Training_BMGF!L:L,"<="&K62) -> 11 | BW62: =SUMIFS(Training_BMGF!P:P,Training_BMGF!C:C,Monthly_Report!F62,Training_BMGF!D:D,Monthly_Report!BW$1,Training_BMGF!L:L,"<="&K62) -> 16 | BX62: =COUNTIFS('Service Data'!$E:$E,">=1",'Service Data'!$I:$I,Monthly_Report!$E62,'Service Data'!$J:$J,Monthly_Report!BX$1,'Service Data'!$C:$C,Monthly_Report!$K62) -> 11 | BY62: =COUNTIFS('Service Data'!$E:$E,">=1",'Service Data'!$I:$I,Monthly_Report!$E62,'Service Data'!$J:$J,Monthly_Report!BY$1,'Service Data'!$C:$C,Monthly_Report!$K62) -> 6
A63: 25957 | B63: UP-0003-AHB-001-DH_2017_Aug | C63: BMGF (MCHIP-SUP) | D63: Uttar Pradesh | E63: Allahabad_DWH-DH | F63: UP-0003-AHB-001-DH | G63: Allahabad | H63: District Hospital | I63: 2017 | J63: Aug | K63: 2017-08-01 | L63: 2017-08-30 | M63: 282 | N63: 367 | O63: 139 | P63: 506 | Q63: 280 | R63: 500 | S63: 780 | T63: 34 | U63: 36 | V63: 70 | W63: 0 | X63: 294 | Y63: 2140 | Z63: 45 | AA63: 0 | AB63: 0 | AC63: 72 | AD63: 99 | AE63: 33 | AF63: 204 | AJ63: 0 | AK63: 24 | AL63: 24 | AM63: 4 | AN63: 60 | AO63: 64 | AP63: 4 | AQ63: 84 | AR63: 88 | AS63: 0 | AT63: 0 | AU63: 0 | AV63: 0 | AW63: 4 | AX63: 0 | AY63: 1 | AZ63: 1 | BA63: 4 | BB63: 18 | BC63: 53 | BD63: 4 | BE63: 1 | BF63: 1 | BG63: 4 | BH63: 57 | BI63: 4 | BJ63: 2017-08-30T14:11:09 | BL63: 18 | BM63: =IF(B63="","",SUMIFS(Provider_Status!$D:$D,Provider_Status!$B:$B,Monthly_Report!$B63,Provider_Status!$C:$C,Monthly_Report!BM$1)) -> 13 | BN63: =IF(B63="","",SUMIFS(Provider_Status!$D:$D,Provider_Status!$B:$B,Monthly_Report!$B63,Provider_Status!$C:$C,Monthly_Report!BN$1)) -> 13 | BO63: =IF(B63="","",SUMIFS(Provider_Status!$E:$E,Provider_Status!$B:$B,Monthly_Report!$B63,Provider_Status!$C:$C,Monthly_Report!BO$1)) -> 10 | BP63: =IF(B63="","",SUMIFS(Provider_Status!$E:$E,Provider_Status!$B:$B,Monthly_Report!$B63,Provider_Status!$C:$C,Monthly_Report!BP$1)) -> 10 | BQ63: =IF(F63="","",SUMIFS(Training_BMGF!P:P,Training_BMGF!C:C,Monthly_Report!F63,Training_BMGF!L:L,Monthly_Report!K63)) -> 0 | BR63: =VLOOKUP(G63,'Facility List'!Q:R,2,FALSE) -> Allahabad | BT63: 1 | BU63: 1 | BV63: =SUMIFS(Training_BMGF!P:P,Training_BMGF!C:C,Monthly_Report!F63,Training_BMGF!D:D,Monthly_Report!BV$1,Training_BMGF!L:L,"<="&K63) -> 11 | BW63: =SUMIFS(Training_BMGF!P:P,Training_BMGF!C:C,Monthly_Report!F63,Training_BMGF!D:D,Monthly_Report!BW$1,Training_BMGF!L:L,"<="&K63) -> 16 | BX63: =COUNTIFS('Service Data'!$E:$E,">=1",'Service Data'!$I:$I,Monthly_Report!$E63,'Service Data'!$J:$J,Monthly_Report!BX$1,'Service Data'!$C:$C,Monthly_Report!$K63) -> 10 | BY63: =COUNTIFS('Service Data'!$E:$E,">=1",'Service Data'!$I:$I,Monthly_Report!$E63,'Service Data'!$J:$J,Monthly_Report!BY$1,'Service Data'!$C:$C,Monthly_Report!$K63) -> 7
A64: 28525 | B64: UP-0003-AHB-001-DH_2017_Dec | C64: BMGF (MCHIP-SUP) | D64: Uttar Pradesh | E64: Allahabad_DWH-DH | F64: UP-0003-AHB-001-DH | G64: Allahabad | H64: District Hospital | I64: 2017 | J64: Dec | K64: 2017-12-01 | L64: 2017-12-27 | M64: 238 | N64: 223 | O64: 129 | P64: 352 | Q64: 202 | R64: 300 | S64: 502 | T64: 21 | U64: 79 | V64: 100 | W64: 0 | X64: 800 | Y64: 4000 | Z64: 20 | AA64: 0 | AB64: 0 | AC64: 42 | AD64: 88 | AE64: 23 | AF64: 153 | AJ64: 0 | AK64: 15 | AL64: 15 | AM64: 0 | AN64: 60 | AO64: 60 | AP64: 0 | AQ64: 75 | AR64: 75 | AS64: 0 | AT64: 0 | AU64: 0 | AV64: 0 | AW64: 0 | AX64: 0 | AY64: 2 | AZ64: 10 | BA64: 10 | BB64: 20 | BC64: 30 | BD64: 3 | BE64: 2 | BF64: 10 | BG64: 10 | BH64: 30 | BI64: 3 | BJ64: 2018-01-03T10:16:06 | BL64: 20 | BM64: =IF(B64="","",SUMIFS(Provider_Status!$D:$D,Provider_Status!$B:$B,Monthly_Report!$B64,Provider_Status!$C:$C,Monthly_Report!BM$1)) -> 0 | BN64: =IF(B64="","",SUMIFS(Provider_Status!$D:$D,Provider_Status!$B:$B,Monthly_Report!$B64,Provider_Status!$C:$C,Monthly_Report!BN$1)) -> 0 | BO64: =IF(B64="","",SUMIFS(Provider_Status!$E:$E,Provider_Status!$B:$B,Monthly_Report!$B64,Provider_Status!$C:$C,Monthly_Report!BO$1)) -> 0 | BP64: =IF(B64="","",SUMIFS(Provider_Status!$E:$E,Provider_Status!$B:$B,Monthly_Report!$B64,Provider_Status!$C:$C,Monthly_Report!BP$1)) -> 0 | BQ64: =IF(F64="","",SUMIFS(Training_BMGF!P:P,Training_BMGF!C:C,Monthly_Report!F64,Training_BMGF!L:L,Monthly_Report!K64)) -> 0 | BR64: =VLOOKUP(G64,'Facility List'!Q:R,2,FALSE) -> Allahabad | BT64: 1 | BU64: 1 | BV64: =SUMIFS(Training_BMGF!P:P,Training_BMGF!C:C,Monthly_Report!F64,Training_BMGF!D:D,Monthly_Report!BV$1,Training_BMGF!L:L,"<="&K64) -> 11 | BW64: =SUMIFS(Training_BMGF!P:P,Training_BMGF!C:C,Monthly_Report!F64,Training_BMGF!D:D,Monthly_Report!BW$1,Training_BMGF!L:L,"<="&K64) -> 19 | BX64: =COUNTIFS('Service Data'!$E:$E,">=1",'Service Data'!$I:$I,Monthly_Report!$E64,'Service Data'!$J:$J,Monthly_Report!BX$1,'Service Data'!$C:$C,Monthly_Report!$K64) -> 10 | BY64: =COUNTIFS('Service Data'!$E:$E,">=1",'Service Data'!$I:$I,Monthly_Report!$E64,'Service Data'!$J:$J,Monthly_Report!BY$1,'Service Data'!$C:$C,Monthly_Report!$K64) -> 2
A65: 21926 | B65: UP-0003-AHB-001-DH_2017_Feb | C65: BMGF (MCHIP-SUP) | D65: Uttar Pradesh | E65: Allahabad_DWH-DH | F65: UP-0003-AHB-001-DH | G65: Allahabad | H65: District Hospital | I65: 2017 | J65: Feb | K65: 2017-02-01 | L65: 2017-03-04 | M65: 362 | N65: 257 | O65: 179 | P65: 436 | Q65: 0 | R65: 0 | S65: 0 | T65: 37 | U65: 144 | V65: 181 | W65: 0 | X65: 423 | Y65: 4882 | Z65: 33 | AA65: 0 | AB65: 0 | AC65: 73 | AD65: 126 | AE65: 69 | AF65: 268 | AJ65: 0 | AK65: 19 | AL65: 19 | AM65: 11 | AN65: 89 | AO65: 100 | AP65: 11 | AQ65: 108 | AR65: 119 | AS65: 0 | AT65: 0 | AU65: 0 | AV65: 5 | AW65: 6 | AX65: 0 | AY65: 2 | AZ65: 0 | BA65: 0 | BB65: 10 | BC65: 96 | BD65: 0 | BE65: 2 | BF65: 0 | BG65: 0 | BH65: 102 | BI65: 0 | BJ65: 2017-03-08T09:35:18 | BL65: 15 | BM65: =IF(B65="","",SUMIFS(Provider_Status!$D:$D,Provider_Status!$B:$B,Monthly_Report!$B65,Provider_Status!$C:$C,Monthly_Report!BM$1)) -> 13 | BN65: =IF(B65="","",SUMIFS(Provider_Status!$D:$D,Provider_Status!$B:$B,Monthly_Report!$B65,Provider_Status!$C:$C,Monthly_Report!BN$1)) -> 13 | BO65: =IF(B65="","",SUMIFS(Provider_Status!$E:$E,Provider_Status!$B:$B,Monthly_Report!$B65,Provider_Status!$C:$C,Monthly_Report!BO$1)) -> 13 | BP65: =IF(B65="","",SUMIFS(Provider_Status!$E:$E,Provider_Status!$B:$B,Monthly_Report!$B65,Provider_Status!$C:$C,Monthly_Report!BP$1)) -> 8 | BQ65: =IF(F65="","",SUMIFS(Training_BMGF!P:P,Training_BMGF!C:C,Monthly_Report!F65,Training_BMGF!L:L,Monthly_Report!K65)) -> 3 | BR65: =VLOOKUP(G65,'Facility List'!Q:R,2,FALSE) -> Allahabad | BT65: 1 | BU65: 1 | BV65: =SUMIFS(Training_BMGF!P:P,Training_BMGF!C:C,Monthly_Report!F65,Training_BMGF!D:D,Monthly_Report!BV$1,Training_BMGF!L:L,"<="&K65) -> 11 | BW65: =SUMIFS(Training_BMGF!P:P,Training_BMGF!C:C,Monthly_Report!F65,Training_BMGF!D:D,Monthly_Report!BW$1,Training_BMGF!L:L,"<="&K65) -> 16 | BX65: =COUNTIFS('Service Data'!$E:$E,">=1",'Service Data'!$I:$I,Monthly_Report!$E65,'Service Data'!$J:$J,Monthly_Report!BX$1,'Service Data'!$C:$C,Monthly_Report!$K65) -> 11 | BY65: =COUNTIFS('Service Data'!$E:$E,">=1",'Service Data'!$I:$I,Monthly_Report!$E65,'Service Data'!$J:$J,Monthly_Report!BY$1,'Service Data'!$C:$C,Monthly_Report!$K65) -> 5
A66: 21247 | B66: UP-0003-AHB-001-DH_2017_Jan | C66: BMGF (MCHIP-SUP) | D66: Uttar Pradesh | E66: Allahabad_DWH-DH | F66: UP-0003-AHB-001-DH | G66: Allahabad | H66: District Hospital | I66: 2017 | J66: Jan | K66: 2017-01-01 | L66: 2017-01-31 | M66: 288 | N66: 267 | O66: 197 | P66: 464 | Q66: 260 | R66: 442 | S66: 702 | T66: 35 | U66: 97 | V66: 132 | W66: 0 | X66: 452 | Y66: 4882 | Z66: 30 | AA66: 0 | AB66: 0 | AC66: 44 | AD66: 95 | AE66: 70 | AF66: 209 | AJ66: 0 | AK66: 32 | AL66: 32 | AM66: 0 | AN66: 70 | AO66: 70 | AP66: 0 | AQ66: 102 | AR66: 102 | AS66: 0 | AT66: 0 | AU66: 0 | AV66: 0 | AW66: 0 | AX66: 0 | AY66: 0 | AZ66: 0 | BA66: 0 | BB66: 20 | BC66: 82 | BD66: 0 | BE66: 0 | BF66: 0 | BG66: 0 | BH66: 82 | BI66: 0 | BJ66: 2017-01-31T16:07:24 | BL66: 20 | BM66: =IF(B66="","",SUMIFS(Provider_Status!$D:$D,Provider_Status!$B:$B,Monthly_Report!$B66,Provider_Status!$C:$C,Monthly_Report!BM$1)) -> 12 | BN66: =IF(B66="","",SUMIFS(Provider_Status!$D:$D,Provider_Status!$B:$B,Monthly_Report!$B66,Provider_Status!$C:$C,Monthly_Report!BN$1)) -> 13 | BO66: =IF(B66="","",SUMIFS(Provider_Status!$E:$E,Provider_Status!$B:$B,Monthly_Report!$B66,Provider_Status!$C:$C,Monthly_Report!BO$1)) -> 12 | BP66: =IF(B66="","",SUMIFS(Provider_Status!$E:$E,Provider_Status!$B:$B,Monthly_Report!$B66,Provider_Status!$C:$C,Monthly_Report!BP$1)) -> 8 | BQ66: =IF(F66="","",SUMIFS(Training_BMGF!P:P,Training_BMGF!C:C,Monthly_Report!F66,Training_BMGF!L:L,Monthly_Report!K66)) -> 1 | BR66: =VLOOKUP(G66,'Facility List'!Q:R,2,FALSE) -> Allahabad | BT66: 1 | BU66: 1 | BV66: =SUMIFS(Training_BMGF!P:P,Training_BMGF!C:C,Monthly_Report!F66,Training_BMGF!D:D,Monthly_Report!BV$1,Training_BMGF!L:L,"<="&K66) -> 11 | BW66: =SUMIFS(Training_BMGF!P:P,Training_BMGF!C:C,Monthly_Report!F66,Training_BMGF!D:D,Monthly_Report!BW$1,Training_BMGF!L:L,"<="&K66) -> 13 | BX66: =COUNTIFS('Service Data'!$E:$E,">=1",'Service Data'!$I:$I,Monthly_Report!$E66,'Service Data'!$J:$J,Monthly_Report!BX$1,'Service Data'!$C:$C,Monthly_Report!$K66) -> 11 | BY66: =COUNTIFS('Service Data'!$E:$E,">=1",'Service Data'!$I:$I,Monthly_Report!$E66,'Service Data'!$J:$J,Monthly_Report!BY$1,'Service Data'!$C:$C,Monthly_Report!$K66) -> 4
A67: 25188 | B67: UP-0003-AHB-001-DH_2017_Jul | C67: BMGF (MCHIP-SUP) | D67: Uttar Pradesh | E67: Allahabad_DWH-DH | F67: UP-0003-AHB-001-DH | G67: Allahabad | H67: District Hospital | I67: 2017 | J67: Jul | K67: 2017-07-01 | L67: 2017-07-28 | M67: 270 | N67: 281 | O67: 131 | P67: 412 | Q67: 240 | R67: 415 | S67: 655 | T67: 27 | U67: 17 | V67: 44 | W67: 0 | X67: 342 | Y67: 4100 | Z67: 37 | AA67: 0 | AB67: 0 | AC67: 37 | AD67: 68 | AE67: 26 | AF67: 131 | AJ67: 0 | AK67: 20 | AL67: 20 | AM67: 0 | AN67: 70 | AO67: 70 | AP67: 0 | AQ67: 90 | AR67: 90 | AS67: 0 | AT67: 0 | AU67: 0 | AV67: 0 | AW67: 0 | AX67: 0 | AY67: 2 | AZ67: 3 | BA67: 2 | BB67: 17 | BC67: 61 | BD67: 3 | BE67: 2 | BF67: 3 | BG67: 2 | BH67: 61 | BI67: 3 | BJ67: 2017-07-28T15:37:20 | BL67: 17 | BM67: =IF(B67="","",SUMIFS(Provider_Status!$D:$D,Provider_Status!$B:$B,Monthly_Report!$B67,Provider_Status!$C:$C,Monthly_Report!BM$1)) -> 13 | BN67: =IF(B67="","",SUMIFS(Provider_Status!$D:$D,Provider_Status!$B:$B,Monthly_Report!$B67,Provider_Status!$C:$C,Monthly_Report!BN$1)) -> 13 | BO67: =IF(B67="","",SUMIFS(Provider_Status!$E:$E,Provider_Status!$B:$B,Monthly_Report!$B67,Provider_Status!$C:$C,Monthly_Report!BO$1)) -> 11 | BP67: =IF(B67="","",SUMIFS(Provider_Status!$E:$E,Provider_Status!$B:$B,Monthly_Report!$B67,Provider_Status!$C:$C,Monthly_Report!BP$1)) -> 9 | BQ67: =IF(F67="","",SUMIFS(Training_BMGF!P:P,Training_BMGF!C:C,Monthly_Report!F67,Training_BMGF!L:L,Monthly_Report!K67)) -> 0 | BR67: =VLOOKUP(G67,'Facility List'!Q:R,2,FALSE) -> Allahabad | BT67: =IF(AF67>0,1,"") -> 1 | BU67: =IF(BL67="","",1) -> 1 | BV67: =SUMIFS(Training_BMGF!P:P,Training_BMGF!C:C,Monthly_Report!F67,Training_BMGF!D:D,Monthly_Report!BV$1,Training_BMGF!L:L,"<="&K67) -> 11 | BW67: =SUMIFS(Training_BMGF!P:P,Training_BMGF!C:C,Monthly_Report!F67,Training_BMGF!D:D,Monthly_Report!BW$1,Training_BMGF!L:L,"<="&K67) -> 16 | BX67: =COUNTIFS('Service Data'!$E:$E,">=1",'Service Data'!$I:$I,Monthly_Report!$E67,'Service Data'!$J:$J,Monthly_Report!BX$1,'Service Data'!$C:$C,Monthly_Report!$K67) -> 11 | BY67: =COUNTIFS('Service Data'!$E:$E,">=1",'Service Data'!$I:$I,Monthly_Report!$E67,'Service Data'!$J:$J,Monthly_Report!BY$1,'Service Data'!$C:$C,Monthly_Report!$K67) -> 6
A68: 24422 | B68: UP-0003-AHB-001-DH_2017_Jun | C68: BMGF (MCHIP-SUP) | D68: Uttar Pradesh | E68: Allahabad_DWH-DH | F68: UP-0003-AHB-001-DH | G68: Allahabad | H68: District Hospital | I68: 2017 | J68: Jun | K68: 2017-06-01 | L68: 2017-06-28 | M68: 430 | N68: 213 | O68: 150 | P68: 363 | Q68: 448 | R68: 360 | S68: 808 | T68: 27 | U68: 36 | V68: 63 | W68: 0 | X68: 50 | Y68: 5170 | Z68: 25 | AA68: 0 | AB68: 0 | AC68: 94 | AD68: 101 | AE68: 47 | AF68: 242 | AJ68: 0 | AK68: 30 | AL68: 30 | AM68: 0 | AN68: 90 | AO68: 90 | AP68: 0 | AQ68: 120 | AR68: 120 | AS68: 0 | AT68: 0 | AU68: 0 | AV68: 0 | AW68: 0 | AX68: 0 | AY68: 1 | AZ68: 10 | BA68: 10 | BB68: 30 | BC68: 65 | BD68: 4 | BE68: 1 | BF68: 10 | BG68: 10 | BH68: 65 | BI68: 4 | BJ68: 2017-06-29T12:09:37 | BL68: =AV68+BB68 -> 30 | BM68: =IF(B68="","",SUMIFS(Provider_Status!$D:$D,Provider_Status!$B:$B,Monthly_Report!$B68,Provider_Status!$C:$C,Monthly_Report!BM$1)) -> 13 | BN68: =IF(B68="","",SUMIFS(Provider_Status!$D:$D,Provider_Status!$B:$B,Monthly_Report!$B68,Provider_Status!$C:$C,Monthly_Report!BN$1)) -> 13 | BO68: =IF(B68="","",SUMIFS(Provider_Status!$E:$E,Provider_Status!$B:$B,Monthly_Report!$B68,Provider_Status!$C:$C,Monthly_Report!BO$1)) -> 11 | BP68: =IF(B68="","",SUMIFS(Provider_Status!$E:$E,Provider_Status!$B:$B,Monthly_Report!$B68,Provider_Status!$C:$C,Monthly_Report!BP$1)) -> 9 | BQ68: =IF(F68="","",SUMIFS(Training_BMGF!P:P,Training_BMGF!C:C,Monthly_Report!F68,Training_BMGF!L:L,Monthly_Report!K68)) -> 0 | BR68: =VLOOKUP(G68,'Facility List'!Q:R,2,FALSE) -> Allahabad | BT68: 1 | BU68: 1 | BV68: =SUMIFS(Training_BMGF!P:P,Training_BMGF!C:C,Monthly_Report!F68,Training_BMGF!D:D,Monthly_Report!BV$1,Training_BMGF!L:L,"<="&K68) -> 11 | BW68: =SUMIFS(Training_BMGF!P:P,Training_BMGF!C:C,Monthly_Report!F68,Training_BMGF!D:D,Monthly_Report!BW$1,Training_BMGF!L:L,"<="&K68) -> 16 | BX68: =COUNTIFS('Service Data'!$E:$E,">=1",'Service Data'!$I:$I,Monthly_Report!$E68,'Service Data'!$J:$J,Monthly_Report!BX$1,'Service Data'!$C:$C,Monthly_Report!$K68) -> 11 | BY68: =COUNTIFS('Service Data'!$E:$E,">=1",'Service Data'!$I:$I,Monthly_Report!$E68,'Service Data'!$J:$J,Monthly_Report!BY$1,'Service Data'!$C:$C,Monthly_Report!$K68) -> 6
A69: 22494 | B69: UP-0003-AHB-001-DH_2017_Mar | C69: BMGF (MCHIP-SUP) | D69: Uttar Pradesh | E69: Allahabad_DWH-DH | F69: UP-0003-AHB-001-DH | G69: Allahabad | H69: District Hospital | I69: 2017 | J69: Mar | K69: 2017-03-01 | L69: 2017-04-09 | M69: 367 | N69: 303 | O69: 155 | P69: 458 | Q69: 365 | R69: 450 | S69: 815 | T69: 41 | U69: 98 | V69: 139 | W69: 0 | X69: 477 | Y69: 2568 | Z69: 39 | AA69: 0 | AB69: 0 | AC69: 37 | AD69: 183 | AE69: 64 | AF69: 284 | AJ69: 0 | AK69: 51 | AL69: 51 | AM69: 0 | AN69: 67 | AO69: 67 | AP69: 0 | AQ69: 118 | AR69: 118 | AS69: 0 | AT69: 0 | AU69: 0 | AV69: 0 | AW69: 0 | AX69: 0 | AY69: 1 | AZ69: 0 | BA69: 2 | BB69: 18 | BC69: 97 | BD69: 0 | BE69: 1 | BF69: 0 | BG69: 2 | BH69: 97 | BI69: 0 | BJ69: 2017-04-14T22:01:23 | BL69: 18 | BM69: =IF(B69="","",SUMIFS(Provider_Status!$D:$D,Provider_Status!$B:$B,Monthly_Report!$B69,Provider_Status!$C:$C,Monthly_Report!BM$1)) -> 13 | BN69: =IF(B69="","",SUMIFS(Provider_Status!$D:$D,Provider_Status!$B:$B,Monthly_Report!$B69,Provider_Status!$C:$C,Monthly_Report!BN$1)) -> 13 | BO69: =IF(B69="","",SUMIFS(Provider_Status!$E:$E,Provider_Status!$B:$B,Monthly_Report!$B69,Provider_Status!$C:$C,Monthly_Report!BO$1)) -> 13 | BP69: =IF(B69="","",SUMIFS(Provider_Status!$E:$E,Provider_Status!$B:$B,Monthly_Report!$B69,Provider_Status!$C:$C,Monthly_Report!BP$1)) -> 11 | BQ69: =IF(F69="","",SUMIFS(Training_BMGF!P:P,Training_BMGF!C:C,Monthly_Report!F69,Training_BMGF!L:L,Monthly_Report!K69)) -> 0 | BR69: =VLOOKUP(G69,'Facility List'!Q:R,2,FALSE) -> Allahabad | BT69: 1 | BU69: 1 | BV69: =SUMIFS(Training_BMGF!P:P,Training_BMGF!C:C,Monthly_Report!F69,Training_BMGF!D:D,Monthly_Report!BV$1,Training_BMGF!L:L,"<="&K69) -> 11 | BW69: =SUMIFS(Training_BMGF!P:P,Training_BMGF!C:C,Monthly_Report!F69,Training_BMGF!D:D,Monthly_Report!BW$1,Training_BMGF!L:L,"<="&K69) -> 16 | BX69: =COUNTIFS('Service Data'!$E:$E,">=1",'Service Data'!$I:$I,Monthly_Report!$E69,'Service Data'!$J:$J,Monthly_Report!BX$1,'Service Data'!$C:$C,Monthly_Report!$K69) -> 11 | BY69: =COUNTIFS('Service Data'!$E:$E,">=1",'Service Data'!$I:$I,Monthly_Report!$E69,'Service Data'!$J:$J,Monthly_Report!BY$1,'Service Data'!$C:$C,Monthly_Report!$K69) -> 8
A70: 23843 | B70: UP-0003-AHB-001-DH_2017_May | C70: BMGF (MCHIP-SUP) | D70: Uttar Pradesh | E70: Allahabad_DWH-DH | F70: UP-0003-AHB-001-DH | G70: Allahabad | H70: District Hospital | I70: 2017 | J70: May | K70: 2017-05-01 | L70: 2017-05-29 | M70: 315 | N70: 208 | O70: 131 | P70: 339 | Q70: 510 | R70: 330 | S70: 840 | T70: 25 | U70: 56 | V70: 81 | W70: 0 | X70: 72 | Y70: 1270 | Z70: 36 | AA70: 0 | AB70: 0 | AC70: 50 | AD70: 134 | AE70: 46 | AF70: 230 | AJ70: 0 | AK70: 33 | AL70: 33 | AM70: 0 | AN70: 55 | AO70: 55 | AP70: 0 | AQ70: 88 | AR70: 88 | AS70: 0 | AT70: 0 | AU70: 0 | AV70: 0 | AW70: 0 | AX70: 0 | AY70: 0 | AZ70: 0 | BA70: 3 | BB70: 12 | BC70: 62 | BD70: 3 | BE70: 0 | BF70: 0 | BG70: 3 | BH70: 62 | BI70: 3 | BJ70: 2017-06-09T10:46:23 | BL70: 12 | BM70: =IF(B70="","",SUMIFS(Provider_Status!$D:$D,Provider_Status!$B:$B,Monthly_Report!$B70,Provider_Status!$C:$C,Monthly_Report!BM$1)) -> 13 | BN70: =IF(B70="","",SUMIFS(Provider_Status!$D:$D,Provider_Status!$B:$B,Monthly_Report!$B70,Provider_Status!$C:$C,Monthly_Report!BN$1)) -> 13 | BO70: =IF(B70="","",SUMIFS(Provider_Status!$E:$E,Provider_Status!$B:$B,Monthly_Report!$B70,Provider_Status!$C:$C,Monthly_Report!BO$1)) -> 11 | BP70: =IF(B70="","",SUMIFS(Provider_Status!$E:$E,Provider_Status!$B:$B,Monthly_Report!$B70,Provider_Status!$C:$C,Monthly_Report!BP$1)) -> 11 | BQ70: =IF(F70="","",SUMIFS(Training_BMGF!P:P,Training_BMGF!C:C,Monthly_Report!F70,Training_BMGF!L:L,Monthly_Report!K70)) -> 0 | BR70: =VLOOKUP(G70,'Facility List'!Q:R,2,FALSE) -> Allahabad | BT70: 1 | BU70: 1 | BV70: =SUMIFS(Training_BMGF!P:P,Training_BMGF!C:C,Monthly_Report!F70,Training_BMGF!D:D,Monthly_Report!BV$1,Training_BMGF!L:L,"<="&K70) -> 11 | BW70: =SUMIFS(Training_BMGF!P:P,Training_BMGF!C:C,Monthly_Report!F70,Training_BMGF!D:D,Monthly_Report!BW$1,Training_BMGF!L:L,"<="&K70) -> 16 | BX70: =COUNTIFS('Service Data'!$E:$E,">=1",'Service Data'!$I:$I,Monthly_Report!$E70,'Service Data'!$J:$J,Monthly_Report!BX$1,'Service Data'!$C:$C,Monthly_Report!$K70) -> 11 | BY70: =COUNTIFS('Service Data'!$E:$E,">=1",'Service Data'!$I:$I,Monthly_Report!$E70,'Service Data'!$J:$J,Monthly_Report!BY$1,'Service Data'!$C:$C,Monthly_Report!$K70) -> 8
A71: 27848 | B71: UP-0003-AHB-001-DH_2017_Nov | C71: BMGF (MCHIP-SUP) | D71: Uttar Pradesh | E71: Allahabad_DWH-DH | F71: UP-0003-AHB-001-DH | G71: Allahabad | H71: District Hospital | I71: 2017 | J71: Nov | K71: 2017-11-01 | L71: 2017-11-27 | M71: 593 | N71: 323 | O71: 182 | P71: 505 | Q71: 275 | R71: 360 | S71: 635 | T71: 40 | U71: 50 | V71: 90 | W71: 0 | X71: 1000 | Y71: 4000 | Z71: 29 | AA71: 0 | AB71: 0 | AC71: 88 | AD71: 98 | AE71: 18 | AF71: 204 | AJ71: 0 | AK71: 10 | AL71: 10 | AM71: 0 | AN71: 72 | AO71: 72 | AP71: 0 | AQ71: 82 | AR71: 82 | AS71: 0 | AT71: 0 | AU71: 0 | AV71: 0 | AW71: 0 | AX71: 0 | AY71: 0 | AZ71: 4 | BA71: 15 | BB71: 9 | BC71: 50 | BD71: 4 | BE71: 0 | BF71: 4 | BG71: 15 | BH71: 50 | BI71: 4 | BJ71: 2017-11-28T15:41:06 | BL71: 9 | BM71: =IF(B71="","",SUMIFS(Provider_Status!$D:$D,Provider_Status!$B:$B,Monthly_Report!$B71,Provider_Status!$C:$C,Monthly_Report!BM$1)) -> 13 | BN71: =IF(B71="","",SUMIFS(Provider_Status!$D:$D,Provider_Status!$B:$B,Monthly_Report!$B71,Provider_Status!$C:$C,Monthly_Report!BN$1)) -> 13 | BO71: =IF(B71="","",SUMIFS(Provider_Status!$E:$E,Provider_Status!$B:$B,Monthly_Report!$B71,Provider_Status!$C:$C,Monthly_Report!BO$1)) -> 11 | BP71: =IF(B71="","",SUMIFS(Provider_Status!$E:$E,Provider_Status!$B:$B,Monthly_Report!$B71,Provider_Status!$C:$C,Monthly_Report!BP$1)) -> 6 | BQ71: =IF(F71="","",SUMIFS(Training_BMGF!P:P,Training_BMGF!C:C,Monthly_Report!F71,Training_BMGF!L:L,Monthly_Report!K71)) -> 0 | BR71: =VLOOKUP(G71,'Facility List'!Q:R,2,FALSE) -> Allahabad | BT71: 1 | BU71: 1 | BV71: =SUMIFS(Training_BMGF!P:P,Training_BMGF!C:C,Monthly_Report!F71,Training_BMGF!D:D,Monthly_Report!BV$1,Training_BMGF!L:L,"<="&K71) -> 11 | BW71: =SUMIFS(Training_BMGF!P:P,Training_BMGF!C:C,Monthly_Report!F71,Training_BMGF!D:D,Monthly_Report!BW$1,Training_BMGF!L:L,"<="&K71) -> 19 | BX71: =COUNTIFS('Service Data'!$E:$E,">=1",'Service Data'!$I:$I,Monthly_Report!$E71,'Service Data'!$J:$J,Monthly_Report!BX$1,'Service Data'!$C:$C,Monthly_Report!$K71) -> 10 | BY71: =COUNTIFS('Service Data'!$E:$E,">=1",'Service Data'!$I:$I,Monthly_Report!$E71,'Service Data'!$J:$J,Monthly_Report!BY$1,'Service Data'!$C:$C,Monthly_Report!$K71) -> 3
A72: 27352 | B72: UP-0003-AHB-001-DH_2017_Oct | C72: BMGF (MCHIP-SUP) | D72: Uttar Pradesh | E72: Allahabad_DWH-DH | F72: UP-0003-AHB-001-DH | G72: Allahabad | H72: District Hospital | I72: 2017 | J72: Oct | K72: 2017-10-01 | L72: 2017-11-01 | M72: 239 | N72: 312 | O72: 154 | P72: 466 | Q72: 220 | R72: 391 | S72: 611 | T72: 26 | U72: 42 | V72: 68 | W72: 0 | X72: 0 | Y72: 400 | Z72: 27 | AA72: 0 | AB72: 0 | AC72: 62 | AD72: 138 | AE72: 7 | AF72: 207 | AJ72: 0 | AK72: 20 | AL72: 20 | AM72: 0 | AN72: 85 | AO72: 85 | AP72: 0 | AQ72: 105 | AR72: 105 | AS72: 0 | AT72: 0 | AU72: 0 | AV72: 0 | AW72: 0 | AX72: 0 | AY72: 0 | AZ72: 2 | BA72: 3 | BB72: 45 | BC72: 50 | BD72: 5 | BE72: 0 | BF72: 2 | BG72: 3 | BH72: 50 | BI72: 5 | BJ72: 2017-11-02T12:38:38 | BL72: 45 | BM72: =IF(B72="","",SUMIFS(Provider_Status!$D:$D,Provider_Status!$B:$B,Monthly_Report!$B72,Provider_Status!$C:$C,Monthly_Report!BM$1)) -> 13 | BN72: =IF(B72="","",SUMIFS(Provider_Status!$D:$D,Provider_Status!$B:$B,Monthly_Report!$B72,Provider_Status!$C:$C,Monthly_Report!BN$1)) -> 13 | BO72: =IF(B72="","",SUMIFS(Provider_Status!$E:$E,Provider_Status!$B:$B,Monthly_Report!$B72,Provider_Status!$C:$C,Monthly_Report!BO$1)) -> 10 | BP72: =IF(B72="","",SUMIFS(Provider_Status!$E:$E,Provider_Status!$B:$B,Monthly_Report!$B72,Provider_Status!$C:$C,Monthly_Report!BP$1)) -> 8 | BQ72: =IF(F72="","",SUMIFS(Training_BMGF!P:P,Training_BMGF!C:C,Monthly_Report!F72,Training_BMGF!L:L,Monthly_Report!K72)) -> 3 | BR72: =VLOOKUP(G72,'Facility List'!Q:R,2,FALSE) -> Allahabad | BT72: 1 | BU72: 1 | BV72: =SUMIFS(Training_BMGF!P:P,Training_BMGF!C:C,Monthly_Report!F72,Training_BMGF!D:D,Monthly_Report!BV$1,Training_BMGF!L:L,"<="&K72) -> 11 | BW72: =SUMIFS(Training_BMGF!P:P,Training_BMGF!C:C,Monthly_Report!F72,Training_BMGF!D:D,Monthly_Report!BW$1,Training_BMGF!L:L,"<="&K72) -> 19 | BX72: =COUNTIFS('Service Data'!$E:$E,">=1",'Service Data'!$I:$I,Monthly_Report!$E72,'Service Data'!$J:$J,Monthly_Report!BX$1,'Service Data'!$C:$C,Monthly_Report!$K72) -> 10 | BY72: =COUNTIFS('Service Data'!$E:$E,">=1",'Service Data'!$I:$I,Monthly_Report!$E72,'Service Data'!$J:$J,Monthly_Report!BY$1,'Service Data'!$C:$C,Monthly_Report!$K72) -> 4
A73: 26557 | B73: UP-0003-AHB-001-DH_2017_Sep | C73: BMGF (MCHIP-SUP) | D73: Uttar Pradesh | E73: Allahabad_DWH-DH | F73: UP-0003-AHB-001-DH | G73: Allahabad | H73: District Hospital | I73: 2017 | J73: Sep | K73: 2017-09-01 | L73: 2017-09-28 | M73: 257 | N73: 386 | O73: 133 | P73: 519 | Q73: 250 | R73: 520 | S73: 770 | T73: 26 | U73: 26 | V73: 52 | W73: 0 | X73: 64 | Y73: 3460 | Z73: 39 | AA73: 0 | AB73: 0 | AC73: 81 | AD73: 111 | AE73: 29 | AF73: 221 | AJ73: 0 | AK73: 33 | AL73: 33 | AM73: 0 | AN73: 80 | AO73: 80 | AP73: 0 | AQ73: 113 | AR73: 113 | AS73: 0 | AT73: 0 | AU73: 0 | AV73: 0 | AW73: 0 | AX73: 0 | AY73: 2 | AZ73: 1 | BA73: 20 | BB73: 20 | BC73: 4 | BD73: 66 | BE73: 2 | BF73: 1 | BG73: 20 | BH73: 4 | BI73: 66 | BJ73: 2017-09-28T15:20:23 | BL73: 20 | BM73: =IF(B73="","",SUMIFS(Provider_Status!$D:$D,Provider_Status!$B:$B,Monthly_Report!$B73,Provider_Status!$C:$C,Monthly_Report!BM$1)) -> 13 | BN73: =IF(B73="","",SUMIFS(Provider_Status!$D:$D,Provider_Status!$B:$B,Monthly_Report!$B73,Provider_Status!$C:$C,Monthly_Report!BN$1)) -> 13 | BO73: =IF(B73="","",SUMIFS(Provider_Status!$E:$E,Provider_Status!$B:$B,Monthly_Report!$B73,Provider_Status!$C:$C,Monthly_Report!BO$1)) -> 10 | BP73: =IF(B73="","",SUMIFS(Provider_Status!$E:$E,Provider_Status!$B:$B,Monthly_Report!$B73,Provider_Status!$C:$C,Monthly_Report!BP$1)) -> 12 | BQ73: =IF(F73="","",SUMIFS(Training_BMGF!P:P,Training_BMGF!C:C,Monthly_Report!F73,Training_BMGF!L:L,Monthly_Report!K73)) -> 0 | BR73: =VLOOKUP(G73,'Facility List'!Q:R,2,FALSE) -> Allahabad | BT73: 1 | BU73: 1 | BV73: =SUMIFS(Training_BMGF!P:P,Training_BMGF!C:C,Monthly_Report!F73,Training_BMGF!D:D,Monthly_Report!BV$1,Training_BMGF!L:L,"<="&K73) -> 11 | BW73: =SUMIFS(Training_BMGF!P:P,Training_BMGF!C:C,Monthly_Report!F73,Training_BMGF!D:D,Monthly_Report!BW$1,Training_BMGF!L:L,"<="&K73) -> 16 | BX73: =COUNTIFS('Service Data'!$E:$E,">=1",'Service Data'!$I:$I,Monthly_Report!$E73,'Service Data'!$J:$J,Monthly_Report!BX$1,'Service Data'!$C:$C,Monthly_Report!$K73) -> 9 | BY73: =COUNTIFS('Service Data'!$E:$E,">=1",'Service Data'!$I:$I,Monthly_Report!$E73,'Service Data'!$J:$J,Monthly_Report!BY$1,'Service Data'!$C:$C,Monthly_Report!$K73) -> 9
A74: 16292 | B74: UP-0004-AZG-001-DH_2016_Apr | C74: BMGF (MCHIP-SUP) | D74: Uttar Pradesh | E74: Azamgarh_DWH-DH | F74: UP-0004-AZG-001-DH | G74: Azamgarh | H74: District Hospital | I74: 2016 | J74: Apr | K74: 2016-04-01 | L74: 2016-04-23 | M74: 533 | N74: 285 | O74: 79 | P74: 364 | Q74: 146 | R74: 98 | S74: 244 | T74: 2 | U74: 51 | V74: 53 | W74: 0 | X74: 150 | Y74: 2000 | Z74: 5 | AA74: 0 | AB74: 0 | AC74: 30 | AD74: 0 | AE74: 0 | AF74: 30 | AJ74: 0 | AK74: 12 | AL74: 12 | AM74: 0 | AN74: 7 | AO74: 7 | AP74: 0 | AQ74: 19 | AR74: 19 | AS74: 0 | AT74: 0 | AU74: 0 | AV74: 0 | AW74: 0 | AX74: 0 | AY74: 0 | AZ74: 0 | BA74: 0 | BB74: 0 | BC74: 19 | BD74: 0 | BE74: 0 | BF74: 0 | BG74: 0 | BH74: 19 | BI74: 0 | BJ74: 2016-04-25T12:33:22 | BL74: 0 | BM74: =IF(B74="","",SUMIFS(Provider_Status!$D:$D,Provider_Status!$B:$B,Monthly_Report!$B74,Provider_Status!$C:$C,Monthly_Report!BM$1)) -> 0 | BN74: =IF(B74="","",SUMIFS(Provider_Status!$D:$D,Provider_Status!$B:$B,Monthly_Report!$B74,Provider_Status!$C:$C,Monthly_Report!BN$1)) -> 0 | BO74: =IF(B74="","",SUMIFS(Provider_Status!$E:$E,Provider_Status!$B:$B,Monthly_Report!$B74,Provider_Status!$C:$C,Monthly_Report!BO$1)) -> 0 | BP74: =IF(B74="","",SUMIFS(Provider_Status!$E:$E,Provider_Status!$B:$B,Monthly_Report!$B74,Provider_Status!$C:$C,Monthly_Report!BP$1)) -> 0 | BQ74: =IF(F74="","",SUMIFS(Training_BMGF!P:P,Training_BMGF!C:C,Monthly_Report!F74,Training_BMGF!L:L,Monthly_Report!K74)) -> 0 | BR74: =VLOOKUP(G74,'Facility List'!Q:R,2,FALSE) -> Azamgarh | BT74: 1 | BU74: 1 | BV74: =SUMIFS(Training_BMGF!P:P,Training_BMGF!C:C,Monthly_Report!F74,Training_BMGF!D:D,Monthly_Report!BV$1,Training_BMGF!L:L,"<="&K74) -> 4 | BW74: =SUMIFS(Training_BMGF!P:P,Training_BMGF!C:C,Monthly_Report!F74,Training_BMGF!D:D,Monthly_Report!BW$1,Training_BMGF!L:L,"<="&K74) -> 11 | BX74: =COUNTIFS('Service Data'!$E:$E,">=1",'Service Data'!$I:$I,Monthly_Report!$E74,'Service Data'!$J:$J,Monthly_Report!BX$1,'Service Data'!$C:$C,Monthly_Report!$K74) -> 0 | BY74: =COUNTIFS('Service Data'!$E:$E,">=1",'Service Data'!$I:$I,Monthly_Report!$E74,'Service Data'!$J:$J,Monthly_Report!BY$1,'Service Data'!$C:$C,Monthly_Report!$K74) -> 5
A75: 18669 | B75: UP-0004-AZG-001-DH_2016_Aug | C75: BMGF (MCHIP-SUP) | D75: Uttar Pradesh | E75: Azamgarh_DWH-DH | F75: UP-0004-AZG-001-DH | G75: Azamgarh | H75: District Hospital | I75: 2016 | J75: Aug | K75: 2016-08-01 | L75: 2016-09-02 | M75: 851 | N75: 512 | O75: 74 | P75: 586 | Q75: 0 | R75: 232 | S75: 232 | T75: 11 | U75: 82 | V75: 93 | W75: 0 | X75: 125 | Y75: 1500 | Z75: 12 | AA75: 0 | AB75: 0 | AC75: 38 | AD75: 0 | AE75: 0 | AF75: 38 | AJ75: 0 | AK75: 0 | AL75: 0 | AM75: 0 | AN75: 0 | AO75: 0 | AP75: 0 | AQ75: 0 | AR75: 0 | AS75: 0 | AT75: 0 | AU75: 0 | AV75: 0 | AW75: 0 | AX75: 0 | AY75: 0 | AZ75: 0 | BA75: 0 | BB75: 0 | BC75: 0 | BD75: 0 | BE75: 0 | BF75: 0 | BG75: 0 | BH75: 0 | BI75: 0 | BJ75: 2016-09-05T12:19:14 | BL75: 0 | BM75: =IF(B75="","",SUMIFS(Provider_Status!$D:$D,Provider_Status!$B:$B,Monthly_Report!$B75,Provider_Status!$C:$C,Monthly_Report!BM$1)) -> 0 | BN75: =IF(B75="","",SUMIFS(Provider_Status!$D:$D,Provider_Status!$B:$B,Monthly_Report!$B75,Provider_Status!$C:$C,Monthly_Report!BN$1)) -> 0 | BO75: =IF(B75="","",SUMIFS(Provider_Status!$E:$E,Provider_Status!$B:$B,Monthly_Report!$B75,Provider_Status!$C:$C,Monthly_Report!BO$1)) -> 0 | BP75: =IF(B75="","",SUMIFS(Provider_Status!$E:$E,Provider_Status!$B:$B,Monthly_Report!$B75,Provider_Status!$C:$C,Monthly_Report!BP$1)) -> 0 | BQ75: =IF(F75="","",SUMIFS(Training_BMGF!P:P,Training_BMGF!C:C,Monthly_Report!F75,Training_BMGF!L:L,Monthly_Report!K75)) -> 0 | BR75: =VLOOKUP(G75,'Facility List'!Q:R,2,FALSE) -> Azamgarh | BT75: 1 | BU75: 1 | BV75: =SUMIFS(Training_BMGF!P:P,Training_BMGF!C:C,Monthly_Report!F75,Training_BMGF!D:D,Monthly_Report!BV$1,Training_BMGF!L:L,"<="&K75) -> 4 | BW75: =SUMIFS(Training_BMGF!P:P,Training_BMGF!C:C,Monthly_Report!F75,Training_BMGF!D:D,Monthly_Report!BW$1,Training_BMGF!L:L,"<="&K75) -> 11 | BX75: =COUNTIFS('Service Data'!$E:$E,">=1",'Service Data'!$I:$I,Monthly_Report!$E75,'Service Data'!$J:$J,Monthly_Report!BX$1,'Service Data'!$C:$C,Monthly_Report!$K75) -> 0 | BY75: =COUNTIFS('Service Data'!$E:$E,">=1",'Service Data'!$I:$I,Monthly_Report!$E75,'Service Data'!$J:$J,Monthly_Report!BY$1,'Service Data'!$C:$C,Monthly_Report!$K75) -> 8
A76: 20711 | B76: UP-0004-AZG-001-DH_2016_Dec | C76: BMGF (MCHIP-SUP) | D76: Uttar Pradesh | E76: Azamgarh_DWH-DH | F76: UP-0004-AZG-001-DH | G76: Azamgarh | H76: District Hospital | I76: 2016 | J76: Dec | K76: 2016-12-01 | L76: 2017-01-08 | M76: 825 | N76: 406 | O76: 122 | P76: 528 | Q76: 180 | R76: 385 | S76: 565 | T76: 12 | U76: 123 | V76: 135 | W76: 0 | X76: 100 | Y76: 1000 | Z76: 10 | AA76: 0 | AB76: 0 | AC76: 82 | AD76: 0 | AE76: 1 | AF76: 83 | AJ76: 0 | AK76: 0 | AL76: 0 | AM76: 52 | AN76: 57 | AO76: 109 | AP76: 52 | AQ76: 57 | AR76: 109 | AS76: 2 | AT76: 0 | AU76: 0 | AV76: 0 | AW76: 50 | AX76: 0 | AY76: 0 | AZ76: 0 | BA76: 0 | BB76: 0 | BC76: 55 | BD76: 2 | BE76: 2 | BF76: 0 | BG76: 0 | BH76: 105 | BI76: 2 | BJ76: 2017-01-09T10:15:04 | BL76: 0 | BM76: =IF(B76="","",SUMIFS(Provider_Status!$D:$D,Provider_Status!$B:$B,Monthly_Report!$B76,Provider_Status!$C:$C,Monthly_Report!BM$1)) -> 4 | BN76: =IF(B76="","",SUMIFS(Provider_Status!$D:$D,Provider_Status!$B:$B,Monthly_Report!$B76,Provider_Status!$C:$C,Monthly_Report!BN$1)) -> 18 | BO76: =IF(B76="","",SUMIFS(Provider_Status!$E:$E,Provider_Status!$B:$B,Monthly_Report!$B76,Provider_Status!$C:$C,Monthly_Report!BO$1)) -> 1 | BP76: =IF(B76="","",SUMIFS(Provider_Status!$E:$E,Provider_Status!$B:$B,Monthly_Report!$B76,Provider_Status!$C:$C,Monthly_Report!BP$1)) -> 13 | BQ76: =IF(F76="","",SUMIFS(Training_BMGF!P:P,Training_BMGF!C:C,Monthly_Report!F76,Training_BMGF!L:L,Monthly_Report!K76)) -> 1 | BR76: =VLOOKUP(G76,'Facility List'!Q:R,2,FALSE) -> Azamgarh | BT76: 1 | BU76: 1 | BV76: =SUMIFS(Training_BMGF!P:P,Training_BMGF!C:C,Monthly_Report!F76,Training_BMGF!D:D,Monthly_Report!BV$1,Training_BMGF!L:L,"<="&K76) -> 4 | BW76: =SUMIFS(Training_BMGF!P:P,Training_BMGF!C:C,Monthly_Report!F76,Training_BMGF!D:D,Monthly_Report!BW$1,Training_BMGF!L:L,"<="&K76) -> 12 | BX76: =COUNTIFS('Service Data'!$E:$E,">=1",'Service Data'!$I:$I,Monthly_Report!$E76,'Service Data'!$J:$J,Monthly_Report!BX$1,'Service Data'!$C:$C,Monthly_Report!$K76) -> 1 | BY76: =COUNTIFS('Service Data'!$E:$E,">=1",'Service Data'!$I:$I,Monthly_Report!$E76,'Service Data'!$J:$J,Monthly_Report!BY$1,'Service Data'!$C:$C,Monthly_Report!$K76) -> 9
A77: 15478 | B77: UP-0004-AZG-001-DH_2016_Feb | C77: BMGF (MCHIP-SUP) | D77: Uttar Pradesh | E77: Azamgarh_DWH-DH | F77: UP-0004-AZG-001-DH | G77: Azamgarh | H77: District Hospital | I77: 2016 | J77: Feb | K77: 2016-02-01 | L77: 2016-02-22 | M77: 762 | N77: 475 | O77: 126 | P77: 601 | Q77: 292 | R77: 124 | S77: 416 | T77: 6 | U77: 250 | V77: 256 | W77: 0 | X77: 0 | Y77: 510 | Z77: 5 | AA77: 0 | AB77: 0 | AC77: 44 | AD77: 0 | AE77: 0 | AF77: 44 | AJ77: 0 | AK77: 27 | AL77: 27 | AM77: 0 | AN77: 6 | AO77: 6 | AP77: 0 | AQ77: 33 | AR77: 33 | AS77: 0 | AT77: 0 | AU77: 0 | AV77: 0 | AW77: 0 | AX77: 0 | AY77: 2 | AZ77: 0 | BA77: 0 | BB77: 0 | BC77: 30 | BD77: 1 | BE77: 2 | BF77: 0 | BG77: 0 | BH77: 30 | BI77: 1 | BJ77: 2016-02-24T12:03:48 | BL77: 0 | BM77: =IF(B77="","",SUMIFS(Provider_Status!$D:$D,Provider_Status!$B:$B,Monthly_Report!$B77,Provider_Status!$C:$C,Monthly_Report!BM$1)) -> 0 | BN77: =IF(B77="","",SUMIFS(Provider_Status!$D:$D,Provider_Status!$B:$B,Monthly_Report!$B77,Provider_Status!$C:$C,Monthly_Report!BN$1)) -> 0 | BO77: =IF(B77="","",SUMIFS(Provider_Status!$E:$E,Provider_Status!$B:$B,Monthly_Report!$B77,Provider_Status!$C:$C,Monthly_Report!BO$1)) -> 0 | BP77: =IF(B77="","",SUMIFS(Provider_Status!$E:$E,Provider_Status!$B:$B,Monthly_Report!$B77,Provider_Status!$C:$C,Monthly_Report!BP$1)) -> 0 | BQ77: =IF(F77="","",SUMIFS(Training_BMGF!P:P,Training_BMGF!C:C,Monthly_Report!F77,Training_BMGF!L:L,Monthly_Report!K77)) -> 0 | BR77: =VLOOKUP(G77,'Facility List'!Q:R,2,FALSE) -> Azamgarh | BT77: 1 | BU77: 1 | BV77: =SUMIFS(Training_BMGF!P:P,Training_BMGF!C:C,Monthly_Report!F77,Training_BMGF!D:D,Monthly_Report!BV$1,Training_BMGF!L:L,"<="&K77) -> 4 | BW77: =SUMIFS(Training_BMGF!P:P,Training_BMGF!C:C,Monthly_Report!F77,Training_BMGF!D:D,Monthly_Report!BW$1,Training_BMGF!L:L,"<="&K77) -> 11 | BX77: =COUNTIFS('Service Data'!$E:$E,">=1",'Service Data'!$I:$I,Monthly_Report!$E77,'Service Data'!$J:$J,Monthly_Report!BX$1,'Service Data'!$C:$C,Monthly_Report!$K77) -> 0 | BY77: =COUNTIFS('Service Data'!$E:$E,">=1",'Service Data'!$I:$I,Monthly_Report!$E77,'Service Data'!$J:$J,Monthly_Report!BY$1,'Service Data'!$C:$C,Monthly_Report!$K77) -> 8
A78: 15101 | B78: UP-0004-AZG-001-DH_2016_Jan | C78: BMGF (MCHIP-SUP) | D78: Uttar Pradesh | E78: Azamgarh_DWH-DH | F78: UP-0004-AZG-001-DH | G78: Azamgarh | H78: District Hospital | I78: 2016 | J78: Jan | K78: 2016-01-01 | L78: 2016-01-21 | M78: 799 | N78: 403 | O78: 126 | P78: 529 | Q78: 245 | R78: 85 | S78: 330 | T78: 9 | U78: 197 | V78: 206 | W78: 0 | X78: 0 | Y78: 0 | Z78: 27 | AA78: 0 | AB78: 0 | AC78: 48 | AD78: 0 | AE78: 1 | AF78: 49 | AJ78: 0 | AK78: 75 | AL78: 75 | AM78: 0 | AN78: 12 | AO78: 12 | AP78: 0 | AQ78: 87 | AR78: 87 | AS78: 0 | AT78: 0 | AU78: 0 | AV78: 0 | AW78: 0 | AX78: 0 | AY78: 5 | AZ78: 0 | BA78: 0 | BB78: 0 | BC78: 81 | BD78: 1 | BE78: 5 | BF78: 0 | BG78: 0 | BH78: 81 | BI78: 1 | BJ78: 2016-01-25T11:13:02 | BL78: 0 | BM78: =IF(B78="","",SUMIFS(Provider_Status!$D:$D,Provider_Status!$B:$B,Monthly_Report!$B78,Provider_Status!$C:$C,Monthly_Report!BM$1)) -> 0 | BN78: =IF(B78="","",SUMIFS(Provider_Status!$D:$D,Provider_Status!$B:$B,Monthly_Report!$B78,Provider_Status!$C:$C,Monthly_Report!BN$1)) -> 0 | BO78: =IF(B78="","",SUMIFS(Provider_Status!$E:$E,Provider_Status!$B:$B,Monthly_Report!$B78,Provider_Status!$C:$C,Monthly_Report!BO$1)) -> 0 | BP78: =IF(B78="","",SUMIFS(Provider_Status!$E:$E,Provider_Status!$B:$B,Monthly_Report!$B78,Provider_Status!$C:$C,Monthly_Report!BP$1)) -> 0 | BQ78: =IF(F78="","",SUMIFS(Training_BMGF!P:P,Training_BMGF!C:C,Monthly_Report!F78,Training_BMGF!L:L,Monthly_Report!K78)) -> 0 | BR78: =VLOOKUP(G78,'Facility List'!Q:R,2,FALSE) -> Azamgarh | BT78: 1 | BU78: 1 | BV78: =SUMIFS(Training_BMGF!P:P,Training_BMGF!C:C,Monthly_Report!F78,Training_BMGF!D:D,Monthly_Report!BV$1,Training_BMGF!L:L,"<="&K78) -> 4 | BW78: =SUMIFS(Training_BMGF!P:P,Training_BMGF!C:C,Monthly_Report!F78,Training_BMGF!D:D,Monthly_Report!BW$1,Training_BMGF!L:L,"<="&K78) -> 11 | BX78: =COUNTIFS('Service Data'!$E:$E,">=1",'Service Data'!$I:$I,Monthly_Report!$E78,'Service Data'!$J:$J,Monthly_Report!BX$1,'Service Data'!$C:$C,Monthly_Report!$K78) -> 1 | BY78: =COUNTIFS('Service Data'!$E:$E,">=1",'Service Data'!$I:$I,Monthly_Report!$E78,'Service Data'!$J:$J,Monthly_Report!BY$1,'Service Data'!$C:$C,Monthly_Report!$K78) -> 7
A79: 18092 | B79: UP-0004-AZG-001-DH_2016_Jul | C79: BMGF (MCHIP-SUP) | D79: Uttar Pradesh | E79: Azamgarh_DWH-DH | F79: UP-0004-AZG-001-DH | G79: Azamgarh | H79: District Hospital | I79: 2016 | J79: Jul | K79: 2016-07-01 | L79: 2016-07-29 | M79: 1120 | N79: 379 | O79: 93 | P79: 472 | Q79: 55 | R79: 40 | S79: 95 | T79: 6 | U79: 60 | V79: 66 | W79: 0 | X79: 150 | Y79: 1580 | Z79: 5 | AA79: 0 | AB79: 0 | AC79: 80 | AD79: 0 | AE79: 0 | AF79: 80 | AJ79: 0 | AK79: 38 | AL79: 38 | AM79: 0 | AN79: 3 | AO79: 3 | AP79: 0 | AQ79: 41 | AR79: 41 | AS79: 0 | AT79: 0 | AU79: 0 | AV79: 0 | AW79: 0 | AX79: 0 | AY79: 0 | AZ79: 0 | BA79: 0 | BB79: 0 | BC79: 41 | BD79: 0 | BE79: 0 | BF79: 0 | BG79: 0 | BH79: 41 | BI79: 0 | BJ79: 2016-07-29T09:28:47 | BL79: 0 | BM79: =IF(B79="","",SUMIFS(Provider_Status!$D:$D,Provider_Status!$B:$B,Monthly_Report!$B79,Provider_Status!$C:$C,Monthly_Report!BM$1)) -> 0 | BN79: =IF(B79="","",SUMIFS(Provider_Status!$D:$D,Provider_Status!$B:$B,Monthly_Report!$B79,Provider_Status!$C:$C,Monthly_Report!BN$1)) -> 0 | BO79: =IF(B79="","",SUMIFS(Provider_Status!$E:$E,Provider_Status!$B:$B,Monthly_Report!$B79,Provider_Status!$C:$C,Monthly_Report!BO$1)) -> 0 | BP79: =IF(B79="","",SUMIFS(Provider_Status!$E:$E,Provider_Status!$B:$B,Monthly_Report!$B79,Provider_Status!$C:$C,Monthly_Report!BP$1)) -> 0 | BQ79: =IF(F79="","",SUMIFS(Training_BMGF!P:P,Training_BMGF!C:C,Monthly_Report!F79,Training_BMGF!L:L,Monthly_Report!K79)) -> 0 | BR79: =VLOOKUP(G79,'Facility List'!Q:R,2,FALSE) -> Azamgarh | BT79: 1 | BU79: 1 | BV79: =SUMIFS(Training_BMGF!P:P,Training_BMGF!C:C,Monthly_Report!F79,Training_BMGF!D:D,Monthly_Report!BV$1,Training_BMGF!L:L,"<="&K79) -> 4 | BW79: =SUMIFS(Training_BMGF!P:P,Training_BMGF!C:C,Monthly_Report!F79,Training_BMGF!D:D,Monthly_Report!BW$1,Training_BMGF!L:L,"<="&K79) -> 11 | BX79: =COUNTIFS('Service Data'!$E:$E,">=1",'Service Data'!$I:$I,Monthly_Report!$E79,'Service Data'!$J:$J,Monthly_Report!BX$1,'Service Data'!$C:$C,Monthly_Report!$K79) -> 0 | BY79: =COUNTIFS('Service Data'!$E:$E,">=1",'Service Data'!$I:$I,Monthly_Report!$E79,'Service Data'!$J:$J,Monthly_Report!BY$1,'Service Data'!$C:$C,Monthly_Report!$K79) -> 9
A80: 17510 | B80: UP-0004-AZG-001-DH_2016_Jun | C80: BMGF (MCHIP-SUP) | D80: Uttar Pradesh | E80: Azamgarh_DWH-DH | F80: UP-0004-AZG-001-DH | G80: Azamgarh | H80: District Hospital | I80: 2016 | J80: Jun | K80: 2016-06-01 | L80: 2016-06-28 | M80: 1167 | N80: 325 | O80: 118 | P80: 443 | Q80: 280 | R80: 123 | S80: 403 | T80: 21 | U80: 116 | V80: 137 | W80: 0 | X80: 100 | Y80: 2000 | Z80: 11 | AA80: 0 | AB80: 0 | AC80: 58 | AD80: 0 | AE80: 0 | AF80: 58 | AJ80: 0 | AK80: 26 | AL80: 26 | AM80: 0 | AN80: 5 | AO80: 5 | AP80: 0 | AQ80: 31 | AR80: 31 | AS80: 0 | AT80: 0 | AU80: 0 | AV80: 0 | AW80: 0 | AX80: 0 | AY80: 0 | AZ80: 0 | BA80: 0 | BB80: 0 | BC80: 31 | BD80: 0 | BE80: 0 | BF80: 0 | BG80: 0 | BH80: 31 | BI80: 0 | BJ80: 2016-06-28T10:27:43 | BL80: 0 | BM80: =IF(B80="","",SUMIFS(Provider_Status!$D:$D,Provider_Status!$B:$B,Monthly_Report!$B80,Provider_Status!$C:$C,Monthly_Report!BM$1)) -> 0 | BN80: =IF(B80="","",SUMIFS(Provider_Status!$D:$D,Provider_Status!$B:$B,Monthly_Report!$B80,Provider_Status!$C:$C,Monthly_Report!BN$1)) -> 0 | BO80: =IF(B80="","",SUMIFS(Provider_Status!$E:$E,Provider_Status!$B:$B,Monthly_Report!$B80,Provider_Status!$C:$C,Monthly_Report!BO$1)) -> 0 | BP80: =IF(B80="","",SUMIFS(Provider_Status!$E:$E,Provider_Status!$B:$B,Monthly_Report!$B80,Provider_Status!$C:$C,Monthly_Report!BP$1)) -> 0 | BQ80: =IF(F80="","",SUMIFS(Training_BMGF!P:P,Training_BMGF!C:C,Monthly_Report!F80,Training_BMGF!L:L,Monthly_Report!K80)) -> 0 | BR80: =VLOOKUP(G80,'Facility List'!Q:R,2,FALSE) -> Azamgarh | BT80: 1 | BU80: 1 | BV80: =SUMIFS(Training_BMGF!P:P,Training_BMGF!C:C,Monthly_Report!F80,Training_BMGF!D:D,Monthly_Report!BV$1,Training_BMGF!L:L,"<="&K80) -> 4 | BW80: =SUMIFS(Training_BMGF!P:P,Training_BMGF!C:C,Monthly_Report!F80,Training_BMGF!D:D,Monthly_Report!BW$1,Training_BMGF!L:L,"<="&K80) -> 11 | BX80: =COUNTIFS('Service Data'!$E:$E,">=1",'Service Data'!$I:$I,Monthly_Report!$E80,'Service Data'!$J:$J,Monthly_Report!BX$1,'Service Data'!$C:$C,Monthly_Report!$K80) -> 0 | BY80: =COUNTIFS('Service Data'!$E:$E,">=1",'Service Data'!$I:$I,Monthly_Report!$E80,'Service Data'!$J:$J,Monthly_Report!BY$1,'Service Data'!$C:$C,Monthly_Report!$K80) -> 7
A81: 15855 | B81: UP-0004-AZG-001-DH_2016_Mar | C81: BMGF (MCHIP-SUP) | D81: Uttar Pradesh | E81: Azamgarh_DWH-DH | F81: UP-0004-AZG-001-DH | G81: Azamgarh | H81: District Hospital | I81: 2016 | J81: Mar | K81: 2016-03-01 | L81: 2016-04-01 | M81: 1167 | N81: 564 | O81: 168 | P81: 732 | Q81: 380 | R81: 228 | S81: 608 | T81: 16 | U81: 233 | V81: 249 | W81: 0 | X81: 200 | Y81: 3000 | Z81: 5 | AA81: 0 | AB81: 0 | AC81: 62 | AD81: 3 | AE81: 0 | AF81: 65 | AJ81: 0 | AK81: 32 | AL81: 32 | AM81: 1 | AN81: 10 | AO81: 11 | AP81: 1 | AQ81: 42 | AR81: 43 | AS81: 0 | AT81: 0 | AU81: 0 | AV81: 0 | AW81: 1 | AX81: 0 | AY81: 2 | AZ81: 0 | BA81: 0 | BB81: 0 | BC81: 40 | BD81: 0 | BE81: 2 | BF81: 0 | BG81: 0 | BH81: 41 | BI81: 0 | BJ81: 2016-04-01T14:48:58 | BL81: 0 | BM81: =IF(B81="","",SUMIFS(Provider_Status!$D:$D,Provider_Status!$B:$B,Monthly_Report!$B81,Provider_Status!$C:$C,Monthly_Report!BM$1)) -> 0 | BN81: =IF(B81="","",SUMIFS(Provider_Status!$D:$D,Provider_Status!$B:$B,Monthly_Report!$B81,Provider_Status!$C:$C,Monthly_Report!BN$1)) -> 0 | BO81: =IF(B81="","",SUMIFS(Provider_Status!$E:$E,Provider_Status!$B:$B,Monthly_Report!$B81,Provider_Status!$C:$C,Monthly_Report!BO$1)) -> 0 | BP81: =IF(B81="","",SUMIFS(Provider_Status!$E:$E,Provider_Status!$B:$B,Monthly_Report!$B81,Provider_Status!$C:$C,Monthly_Report!BP$1)) -> 0 | BQ81: =IF(F81="","",SUMIFS(Training_BMGF!P:P,Training_BMGF!C:C,Monthly_Report!F81,Training_BMGF!L:L,Monthly_Report!K81)) -> 0 | BR81: =VLOOKUP(G81,'Facility List'!Q:R,2,FALSE) -> Azamgarh | BT81: 1 | BU81: 1 | BV81: =SUMIFS(Training_BMGF!P:P,Training_BMGF!C:C,Monthly_Report!F81,Training_BMGF!D:D,Monthly_Report!BV$1,Training_BMGF!L:L,"<="&K81) -> 4 | BW81: =SUMIFS(Training_BMGF!P:P,Training_BMGF!C:C,Monthly_Report!F81,Training_BMGF!D:D,Monthly_Report!BW$1,Training_BMGF!L:L,"<="&K81) -> 11 | BX81: =COUNTIFS('Service Data'!$E:$E,">=1",'Service Data'!$I:$I,Monthly_Report!$E81,'Service Data'!$J:$J,Monthly_Report!BX$1,'Service Data'!$C:$C,Monthly_Report!$K81) -> 0 | BY81: =COUNTIFS('Service Data'!$E:$E,">=1",'Service Data'!$I:$I,Monthly_Report!$E81,'Service Data'!$J:$J,Monthly_Report!BY$1,'Service Data'!$C:$C,Monthly_Report!$K81) -> 7
A82: 16831 | B82: UP-0004-AZG-001-DH_2016_May | C82: BMGF (MCHIP-SUP) | D82: Uttar Pradesh | E82: Azamgarh_DWH-DH | F82: UP-0004-AZG-001-DH | G82: Azamgarh | H82: District Hospital | I82: 2016 | J82: May | K82: 2016-05-01 | L82: 2016-05-24 | M82: 1304 | N82: 337 | O82: 122 | P82: 459 | Q82: 256 | R82: 126 | S82: 382 | T82: 17 | U82: 135 | V82: 152 | W82: 0 | X82: 110 | Y82: 2500 | Z82: 8 | AA82: 0 | AB82: 0 | AC82: 52 | AD82: 0 | AE82: 0 | AF82: 52 | AJ82: 0 | AK82: 33 | AL82: 33 | AM82: 0 | AN82: 3 | AO82: 3 | AP82: 0 | AQ82: 36 | AR82: 36 | AS82: 0 | AT82: 0 | AU82: 0 | AV82: 0 | AW82: 0 | AX82: 0 | AY82: 0 | AZ82: 0 | BA82: 0 | BB82: 0 | BC82: 36 | BD82: 0 | BE82: 0 | BF82: 0 | BG82: 0 | BH82: 36 | BI82: 0 | BJ82: 2016-05-24T17:32:08 | BL82: 0 | BM82: =IF(B82="","",SUMIFS(Provider_Status!$D:$D,Provider_Status!$B:$B,Monthly_Report!$B82,Provider_Status!$C:$C,Monthly_Report!BM$1)) -> 0 | BN82: =IF(B82="","",SUMIFS(Provider_Status!$D:$D,Provider_Status!$B:$B,Monthly_Report!$B82,Provider_Status!$C:$C,Monthly_Report!BN$1)) -> 0 | BO82: =IF(B82="","",SUMIFS(Provider_Status!$E:$E,Provider_Status!$B:$B,Monthly_Report!$B82,Provider_Status!$C:$C,Monthly_Report!BO$1)) -> 0 | BP82: =IF(B82="","",SUMIFS(Provider_Status!$E:$E,Provider_Status!$B:$B,Monthly_Report!$B82,Provider_Status!$C:$C,Monthly_Report!BP$1)) -> 0 | BQ82: =IF(F82="","",SUMIFS(Training_BMGF!P:P,Training_BMGF!C:C,Monthly_Report!F82,Training_BMGF!L:L,Monthly_Report!K82)) -> 0 | BR82: =VLOOKUP(G82,'Facility List'!Q:R,2,FALSE) -> Azamgarh | BT82: 1 | BU82: 1 | BV82: =SUMIFS(Training_BMGF!P:P,Training_BMGF!C:C,Monthly_Report!F82,Training_BMGF!D:D,Monthly_Report!BV$1,Training_BMGF!L:L,"<="&K82) -> 4 | BW82: =SUMIFS(Training_BMGF!P:P,Training_BMGF!C:C,Monthly_Report!F82,Training_BMGF!D:D,Monthly_Report!BW$1,Training_BMGF!L:L,"<="&K82) -> 11 | BX82: =COUNTIFS('Service Data'!$E:$E,">=1",'Service Data'!$I:$I,Monthly_Report!$E82,'Service Data'!$J:$J,Monthly_Report!BX$1,'Service Data'!$C:$C,Monthly_Report!$K82) -> 0 | BY82: =COUNTIFS('Service Data'!$E:$E,">=1",'Service Data'!$I:$I,Monthly_Report!$E82,'Service Data'!$J:$J,Monthly_Report!BY$1,'Service Data'!$C:$C,Monthly_Report!$K82) -> 8
A83: 20137 | B83: UP-0004-AZG-001-DH_2016_Nov | C83: BMGF (MCHIP-SUP) | D83: Uttar Pradesh | E83: Azamgarh_DWH-DH | F83: UP-0004-AZG-001-DH | G83: Azamgarh | H83: District Hospital | I83: 2016 | J83: Nov | K83: 2016-11-01 | L83: 2016-12-01 | M83: 695 | N83: 474 | O83: 111 | P83: 585 | Q83: 105 | R83: 474 | S83: 579 | T83: 11 | U83: 86 | V83: 97 | W83: 0 | X83: 100 | Y83: 600 | Z83: 8 | AA83: 0 | AB83: 0 | AC83: 149 | AD83: 3 | AE83: 0 | AF83: 152 | AJ83: 0 | AK83: 0 | AL83: 0 | AM83: 112 | AN83: 78 | AO83: 190 | AP83: 112 | AQ83: 78 | AR83: 190 | AS83: 0 | AT83: 0 | AU83: 2 | AV83: 3 | AW83: 105 | AX83: 2 | AY83: 0 | AZ83: 0 | BA83: 1 | BB83: 0 | BC83: 77 | BD83: 0 | BE83: 0 | BF83: 0 | BG83: 3 | BH83: 182 | BI83: 2 | BJ83: 2016-12-02T10:07:36 | BL83: 3 | BM83: =IF(B83="","",SUMIFS(Provider_Status!$D:$D,Provider_Status!$B:$B,Monthly_Report!$B83,Provider_Status!$C:$C,Monthly_Report!BM$1)) -> 0 | BN83: =IF(B83="","",SUMIFS(Provider_Status!$D:$D,Provider_Status!$B:$B,Monthly_Report!$B83,Provider_Status!$C:$C,Monthly_Report!BN$1)) -> 0 | BO83: =IF(B83="","",SUMIFS(Provider_Status!$E:$E,Provider_Status!$B:$B,Monthly_Report!$B83,Provider_Status!$C:$C,Monthly_Report!BO$1)) -> 0 | BP83: =IF(B83="","",SUMIFS(Provider_Status!$E:$E,Provider_Status!$B:$B,Monthly_Report!$B83,Provider_Status!$C:$C,Monthly_Report!BP$1)) -> 0 | BQ83: =IF(F83="","",SUMIFS(Training_BMGF!P:P,Training_BMGF!C:C,Monthly_Report!F83,Training_BMGF!L:L,Monthly_Report!K83)) -> 0 | BR83: =VLOOKUP(G83,'Facility List'!Q:R,2,FALSE) -> Azamgarh | BT83: 1 | BU83: 1 | BV83: =SUMIFS(Training_BMGF!P:P,Training_BMGF!C:C,Monthly_Report!F83,Training_BMGF!D:D,Monthly_Report!BV$1,Training_BMGF!L:L,"<="&K83) -> 4 | BW83: =SUMIFS(Training_BMGF!P:P,Training_BMGF!C:C,Monthly_Report!F83,Training_BMGF!D:D,Monthly_Report!BW$1,Training_BMGF!L:L,"<="&K83) -> 11 | BX83: =COUNTIFS('Service Data'!$E:$E,">=1",'Service Data'!$I:$I,Monthly_Report!$E83,'Service Data'!$J:$J,Monthly_Report!BX$1,'Service Data'!$C:$C,Monthly_Report!$K83) -> 0 | BY83: =COUNTIFS('Service Data'!$E:$E,">=1",'Service Data'!$I:$I,Monthly_Report!$E83,'Service Data'!$J:$J,Monthly_Report!BY$1,'Service Data'!$C:$C,Monthly_Report!$K83) -> 9
A84: 19829 | B84: UP-0004-AZG-001-DH_2016_Oct | C84: BMGF (MCHIP-SUP) | D84: Uttar Pradesh | E84: Azamgarh_DWH-DH | F84: UP-0004-AZG-001-DH | G84: Azamgarh | H84: District Hospital | I84: 2016 | J84: Oct | K84: 2016-10-01 | L84: 2016-11-18 | M84: 804 | N84: 508 | O84: 90 | P84: 598 | Q84: 200 | R84: 75 | S84: 275 | T84: 10 | U84: 86 | V84: 96 | W84: 0 | X84: 125 | Y84: 1000 | Z84: 5 | AA84: 0 | AB84: 0 | AC84: 307 | AD84: 4 | AE84: 0 | AF84: 311 | AJ84: 0 | AK84: 0 | AL84: 0 | AM84: 57 | AN84: 42 | AO84: 99 | AP84: 57 | AQ84: 42 | AR84: 99 | AS84: 0 | AT84: 0 | AU84: 0 | AV84: 0 | AW84: 57 | AX84: 0 | AY84: 0 | AZ84: 0 | BA84: 0 | BB84: 0 | BC84: 42 | BD84: 0 | BE84: 0 | BF84: 0 | BG84: 0 | BH84: 99 | BI84: 0 | BJ84: 2016-11-18T11:24:43 | BK84: 42702.42963 | BL84: 0 | BM84: =IF(B84="","",SUMIFS(Provider_Status!$D:$D,Provider_Status!$B:$B,Monthly_Report!$B84,Provider_Status!$C:$C,Monthly_Report!BM$1)) -> 0 | BN84: =IF(B84="","",SUMIFS(Provider_Status!$D:$D,Provider_Status!$B:$B,Monthly_Report!$B84,Provider_Status!$C:$C,Monthly_Report!BN$1)) -> 0 | BO84: =IF(B84="","",SUMIFS(Provider_Status!$E:$E,Provider_Status!$B:$B,Monthly_Report!$B84,Provider_Status!$C:$C,Monthly_Report!BO$1)) -> 0 | BP84: =IF(B84="","",SUMIFS(Provider_Status!$E:$E,Provider_Status!$B:$B,Monthly_Report!$B84,Provider_Status!$C:$C,Monthly_Report!BP$1)) -> 0 | BQ84: =IF(F84="","",SUMIFS(Training_BMGF!P:P,Training_BMGF!C:C,Monthly_Report!F84,Training_BMGF!L:L,Monthly_Report!K84)) -> 0 | BR84: =VLOOKUP(G84,'Facility List'!Q:R,2,FALSE) -> Azamgarh | BT84: 1 | BU84: 1 | BV84: =SUMIFS(Training_BMGF!P:P,Training_BMGF!C:C,Monthly_Report!F84,Training_BMGF!D:D,Monthly_Report!BV$1,Training_BMGF!L:L,"<="&K84) -> 4 | BW84: =SUMIFS(Training_BMGF!P:P,Training_BMGF!C:C,Monthly_Report!F84,Training_BMGF!D:D,Monthly_Report!BW$1,Training_BMGF!L:L,"<="&K84) -> 11 | BX84: =COUNTIFS('Service Data'!$E:$E,">=1",'Service Data'!$I:$I,Monthly_Report!$E84,'Service Data'!$J:$J,Monthly_Report!BX$1,'Service Data'!$C:$C,Monthly_Report!$K84) -> 1 | BY84: =COUNTIFS('Service Data'!$E:$E,">=1",'Service Data'!$I:$I,Monthly_Report!$E84,'Service Data'!$J:$J,Monthly_Report!BY$1,'Service Data'!$C:$C,Monthly_Report!$K84) -> 8
A85: 19028 | B85: UP-0004-AZG-001-DH_2016_Sep | C85: BMGF (MCHIP-SUP) | D85: Uttar Pradesh | E85: Azamgarh_DWH-DH | F85: UP-0004-AZG-001-DH | G85: Azamgarh | H85: District Hospital | I85: 2016 | J85: Sep | K85: 2016-09-01 | L85: 2016-09-29 | M85: 1048 | N85: 537 | O85: 40 | P85: 577 | Q85: 224 | R85: 232 | S85: 456 | T85: 8 | U85: 82 | V85: 90 | W85: 0 | X85: 150 | Y85: 1500 | Z85: 7 | AA85: 0 | AB85: 0 | AC85: 161 | AD85: 0 | AE85: 0 | AF85: 161 | AJ85: 0 | AK85: 0 | AL85: 0 | AM85: 150 | AN85: 0 | AO85: 150 | AP85: 150 | AQ85: 0 | AR85: 150 | AS85: 0 | AT85: 0 | AU85: 4 | AV85: 0 | AW85: 144 | AX85: 2 | AY85: 0 | AZ85: 0 | BA85: 0 | BB85: 0 | BC85: 0 | BD85: 0 | BE85: 0 | BF85: 0 | BG85: 4 | BH85: 144 | BI85: 2 | BJ85: 2016-09-29T10:02:50 | BL85: 0 | BM85: =IF(B85="","",SUMIFS(Provider_Status!$D:$D,Provider_Status!$B:$B,Monthly_Report!$B85,Provider_Status!$C:$C,Monthly_Report!BM$1)) -> 0 | BN85: =IF(B85="","",SUMIFS(Provider_Status!$D:$D,Provider_Status!$B:$B,Monthly_Report!$B85,Provider_Status!$C:$C,Monthly_Report!BN$1)) -> 0 | BO85: =IF(B85="","",SUMIFS(Provider_Status!$E:$E,Provider_Status!$B:$B,Monthly_Report!$B85,Provider_Status!$C:$C,Monthly_Report!BO$1)) -> 0 | BP85: =IF(B85="","",SUMIFS(Provider_Status!$E:$E,Provider_Status!$B:$B,Monthly_Report!$B85,Provider_Status!$C:$C,Monthly_Report!BP$1)) -> 0 | BQ85: =IF(F85="","",SUMIFS(Training_BMGF!P:P,Training_BMGF!C:C,Monthly_Report!F85,Training_BMGF!L:L,Monthly_Report!K85)) -> 0 | BR85: =VLOOKUP(G85,'Facility List'!Q:R,2,FALSE) -> Azamgarh | BT85: 1 | BU85: 1 | BV85: =SUMIFS(Training_BMGF!P:P,Training_BMGF!C:C,Monthly_Report!F85,Training_BMGF!D:D,Monthly_Report!BV$1,Training_BMGF!L:L,"<="&K85) -> 4 | BW85: =SUMIFS(Training_BMGF!P:P,Training_BMGF!C:C,Monthly_Report!F85,Training_BMGF!D:D,Monthly_Report!BW$1,Training_BMGF!L:L,"<="&K85) -> 11 | BX85: =COUNTIFS('Service Data'!$E:$E,">=1",'Service Data'!$I:$I,Monthly_Report!$E85,'Service Data'!$J:$J,Monthly_Report!BX$1,'Service Data'!$C:$C,Monthly_Report!$K85) -> 0 | BY85: =COUNTIFS('Service Data'!$E:$E,">=1",'Service Data'!$I:$I,Monthly_Report!$E85,'Service Data'!$J:$J,Monthly_Report!BY$1,'Service Data'!$C:$C,Monthly_Report!$K85) -> 8
A86: 22952 | B86: UP-0004-AZG-001-DH_2017_Apr | C86: BMGF (MCHIP-SUP) | D86: Uttar Pradesh | E86: Azamgarh_DWH-DH | F86: UP-0004-AZG-001-DH | G86: Azamgarh | H86: District Hospital | I86: 2017 | J86: Apr | K86: 2017-04-01 | L86: 2017-04-22 | M86: 601 | N86: 242 | O86: 63 | P86: 305 | Q86: 0 | R86: 170 | S86: 170 | T86: 5 | U86: 21 | V86: 26 | W86: 0 | X86: 100 | Y86: 0 | Z86: 2 | AA86: 0 | AB86: 0 | AC86: 18 | AD86: 0 | AE86: 0 | AF86: 18 | AJ86: 0 | AK86: 0 | AL86: 0 | AM86: 0 | AN86: 0 | AO86: 0 | AP86: 0 | AQ86: 0 | AR86: 0 | AS86: 0 | AT86: 0 | AU86: 0 | AV86: 0 | AW86: 0 | AX86: 0 | AY86: 0 | AZ86: 0 | BA86: 0 | BB86: 0 | BC86: 0 | BD86: 0 | BE86: 0 | BF86: 0 | BG86: 0 | BH86: 0 | BI86: 0 | BJ86: 2017-04-27T12:23:42 | BL86: 0 | BM86: =IF(B86="","",SUMIFS(Provider_Status!$D:$D,Provider_Status!$B:$B,Monthly_Report!$B86,Provider_Status!$C:$C,Monthly_Report!BM$1)) -> 3 | BN86: =IF(B86="","",SUMIFS(Provider_Status!$D:$D,Provider_Status!$B:$B,Monthly_Report!$B86,Provider_Status!$C:$C,Monthly_Report!BN$1)) -> 18 | BO86: =IF(B86="","",SUMIFS(Provider_Status!$E:$E,Provider_Status!$B:$B,Monthly_Report!$B86,Provider_Status!$C:$C,Monthly_Report!BO$1)) -> 0 | BP86: =IF(B86="","",SUMIFS(Provider_Status!$E:$E,Provider_Status!$B:$B,Monthly_Report!$B86,Provider_Status!$C:$C,Monthly_Report!BP$1)) -> 6 | BQ86: =IF(F86="","",SUMIFS(Training_BMGF!P:P,Training_BMGF!C:C,Monthly_Report!F86,Training_BMGF!L:L,Monthly_Report!K86)) -> 0 | BR86: =VLOOKUP(G86,'Facility List'!Q:R,2,FALSE) -> Azamgarh | BT86: 1 | BU86: 1 | BV86: =SUMIFS(Training_BMGF!P:P,Training_BMGF!C:C,Monthly_Report!F86,Training_BMGF!D:D,Monthly_Report!BV$1,Training_BMGF!L:L,"<="&K86) -> 4 | BW86: =SUMIFS(Training_BMGF!P:P,Training_BMGF!C:C,Monthly_Report!F86,Training_BMGF!D:D,Monthly_Report!BW$1,Training_BMGF!L:L,"<="&K86) -> 13 | BX86: =COUNTIFS('Service Data'!$E:$E,">=1",'Service Data'!$I:$I,Monthly_Report!$E86,'Service Data'!$J:$J,Monthly_Report!BX$1,'Service Data'!$C:$C,Monthly_Report!$K86) -> 0 | BY86: =COUNTIFS('Service Data'!$E:$E,">=1",'Service Data'!$I:$I,Monthly_Report!$E86,'Service Data'!$J:$J,Monthly_Report!BY$1,'Service Data'!$C:$C,Monthly_Report!$K86) -> 5
A87: 25959 | B87: UP-0004-AZG-001-DH_2017_Aug | C87: BMGF (MCHIP-SUP) | D87: Uttar Pradesh | E87: Azamgarh_DWH-DH | F87: UP-0004-AZG-001-DH | G87: Azamgarh | H87: District Hospital | I87: 2017 | J87: Aug | K87: 2017-08-01 | L87: 2017-08-30 | M87: 1090 | N87: 614 | O87: 188 | P87: 802 | Q87: 425 | R87: 330 | S87: 755 | T87: 15 | U87: 101 | V87: 116 | W87: 116 | X87: 0 | Y87: 130 | Z87: 1000 | AA87: 7 | AB87: 0 | AC87: 22 | AD87: 24 | AE87: 0 | AF87: 46 | AJ87: 0 | AK87: 9 | AL87: 9 | AM87: 0 | AN87: 3 | AO87: 3 | AP87: 0 | AQ87: 12 | AR87: 12 | AS87: 0 | AT87: 0 | AU87: 0 | AV87: 0 | AW87: 0 | AX87: 0 | AY87: 3 | AZ87: 0 | BA87: 0 | BB87: 0 | BC87: 9 | BD87: 0 | BE87: 3 | BF87: 0 | BG87: 0 | BH87: 9 | BI87: 0 | BJ87: 2017-08-30T14:19:35 | BL87: 0 | BM87: =IF(B87="","",SUMIFS(Provider_Status!$D:$D,Provider_Status!$B:$B,Monthly_Report!$B87,Provider_Status!$C:$C,Monthly_Report!BM$1)) -> 4 | BN87: =IF(B87="","",SUMIFS(Provider_Status!$D:$D,Provider_Status!$B:$B,Monthly_Report!$B87,Provider_Status!$C:$C,Monthly_Report!BN$1)) -> 18 | BO87: =IF(B87="","",SUMIFS(Provider_Status!$E:$E,Provider_Status!$B:$B,Monthly_Report!$B87,Provider_Status!$C:$C,Monthly_Report!BO$1)) -> 0 | BP87: =IF(B87="","",SUMIFS(Provider_Status!$E:$E,Provider_Status!$B:$B,Monthly_Report!$B87,Provider_Status!$C:$C,Monthly_Report!BP$1)) -> 9 | BQ87: =IF(F87="","",SUMIFS(Training_BMGF!P:P,Training_BMGF!C:C,Monthly_Report!F87,Training_BMGF!L:L,Monthly_Report!K87)) -> 0 | BR87: =VLOOKUP(G87,'Facility List'!Q:R,2,FALSE) -> Azamgarh | BT87: 1 | BU87: 1 | BV87: =SUMIFS(Training_BMGF!P:P,Training_BMGF!C:C,Monthly_Report!F87,Training_BMGF!D:D,Monthly_Report!BV$1,Training_BMGF!L:L,"<="&K87) -> 4 | BW87: =SUMIFS(Training_BMGF!P:P,Training_BMGF!C:C,Monthly_Report!F87,Training_BMGF!D:D,Monthly_Report!BW$1,Training_BMGF!L:L,"<="&K87) -> 13 | BX87: =COUNTIFS('Service Data'!$E:$E,">=1",'Service Data'!$I:$I,Monthly_Report!$E87,'Service Data'!$J:$J,Monthly_Report!BX$1,'Service Data'!$C:$C,Monthly_Report!$K87) -> 0 | BY87: =COUNTIFS('Service Data'!$E:$E,">=1",'Service Data'!$I:$I,Monthly_Report!$E87,'Service Data'!$J:$J,Monthly_Report!BY$1,'Service Data'!$C:$C,Monthly_Report!$K87) -> 8
A88: 28829 | B88: UP-0004-AZG-001-DH_2017_Dec | C88: BMGF (MCHIP-SUP) | D88: Uttar Pradesh | E88: Azamgarh_DWH-DH | F88: UP-0004-AZG-001-DH | G88: Azamgarh | H88: District Hospital | I88: 2017 | J88: Dec | K88: 2017-12-01 | L88: 2018-01-05 | M88: 716 | N88: 464 | O88: 178 | P88: 642 | Q88: 380 | R88: 310 | S88: 690 | T88: 13 | U88: 272 | V88: 285 | W88: 0 | X88: 130 | Y88: 700 | Z88: 3 | AA88: 0 | AB88: 0 | AC88: 11 | AD88: 13 | AE88: 5 | AF88: 29 | AJ88: 0 | AK88: 10 | AL88: 10 | AM88: 0 | AN88: 9 | AO88: 9 | AP88: 0 | AQ88: 19 | AR88: 19 | AS88: 0 | AT88: 0 | AU88: 0 | AV88: 0 | AW88: 0 | AX88: 0 | AY88: 2 | AZ88: 0 | BA88: 0 | BB88: 0 | BC88: 17 | BD88: 0 | BE88: 2 | BF88: 0 | BG88: 0 | BH88: 17 | BI88: 0 | BJ88: 2018-01-08T09:54:25 | BL88: 0 | BM88: =IF(B88="","",SUMIFS(Provider_Status!$D:$D,Provider_Status!$B:$B,Monthly_Report!$B88,Provider_Status!$C:$C,Monthly_Report!BM$1)) -> 0 | BN88: =IF(B88="","",SUMIFS(Provider_Status!$D:$D,Provider_Status!$B:$B,Monthly_Report!$B88,Provider_Status!$C:$C,Monthly_Report!BN$1)) -> 0 | BO88: =IF(B88="","",SUMIFS(Provider_Status!$E:$E,Provider_Status!$B:$B,Monthly_Report!$B88,Provider_Status!$C:$C,Monthly_Report!BO$1)) -> 0 | BP88: =IF(B88="","",SUMIFS(Provider_Status!$E:$E,Provider_Status!$B:$B,Monthly_Report!$B88,Provider_Status!$C:$C,Monthly_Report!BP$1)) -> 0 | BQ88: =IF(F88="","",SUMIFS(Training_BMGF!P:P,Training_BMGF!C:C,Monthly_Report!F88,Training_BMGF!L:L,Monthly_Report!K88)) -> 0 | BR88: =VLOOKUP(G88,'Facility List'!Q:R,2,FALSE) -> Azamgarh | BT88: 1 | BU88: 1 | BV88: =SUMIFS(Training_BMGF!P:P,Training_BMGF!C:C,Monthly_Report!F88,Training_BMGF!D:D,Monthly_Report!BV$1,Training_BMGF!L:L,"<="&K88) -> 4 | BW88: =SUMIFS(Training_BMGF!P:P,Training_BMGF!C:C,Monthly_Report!F88,Training_BMGF!D:D,Monthly_Report!BW$1,Training_BMGF!L:L,"<="&K88) -> 13 | BX88: =COUNTIFS('Service Data'!$E:$E,">=1",'Service Data'!$I:$I,Monthly_Report!$E88,'Service Data'!$J:$J,Monthly_Report!BX$1,'Service Data'!$C:$C,Monthly_Report!$K88) -> 0 | BY88: =COUNTIFS('Service Data'!$E:$E,">=1",'Service Data'!$I:$I,Monthly_Report!$E88,'Service Data'!$J:$J,Monthly_Report!BY$1,'Service Data'!$C:$C,Monthly_Report!$K88) -> 5
A89: 21870 | B89: UP-0004-AZG-001-DH_2017_Feb | C89: BMGF (MCHIP-SUP) | D89: Uttar Pradesh | E89: Azamgarh_DWH-DH | F89: UP-0004-AZG-001-DH | G89: Azamgarh | H89: District Hospital | I89: 2017 | J89: Feb | K89: 2017-02-01 | L89: 2017-03-01 | M89: 1188 | N89: 498 | O89: 134 | P89: 632 | Q89: 145 | R89: 357 | S89: 502 | T89: 8 | U89: 266 | V89: 274 | W89: 0 | X89: 125 | Y89: 1200 | Z89: 4 | AA89: 0 | AB89: 0 | AC89: 147 | AD89: 0 | AE89: 0 | AF89: 147 | AJ89: 0 | AK89: 0 | AL89: 0 | AM89: 0 | AN89: 3 | AO89: 3 | AP89: 0 | AQ89: 3 | AR89: 3 | AS89: 0 | AT89: 0 | AU89: 0 | AV89: 0 | AW89: 0 | AX89: 0 | AY89: 0 | AZ89: 0 | BA89: 0 | BB89: 0 | BC89: 0 | BD89: 3 | BE89: 0 | BF89: 0 | BG89: 0 | BH89: 0 | BI89: 3 | BJ89: 2017-03-07T10:27:28 | BL89: 0 | BM89: =IF(B89="","",SUMIFS(Provider_Status!$D:$D,Provider_Status!$B:$B,Monthly_Report!$B89,Provider_Status!$C:$C,Monthly_Report!BM$1)) -> 4 | BN89: =IF(B89="","",SUMIFS(Provider_Status!$D:$D,Provider_Status!$B:$B,Monthly_Report!$B89,Provider_Status!$C:$C,Monthly_Report!BN$1)) -> 17 | BO89: =IF(B89="","",SUMIFS(Provider_Status!$E:$E,Provider_Status!$B:$B,Monthly_Report!$B89,Provider_Status!$C:$C,Monthly_Report!BO$1)) -> 0 | BP89: =IF(B89="","",SUMIFS(Provider_Status!$E:$E,Provider_Status!$B:$B,Monthly_Report!$B89,Provider_Status!$C:$C,Monthly_Report!BP$1)) -> 13 | BQ89: =IF(F89="","",SUMIFS(Training_BMGF!P:P,Training_BMGF!C:C,Monthly_Report!F89,Training_BMGF!L:L,Monthly_Report!K89)) -> 1 | BR89: =VLOOKUP(G89,'Facility List'!Q:R,2,FALSE) -> Azamgarh | BT89: 1 | BU89: 1 | BV89: =SUMIFS(Training_BMGF!P:P,Training_BMGF!C:C,Monthly_Report!F89,Training_BMGF!D:D,Monthly_Report!BV$1,Training_BMGF!L:L,"<="&K89) -> 4 | BW89: =SUMIFS(Training_BMGF!P:P,Training_BMGF!C:C,Monthly_Report!F89,Training_BMGF!D:D,Monthly_Report!BW$1,Training_BMGF!L:L,"<="&K89) -> 13 | BX89: =COUNTIFS('Service Data'!$E:$E,">=1",'Service Data'!$I:$I,Monthly_Report!$E89,'Service Data'!$J:$J,Monthly_Report!BX$1,'Service Data'!$C:$C,Monthly_Report!$K89) -> 0 | BY89: =COUNTIFS('Service Data'!$E:$E,">=1",'Service Data'!$I:$I,Monthly_Report!$E89,'Service Data'!$J:$J,Monthly_Report!BY$1,'Service Data'!$C:$C,Monthly_Report!$K89) -> 10
A90: 21257 | B90: UP-0004-AZG-001-DH_2017_Jan | C90: BMGF (MCHIP-SUP) | D90: Uttar Pradesh | E90: Azamgarh_DWH-DH | F90: UP-0004-AZG-001-DH | G90: Azamgarh | H90: District Hospital | I90: 2017 | J90: Jan | K90: 2017-01-01 | L90: 2017-01-31 | M90: 1111 | N90: 481 | O90: 102 | P90: 583 | Q90: 190 | R90: 481 | S90: 671 | T90: 12 | U90: 245 | V90: 257 | W90: 0 | X90: 0 | Y90: 0 | Z90: 6 | AA90: 0 | AB90: 0 | AC90: 143 | AD90: 0 | AE90: 0 | AF90: 143 | AJ90: 0 | AK90: 0 | AL90: 0 | AM90: 0 | AN90: 3 | AO90: 3 | AP90: 0 | AQ90: 3 | AR90: 3 | AS90: 0 | AT90: 0 | AU90: 0 | AV90: 0 | AW90: 0 | AX90: 0 | AY90: 0 | AZ90: 0 | BA90: 0 | BB90: 0 | BC90: 3 | BD90: 0 | BE90: 0 | BF90: 0 | BG90: 0 | BH90: 3 | BI90: 0 | BJ90: 2017-02-01T11:22:49 | BL90: 0 | BM90: =IF(B90="","",SUMIFS(Provider_Status!$D:$D,Provider_Status!$B:$B,Monthly_Report!$B90,Provider_Status!$C:$C,Monthly_Report!BM$1)) -> 4 | BN90: =IF(B90="","",SUMIFS(Provider_Status!$D:$D,Provider_Status!$B:$B,Monthly_Report!$B90,Provider_Status!$C:$C,Monthly_Report!BN$1)) -> 17 | BO90: =IF(B90="","",SUMIFS(Provider_Status!$E:$E,Provider_Status!$B:$B,Monthly_Report!$B90,Provider_Status!$C:$C,Monthly_Report!BO$1)) -> 0 | BP90: =IF(B90="","",SUMIFS(Provider_Status!$E:$E,Provider_Status!$B:$B,Monthly_Report!$B90,Provider_Status!$C:$C,Monthly_Report!BP$1)) -> 13 | BQ90: =IF(F90="","",SUMIFS(Training_BMGF!P:P,Training_BMGF!C:C,Monthly_Report!F90,Training_BMGF!L:L,Monthly_Report!K90)) -> 0 | BR90: =VLOOKUP(G90,'Facility List'!Q:R,2,FALSE) -> Azamgarh | BT90: 1 | BU90: 1 | BV90: =SUMIFS(Training_BMGF!P:P,Training_BMGF!C:C,Monthly_Report!F90,Training_BMGF!D:D,Monthly_Report!BV$1,Training_BMGF!L:L,"<="&K90) -> 4 | BW90: =SUMIFS(Training_BMGF!P:P,Training_BMGF!C:C,Monthly_Report!F90,Training_BMGF!D:D,Monthly_Report!BW$1,Training_BMGF!L:L,"<="&K90) -> 12 | BX90: =COUNTIFS('Service Data'!$E:$E,">=1",'Service Data'!$I:$I,Monthly_Report!$E90,'Service Data'!$J:$J,Monthly_Report!BX$1,'Service Data'!$C:$C,Monthly_Report!$K90) -> 0 | BY90: =COUNTIFS('Service Data'!$E:$E,">=1",'Service Data'!$I:$I,Monthly_Report!$E90,'Service Data'!$J:$J,Monthly_Report!BY$1,'Service Data'!$C:$C,Monthly_Report!$K90) -> 10
A91: 25091 | B91: UP-0004-AZG-001-DH_2017_Jul | C91: BMGF (MCHIP-SUP) | D91: Uttar Pradesh | E91: Azamgarh_DWH-DH | F91: UP-0004-AZG-001-DH | G91: Azamgarh | H91: District Hospital | I91: 2017 | J91: Jul | K91: 2017-07-01 | L91: 2017-07-26 | M91: 1025 | N91: 473 | O91: 144 | P91: 617 | Q91: 181 | R91: 79 | S91: 260 | T91: 15 | U91: 59 | V91: 74 | W91: 0 | X91: 150 | Y91: 900 | Z91: 8 | AA91: 0 | AB91: 0 | AC91: 15 | AD91: 0 | AE91: 0 | AF91: 15 | AJ91: 0 | AK91: 0 | AL91: 0 | AM91: 0 | AN91: 0 | AO91: 0 | AP91: 0 | AQ91: 0 | AR91: 0 | AS91: 0 | AT91: 0 | AU91: 0 | AV91: 0 | AW91: 0 | AX91: 0 | AY91: 0 | AZ91: 0 | BA91: 0 | BB91: 0 | BC91: 0 | BD91: 0 | BE91: 0 | BF91: 0 | BG91: 0 | BH91: 0 | BI91: 0 | BJ91: 2017-07-26T14:37:28 | BL91: 0 | BM91: =IF(B91="","",SUMIFS(Provider_Status!$D:$D,Provider_Status!$B:$B,Monthly_Report!$B91,Provider_Status!$C:$C,Monthly_Report!BM$1)) -> 4 | BN91: =IF(B91="","",SUMIFS(Provider_Status!$D:$D,Provider_Status!$B:$B,Monthly_Report!$B91,Provider_Status!$C:$C,Monthly_Report!BN$1)) -> 18 | BO91: =IF(B91="","",SUMIFS(Provider_Status!$E:$E,Provider_Status!$B:$B,Monthly_Report!$B91,Provider_Status!$C:$C,Monthly_Report!BO$1)) -> 0 | BP91: =IF(B91="","",SUMIFS(Provider_Status!$E:$E,Provider_Status!$B:$B,Monthly_Report!$B91,Provider_Status!$C:$C,Monthly_Report!BP$1)) -> 8 | BQ91: =IF(F91="","",SUMIFS(Training_BMGF!P:P,Training_BMGF!C:C,Monthly_Report!F91,Training_BMGF!L:L,Monthly_Report!K91)) -> 0 | BR91: =VLOOKUP(G91,'Facility List'!Q:R,2,FALSE) -> Azamgarh | BT91: 1 | BU91: 1 | BV91: =SUMIFS(Training_BMGF!P:P,Training_BMGF!C:C,Monthly_Report!F91,Training_BMGF!D:D,Monthly_Report!BV$1,Training_BMGF!L:L,"<="&K91) -> 4 | BW91: =SUMIFS(Training_BMGF!P:P,Training_BMGF!C:C,Monthly_Report!F91,Training_BMGF!D:D,Monthly_Report!BW$1,Training_BMGF!L:L,"<="&K91) -> 13 | BX91: =COUNTIFS('Service Data'!$E:$E,">=1",'Service Data'!$I:$I,Monthly_Report!$E91,'Service Data'!$J:$J,Monthly_Report!BX$1,'Service Data'!$C:$C,Monthly_Report!$K91) -> 0 | BY91: =COUNTIFS('Service Data'!$E:$E,">=1",'Service Data'!$I:$I,Monthly_Report!$E91,'Service Data'!$J:$J,Monthly_Report!BY$1,'Service Data'!$C:$C,Monthly_Report!$K91) -> 7
A92: 25088 | B92: UP-0004-AZG-001-DH_2017_Jun | C92: BMGF (MCHIP-SUP) | D92: Uttar Pradesh | E92: Azamgarh_DWH-DH | F92: UP-0004-AZG-001-DH | G92: Azamgarh | H92: District Hospital | I92: 2017 | J92: Jun | K92: 2017-06-01 | L92: 2017-07-26 | M92: 1177 | N92: 368 | O92: 130 | P92: 498 | Q92: 177 | R92: 33 | S92: 210 | T92: 0 | U92: 96 | V92: 96 | W92: 105 | X92: 0 | Y92: 100 | Z92: 17 | AA92: 30 | AB92: 0 | AC92: 12 | AD92: 0 | AE92: 0 | AF92: 12 | AJ92: 0 | AK92: 0 | AL92: 0 | AM92: 0 | AN92: 0 | AO92: 0 | AP92: 0 | AQ92: 0 | AR92: 0 | AS92: 0 | AT92: 0 | AU92: 0 | AV92: 0 | AW92: 0 | AX92: 0 | AY92: 0 | AZ92: 0 | BA92: 0 | BB92: 0 | BC92: 0 | BD92: 0 | BE92: 0 | BF92: 0 | BG92: 0 | BH92: 0 | BI92: 0 | BJ92: 2017-07-26T14:23:33 | BL92: 0 | BM92: =IF(B92="","",SUMIFS(Provider_Status!$D:$D,Provider_Status!$B:$B,Monthly_Report!$B92,Provider_Status!$C:$C,Monthly_Report!BM$1)) -> 3 | BN92: =IF(B92="","",SUMIFS(Provider_Status!$D:$D,Provider_Status!$B:$B,Monthly_Report!$B92,Provider_Status!$C:$C,Monthly_Report!BN$1)) -> 18 | BO92: =IF(B92="","",SUMIFS(Provider_Status!$E:$E,Provider_Status!$B:$B,Monthly_Report!$B92,Provider_Status!$C:$C,Monthly_Report!BO$1)) -> 0 | BP92: =IF(B92="","",SUMIFS(Provider_Status!$E:$E,Provider_Status!$B:$B,Monthly_Report!$B92,Provider_Status!$C:$C,Monthly_Report!BP$1)) -> 6 | BQ92: =IF(F92="","",SUMIFS(Training_BMGF!P:P,Training_BMGF!C:C,Monthly_Report!F92,Training_BMGF!L:L,Monthly_Report!K92)) -> 0 | BR92: =VLOOKUP(G92,'Facility List'!Q:R,2,FALSE) -> Azamgarh | BT92: 1 | BU92: 1 | BV92: =SUMIFS(Training_BMGF!P:P,Training_BMGF!C:C,Monthly_Report!F92,Training_BMGF!D:D,Monthly_Report!BV$1,Training_BMGF!L:L,"<="&K92) -> 4 | BW92: =SUMIFS(Training_BMGF!P:P,Training_BMGF!C:C,Monthly_Report!F92,Training_BMGF!D:D,Monthly_Report!BW$1,Training_BMGF!L:L,"<="&K92) -> 13 | BX92: =COUNTIFS('Service Data'!$E:$E,">=1",'Service Data'!$I:$I,Monthly_Report!$E92,'Service Data'!$J:$J,Monthly_Report!BX$1,'Service Data'!$C:$C,Monthly_Report!$K92) -> 0 | BY92: =COUNTIFS('Service Data'!$E:$E,">=1",'Service Data'!$I:$I,Monthly_Report!$E92,'Service Data'!$J:$J,Monthly_Report!BY$1,'Service Data'!$C:$C,Monthly_Report!$K92) -> 5
A93: 22462 | B93: UP-0004-AZG-001-DH_2017_Mar | C93: BMGF (MCHIP-SUP) | D93: Uttar Pradesh | E93: Azamgarh_DWH-DH | F93: UP-0004-AZG-001-DH | G93: Azamgarh | H93: District Hospital | I93: 2017 | J93: Mar | K93: 2017-03-01 | L93: 2017-04-08 | M93: 2593 | N93: 548 | O93: 85 | P93: 633 | Q93: 192 | R93: 548 | S93: 740 | T93: 14 | U93: 278 | V93: 292 | W93: 0 | X93: 225 | Y93: 1280 | Z93: 10 | AA93: 0 | AB93: 0 | AC93: 123 | AD93: 0 | AE93: 0 | AF93: 123 | AJ93: 0 | AK93: 0 | AL93: 0 | AM93: 3 | AN93: 3 | AO93: 6 | AP93: 3 | AQ93: 3 | AR93: 6 | AS93: 0 | AT93: 0 | AU93: 0 | AV93: 0 | AW93: 0 | AX93: 0 | AY93: 0 | AZ93: 0 | BA93: 0 | BB93: 0 | BC93: 0 | BD93: 0 | BE93: 0 | BF93: 0 | BG93: 0 | BH93: 0 | BI93: 0 | BJ93: 2017-04-14T09:15:54 | BL93: 0 | BM93: =IF(B93="","",SUMIFS(Provider_Status!$D:$D,Provider_Status!$B:$B,Monthly_Report!$B93,Provider_Status!$C:$C,Monthly_Report!BM$1)) -> 3 | BN93: =IF(B93="","",SUMIFS(Provider_Status!$D:$D,Provider_Status!$B:$B,Monthly_Report!$B93,Provider_Status!$C:$C,Monthly_Report!BN$1)) -> 18 | BO93: =IF(B93="","",SUMIFS(Provider_Status!$E:$E,Provider_Status!$B:$B,Monthly_Report!$B93,Provider_Status!$C:$C,Monthly_Report!BO$1)) -> 0 | BP93: =IF(B93="","",SUMIFS(Provider_Status!$E:$E,Provider_Status!$B:$B,Monthly_Report!$B93,Provider_Status!$C:$C,Monthly_Report!BP$1)) -> 13 | BQ93: =IF(F93="","",SUMIFS(Training_BMGF!P:P,Training_BMGF!C:C,Monthly_Report!F93,Training_BMGF!L:L,Monthly_Report!K93)) -> 0 | BR93: =VLOOKUP(G93,'Facility List'!Q:R,2,FALSE) -> Azamgarh | BT93: 1 | BU93: 1 | BV93: =SUMIFS(Training_BMGF!P:P,Training_BMGF!C:C,Monthly_Report!F93,Training_BMGF!D:D,Monthly_Report!BV$1,Training_BMGF!L:L,"<="&K93) -> 4 | BW93: =SUMIFS(Training_BMGF!P:P,Training_BMGF!C:C,Monthly_Report!F93,Training_BMGF!D:D,Monthly_Report!BW$1,Training_BMGF!L:L,"<="&K93) -> 13 | BX93: =COUNTIFS('Service Data'!$E:$E,">=1",'Service Data'!$I:$I,Monthly_Report!$E93,'Service Data'!$J:$J,Monthly_Report!BX$1,'Service Data'!$C:$C,Monthly_Report!$K93) -> 0 | BY93: =COUNTIFS('Service Data'!$E:$E,">=1",'Service Data'!$I:$I,Monthly_Report!$E93,'Service Data'!$J:$J,Monthly_Report!BY$1,'Service Data'!$C:$C,Monthly_Report!$K93) -> 11
A94: 23546 | B94: UP-0004-AZG-001-DH_2017_May | C94: BMGF (MCHIP-SUP) | D94: Uttar Pradesh | E94: Azamgarh_DWH-DH | F94: UP-0004-AZG-001-DH | G94: Azamgarh | H94: District Hospital | I94: 2017 | J94: May | K94: 2017-05-01 | L94: 2017-05-29 | M94: 1150 | N94: 383 | O94: 143 | P94: 526 | Q94: 90 | R94: 137 | S94: 227 | T94: 18 | U94: 74 | V94: 92 | W94: 0 | X94: 125 | Y94: 0 | Z94: 9 | AA94: 0 | AB94: 0 | AC94: 14 | AD94: 0 | AE94: 0 | AF94: 14 | AJ94: 0 | AK94: 0 | AL94: 0 | AM94: 0 | AN94: 0 | AO94: 0 | AP94: 0 | AQ94: 0 | AR94: 0 | AS94: 0 | AT94: 0 | AU94: 0 | AV94: 0 | AW94: 0 | AX94: 0 | AY94: 0 | AZ94: 0 | BA94: 0 | BB94: 0 | BC94: 0 | BD94: 0 | BE94: 0 | BF94: 0 | BG94: 0 | BH94: 0 | BI94: 0 | BJ94: 2017-05-29T11:32:40 | BL94: 0 | BM94: =IF(B94="","",SUMIFS(Provider_Status!$D:$D,Provider_Status!$B:$B,Monthly_Report!$B94,Provider_Status!$C:$C,Monthly_Report!BM$1)) -> 3 | BN94: =IF(B94="","",SUMIFS(Provider_Status!$D:$D,Provider_Status!$B:$B,Monthly_Report!$B94,Provider_Status!$C:$C,Monthly_Report!BN$1)) -> 18 | BO94: =IF(B94="","",SUMIFS(Provider_Status!$E:$E,Provider_Status!$B:$B,Monthly_Report!$B94,Provider_Status!$C:$C,Monthly_Report!BO$1)) -> 0 | BP94: =IF(B94="","",SUMIFS(Provider_Status!$E:$E,Provider_Status!$B:$B,Monthly_Report!$B94,Provider_Status!$C:$C,Monthly_Report!BP$1)) -> 5 | BQ94: =IF(F94="","",SUMIFS(Training_BMGF!P:P,Training_BMGF!C:C,Monthly_Report!F94,Training_BMGF!L:L,Monthly_Report!K94)) -> 0 | BR94: =VLOOKUP(G94,'Facility List'!Q:R,2,FALSE) -> Azamgarh | BT94: 1 | BU94: 1 | BV94: =SUMIFS(Training_BMGF!P:P,Training_BMGF!C:C,Monthly_Report!F94,Training_BMGF!D:D,Monthly_Report!BV$1,Training_BMGF!L:L,"<="&K94) -> 4 | BW94: =SUMIFS(Training_BMGF!P:P,Training_BMGF!C:C,Monthly_Report!F94,Training_BMGF!D:D,Monthly_Report!BW$1,Training_BMGF!L:L,"<="&K94) -> 13 | BX94: =COUNTIFS('Service Data'!$E:$E,">=1",'Service Data'!$I:$I,Monthly_Report!$E94,'Service Data'!$J:$J,Monthly_Report!BX$1,'Service Data'!$C:$C,Monthly_Report!$K94) -> 0 | BY94: =COUNTIFS('Service Data'!$E:$E,">=1",'Service Data'!$I:$I,Monthly_Report!$E94,'Service Data'!$J:$J,Monthly_Report!BY$1,'Service Data'!$C:$C,Monthly_Report!$K94) -> 3
A95: 27902 | B95: UP-0004-AZG-001-DH_2017_Nov | C95: BMGF (MCHIP-SUP) | D95: Uttar Pradesh | E95: Azamgarh_DWH-DH | F95: UP-0004-AZG-001-DH | G95: Azamgarh | H95: District Hospital | I95: 2017 | J95: Nov | K95: 2017-11-01 | L95: 2017-11-28 | M95: 923 | N95: 537 | O95: 188 | P95: 725 | Q95: 241 | R95: 314 | S95: 555 | T95: 22 | U95: 129 | V95: 151 | W95: 0 | X95: 190 | Y95: 700 | Z95: 7 | AA95: 0 | AB95: 0 | AC95: 14 | AD95: 4 | AE95: 0 | AF95: 18 | AJ95: 0 | AK95: 18 | AL95: 18 | AM95: 0 | AN95: 8 | AO95: 8 | AP95: 0 | AQ95: 26 | AR95: 26 | AS95: 0 | AT95: 0 | AU95: 0 | AV95: 0 | AW95: 0 | AX95: 0 | AY95: 1 | AZ95: 0 | BA95: 0 | BB95: 0 | BC95: 25 | BD95: 0 | BE95: 1 | BF95: 0 | BG95: 0 | BH95: 25 | BI95: 0 | BJ95: 2017-11-30T10:12:42 | BL95: 0 | BM95: =IF(B95="","",SUMIFS(Provider_Status!$D:$D,Provider_Status!$B:$B,Monthly_Report!$B95,Provider_Status!$C:$C,Monthly_Report!BM$1)) -> 4 | BN95: =IF(B95="","",SUMIFS(Provider_Status!$D:$D,Provider_Status!$B:$B,Monthly_Report!$B95,Provider_Status!$C:$C,Monthly_Report!BN$1)) -> 18 | BO95: =IF(B95="","",SUMIFS(Provider_Status!$E:$E,Provider_Status!$B:$B,Monthly_Report!$B95,Provider_Status!$C:$C,Monthly_Report!BO$1)) -> 0 | BP95: =IF(B95="","",SUMIFS(Provider_Status!$E:$E,Provider_Status!$B:$B,Monthly_Report!$B95,Provider_Status!$C:$C,Monthly_Report!BP$1)) -> 9 | BQ95: =IF(F95="","",SUMIFS(Training_BMGF!P:P,Training_BMGF!C:C,Monthly_Report!F95,Training_BMGF!L:L,Monthly_Report!K95)) -> 0 | BR95: =VLOOKUP(G95,'Facility List'!Q:R,2,FALSE) -> Azamgarh | BT95: 1 | BU95: 1 | BV95: =SUMIFS(Training_BMGF!P:P,Training_BMGF!C:C,Monthly_Report!F95,Training_BMGF!D:D,Monthly_Report!BV$1,Training_BMGF!L:L,"<="&K95) -> 4 | BW95: =SUMIFS(Training_BMGF!P:P,Training_BMGF!C:C,Monthly_Report!F95,Training_BMGF!D:D,Monthly_Report!BW$1,Training_BMGF!L:L,"<="&K95) -> 13 | BX95: =COUNTIFS('Service Data'!$E:$E,">=1",'Service Data'!$I:$I,Monthly_Report!$E95,'Service Data'!$J:$J,Monthly_Report!BX$1,'Service Data'!$C:$C,Monthly_Report!$K95) -> 0 | BY95: =COUNTIFS('Service Data'!$E:$E,">=1",'Service Data'!$I:$I,Monthly_Report!$E95,'Service Data'!$J:$J,Monthly_Report!BY$1,'Service Data'!$C:$C,Monthly_Report!$K95) -> 6
A96: 27375 | B96: UP-0004-AZG-001-DH_2017_Oct | C96: BMGF (MCHIP-SUP) | D96: Uttar Pradesh | E96: Azamgarh_DWH-DH | F96: UP-0004-AZG-001-DH | G96: Azamgarh | H96: District Hospital | I96: 2017 | J96: Oct | K96: 2017-10-01 | L96: 2017-11-02 | M96: 841 | N96: 541 | O96: 182 | P96: 723 | Q96: 433 | R96: 323 | S96: 756 | T96: 16 | U96: 97 | V96: 113 | W96: 0 | X96: 125 | Y96: 800 | Z96: 2 | AA96: 0 | AB96: 0 | AC96: 13 | AD96: 10 | AE96: 0 | AF96: 23 | AJ96: 0 | AK96: 19 | AL96: 19 | AM96: 0 | AN96: 13 | AO96: 13 | AP96: 0 | AQ96: 32 | AR96: 32 | AS96: 0 | AT96: 0 | AU96: 0 | AV96: 0 | AW96: 0 | AX96: 0 | AY96: 1 | AZ96: 0 | BA96: 0 | BB96: 0 | BC96: 32 | BD96: 0 | BE96: 1 | BF96: 0 | BG96: 0 | BH96: 32 | BI96: 0 | BJ96: 2017-11-02T14:33:11 | BL96: 0 | BM96: =IF(B96="","",SUMIFS(Provider_Status!$D:$D,Provider_Status!$B:$B,Monthly_Report!$B96,Provider_Status!$C:$C,Monthly_Report!BM$1)) -> 4 | BN96: =IF(B96="","",SUMIFS(Provider_Status!$D:$D,Provider_Status!$B:$B,Monthly_Report!$B96,Provider_Status!$C:$C,Monthly_Report!BN$1)) -> 18 | BO96: =IF(B96="","",SUMIFS(Provider_Status!$E:$E,Provider_Status!$B:$B,Monthly_Report!$B96,Provider_Status!$C:$C,Monthly_Report!BO$1)) -> 0 | BP96: =IF(B96="","",SUMIFS(Provider_Status!$E:$E,Provider_Status!$B:$B,Monthly_Report!$B96,Provider_Status!$C:$C,Monthly_Report!BP$1)) -> 7 | BQ96: =IF(F96="","",SUMIFS(Training_BMGF!P:P,Training_BMGF!C:C,Monthly_Report!F96,Training_BMGF!L:L,Monthly_Report!K96)) -> 0 | BR96: =VLOOKUP(G96,'Facility List'!Q:R,2,FALSE) -> Azamgarh | BT96: 1 | BU96: 1 | BV96: =SUMIFS(Training_BMGF!P:P,Training_BMGF!C:C,Monthly_Report!F96,Training_BMGF!D:D,Monthly_Report!BV$1,Training_BMGF!L:L,"<="&K96) -> 4 | BW96: =SUMIFS(Training_BMGF!P:P,Training_BMGF!C:C,Monthly_Report!F96,Training_BMGF!D:D,Monthly_Report!BW$1,Training_BMGF!L:L,"<="&K96) -> 13 | BX96: =COUNTIFS('Service Data'!$E:$E,">=1",'Service Data'!$I:$I,Monthly_Report!$E96,'Service Data'!$J:$J,Monthly_Report!BX$1,'Service Data'!$C:$C,Monthly_Report!$K96) -> 0 | BY96: =COUNTIFS('Service Data'!$E:$E,">=1",'Service Data'!$I:$I,Monthly_Report!$E96,'Service Data'!$J:$J,Monthly_Report!BY$1,'Service Data'!$C:$C,Monthly_Report!$K96) -> 6
A97: 26348 | B97: UP-0004-AZG-001-DH_2017_Sep | C97: BMGF (MCHIP-SUP) | D97: Uttar Pradesh | E97: Azamgarh_DWH-DH | F97: UP-0004-AZG-001-DH | G97: Azamgarh | H97: District Hospital | I97: 2017 | J97: Sep | K97: 2017-09-01 | L97: 2017-09-23 | M97: 981 | N97: 599 | O97: 189 | P97: 788 | Q97: 395 | R97: 319 | S97: 714 | T97: 16 | U97: 94 | V97: 110 | W97: 0 | X97: 150 | Y97: 1000 | Z97: 8 | AA97: 0 | AB97: 0 | AC97: 21 | AD97: 0 | AE97: 0 | AF97: 21 | AJ97: 0 | AK97: 17 | AL97: 17 | AM97: 0 | AN97: 16 | AO97: 16 | AP97: 0 | AQ97: 33 | AR97: 33 | AS97: 0 | AT97: 0 | AU97: 0 | AV97: 0 | AW97: 0 | AX97: 0 | AY97: 6 | AZ97: 0 | BA97: 0 | BB97: 0 | BC97: 27 | BD97: 0 | BE97: 6 | BF97: 0 | BG97: 0 | BH97: 27 | BI97: 0 | BJ97: 2017-09-25T11:48:15 | BL97: 0 | BM97: =IF(B97="","",SUMIFS(Provider_Status!$D:$D,Provider_Status!$B:$B,Monthly_Report!$B97,Provider_Status!$C:$C,Monthly_Report!BM$1)) -> 4 | BN97: =IF(B97="","",SUMIFS(Provider_Status!$D:$D,Provider_Status!$B:$B,Monthly_Report!$B97,Provider_Status!$C:$C,Monthly_Report!BN$1)) -> 18 | BO97: =IF(B97="","",SUMIFS(Provider_Status!$E:$E,Provider_Status!$B:$B,Monthly_Report!$B97,Provider_Status!$C:$C,Monthly_Report!BO$1)) -> 0 | BP97: =IF(B97="","",SUMIFS(Provider_Status!$E:$E,Provider_Status!$B:$B,Monthly_Report!$B97,Provider_Status!$C:$C,Monthly_Report!BP$1)) -> 8 | BQ97: =IF(F97="","",SUMIFS(Training_BMGF!P:P,Training_BMGF!C:C,Monthly_Report!F97,Training_BMGF!L:L,Monthly_Report!K97)) -> 0 | BR97: =VLOOKUP(G97,'Facility List'!Q:R,2,FALSE) -> Azamgarh | BT97: 1 | BU97: 1 | BV97: =SUMIFS(Training_BMGF!P:P,Training_BMGF!C:C,Monthly_Report!F97,Training_BMGF!D:D,Monthly_Report!BV$1,Training_BMGF!L:L,"<="&K97) -> 4 | BW97: =SUMIFS(Training_BMGF!P:P,Training_BMGF!C:C,Monthly_Report!F97,Training_BMGF!D:D,Monthly_Report!BW$1,Training_BMGF!L:L,"<="&K97) -> 13 | BX97: =COUNTIFS('Service Data'!$E:$E,">=1",'Service Data'!$I:$I,Monthly_Report!$E97,'Service Data'!$J:$J,Monthly_Report!BX$1,'Service Data'!$C:$C,Monthly_Report!$K97) -> 0 | BY97: =COUNTIFS('Service Data'!$E:$E,">=1",'Service Data'!$I:$I,Monthly_Report!$E97,'Service Data'!$J:$J,Monthly_Report!BY$1,'Service Data'!$C:$C,Monthly_Report!$K97) -> 7
A98: 16346 | B98: UP-0005-BBK-001-DH_2016_Apr | C98: BMGF (MCHIP-SUP) | D98: Uttar Pradesh | E98: Barabanki_DWH-DH | F98: UP-0005-BBK-001-DH | G98: Barabanki | H98: District Hospital | I98: 2016 | J98: Apr | K98: 2016-04-01 | L98: 2016-04-25 | M98: 247 | N98: 175 | O98: 124 | P98: 299 | Q98: 0 | R98: 0 | S98: 0 | T98: 8 | U98: 2 | V98: 10 | W98: 0 | X98: 361 | Y98: 3910 | Z98: 5 | AA98: 0 | AB98: 0 | AC98: 27 | AD98: 0 | AE98: 56 | AF98: 83 | AJ98: 0 | AK98: 0 | AL98: 0 | AM98: 0 | AN98: 0 | AO98: 0 | AP98: 0 | AQ98: 0 | AR98: 0 | AS98: 0 | AT98: 0 | AU98: 0 | AV98: 0 | AW98: 0 | AX98: 0 | AY98: 0 | AZ98: 0 | BA98: 0 | BB98: 0 | BC98: 0 | BD98: 0 | BE98: 0 | BF98: 0 | BG98: 0 | BH98: 0 | BI98: 0 | BJ98: 2016-04-27T10:15:20 | BL98: 0 | BM98: =IF(B98="","",SUMIFS(Provider_Status!$D:$D,Provider_Status!$B:$B,Monthly_Report!$B98,Provider_Status!$C:$C,Monthly_Report!BM$1)) -> 0 | BN98: =IF(B98="","",SUMIFS(Provider_Status!$D:$D,Provider_Status!$B:$B,Monthly_Report!$B98,Provider_Status!$C:$C,Monthly_Report!BN$1)) -> 0 | BO98: =IF(B98="","",SUMIFS(Provider_Status!$E:$E,Provider_Status!$B:$B,Monthly_Report!$B98,Provider_Status!$C:$C,Monthly_Report!BO$1)) -> 0 | BP98: =IF(B98="","",SUMIFS(Provider_Status!$E:$E,Provider_Status!$B:$B,Monthly_Report!$B98,Provider_Status!$C:$C,Monthly_Report!BP$1)) -> 0 | BQ98: =IF(F98="","",SUMIFS(Training_BMGF!P:P,Training_BMGF!C:C,Monthly_Report!F98,Training_BMGF!L:L,Monthly_Report!K98)) -> 0 | BR98: =VLOOKUP(G98,'Facility List'!Q:R,2,FALSE) -> Faizabad | BT98: 1 | BU98: 1 | BV98: =SUMIFS(Training_BMGF!P:P,Training_BMGF!C:C,Monthly_Report!F98,Training_BMGF!D:D,Monthly_Report!BV$1,Training_BMGF!L:L,"<="&K98) -> 4 | BW98: =SUMIFS(Training_BMGF!P:P,Training_BMGF!C:C,Monthly_Report!F98,Training_BMGF!D:D,Monthly_Report!BW$1,Training_BMGF!L:L,"<="&K98) -> 8 | BX98: =COUNTIFS('Service Data'!$E:$E,">=1",'Service Data'!$I:$I,Monthly_Report!$E98,'Service Data'!$J:$J,Monthly_Report!BX$1,'Service Data'!$C:$C,Monthly_Report!$K98) -> 4 | BY98: =COUNTIFS('Service Data'!$E:$E,">=1",'Service Data'!$I:$I,Monthly_Report!$E98,'Service Data'!$J:$J,Monthly_Report!BY$1,'Service Data'!$C:$C,Monthly_Report!$K98) -> 3
A99: 18667 | B99: UP-0005-BBK-001-DH_2016_Aug | C99: BMGF (MCHIP-SUP) | D99: Uttar Pradesh | E99: Barabanki_DWH-DH | F99: UP-0005-BBK-001-DH | G99: Barabanki | H99: District Hospital | I99: 2016 | J99: Aug | K99: 2016-08-01 | L99: 2016-09-01 | M99: 246 | N99: 356 | O99: 235 | P99: 591 | Q99: 0 | R99: 0 | S99: 0 | T99: 41 | U99: 9 | V99: 50 | W99: 0 | X99: 481 | Y99: 5280 | Z99: 66 | AA99: 92 | AB99: 0 | AC99: 101 | AD99: 38 | AE99: 101 | AF99: 240 | AJ99: 0 | AK99: 0 | AL99: 0 | AM99: 3 | AN99: 7 | AO99: 10 | AP99: 3 | AQ99: 7 | AR99: 10 | AS99: 0 | AT99: 1 | AU99: 0 | AV99: 0 | AW99: 0 | AX99: 0 | AY99: 0 | AZ99: 1 | BA99: 0 | BB99: 4 | BC99: 2 | BD99: 2 | BE99: 0 | BF99: 2 | BG99: 0 | BH99: 2 | BI99: 2 | BJ99: 2016-09-05T12:11:18 | BL99: 4 | BM99: =IF(B99="","",SUMIFS(Provider_Status!$D:$D,Provider_Status!$B:$B,Monthly_Report!$B99,Provider_Status!$C:$C,Monthly_Report!BM$1)) -> 0 | BN99: =IF(B99="","",SUMIFS(Provider_Status!$D:$D,Provider_Status!$B:$B,Monthly_Report!$B99,Provider_Status!$C:$C,Monthly_Report!BN$1)) -> 0 | BO99: =IF(B99="","",SUMIFS(Provider_Status!$E:$E,Provider_Status!$B:$B,Monthly_Report!$B99,Provider_Status!$C:$C,Monthly_Report!BO$1)) -> 0 | BP99: =IF(B99="","",SUMIFS(Provider_Status!$E:$E,Provider_Status!$B:$B,Monthly_Report!$B99,Provider_Status!$C:$C,Monthly_Report!BP$1)) -> 0 | BQ99: =IF(F99="","",SUMIFS(Training_BMGF!P:P,Training_BMGF!C:C,Monthly_Report!F99,Training_BMGF!L:L,Monthly_Report!K99)) -> 0 | BR99: =VLOOKUP(G99,'Facility List'!Q:R,2,FALSE) -> Faizabad | BT99: 1 | BU99: 1 | BV99: =SUMIFS(Training_BMGF!P:P,Training_BMGF!C:C,Monthly_Report!F99,Training_BMGF!D:D,Monthly_Report!BV$1,Training_BMGF!L:L,"<="&K99) -> 4 | BW99: =SUMIFS(Training_BMGF!P:P,Training_BMGF!C:C,Monthly_Report!F99,Training_BMGF!D:D,Monthly_Report!BW$1,Training_BMGF!L:L,"<="&K99) -> 8 | BX99: =COUNTIFS('Service Data'!$E:$E,">=1",'Service Data'!$I:$I,Monthly_Report!$E99,'Service Data'!$J:$J,Monthly_Report!BX$1,'Service Data'!$C:$C,Monthly_Report!$K99) -> 4 | BY99: =COUNTIFS('Service Data'!$E:$E,">=1",'Service Data'!$I:$I,Monthly_Report!$E99,'Service Data'!$J:$J,Monthly_Report!BY$1,'Service Data'!$C:$C,Monthly_Report!$K99) -> 6
A100: 20657 | B100: UP-0005-BBK-001-DH_2016_Dec | C100: BMGF (MCHIP-SUP) | D100: Uttar Pradesh | E100: Barabanki_DWH-DH | F100: UP-0005-BBK-001-DH | G100: Barabanki | H100: District Hospital | I100: 2016 | J100: Dec | K100: 2016-12-01 | L100: 2017-01-03 | M100: 162 | N100: 284 | O100: 166 | P100: 450 | Q100: 0 | R100: 0 | S100: 0 | T100: 30 | U100: 68 | V100: 98 | W100: 0 | X100: 681 | Y100: 8100 | Z100: 10 | AA100: 139 | AB100: 0 | AC100: 54 | AD100: 66 | AE100: 140 | AF100: 260 | AJ100: 1 | AK100: 3 | AL100: 4 | AM100: 4 | AN100: 10 | AO100: 14 | AP100: 5 | AQ100: 13 | AR100: 18 | AS100: 0 | AT100: 0 | AU100: 3 | AV100: 2 | AW100: 0 | AX100: 0 | AY100: 0 | AZ100: 0 | BA100: 5 | BB100: 1 | BC100: 7 | BD100: 0 | BE100: 0 | BF100: 0 | BG100: 8 | BH100: 7 | BI100: 0 | BJ100: 2017-01-06T15:41:10 | BL100: 3 | BM100: =IF(B100="","",SUMIFS(Provider_Status!$D:$D,Provider_Status!$B:$B,Monthly_Report!$B100,Provider_Status!$C:$C,Monthly_Report!BM$1)) -> 5 | BN100: =IF(B100="","",SUMIFS(Provider_Status!$D:$D,Provider_Status!$B:$B,Monthly_Report!$B100,Provider_Status!$C:$C,Monthly_Report!BN$1)) -> 10 | BO100: =IF(B100="","",SUMIFS(Provider_Status!$E:$E,Provider_Status!$B:$B,Monthly_Report!$B100,Provider_Status!$C:$C,Monthly_Report!BO$1)) -> 5 | BP100: =IF(B100="","",SUMIFS(Provider_Status!$E:$E,Provider_Status!$B:$B,Monthly_Report!$B100,Provider_Status!$C:$C,Monthly_Report!BP$1)) -> 10 | BQ100: =IF(F100="","",SUMIFS(Training_BMGF!P:P,Training_BMGF!C:C,Monthly_Report!F100,Training_BMGF!L:L,Monthly_Report!K100)) -> 0 | BR100: =VLOOKUP(G100,'Facility List'!Q:R,2,FALSE) -> Faizabad | BT100: 1 | BU100: 1 | BV100: =SUMIFS(Training_BMGF!P:P,Training_BMGF!C:C,Monthly_Report!F100,Training_BMGF!D:D,Monthly_Report!BV$1,Training_BMGF!L:L,"<="&K100) -> 4 | BW100: =SUMIFS(Training_BMGF!P:P,Training_BMGF!C:C,Monthly_Report!F100,Training_BMGF!D:D,Monthly_Report!BW$1,Training_BMGF!L:L,"<="&K100) -> 8 | BX100: =COUNTIFS('Service Data'!$E:$E,">=1",'Service Data'!$I:$I,Monthly_Report!$E100,'Service Data'!$J:$J,Monthly_Report!BX$1,'Service Data'!$C:$C,Monthly_Report!$K100) -> 4 | BY100: =COUNTIFS('Service Data'!$E:$E,">=1",'Service Data'!$I:$I,Monthly_Report!$E100,'Service Data'!$J:$J,Monthly_Report!BY$1,'Service Data'!$C:$C,Monthly_Report!$K100) -> 7
A101: 15583 | B101: UP-0005-BBK-001-DH_2016_Feb | C101: BMGF (MCHIP-SUP) | D101: Uttar Pradesh | E101: Barabanki_DWH-DH | F101: UP-0005-BBK-001-DH | G101: Barabanki | H101: District Hospital | I101: 2016 | J101: Feb | K101: 2016-02-01 | L101: 2016-02-26 | M101: 284 | N101: 298 | O101: 229 | P101: 527 | Q101: 0 | R101: 0 | S101: 0 | T101: 29 | U101: 27 | V101: 56 | W101: 0 | X101: 350 | Y101: 7200 | Z101: 39 | AA101: 109 | AB101: 0 | AC101: 60 | AD101: 9 | AE101: 90 | AF101: 159 | AJ101: 0 | AK101: 0 | AL101: 0 | AM101: 0 | AN101: 0 | AO101: 0 | AP101: 0 | AQ101: 0 | AR101: 0 | AS101: 0 | AT101: 0 | AU101: 0 | AV101: 0 | AW101: 0 | AX101: 0 | AY101: 0 | AZ101: 0 | BA101: 0 | BB101: 0 | BC101: 0 | BD101: 0 | BE101: 0 | BF101: 0 | BG101: 0 | BH101: 0 | BI101: 0 | BJ101: 2016-02-29T12:55:06 | BL101: 0 | BM101: =IF(B101="","",SUMIFS(Provider_Status!$D:$D,Provider_Status!$B:$B,Monthly_Report!$B101,Provider_Status!$C:$C,Monthly_Report!BM$1)) -> 0 | BN101: =IF(B101="","",SUMIFS(Provider_Status!$D:$D,Provider_Status!$B:$B,Monthly_Report!$B101,Provider_Status!$C:$C,Monthly_Report!BN$1)) -> 0 | BO101: =IF(B101="","",SUMIFS(Provider_Status!$E:$E,Provider_Status!$B:$B,Monthly_Report!$B101,Provider_Status!$C:$C,Monthly_Report!BO$1)) -> 0 | BP101: =IF(B101="","",SUMIFS(Provider_Status!$E:$E,Provider_Status!$B:$B,Monthly_Report!$B101,Provider_Status!$C:$C,Monthly_Report!BP$1)) -> 0 | BQ101: =IF(F101="","",SUMIFS(Training_BMGF!P:P,Training_BMGF!C:C,Monthly_Report!F101,Training_BMGF!L:L,Monthly_Report!K101)) -> 0 | BR101: =VLOOKUP(G101,'Facility List'!Q:R,2,FALSE) -> Faizabad | BT101: 1 | BU101: 1 | BV101: =SUMIFS(Training_BMGF!P:P,Training_BMGF!C:C,Monthly_Report!F101,Training_BMGF!D:D,Monthly_Report!BV$1,Training_BMGF!L:L,"<="&K101) -> 4 | BW101: =SUMIFS(Training_BMGF!P:P,Training_BMGF!C:C,Monthly_Report!F101,Training_BMGF!D:D,Monthly_Report!BW$1,Training_BMGF!L:L,"<="&K101) -> 8 | BX101: =COUNTIFS('Service Data'!$E:$E,">=1",'Service Data'!$I:$I,Monthly_Report!$E101,'Service Data'!$J:$J,Monthly_Report!BX$1,'Service Data'!$C:$C,Monthly_Report!$K101) -> 4 | BY101: =COUNTIFS('Service Data'!$E:$E,">=1",'Service Data'!$I:$I,Monthly_Report!$E101,'Service Data'!$J:$J,Monthly_Report!BY$1,'Service Data'!$C:$C,Monthly_Report!$K101) -> 6
A102: 15172 | B102: UP-0005-BBK-001-DH_2016_Jan | C102: BMGF (MCHIP-SUP) | D102: Uttar Pradesh | E102: Barabanki_DWH-DH | F102: UP-0005-BBK-001-DH | G102: Barabanki | H102: District Hospital | I102: 2016 | J102: Jan | K102: 2016-01-01 | L102: 2016-01-25 | M102: 255 | N102: 331 | O102: 203 | P102: 534 | Q102: 0 | R102: 0 | S102: 0 | T102: 80 | U102: 15 | V102: 95 | W102: 0 | X102: 119 | Y102: 4320 | Z102: 52 | AA102: 139 | AB102: 0 | AC102: 59 | AD102: 12 | AE102: 104 | AF102: 175 | AJ102: 0 | AK102: 0 | AL102: 0 | AM102: 0 | AN102: 0 | AO102: 0 | AP102: 0 | AQ102: 0 | AR102: 0 | AS102: 0 | AT102: 0 | AU102: 0 | AW102: 0 | AX102: 0 | AY102: 0 | AZ102: 0 | BA102: 0 | BB102: 0 | BC102: 0 | BD102: 0 | BE102: 0 | BF102: 0 | BG102: 0 | BH102: 0 | BI102: 0 | BJ102: 2016-01-28T14:51:08 | BL102: 0 | BM102: =IF(B102="","",SUMIFS(Provider_Status!$D:$D,Provider_Status!$B:$B,Monthly_Report!$B102,Provider_Status!$C:$C,Monthly_Report!BM$1)) -> 0 | BN102: =IF(B102="","",SUMIFS(Provider_Status!$D:$D,Provider_Status!$B:$B,Monthly_Report!$B102,Provider_Status!$C:$C,Monthly_Report!BN$1)) -> 0 | BO102: =IF(B102="","",SUMIFS(Provider_Status!$E:$E,Provider_Status!$B:$B,Monthly_Report!$B102,Provider_Status!$C:$C,Monthly_Report!BO$1)) -> 0 | BP102: =IF(B102="","",SUMIFS(Provider_Status!$E:$E,Provider_Status!$B:$B,Monthly_Report!$B102,Provider_Status!$C:$C,Monthly_Report!BP$1)) -> 0 | BQ102: =IF(F102="","",SUMIFS(Training_BMGF!P:P,Training_BMGF!C:C,Monthly_Report!F102,Training_BMGF!L:L,Monthly_Report!K102)) -> 0 | BR102: =VLOOKUP(G102,'Facility List'!Q:R,2,FALSE) -> Faizabad | BT102: 1 | BU102: 1 | BV102: =SUMIFS(Training_BMGF!P:P,Training_BMGF!C:C,Monthly_Report!F102,Training_BMGF!D:D,Monthly_Report!BV$1,Training_BMGF!L:L,"<="&K102) -> 4 | BW102: =SUMIFS(Training_BMGF!P:P,Training_BMGF!C:C,Monthly_Report!F102,Training_BMGF!D:D,Monthly_Report!BW$1,Training_BMGF!L:L,"<="&K102) -> 8 | BX102: =COUNTIFS('Service Data'!$E:$E,">=1",'Service Data'!$I:$I,Monthly_Report!$E102,'Service Data'!$J:$J,Monthly_Report!BX$1,'Service Data'!$C:$C,Monthly_Report!$K102) -> 4 | BY102: =COUNTIFS('Service Data'!$E:$E,">=1",'Service Data'!$I:$I,Monthly_Report!$E102,'Service Data'!$J:$J,Monthly_Report!BY$1,'Service Data'!$C:$C,Monthly_Report!$K102) -> 7
A103: 18074 | B103: UP-0005-BBK-001-DH_2016_Jul | C103: BMGF (MCHIP-SUP) | D103: Uttar Pradesh | E103: Barabanki_DWH-DH | F103: UP-0005-BBK-001-DH | G103: Barabanki | H103: District Hospital | I103: 2016 | J103: Jul | K103: 2016-07-01 | L103: 2016-07-28 | M103: 230 | N103: 311 | O103: 130 | P103: 441 | Q103: 0 | R103: 0 | S103: 0 | T103: 28 | U103: 0 | V103: 28 | W103: 0 | X103: 602 | Y103: 6920 | Z103: 53 | AA103: 46 | AB103: 0 | AC103: 64 | AD103: 23 | AE103: 78 | AF103: 165 | AJ103: 0 | AK103: 0 | AL103: 0 | AM103: 0 | AN103: 1 | AO103: 1 | AP103: 0 | AQ103: 1 | AR103: 1 | AS103: 0 | AT103: 0 | AU103: 0 | AV103: 0 | AW103: 0 | AX103: 0 | AY103: 0 | AZ103: 0 | BA103: 0 | BB103: 0 | BC103: 1 | BD103: 0 | BE103: 0 | BF103: 0 | BG103: 0 | BH103: 1 | BI103: 0 | BJ103: 2016-07-28T16:06:35 | BL103: 0 | BM103: =IF(B103="","",SUMIFS(Provider_Status!$D:$D,Provider_Status!$B:$B,Monthly_Report!$B103,Provider_Status!$C:$C,Monthly_Report!BM$1)) -> 0 | BN103: =IF(B103="","",SUMIFS(Provider_Status!$D:$D,Provider_Status!$B:$B,Monthly_Report!$B103,Provider_Status!$C:$C,Monthly_Report!BN$1)) -> 0 | BO103: =IF(B103="","",SUMIFS(Provider_Status!$E:$E,Provider_Status!$B:$B,Monthly_Report!$B103,Provider_Status!$C:$C,Monthly_Report!BO$1)) -> 0 | BP103: =IF(B103="","",SUMIFS(Provider_Status!$E:$E,Provider_Status!$B:$B,Monthly_Report!$B103,Provider_Status!$C:$C,Monthly_Report!BP$1)) -> 0 | BQ103: =IF(F103="","",SUMIFS(Training_BMGF!P:P,Training_BMGF!C:C,Monthly_Report!F103,Training_BMGF!L:L,Monthly_Report!K103)) -> 0 | BR103: =VLOOKUP(G103,'Facility List'!Q:R,2,FALSE) -> Faizabad | BT103: 1 | BU103: 1 | BV103: =SUMIFS(Training_BMGF!P:P,Training_BMGF!C:C,Monthly_Report!F103,Training_BMGF!D:D,Monthly_Report!BV$1,Training_BMGF!L:L,"<="&K103) -> 4 | BW103: =SUMIFS(Training_BMGF!P:P,Training_BMGF!C:C,Monthly_Report!F103,Training_BMGF!D:D,Monthly_Report!BW$1,Training_BMGF!L:L,"<="&K103) -> 8 | BX103: =COUNTIFS('Service Data'!$E:$E,">=1",'Service Data'!$I:$I,Monthly_Report!$E103,'Service Data'!$J:$J,Monthly_Report!BX$1,'Service Data'!$C:$C,Monthly_Report!$K103) -> 3 | BY103: =COUNTIFS('Service Data'!$E:$E,">=1",'Service Data'!$I:$I,Monthly_Report!$E103,'Service Data'!$J:$J,Monthly_Report!BY$1,'Service Data'!$C:$C,Monthly_Report!$K103) -> 6
A104: 17446 | B104: UP-0005-BBK-001-DH_2016_Jun | C104: BMGF (MCHIP-SUP) | D104: Uttar Pradesh | E104: Barabanki_DWH-DH | F104: UP-0005-BBK-001-DH | G104: Barabanki | H104: District Hospital | I104: 2016 | J104: Jun | K104: 2016-06-01 | L104: 2016-06-26 | M104: 209 | N104: 244 | O104: 102 | P104: 346 | Q104: 0 | R104: 0 | S104: 0 | T104: 11 | U104: 4 | V104: 15 | W104: 0 | X104: 590 | Y104: 2236 | Z104: 63 | AA104: 0 | AB104: 0 | AC104: 35 | AD104: 2 | AE104: 53 | AF104: 90 | AJ104: 0 | AK104: 0 | AL104: 0 | AM104: 0 | AN104: 16 | AO104: 16 | AP104: 0 | AQ104: 16 | AR104: 16 | AS104: 0 | AT104: 0 | AU104: 0 | AV104: 0 | AW104: 0 | AX104: 0 | AY104: 0 | AZ104: 0 | BA104: 3 | BB104: 0 | BC104: 13 | BD104: 0 | BE104: 0 | BF104: 0 | BG104: 3 | BH104: 13 | BI104: 0 | BJ104: 2016-06-27T10:45:53 | BL104: 0 | BM104: =IF(B104="","",SUMIFS(Provider_Status!$D:$D,Provider_Status!$B:$B,Monthly_Report!$B104,Provider_Status!$C:$C,Monthly_Report!BM$1)) -> 0 | BN104: =IF(B104="","",SUMIFS(Provider_Status!$D:$D,Provider_Status!$B:$B,Monthly_Report!$B104,Provider_Status!$C:$C,Monthly_Report!BN$1)) -> 0 | BO104: =IF(B104="","",SUMIFS(Provider_Status!$E:$E,Provider_Status!$B:$B,Monthly_Report!$B104,Provider_Status!$C:$C,Monthly_Report!BO$1)) -> 0 | BP104: =IF(B104="","",SUMIFS(Provider_Status!$E:$E,Provider_Status!$B:$B,Monthly_Report!$B104,Provider_Status!$C:$C,Monthly_Report!BP$1)) -> 0 | BQ104: =IF(F104="","",SUMIFS(Training_BMGF!P:P,Training_BMGF!C:C,Monthly_Report!F104,Training_BMGF!L:L,Monthly_Report!K104)) -> 0 | BR104: =VLOOKUP(G104,'Facility List'!Q:R,2,FALSE) -> Faizabad | BT104: 1 | BU104: 1 | BV104: =SUMIFS(Training_BMGF!P:P,Training_BMGF!C:C,Monthly_Report!F104,Training_BMGF!D:D,Monthly_Report!BV$1,Training_BMGF!L:L,"<="&K104) -> 4 | BW104: =SUMIFS(Training_BMGF!P:P,Training_BMGF!C:C,Monthly_Report!F104,Training_BMGF!D:D,Monthly_Report!BW$1,Training_BMGF!L:L,"<="&K104) -> 8 | BX104: =COUNTIFS('Service Data'!$E:$E,">=1",'Service Data'!$I:$I,Monthly_Report!$E104,'Service Data'!$J:$J,Monthly_Report!BX$1,'Service Data'!$C:$C,Monthly_Report!$K104) -> 2 | BY104: =COUNTIFS('Service Data'!$E:$E,">=1",'Service Data'!$I:$I,Monthly_Report!$E104,'Service Data'!$J:$J,Monthly_Report!BY$1,'Service Data'!$C:$C,Monthly_Report!$K104) -> 2
A105: 16086 | B105: UP-0005-BBK-001-DH_2016_Mar | C105: BMGF (MCHIP-SUP) | D105: Uttar Pradesh | E105: Barabanki_DWH-DH | F105: UP-0005-BBK-001-DH | G105: Barabanki | H105: District Hospital | I105: 2016 | J105: Mar | K105: 2016-03-01 | L105: 2016-04-11 | M105: 395 | N105: 368 | O105: 259 | P105: 627 | Q105: 0 | R105: 0 | S105: 0 | T105: 28 | U105: 9 | V105: 37 | W105: 0 | X105: 573 | Y105: 5694 | Z105: 43 | AA105: 4 | AB105: 0 | AC105: 73 | AD105: 12 | AE105: 71 | AF105: 156 | AJ105: 0 | AK105: 0 | AL105: 0 | AM105: 0 | AN105: 0 | AO105: 0 | AP105: 0 | AQ105: 0 | AR105: 0 | AS105: 0 | AT105: 0 | AU105: 0 | AV105: 0 | AW105: 0 | AX105: 0 | AY105: 0 | AZ105: 0 | BA105: 0 | BB105: 0 | BC105: 0 | BD105: 0 | BE105: 0 | BF105: 0 | BG105: 0 | BH105: 0 | BI105: 0 | BJ105: 2016-04-11T14:36:30 | BL105: 0 | BM105: =IF(B105="","",SUMIFS(Provider_Status!$D:$D,Provider_Status!$B:$B,Monthly_Report!$B105,Provider_Status!$C:$C,Monthly_Report!BM$1)) -> 0 | BN105: =IF(B105="","",SUMIFS(Provider_Status!$D:$D,Provider_Status!$B:$B,Monthly_Report!$B105,Provider_Status!$C:$C,Monthly_Report!BN$1)) -> 0 | BO105: =IF(B105="","",SUMIFS(Provider_Status!$E:$E,Provider_Status!$B:$B,Monthly_Report!$B105,Provider_Status!$C:$C,Monthly_Report!BO$1)) -> 0 | BP105: =IF(B105="","",SUMIFS(Provider_Status!$E:$E,Provider_Status!$B:$B,Monthly_Report!$B105,Provider_Status!$C:$C,Monthly_Report!BP$1)) -> 0 | BQ105: =IF(F105="","",SUMIFS(Training_BMGF!P:P,Training_BMGF!C:C,Monthly_Report!F105,Training_BMGF!L:L,Monthly_Report!K105)) -> 0 | BR105: =VLOOKUP(G105,'Facility List'!Q:R,2,FALSE) -> Faizabad | BT105: 1 | BU105: 1 | BV105: =SUMIFS(Training_BMGF!P:P,Training_BMGF!C:C,Monthly_Report!F105,Training_BMGF!D:D,Monthly_Report!BV$1,Training_BMGF!L:L,"<="&K105) -> 4 | BW105: =SUMIFS(Training_BMGF!P:P,Training_BMGF!C:C,Monthly_Report!F105,Training_BMGF!D:D,Monthly_Report!BW$1,Training_BMGF!L:L,"<="&K105) -> 8 | BX105: =COUNTIFS('Service Data'!$E:$E,">=1",'Service Data'!$I:$I,Monthly_Report!$E105,'Service Data'!$J:$J,Monthly_Report!BX$1,'Service Data'!$C:$C,Monthly_Report!$K105) -> 4 | BY105: =COUNTIFS('Service Data'!$E:$E,">=1",'Service Data'!$I:$I,Monthly_Report!$E105,'Service Data'!$J:$J,Monthly_Report!BY$1,'Service Data'!$C:$C,Monthly_Report!$K105) -> 7
A106: 16940 | B106: UP-0005-BBK-001-DH_2016_May | C106: BMGF (MCHIP-SUP) | D106: Uttar Pradesh | E106: Barabanki_DWH-DH | F106: UP-0005-BBK-001-DH | G106: Barabanki | H106: District Hospital | I106: 2016 | J106: May | K106: 2016-05-01 | L106: 2016-05-27 | M106: 329 | N106: 237 | O106: 175 | P106: 412 | Q106: 0 | R106: 0 | S106: 0 | T106: 23 | U106: 0 | V106: 23 | W106: 0 | X106: 439 | Y106: 4740 | Z106: 42 | AA106: 0 | AB106: 0 | AC106: 24 | AD106: 1 | AE106: 58 | AF106: 83 | AJ106: 0 | AK106: 0 | AL106: 0 | AM106: 0 | AN106: 2 | AO106: 2 | AP106: 0 | AQ106: 2 | AR106: 2 | AS106: 0 | AT106: 0 | AU106: 0 | AV106: 0 | AW106: 0 | AX106: 0 | AY106: 0 | AZ106: 0 | BA106: 0 | BB106: 0 | BC106: 2 | BD106: 0 | BE106: 0 | BF106: 0 | BG106: 0 | BH106: 2 | BI106: 0 | BJ106: 2016-05-31T10:45:02 | BL106: 0 | BM106: =IF(B106="","",SUMIFS(Provider_Status!$D:$D,Provider_Status!$B:$B,Monthly_Report!$B106,Provider_Status!$C:$C,Monthly_Report!BM$1)) -> 0 | BN106: =IF(B106="","",SUMIFS(Provider_Status!$D:$D,Provider_Status!$B:$B,Monthly_Report!$B106,Provider_Status!$C:$C,Monthly_Report!BN$1)) -> 0 | BO106: =IF(B106="","",SUMIFS(Provider_Status!$E:$E,Provider_Status!$B:$B,Monthly_Report!$B106,Provider_Status!$C:$C,Monthly_Report!BO$1)) -> 0 | BP106: =IF(B106="","",SUMIFS(Provider_Status!$E:$E,Provider_Status!$B:$B,Monthly_Report!$B106,Provider_Status!$C:$C,Monthly_Report!BP$1)) -> 0 | BQ106: =IF(F106="","",SUMIFS(Training_BMGF!P:P,Training_BMGF!C:C,Monthly_Report!F106,Training_BMGF!L:L,Monthly_Report!K106)) -> 0 | BR106: =VLOOKUP(G106,'Facility List'!Q:R,2,FALSE) -> Faizabad | BT106: 1 | BU106: 1 | BV106: =SUMIFS(Training_BMGF!P:P,Training_BMGF!C:C,Monthly_Report!F106,Training_BMGF!D:D,Monthly_Report!BV$1,Training_BMGF!L:L,"<="&K106) -> 4 | BW106: =SUMIFS(Training_BMGF!P:P,Training_BMGF!C:C,Monthly_Report!F106,Training_BMGF!D:D,Monthly_Report!BW$1,Training_BMGF!L:L,"<="&K106) -> 8 | BX106: =COUNTIFS('Service Data'!$E:$E,">=1",'Service Data'!$I:$I,Monthly_Report!$E106,'Service Data'!$J:$J,Monthly_Report!BX$1,'Service Data'!$C:$C,Monthly_Report!$K106) -> 3 | BY106: =COUNTIFS('Service Data'!$E:$E,">=1",'Service Data'!$I:$I,Monthly_Report!$E106,'Service Data'!$J:$J,Monthly_Report!BY$1,'Service Data'!$C:$C,Monthly_Report!$K106) -> 2
A107: 20076 | B107: UP-0005-BBK-001-DH_2016_Nov | C107: BMGF (MCHIP-SUP) | D107: Uttar Pradesh | E107: Barabanki_DWH-DH | F107: UP-0005-BBK-001-DH | G107: Barabanki | H107: District Hospital | I107: 2016 | J107: Nov | K107: 2016-11-01 | L107: 2016-11-30 | M107: 182 | N107: 382 | O107: 238 | P107: 620 | Q107: 0 | R107: 0 | S107: 0 | T107: 37 | U107: 20 | V107: 57 | W107: 0 | X107: 719 | Y107: 7620 | Z107: 20 | AA107: 293 | AB107: 0 | AC107: 76 | AD107: 134 | AE107: 136 | AF107: 346 | AJ107: 0 | AK107: 0 | AL107: 0 | AM107: 3 | AN107: 2 | AO107: 5 | AP107: 3 | AQ107: 2 | AR107: 5 | AS107: 0 | AT107: 1 | AU107: 0 | AV107: 0 | AW107: 1 | AX107: 0 | AY107: 1 | AZ107: 1 | BA107: 6 | BB107: 0 | BC107: 6 | BD107: 0 | BE107: 1 | BF107: 2 | BG107: 6 | BH107: 7 | BI107: 0 | BJ107: 2016-11-30T11:57:28 | BL107: 0 | BM107: =IF(B107="","",SUMIFS(Provider_Status!$D:$D,Provider_Status!$B:$B,Monthly_Report!$B107,Provider_Status!$C:$C,Monthly_Report!BM$1)) -> 0 | BN107: =IF(B107="","",SUMIFS(Provider_Status!$D:$D,Provider_Status!$B:$B,Monthly_Report!$B107,Provider_Status!$C:$C,Monthly_Report!BN$1)) -> 0 | BO107: =IF(B107="","",SUMIFS(Provider_Status!$E:$E,Provider_Status!$B:$B,Monthly_Report!$B107,Provider_Status!$C:$C,Monthly_Report!BO$1)) -> 0 | BP107: =IF(B107="","",SUMIFS(Provider_Status!$E:$E,Provider_Status!$B:$B,Monthly_Report!$B107,Provider_Status!$C:$C,Monthly_Report!BP$1)) -> 0 | BQ107: =IF(F107="","",SUMIFS(Training_BMGF!P:P,Training_BMGF!C:C,Monthly_Report!F107,Training_BMGF!L:L,Monthly_Report!K107)) -> 0 | BR107: =VLOOKUP(G107,'Facility List'!Q:R,2,FALSE) -> Faizabad | BT107: 1 | BU107: 1 | BV107: =SUMIFS(Training_BMGF!P:P,Training_BMGF!C:C,Monthly_Report!F107,Training_BMGF!D:D,Monthly_Report!BV$1,Training_BMGF!L:L,"<="&K107) -> 4 | BW107: =SUMIFS(Training_BMGF!P:P,Training_BMGF!C:C,Monthly_Report!F107,Training_BMGF!D:D,Monthly_Report!BW$1,Training_BMGF!L:L,"<="&K107) -> 8 | BX107: =COUNTIFS('Service Data'!$E:$E,">=1",'Service Data'!$I:$I,Monthly_Report!$E107,'Service Data'!$J:$J,Monthly_Report!BX$1,'Service Data'!$C:$C,Monthly_Report!$K107) -> 4 | BY107: =COUNTIFS('Service Data'!$E:$E,">=1",'Service Data'!$I:$I,Monthly_Report!$E107,'Service Data'!$J:$J,Monthly_Report!BY$1,'Service Data'!$C:$C,Monthly_Report!$K107) -> 6
A108: 19820 | B108: UP-0005-BBK-001-DH_2016_Oct | C108: BMGF (MCHIP-SUP) | D108: Uttar Pradesh | E108: Barabanki_DWH-DH | F108: UP-0005-BBK-001-DH | G108: Barabanki | H108: District Hospital | I108: 2016 | J108: Oct | K108: 2016-10-01 | L108: 2016-11-16 | M108: 0 | N108: 365 | O108: 261 | P108: 626 | Q108: 0 | R108: 0 | S108: 0 | T108: 54 | U108: 15 | V108: 69 | W108: 0 | X108: 609 | Y108: 9330 | Z108: 16 | AA108: 234 | AB108: 0 | AC108: 64 | AD108: 95 | AE108: 189 | AF108: 348 | AJ108: 6 | AK108: 6 | AL108: 12 | AM108: 6 | AN108: 6 | AO108: 12 | AP108: 12 | AQ108: 12 | AR108: 24 | AS108: 1 | AT108: 1 | AU108: 0 | AV108: 0 | AW108: 10 | AX108: 0 | AY108: 1 | AZ108: 1 | BA108: 4 | BB108: 0 | BC108: 6 | BD108: 0 | BE108: 2 | BF108: 2 | BG108: 4 | BH108: 16 | BI108: 0 | BJ108: 2016-11-16T13:59:54 | BL108: 0 | BM108: =IF(B108="","",SUMIFS(Provider_Status!$D:$D,Provider_Status!$B:$B,Monthly_Report!$B108,Provider_Status!$C:$C,Monthly_Report!BM$1)) -> 0 | BN108: =IF(B108="","",SUMIFS(Provider_Status!$D:$D,Provider_Status!$B:$B,Monthly_Report!$B108,Provider_Status!$C:$C,Monthly_Report!BN$1)) -> 0 | BO108: =IF(B108="","",SUMIFS(Provider_Status!$E:$E,Provider_Status!$B:$B,Monthly_Report!$B108,Provider_Status!$C:$C,Monthly_Report!BO$1)) -> 0 | BP108: =IF(B108="","",SUMIFS(Provider_Status!$E:$E,Provider_Status!$B:$B,Monthly_Report!$B108,Provider_Status!$C:$C,Monthly_Report!BP$1)) -> 0 | BQ108: =IF(F108="","",SUMIFS(Training_BMGF!P:P,Training_BMGF!C:C,Monthly_Report!F108,Training_BMGF!L:L,Monthly_Report!K108)) -> 0 | BR108: =VLOOKUP(G108,'Facility List'!Q:R,2,FALSE) -> Faizabad | BT108: 1 | BU108: 1 | BV108: =SUMIFS(Training_BMGF!P:P,Training_BMGF!C:C,Monthly_Report!F108,Training_BMGF!D:D,Monthly_Report!BV$1,Training_BMGF!L:L,"<="&K108) -> 4 | BW108: =SUMIFS(Training_BMGF!P:P,Training_BMGF!C:C,Monthly_Report!F108,Training_BMGF!D:D,Monthly_Report!BW$1,Training_BMGF!L:L,"<="&K108) -> 8 | BX108: =COUNTIFS('Service Data'!$E:$E,">=1",'Service Data'!$I:$I,Monthly_Report!$E108,'Service Data'!$J:$J,Monthly_Report!BX$1,'Service Data'!$C:$C,Monthly_Report!$K108) -> 3 | BY108: =COUNTIFS('Service Data'!$E:$E,">=1",'Service Data'!$I:$I,Monthly_Report!$E108,'Service Data'!$J:$J,Monthly_Report!BY$1,'Service Data'!$C:$C,Monthly_Report!$K108) -> 7
A109: 19248 | B109: UP-0005-BBK-001-DH_2016_Sep | C109: BMGF (MCHIP-SUP) | D109: Uttar Pradesh | E109: Barabanki_DWH-DH | F109: UP-0005-BBK-001-DH | G109: Barabanki | H109: District Hospital | I109: 2016 | J109: Sep | K109: 2016-09-01 | L109: 42650 | M109: 184 | N109: 395 | O109: 242 | P109: 637 | Q109: 0 | R109: 0 | S109: 0 | T109: 39 | U109: 27 | V109: 66 | W109: 0 | X109: 362 | Y109: 4338 | Z109: 33 | AA109: 96 | AB109: 0 | AC109: 91 | AD109: 70 | AE109: 92 | AF109: 253 | AJ109: 1 | AK109: 3 | AL109: 4 | AM109: 2 | AN109: 8 | AO109: 10 | AP109: 3 | AQ109: 11 | AR109: 14 | AS109: 0 | AT109: 0 | AU109: 0 | AV109: 0 | AW109: 3 | AX109: 0 | AY109: 1 | AZ109: 1 | BA109: 4 | BB109: 0 | BC109: 5 | BD109: 0 | BE109: 1 | BF109: 1 | BG109: 4 | BH109: 8 | BI109: 0 | BJ109: 2016-10-07T13:51:24 | BL109: 0 | BM109: =IF(B109="","",SUMIFS(Provider_Status!$D:$D,Provider_Status!$B:$B,Monthly_Report!$B109,Provider_Status!$C:$C,Monthly_Report!BM$1)) -> 0 | BN109: =IF(B109="","",SUMIFS(Provider_Status!$D:$D,Provider_Status!$B:$B,Monthly_Report!$B109,Provider_Status!$C:$C,Monthly_Report!BN$1)) -> 0 | BO109: =IF(B109="","",SUMIFS(Provider_Status!$E:$E,Provider_Status!$B:$B,Monthly_Report!$B109,Provider_Status!$C:$C,Monthly_Report!BO$1)) -> 0 | BP109: =IF(B109="","",SUMIFS(Provider_Status!$E:$E,Provider_Status!$B:$B,Monthly_Report!$B109,Provider_Status!$C:$C,Monthly_Report!BP$1)) -> 0 | BQ109: =IF(F109="","",SUMIFS(Training_BMGF!P:P,Training_BMGF!C:C,Monthly_Report!F109,Training_BMGF!L:L,Monthly_Report!K109)) -> 0 | BR109: =VLOOKUP(G109,'Facility List'!Q:R,2,FALSE) -> Faizabad | BT109: 1 | BU109: 1 | BV109: =SUMIFS(Training_BMGF!P:P,Training_BMGF!C:C,Monthly_Report!F109,Training_BMGF!D:D,Monthly_Report!BV$1,Training_BMGF!L:L,"<="&K109) -> 4 | BW109: =SUMIFS(Training_BMGF!P:P,Training_BMGF!C:C,Monthly_Report!F109,Training_BMGF!D:D,Monthly_Report!BW$1,Training_BMGF!L:L,"<="&K109) -> 8 | BX109: =COUNTIFS('Service Data'!$E:$E,">=1",'Service Data'!$I:$I,Monthly_Report!$E109,'Service Data'!$J:$J,Monthly_Report!BX$1,'Service Data'!$C:$C,Monthly_Report!$K109) -> 3 | BY109: =COUNTIFS('Service Data'!$E:$E,">=1",'Service Data'!$I:$I,Monthly_Report!$E109,'Service Data'!$J:$J,Monthly_Report!BY$1,'Service Data'!$C:$C,Monthly_Report!$K109) -> 7
A110: 23126 | B110: UP-0005-BBK-001-DH_2017_Apr | C110: BMGF (MCHIP-SUP) | D110: Uttar Pradesh | E110: Barabanki_DWH-DH | F110: UP-0005-BBK-001-DH | G110: Barabanki | H110: District Hospital | I110: 2017 | J110: Apr | K110: 2017-04-01 | L110: 2017-04-26 | M110: 245 | N110: 165 | O110: 131 | P110: 296 | Q110: 0 | R110: 0 | S110: 0 | T110: 21 | U110: 9 | V110: 30 | W110: 0 | X110: 7 | Y110: 4610 | Z110: 17 | AA110: 0 | AB110: 0 | AC110: 84 | AD110: 56 | AE110: 105 | AF110: 245 | AJ110: 0 | AK110: 0 | AL110: 0 | AM110: 0 | AN110: 13 | AO110: 13 | AP110: 0 | AQ110: 13 | AR110: 13 | AS110: 0 | AT110: 0 | AU110: 0 | AV110: 0 | AW110: 0 | AX110: 0 | AY110: 0 | AZ110: 0 | BA110: 2 | BB110: 0 | BC110: 9 | BD110: 2 | BE110: 0 | BF110: 0 | BG110: 2 | BH110: 9 | BI110: 2 | BJ110: 2017-05-03T13:39:34 | BL110: 0 | BM110: =IF(B110="","",SUMIFS(Provider_Status!$D:$D,Provider_Status!$B:$B,Monthly_Report!$B110,Provider_Status!$C:$C,Monthly_Report!BM$1)) -> 9 | BN110: =IF(B110="","",SUMIFS(Provider_Status!$D:$D,Provider_Status!$B:$B,Monthly_Report!$B110,Provider_Status!$C:$C,Monthly_Report!BN$1)) -> 9 | BO110: =IF(B110="","",SUMIFS(Provider_Status!$E:$E,Provider_Status!$B:$B,Monthly_Report!$B110,Provider_Status!$C:$C,Monthly_Report!BO$1)) -> 6 | BP110: =IF(B110="","",SUMIFS(Provider_Status!$E:$E,Provider_Status!$B:$B,Monthly_Report!$B110,Provider_Status!$C:$C,Monthly_Report!BP$1)) -> 9 | BQ110: =IF(F110="","",SUMIFS(Training_BMGF!P:P,Training_BMGF!C:C,Monthly_Report!F110,Training_BMGF!L:L,Monthly_Report!K110)) -> 0 | BR110: =VLOOKUP(G110,'Facility List'!Q:R,2,FALSE) -> Faizabad | BT110: 1 | BU110: 1 | BV110: =SUMIFS(Training_BMGF!P:P,Training_BMGF!C:C,Monthly_Report!F110,Training_BMGF!D:D,Monthly_Report!BV$1,Training_BMGF!L:L,"<="&K110) -> 4 | BW110: =SUMIFS(Training_BMGF!P:P,Training_BMGF!C:C,Monthly_Report!F110,Training_BMGF!D:D,Monthly_Report!BW$1,Training_BMGF!L:L,"<="&K110) -> 8 | BX110: =COUNTIFS('Service Data'!$E:$E,">=1",'Service Data'!$I:$I,Monthly_Report!$E110,'Service Data'!$J:$J,Monthly_Report!BX$1,'Service Data'!$C:$C,Monthly_Report!$K110) -> 3 | BY110: =COUNTIFS('Service Data'!$E:$E,">=1",'Service Data'!$I:$I,Monthly_Report!$E110,'Service Data'!$J:$J,Monthly_Report!BY$1,'Service Data'!$C:$C,Monthly_Report!$K110) -> 7
A111: 25870 | B111: UP-0005-BBK-001-DH_2017_Aug | C111: BMGF (MCHIP-SUP) | D111: Uttar Pradesh | E111: Barabanki_DWH-DH | F111: UP-0005-BBK-001-DH | G111: Barabanki | H111: District Hospital | I111: 2017 | J111: Aug | K111: 2017-08-01 | L111: 2017-08-28 | M111: 237 | N111: 406 | O111: 274 | P111: 680 | Q111: 0 | R111: 0 | S111: 0 | T111: 47 | U111: 20 | V111: 67 | W111: 0 | X111: 610 | Y111: 6520 | Z111: 18 | AA111: 144 | AB111: 0 | AC111: 11 | AD111: 45 | AE111: 124 | AF111: 180 | AJ111: 0 | AK111: 0 | AL111: 0 | AM111: 0 | AN111: 0 | AO111: 0 | AP111: 0 | AQ111: 0 | AR111: 0 | AS111: 0 | AT111: 0 | AU111: 0 | AV111: 0 | AW111: 0 | AX111: 0 | AY111: 0 | AZ111: 0 | BA111: 0 | BB111: 0 | BC111: 0 | BD111: 0 | BE111: 0 | BF111: 0 | BG111: 0 | BH111: 0 | BI111: 0 | BJ111: 2017-08-29T10:24:43 | BL111: 0 | BM111: =IF(B111="","",SUMIFS(Provider_Status!$D:$D,Provider_Status!$B:$B,Monthly_Report!$B111,Provider_Status!$C:$C,Monthly_Report!BM$1)) -> 5 | BN111: =IF(B111="","",SUMIFS(Provider_Status!$D:$D,Provider_Status!$B:$B,Monthly_Report!$B111,Provider_Status!$C:$C,Monthly_Report!BN$1)) -> 9 | BO111: =IF(B111="","",SUMIFS(Provider_Status!$E:$E,Provider_Status!$B:$B,Monthly_Report!$B111,Provider_Status!$C:$C,Monthly_Report!BO$1)) -> 4 | BP111: =IF(B111="","",SUMIFS(Provider_Status!$E:$E,Provider_Status!$B:$B,Monthly_Report!$B111,Provider_Status!$C:$C,Monthly_Report!BP$1)) -> 2 | BQ111: =IF(F111="","",SUMIFS(Training_BMGF!P:P,Training_BMGF!C:C,Monthly_Report!F111,Training_BMGF!L:L,Monthly_Report!K111)) -> 0 | BR111: =VLOOKUP(G111,'Facility List'!Q:R,2,FALSE) -> Faizabad | BT111: 1 | BU111: 1 | BV111: =SUMIFS(Training_BMGF!P:P,Training_BMGF!C:C,Monthly_Report!F111,Training_BMGF!D:D,Monthly_Report!BV$1,Training_BMGF!L:L,"<="&K111) -> 4 | BW111: =SUMIFS(Training_BMGF!P:P,Training_BMGF!C:C,Monthly_Report!F111,Training_BMGF!D:D,Monthly_Report!BW$1,Training_BMGF!L:L,"<="&K111) -> 8 | BX111: =COUNTIFS('Service Data'!$E:$E,">=1",'Service Data'!$I:$I,Monthly_Report!$E111,'Service Data'!$J:$J,Monthly_Report!BX$1,'Service Data'!$C:$C,Monthly_Report!$K111) -> 3 | BY111: =COUNTIFS('Service Data'!$E:$E,">=1",'Service Data'!$I:$I,Monthly_Report!$E111,'Service Data'!$J:$J,Monthly_Report!BY$1,'Service Data'!$C:$C,Monthly_Report!$K111) -> 2
A112: 28416 | B112: UP-0005-BBK-001-DH_2017_Dec | C112: BMGF (MCHIP-SUP) | D112: Uttar Pradesh | E112: Barabanki_DWH-DH | F112: UP-0005-BBK-001-DH | G112: Barabanki | H112: District Hospital | I112: 2017 | J112: Dec | K112: 2017-12-01 | L112: 2017-12-23 | M112: 159 | N112: 276 | O112: 200 | P112: 476 | Q112: 0 | R112: 0 | S112: 0 | T112: 34 | U112: 81 | V112: 115 | W112: 0 | X112: 860 | Y112: 5290 | Z112: 13 | AA112: 86 | AB112: 0 | AC112: 15 | AD112: 2 | AE112: 59 | AF112: 76 | AJ112: 0 | AK112: 0 | AL112: 0 | AM112: 0 | AN112: 0 | AO112: 0 | AP112: 0 | AQ112: 0 | AR112: 0 | AS112: 0 | AT112: 0 | AU112: 0 | AV112: 0 | AW112: 0 | AX112: 0 | AY112: 0 | AZ112: 0 | BA112: 0 | BB112: 0 | BC112: 0 | BD112: 0 | BE112: 0 | BF112: 0 | BG112: 0 | BH112: 0 | BI112: 0 | BJ112: 2018-01-02T11:31:40 | BL112: 0 | BM112: =IF(B112="","",SUMIFS(Provider_Status!$D:$D,Provider_Status!$B:$B,Monthly_Report!$B112,Provider_Status!$C:$C,Monthly_Report!BM$1)) -> 0 | BN112: =IF(B112="","",SUMIFS(Provider_Status!$D:$D,Provider_Status!$B:$B,Monthly_Report!$B112,Provider_Status!$C:$C,Monthly_Report!BN$1)) -> 0 | BO112: =IF(B112="","",SUMIFS(Provider_Status!$E:$E,Provider_Status!$B:$B,Monthly_Report!$B112,Provider_Status!$C:$C,Monthly_Report!BO$1)) -> 0 | BP112: =IF(B112="","",SUMIFS(Provider_Status!$E:$E,Provider_Status!$B:$B,Monthly_Report!$B112,Provider_Status!$C:$C,Monthly_Report!BP$1)) -> 0 | BQ112: =IF(F112="","",SUMIFS(Training_BMGF!P:P,Training_BMGF!C:C,Monthly_Report!F112,Training_BMGF!L:L,Monthly_Report!K112)) -> 0 | BR112: =VLOOKUP(G112,'Facility List'!Q:R,2,FALSE) -> Faizabad | BT112: 1 | BU112: 1 | BV112: =SUMIFS(Training_BMGF!P:P,Training_BMGF!C:C,Monthly_Report!F112,Training_BMGF!D:D,Monthly_Report!BV$1,Training_BMGF!L:L,"<="&K112) -> 4 | BW112: =SUMIFS(Training_BMGF!P:P,Training_BMGF!C:C,Monthly_Report!F112,Training_BMGF!D:D,Monthly_Report!BW$1,Training_BMGF!L:L,"<="&K112) -> 8 | BX112: =COUNTIFS('Service Data'!$E:$E,">=1",'Service Data'!$I:$I,Monthly_Report!$E112,'Service Data'!$J:$J,Monthly_Report!BX$1,'Service Data'!$C:$C,Monthly_Report!$K112) -> 2 | BY112: =COUNTIFS('Service Data'!$E:$E,">=1",'Service Data'!$I:$I,Monthly_Report!$E112,'Service Data'!$J:$J,Monthly_Report!BY$1,'Service Data'!$C:$C,Monthly_Report!$K112) -> 2
A113: 21952 | B113: UP-0005-BBK-001-DH_2017_Feb | C113: BMGF (MCHIP-SUP) | D113: Uttar Pradesh | E113: Barabanki_DWH-DH | F113: UP-0005-BBK-001-DH | G113: Barabanki | H113: District Hospital | I113: 2017 | J113: Feb | K113: 2017-02-01 | L113: 42800 | M113: 325 | N113: 341 | O113: 258 | P113: 599 | Q113: 0 | R113: 0 | S113: 0 | T113: 45 | U113: 84 | V113: 129 | W113: 0 | X113: 764 | Y113: 5780 | Z113: 20 | AA113: 0 | AB113: 0 | AC113: 176 | AD113: 107 | AE113: 191 | AF113: 474 | AJ113: 0 | AK113: 0 | AL113: 0 | AM113: 46 | AN113: 9 | AO113: 55 | AP113: 46 | AQ113: 9 | AR113: 55 | AS113: 1 | AT113: 4 | AU113: 2 | AV113: 0 | AW113: 39 | AX113: 0 | AY113: 0 | AZ113: 0 | BA113: 2 | BB113: 0 | BC113: 6 | BD113: 1 | BE113: 1 | BF113: 4 | BG113: 4 | BH113: 45 | BI113: 1 | BJ113: 2017-03-08T12:10:54 | BL113: 0 | BM113: =IF(B113="","",SUMIFS(Provider_Status!$D:$D,Provider_Status!$B:$B,Monthly_Report!$B113,Provider_Status!$C:$C,Monthly_Report!BM$1)) -> 9 | BN113: =IF(B113="","",SUMIFS(Provider_Status!$D:$D,Provider_Status!$B:$B,Monthly_Report!$B113,Provider_Status!$C:$C,Monthly_Report!BN$1)) -> 8 | BO113: =IF(B113="","",SUMIFS(Provider_Status!$E:$E,Provider_Status!$B:$B,Monthly_Report!$B113,Provider_Status!$C:$C,Monthly_Report!BO$1)) -> 5 | BP113: =IF(B113="","",SUMIFS(Provider_Status!$E:$E,Provider_Status!$B:$B,Monthly_Report!$B113,Provider_Status!$C:$C,Monthly_Report!BP$1)) -> 8 | BQ113: =IF(F113="","",SUMIFS(Training_BMGF!P:P,Training_BMGF!C:C,Monthly_Report!F113,Training_BMGF!L:L,Monthly_Report!K113)) -> 0 | BR113: =VLOOKUP(G113,'Facility List'!Q:R,2,FALSE) -> Faizabad | BT113: 1 | BU113: 1 | BV113: =SUMIFS(Training_BMGF!P:P,Training_BMGF!C:C,Monthly_Report!F113,Training_BMGF!D:D,Monthly_Report!BV$1,Training_BMGF!L:L,"<="&K113) -> 4 | BW113: =SUMIFS(Training_BMGF!P:P,Training_BMGF!C:C,Monthly_Report!F113,Training_BMGF!D:D,Monthly_Report!BW$1,Training_BMGF!L:L,"<="&K113) -> 8 | BX113: =COUNTIFS('Service Data'!$E:$E,">=1",'Service Data'!$I:$I,Monthly_Report!$E113,'Service Data'!$J:$J,Monthly_Report!BX$1,'Service Data'!$C:$C,Monthly_Report!$K113) -> 3 | BY113: =COUNTIFS('Service Data'!$E:$E,">=1",'Service Data'!$I:$I,Monthly_Report!$E113,'Service Data'!$J:$J,Monthly_Report!BY$1,'Service Data'!$C:$C,Monthly_Report!$K113) -> 7
A114: 21052 | B114: UP-0005-BBK-001-DH_2017_Jan | C114: BMGF (MCHIP-SUP) | D114: Uttar Pradesh | E114: Barabanki_DWH-DH | F114: UP-0005-BBK-001-DH | G114: Barabanki | H114: District Hospital | I114: 2017 | J114: Jan | K114: 2017-01-01 | L114: 2017-01-27 | M114: 233 | N114: 292 | O114: 222 | P114: 514 | Q114: 0 | R114: 0 | S114: 0 | T114: 29 | U114: 87 | V114: 116 | W114: 0 | X114: 658 | Y114: 6416 | Z114: 16 | AA114: 0 | AB114: 0 | AC114: 161 | AD114: 76 | AE114: 150 | AF114: 387 | AJ114: 0 | AK114: 3 | AL114: 3 | AM114: 0 | AN114: 3 | AO114: 3 | AP114: 0 | AQ114: 6 | AR114: 6 | AS114: 0 | AT114: 0 | AU114: 0 | AV114: 0 | AW114: 0 | AX114: 0 | AY114: 0 | AZ114: 0 | BA114: 1 | BB114: 0 | BC114: 1 | BD114: 1 | BE114: 0 | BF114: 0 | BG114: 1 | BH114: 1 | BI114: 1 | BJ114: 2017-01-27T17:24:00 | BL114: 0 | BM114: =IF(B114="","",SUMIFS(Provider_Status!$D:$D,Provider_Status!$B:$B,Monthly_Report!$B114,Provider_Status!$C:$C,Monthly_Report!BM$1)) -> 7 | BN114: =IF(B114="","",SUMIFS(Provider_Status!$D:$D,Provider_Status!$B:$B,Monthly_Report!$B114,Provider_Status!$C:$C,Monthly_Report!BN$1)) -> 9 | BO114: =IF(B114="","",SUMIFS(Provider_Status!$E:$E,Provider_Status!$B:$B,Monthly_Report!$B114,Provider_Status!$C:$C,Monthly_Report!BO$1)) -> 6 | BP114: =IF(B114="","",SUMIFS(Provider_Status!$E:$E,Provider_Status!$B:$B,Monthly_Report!$B114,Provider_Status!$C:$C,Monthly_Report!BP$1)) -> 8 | BQ114: =IF(F114="","",SUMIFS(Training_BMGF!P:P,Training_BMGF!C:C,Monthly_Report!F114,Training_BMGF!L:L,Monthly_Report!K114)) -> 0 | BR114: =VLOOKUP(G114,'Facility List'!Q:R,2,FALSE) -> Faizabad | BT114: 1 | BU114: 1 | BV114: =SUMIFS(Training_BMGF!P:P,Training_BMGF!C:C,Monthly_Report!F114,Training_BMGF!D:D,Monthly_Report!BV$1,Training_BMGF!L:L,"<="&K114) -> 4 | BW114: =SUMIFS(Training_BMGF!P:P,Training_BMGF!C:C,Monthly_Report!F114,Training_BMGF!D:D,Monthly_Report!BW$1,Training_BMGF!L:L,"<="&K114) -> 8 | BX114: =COUNTIFS('Service Data'!$E:$E,">=1",'Service Data'!$I:$I,Monthly_Report!$E114,'Service Data'!$J:$J,Monthly_Report!BX$1,'Service Data'!$C:$C,Monthly_Report!$K114) -> 4 | BY114: =COUNTIFS('Service Data'!$E:$E,">=1",'Service Data'!$I:$I,Monthly_Report!$E114,'Service Data'!$J:$J,Monthly_Report!BY$1,'Service Data'!$C:$C,Monthly_Report!$K114) -> 7
A115: 25283 | B115: UP-0005-BBK-001-DH_2017_Jul | C115: BMGF (MCHIP-SUP) | D115: Uttar Pradesh | E115: Barabanki_DWH-DH | F115: UP-0005-BBK-001-DH | G115: Barabanki | H115: District Hospital | I115: 2017 | J115: Jul | K115: 2017-07-01 | L115: 2017-07-31 | M115: 261 | N115: 298 | O115: 231 | P115: 529 | Q115: 200 | R115: 298 | S115: 498 | T115: 37 | U115: 9 | V115: 46 | W115: 0 | X115: 583 | Y115: 13044 | Z115: 24 | AA115: 157 | AB115: 0 | AC115: 11 | AD115: 83 | AE115: 130 | AF115: 224 | AJ115: 0 | AK115: 0 | AL115: 0 | AM115: 0 | AN115: 0 | AO115: 0 | AP115: 0 | AQ115: 0 | AR115: 0 | AS115: 0 | AT115: 0 | AU115: 0 | AV115: 0 | AW115: 0 | AX115: 0 | AY115: 0 | AZ115: 0 | BA115: 0 | BB115: 0 | BC115: 0 | BD115: 0 | BE115: 0 | BF115: 0 | BG115: 0 | BH115: 0 | BI115: 0 | BJ115: 2017-07-31T15:05:03 | BL115: 0 | BM115: =IF(B115="","",SUMIFS(Provider_Status!$D:$D,Provider_Status!$B:$B,Monthly_Report!$B115,Provider_Status!$C:$C,Monthly_Report!BM$1)) -> 5 | BN115: =IF(B115="","",SUMIFS(Provider_Status!$D:$D,Provider_Status!$B:$B,Monthly_Report!$B115,Provider_Status!$C:$C,Monthly_Report!BN$1)) -> 9 | BO115: =IF(B115="","",SUMIFS(Provider_Status!$E:$E,Provider_Status!$B:$B,Monthly_Report!$B115,Provider_Status!$C:$C,Monthly_Report!BO$1)) -> 5 | BP115: =IF(B115="","",SUMIFS(Provider_Status!$E:$E,Provider_Status!$B:$B,Monthly_Report!$B115,Provider_Status!$C:$C,Monthly_Report!BP$1)) -> 2 | BQ115: =IF(F115="","",SUMIFS(Training_BMGF!P:P,Training_BMGF!C:C,Monthly_Report!F115,Training_BMGF!L:L,Monthly_Report!K115)) -> 0 | BR115: =VLOOKUP(G115,'Facility List'!Q:R,2,FALSE) -> Faizabad | BT115: 1 | BU115: 1 | BV115: =SUMIFS(Training_BMGF!P:P,Training_BMGF!C:C,Monthly_Report!F115,Training_BMGF!D:D,Monthly_Report!BV$1,Training_BMGF!L:L,"<="&K115) -> 4 | BW115: =SUMIFS(Training_BMGF!P:P,Training_BMGF!C:C,Monthly_Report!F115,Training_BMGF!D:D,Monthly_Report!BW$1,Training_BMGF!L:L,"<="&K115) -> 8 | BX115: =COUNTIFS('Service Data'!$E:$E,">=1",'Service Data'!$I:$I,Monthly_Report!$E115,'Service Data'!$J:$J,Monthly_Report!BX$1,'Service Data'!$C:$C,Monthly_Report!$K115) -> 3 | BY115: =COUNTIFS('Service Data'!$E:$E,">=1",'Service Data'!$I:$I,Monthly_Report!$E115,'Service Data'!$J:$J,Monthly_Report!BY$1,'Service Data'!$C:$C,Monthly_Report!$K115) -> 2
A116: 24379 | B116: UP-0005-BBK-001-DH_2017_Jun | C116: BMGF (MCHIP-SUP) | D116: Uttar Pradesh | E116: Barabanki_DWH-DH | F116: UP-0005-BBK-001-DH | G116: Barabanki | H116: District Hospital | I116: 2017 | J116: Jun | K116: 2017-06-01 | L116: 42914 | M116: 303 | N116: 366 | O116: 231 | P116: 597 | Q116: 0 | R116: 0 | S116: 0 | T116: 42 | U116: 26 | V116: 68 | W116: 0 | X116: 1562 | Y116: 6210 | Z116: 14 | AA116: 0 | AB116: 0 | AC116: 17 | AD116: 150 | AE116: 169 | AF116: 336 | AJ116: 0 | AK116: 0 | AL116: 0 | AM116: 0 | AN116: 26 | AO116: 26 | AP116: 0 | AQ116: 26 | AR116: 26 | AS116: 0 | AT116: 0 | AU116: 0 | AV116: 0 | AW116: 0 | AX116: 0 | AY116: 0 | AZ116: 0 | BA116: 4 | BB116: 9 | BC116: 13 | BD116: 0 | BE116: 0 | BF116: 0 | BG116: 4 | BH116: 13 | BI116: 0 | BJ116: 2017-06-28T16:29:58 | BL116: 9 | BM116: =IF(B116="","",SUMIFS(Provider_Status!$D:$D,Provider_Status!$B:$B,Monthly_Report!$B116,Provider_Status!$C:$C,Monthly_Report!BM$1)) -> 9 | BN116: =IF(B116="","",SUMIFS(Provider_Status!$D:$D,Provider_Status!$B:$B,Monthly_Report!$B116,Provider_Status!$C:$C,Monthly_Report!BN$1)) -> 9 | BO116: =IF(B116="","",SUMIFS(Provider_Status!$E:$E,Provider_Status!$B:$B,Monthly_Report!$B116,Provider_Status!$C:$C,Monthly_Report!BO$1)) -> 6 | BP116: =IF(B116="","",SUMIFS(Provider_Status!$E:$E,Provider_Status!$B:$B,Monthly_Report!$B116,Provider_Status!$C:$C,Monthly_Report!BP$1)) -> 0 | BQ116: =IF(F116="","",SUMIFS(Training_BMGF!P:P,Training_BMGF!C:C,Monthly_Report!F116,Training_BMGF!L:L,Monthly_Report!K116)) -> 0 | BR116: =VLOOKUP(G116,'Facility List'!Q:R,2,FALSE) -> Faizabad | BT116: 1 | BU116: 1 | BV116: =SUMIFS(Training_BMGF!P:P,Training_BMGF!C:C,Monthly_Report!F116,Training_BMGF!D:D,Monthly_Report!BV$1,Training_BMGF!L:L,"<="&K116) -> 4 | BW116: =SUMIFS(Training_BMGF!P:P,Training_BMGF!C:C,Monthly_Report!F116,Training_BMGF!D:D,Monthly_Report!BW$1,Training_BMGF!L:L,"<="&K116) -> 8 | BX116: =COUNTIFS('Service Data'!$E:$E,">=1",'Service Data'!$I:$I,Monthly_Report!$E116,'Service Data'!$J:$J,Monthly_Report!BX$1,'Service Data'!$C:$C,Monthly_Report!$K116) -> 4 | BY116: =COUNTIFS('Service Data'!$E:$E,">=1",'Service Data'!$I:$I,Monthly_Report!$E116,'Service Data'!$J:$J,Monthly_Report!BY$1,'Service Data'!$C:$C,Monthly_Report!$K116) -> 0
A117: 22353 | B117: UP-0005-BBK-001-DH_2017_Mar | C117: BMGF (MCHIP-SUP) | D117: Uttar Pradesh | E117: Barabanki_DWH-DH | F117: UP-0005-BBK-001-DH | G117: Barabanki | H117: District Hospital | I117: 2017 | J117: Mar | K117: 2017-03-01 | L117: 2017-04-04 | M117: 457 | N117: 370 | O117: 317 | P117: 687 | Q117: 0 | R117: 0 | S117: 0 | T117: 68 | U117: 60 | V117: 128 | W117: 0 | X117: 1242 | Y117: 7840 | Z117: 0 | AA117: 0 | AB117: 0 | AC117: 133 | AD117: 109 | AE117: 255 | AF117: 497 | AJ117: 0 | AK117: 0 | AL117: 0 | AM117: 12 | AN117: 0 | AO117: 20 | AP117: 12 | AQ117: 0 | AR117: 20 | AS117: 0 | AT117: 1 | AU117: 1 | AV117: 1 | AW117: 9 | AX117: 0 | AY117: 0 | AZ117: 0 | BA117: 4 | BB117: 0 | BC117: 16 | BD117: 0 | BE117: 0 | BF117: 1 | BG117: 5 | BH117: 25 | BI117: 0 | BJ117: 2017-04-04T14:58:21 | BL117: 1 | BM117: =IF(B117="","",SUMIFS(Provider_Status!$D:$D,Provider_Status!$B:$B,Monthly_Report!$B117,Provider_Status!$C:$C,Monthly_Report!BM$1)) -> 9 | BN117: =IF(B117="","",SUMIFS(Provider_Status!$D:$D,Provider_Status!$B:$B,Monthly_Report!$B117,Provider_Status!$C:$C,Monthly_Report!BN$1)) -> 9 | BO117: =IF(B117="","",SUMIFS(Provider_Status!$E:$E,Provider_Status!$B:$B,Monthly_Report!$B117,Provider_Status!$C:$C,Monthly_Report!BO$1)) -> 5 | BP117: =IF(B117="","",SUMIFS(Provider_Status!$E:$E,Provider_Status!$B:$B,Monthly_Report!$B117,Provider_Status!$C:$C,Monthly_Report!BP$1)) -> 8 | BQ117: =IF(F117="","",SUMIFS(Training_BMGF!P:P,Training_BMGF!C:C,Monthly_Report!F117,Training_BMGF!L:L,Monthly_Report!K117)) -> 0 | BR117: =VLOOKUP(G117,'Facility List'!Q:R,2,FALSE) -> Faizabad | BT117: 1 | BU117: 1 | BV117: =SUMIFS(Training_BMGF!P:P,Training_BMGF!C:C,Monthly_Report!F117,Training_BMGF!D:D,Monthly_Report!BV$1,Training_BMGF!L:L,"<="&K117) -> 4 | BW117: =SUMIFS(Training_BMGF!P:P,Training_BMGF!C:C,Monthly_Report!F117,Training_BMGF!D:D,Monthly_Report!BW$1,Training_BMGF!L:L,"<="&K117) -> 8 | BX117: =COUNTIFS('Service Data'!$E:$E,">=1",'Service Data'!$I:$I,Monthly_Report!$E117,'Service Data'!$J:$J,Monthly_Report!BX$1,'Service Data'!$C:$C,Monthly_Report!$K117) -> 3 | BY117: =COUNTIFS('Service Data'!$E:$E,">=1",'Service Data'!$I:$I,Monthly_Report!$E117,'Service Data'!$J:$J,Monthly_Report!BY$1,'Service Data'!$C:$C,Monthly_Report!$K117) -> 7
A118: 24378 | B118: UP-0005-BBK-001-DH_2017_May | C118: BMGF (MCHIP-SUP) | D118: Uttar Pradesh | E118: Barabanki_DWH-DH | F118: UP-0005-BBK-001-DH | G118: Barabanki | H118: District Hospital | I118: 2017 | J118: May | K118: 2017-05-01 | L118: 2017-06-28 | M118: 277 | N118: 259 | O118: 200 | P118: 459 | Q118: 0 | R118: 0 | S118: 0 | T118: 41 | U118: 13 | V118: 54 | W118: 0 | X118: 14 | Y118: 4840 | Z118: 20 | AA118: 0 | AB118: 0 | AC118: 39 | AD118: 84 | AE118: 151 | AF118: 274 | AJ118: 0 | AK118: 0 | AL118: 0 | AM118: 5 | AN118: 10 | AO118: 15 | AP118: 5 | AQ118: 10 | AR118: 15 | AS118: 0 | AT118: 0 | AU118: 2 | AV118: 0 | AW118: 3 | AX118: 0 | AY118: 0 | AZ118: 0 | BA118: 1 | BB118: 0 | BC118: 9 | BD118: 0 | BE118: 0 | BF118: 0 | BG118: 3 | BH118: 12 | BI118: 0 | BJ118: 2017-06-28T16:27:07 | BL118: 0 | BM118: =IF(B118="","",SUMIFS(Provider_Status!$D:$D,Provider_Status!$B:$B,Monthly_Report!$B118,Provider_Status!$C:$C,Monthly_Report!BM$1)) -> 9 | BN118: =IF(B118="","",SUMIFS(Provider_Status!$D:$D,Provider_Status!$B:$B,Monthly_Report!$B118,Provider_Status!$C:$C,Monthly_Report!BN$1)) -> 9 | BO118: =IF(B118="","",SUMIFS(Provider_Status!$E:$E,Provider_Status!$B:$B,Monthly_Report!$B118,Provider_Status!$C:$C,Monthly_Report!BO$1)) -> 6 | BP118: =IF(B118="","",SUMIFS(Provider_Status!$E:$E,Provider_Status!$B:$B,Monthly_Report!$B118,Provider_Status!$C:$C,Monthly_Report!BP$1)) -> 7 | BQ118: =IF(F118="","",SUMIFS(Training_BMGF!P:P,Training_BMGF!C:C,Monthly_Report!F118,Training_BMGF!L:L,Monthly_Report!K118)) -> 0 | BR118: =VLOOKUP(G118,'Facility List'!Q:R,2,FALSE) -> Faizabad | BT118: 1 | BU118: 1 | BV118: =SUMIFS(Training_BMGF!P:P,Training_BMGF!C:C,Monthly_Report!F118,Training_BMGF!D:D,Monthly_Report!BV$1,Training_BMGF!L:L,"<="&K118) -> 4 | BW118: =SUMIFS(Training_BMGF!P:P,Training_BMGF!C:C,Monthly_Report!F118,Training_BMGF!D:D,Monthly_Report!BW$1,Training_BMGF!L:L,"<="&K118) -> 8 | BX118: =COUNTIFS('Service Data'!$E:$E,">=1",'Service Data'!$I:$I,Monthly_Report!$E118,'Service Data'!$J:$J,Monthly_Report!BX$1,'Service Data'!$C:$C,Monthly_Report!$K118) -> 4 | BY118: =COUNTIFS('Service Data'!$E:$E,">=1",'Service Data'!$I:$I,Monthly_Report!$E118,'Service Data'!$J:$J,Monthly_Report!BY$1,'Service Data'!$C:$C,Monthly_Report!$K118) -> 7
A119: 27981 | B119: UP-0005-BBK-001-DH_2017_Nov | C119: BMGF (MCHIP-SUP) | D119: Uttar Pradesh | E119: Barabanki_DWH-DH | F119: UP-0005-BBK-001-DH | G119: Barabanki | H119: District Hospital | I119: 2017 | J119: Nov | K119: 2017-11-01 | L119: 43069 | M119: 163 | N119: 362 | O119: 246 | P119: 608 | Q119: 0 | R119: 0 | S119: 0 | T119: 42 | U119: 43 | V119: 85 | W119: 0 | X119: 778 | Y119: 6750 | Z119: 17 | AA119: 134 | AB119: 0 | AC119: 8 | AD119: 5 | AE119: 54 | AF119: 67 | AJ119: 0 | AK119: 0 | AL119: 0 | AM119: 0 | AN119: 0 | AO119: 0 | AP119: 0 | AQ119: 0 | AR119: 0 | AS119: 0 | AT119: 0 | AU119: 0 | AV119: 0 | AW119: 0 | AX119: 0 | AY119: 0 | AZ119: 0 | BA119: 0 | BB119: 0 | BC119: 0 | BD119: 0 | BE119: 0 | BF119: 0 | BG119: 0 | BH119: 0 | BI119: 0 | BJ119: 2017-11-30T15:25:55 | BL119: 0 | BM119: =IF(B119="","",SUMIFS(Provider_Status!$D:$D,Provider_Status!$B:$B,Monthly_Report!$B119,Provider_Status!$C:$C,Monthly_Report!BM$1)) -> 4 | BN119: =IF(B119="","",SUMIFS(Provider_Status!$D:$D,Provider_Status!$B:$B,Monthly_Report!$B119,Provider_Status!$C:$C,Monthly_Report!BN$1)) -> 9 | BO119: =IF(B119="","",SUMIFS(Provider_Status!$E:$E,Provider_Status!$B:$B,Monthly_Report!$B119,Provider_Status!$C:$C,Monthly_Report!BO$1)) -> 3 | BP119: =IF(B119="","",SUMIFS(Provider_Status!$E:$E,Provider_Status!$B:$B,Monthly_Report!$B119,Provider_Status!$C:$C,Monthly_Report!BP$1)) -> 4 | BQ119: =IF(F119="","",SUMIFS(Training_BMGF!P:P,Training_BMGF!C:C,Monthly_Report!F119,Training_BMGF!L:L,Monthly_Report!K119)) -> 0 | BR119: =VLOOKUP(G119,'Facility List'!Q:R,2,FALSE) -> Faizabad | BT119: 1 | BU119: 1 | BV119: =SUMIFS(Training_BMGF!P:P,Training_BMGF!C:C,Monthly_Report!F119,Training_BMGF!D:D,Monthly_Report!BV$1,Training_BMGF!L:L,"<="&K119) -> 4 | BW119: =SUMIFS(Training_BMGF!P:P,Training_BMGF!C:C,Monthly_Report!F119,Training_BMGF!D:D,Monthly_Report!BW$1,Training_BMGF!L:L,"<="&K119) -> 8 | BX119: =COUNTIFS('Service Data'!$E:$E,">=1",'Service Data'!$I:$I,Monthly_Report!$E119,'Service Data'!$J:$J,Monthly_Report!BX$1,'Service Data'!$C:$C,Monthly_Report!$K119) -> 3 | BY119: =COUNTIFS('Service Data'!$E:$E,">=1",'Service Data'!$I:$I,Monthly_Report!$E119,'Service Data'!$J:$J,Monthly_Report!BY$1,'Service Data'!$C:$C,Monthly_Report!$K119) -> 4
A120: 27173 | B120: UP-0005-BBK-001-DH_2017_Oct | C120: BMGF (MCHIP-SUP) | D120: Uttar Pradesh | E120: Barabanki_DWH-DH | F120: UP-0005-BBK-001-DH | G120: Barabanki | H120: District Hospital | I120: 2017 | J120: Oct | K120: 2017-10-01 | L120: 2017-10-26 | M120: 172 | N120: 393 | O120: 224 | P120: 617 | Q120: 0 | R120: 0 | S120: 0 | T120: 35 | U120: 8 | V120: 43 | W120: 0 | X120: 783 | Y120: 6570 | Z120: 10 | AA120: 141 | AB120: 0 | AC120: 38 | AD120: 0 | AE120: 13 | AF120: 51 | AJ120: 0 | AK120: 0 | AL120: 0 | AM120: 0 | AN120: 0 | AO120: 0 | AP120: 0 | AQ120: 0 | AR120: 0 | AS120: 0 | AT120: 0 | AU120: 0 | AV120: 0 | AW120: 0 | AX120: 0 | AY120: 0 | AZ120: 0 | BA120: 0 | BB120: 0 | BC120: 0 | BD120: 0 | BE120: 0 | BF120: 0 | BG120: 0 | BH120: 0 | BI120: 0 | BJ120: 2017-10-31T11:18:28 | BL120: 0 | BM120: =IF(B120="","",SUMIFS(Provider_Status!$D:$D,Provider_Status!$B:$B,Monthly_Report!$B120,Provider_Status!$C:$C,Monthly_Report!BM$1)) -> 4 | BN120: =IF(B120="","",SUMIFS(Provider_Status!$D:$D,Provider_Status!$B:$B,Monthly_Report!$B120,Provider_Status!$C:$C,Monthly_Report!BN$1)) -> 9 | BO120: =IF(B120="","",SUMIFS(Provider_Status!$E:$E,Provider_Status!$B:$B,Monthly_Report!$B120,Provider_Status!$C:$C,Monthly_Report!BO$1)) -> 2 | BP120: =IF(B120="","",SUMIFS(Provider_Status!$E:$E,Provider_Status!$B:$B,Monthly_Report!$B120,Provider_Status!$C:$C,Monthly_Report!BP$1)) -> 4 | BQ120: =IF(F120="","",SUMIFS(Training_BMGF!P:P,Training_BMGF!C:C,Monthly_Report!F120,Training_BMGF!L:L,Monthly_Report!K120)) -> 0 | BR120: =VLOOKUP(G120,'Facility List'!Q:R,2,FALSE) -> Faizabad | BT120: 1 | BU120: 1 | BV120: =SUMIFS(Training_BMGF!P:P,Training_BMGF!C:C,Monthly_Report!F120,Training_BMGF!D:D,Monthly_Report!BV$1,Training_BMGF!L:L,"<="&K120) -> 4 | BW120: =SUMIFS(Training_BMGF!P:P,Training_BMGF!C:C,Monthly_Report!F120,Training_BMGF!D:D,Monthly_Report!BW$1,Training_BMGF!L:L,"<="&K120) -> 8 | BX120: =COUNTIFS('Service Data'!$E:$E,">=1",'Service Data'!$I:$I,Monthly_Report!$E120,'Service Data'!$J:$J,Monthly_Report!BX$1,'Service Data'!$C:$C,Monthly_Report!$K120) -> 1 | BY120: =COUNTIFS('Service Data'!$E:$E,">=1",'Service Data'!$I:$I,Monthly_Report!$E120,'Service Data'!$J:$J,Monthly_Report!BY$1,'Service Data'!$C:$C,Monthly_Report!$K120) -> 4
A121: 26503 | B121: UP-0005-BBK-001-DH_2017_Sep | C121: BMGF (MCHIP-SUP) | D121: Uttar Pradesh | E121: Barabanki_DWH-DH | F121: UP-0005-BBK-001-DH | G121: Barabanki | H121: District Hospital | I121: 2017 | J121: Sep | K121: 2017-09-01 | L121: 2017-09-27 | M121: 203 | N121: 460 | O121: 235 | P121: 695 | Q121: 0 | R121: 0 | S121: 0 | T121: 39 | U121: 0 | V121: 39 | W121: 0 | X121: 655 | Y121: 6970 | Z121: 12 | AA121: 172 | AB121: 0 | AC121: 14 | AD121: 3 | AE121: 69 | AF121: 86 | AJ121: 0 | AK121: 0 | AL121: 0 | AM121: 0 | AN121: 0 | AO121: 0 | AP121: 0 | AQ121: 0 | AR121: 0 | AS121: 0 | AT121: 0 | AU121: 0 | AV121: 0 | AW121: 0 | AX121: 0 | AY121: 0 | AZ121: 0 | BA121: 0 | BB121: 0 | BC121: 0 | BD121: 0 | BE121: 0 | BF121: 0 | BG121: 0 | BH121: 0 | BI121: 0 | BJ121: 2017-09-27T12:56:36 | BL121: 0 | BM121: =IF(B121="","",SUMIFS(Provider_Status!$D:$D,Provider_Status!$B:$B,Monthly_Report!$B121,Provider_Status!$C:$C,Monthly_Report!BM$1)) -> 4 | BN121: =IF(B121="","",SUMIFS(Provider_Status!$D:$D,Provider_Status!$B:$B,Monthly_Report!$B121,Provider_Status!$C:$C,Monthly_Report!BN$1)) -> 9 | BO121: =IF(B121="","",SUMIFS(Provider_Status!$E:$E,Provider_Status!$B:$B,Monthly_Report!$B121,Provider_Status!$C:$C,Monthly_Report!BO$1)) -> 4 | BP121: =IF(B121="","",SUMIFS(Provider_Status!$E:$E,Provider_Status!$B:$B,Monthly_Report!$B121,Provider_Status!$C:$C,Monthly_Report!BP$1)) -> 2 | BQ121: =IF(F121="","",SUMIFS(Training_BMGF!P:P,Training_BMGF!C:C,Monthly_Report!F121,Training_BMGF!L:L,Monthly_Report!K121)) -> 0 | BR121: =VLOOKUP(G121,'Facility List'!Q:R,2,FALSE) -> Faizabad | BT121: 1 | BU121: 1 | BV121: =SUMIFS(Training_BMGF!P:P,Training_BMGF!C:C,Monthly_Report!F121,Training_BMGF!D:D,Monthly_Report!BV$1,Training_BMGF!L:L,"<="&K121) -> 4 | BW121: =SUMIFS(Training_BMGF!P:P,Training_BMGF!C:C,Monthly_Report!F121,Training_BMGF!D:D,Monthly_Report!BW$1,Training_BMGF!L:L,"<="&K121) -> 8 | BX121: =COUNTIFS('Service Data'!$E:$E,">=1",'Service Data'!$I:$I,Monthly_Report!$E121,'Service Data'!$J:$J,Monthly_Report!BX$1,'Service Data'!$C:$C,Monthly_Report!$K121) -> 3 | BY121: =COUNTIFS('Service Data'!$E:$E,">=1",'Service Data'!$I:$I,Monthly_Report!$E121,'Service Data'!$J:$J,Monthly_Report!BY$1,'Service Data'!$C:$C,Monthly_Report!$K121) -> 2
A122: 16287 | B122: UP-0006-BLS-001-DH_2016_Apr | C122: BMGF (MCHIP-SUP) | D122: Uttar Pradesh | E122: Bulandshahr_DWH-DH | F122: UP-0006-BLS-001-DH | G122: Bulandshahar | H122: District Hospital | I122: 2016 | J122: Apr | K122: 2016-04-01 | L122: 42483 | M122: 280 | N122: 361 | O122: 24 | P122: 385 | Q122: 165 | R122: 291 | S122: 456 | T122: 0 | U122: 20 | V122: 20 | W122: 0 | X122: 56 | Y122: 2270 | Z122: 74 | AA122: 0 | AB122: 0 | AC122: 6 | AD122: 18 | AE122: 2 | AF122: 26 | AJ122: 0 | AK122: 0 | AL122: 0 | AM122: 2 | AN122: 19 | AO122: 21 | AP122: 2 | AQ122: 19 | AR122: 21 | AS122: 2 | AT122: 0 | AU122: 0 | AV122: 0 | AW122: 0 | AX122: 0 | AY122: 0 | AZ122: 0 | BA122: 1 | BB122: 0 | BC122: 18 | BD122: 0 | BE122: 2 | BF122: 0 | BG122: 1 | BH122: 18 | BI122: 0 | BJ122: 2016-04-25T12:15:22 | BL122: 0 | BM122: =IF(B122="","",SUMIFS(Provider_Status!$D:$D,Provider_Status!$B:$B,Monthly_Report!$B122,Provider_Status!$C:$C,Monthly_Report!BM$1)) -> 0 | BN122: =IF(B122="","",SUMIFS(Provider_Status!$D:$D,Provider_Status!$B:$B,Monthly_Report!$B122,Provider_Status!$C:$C,Monthly_Report!BN$1)) -> 0 | BO122: =IF(B122="","",SUMIFS(Provider_Status!$E:$E,Provider_Status!$B:$B,Monthly_Report!$B122,Provider_Status!$C:$C,Monthly_Report!BO$1)) -> 0 | BP122: =IF(B122="","",SUMIFS(Provider_Status!$E:$E,Provider_Status!$B:$B,Monthly_Report!$B122,Provider_Status!$C:$C,Monthly_Report!BP$1)) -> 0 | BQ122: =IF(F122="","",SUMIFS(Training_BMGF!P:P,Training_BMGF!C:C,Monthly_Report!F122,Training_BMGF!L:L,Monthly_Report!K122)) -> 0 | BR122: =VLOOKUP(G122,'Facility List'!Q:R,2,FALSE) -> Meerut | BT122: 1 | BU122: 1 | BV122: =SUMIFS(Training_BMGF!P:P,Training_BMGF!C:C,Monthly_Report!F122,Training_BMGF!D:D,Monthly_Report!BV$1,Training_BMGF!L:L,"<="&K122) -> 3 | BW122: =SUMIFS(Training_BMGF!P:P,Training_BMGF!C:C,Monthly_Report!F122,Training_BMGF!D:D,Monthly_Report!BW$1,Training_BMGF!L:L,"<="&K122) -> 3 | BX122: =COUNTIFS('Service Data'!$E:$E,">=1",'Service Data'!$I:$I,Monthly_Report!$E122,'Service Data'!$J:$J,Monthly_Report!BX$1,'Service Data'!$C:$C,Monthly_Report!$K122) -> 1 | BY122: =COUNTIFS('Service Data'!$E:$E,">=1",'Service Data'!$I:$I,Monthly_Report!$E122,'Service Data'!$J:$J,Monthly_Report!BY$1,'Service Data'!$C:$C,Monthly_Report!$K122) -> 2
A123: 18309 | B123: UP-0006-BLS-001-DH_2016_Aug | C123: BMGF (MCHIP-SUP) | D123: Uttar Pradesh | E123: Bulandshahr_DWH-DH | F123: UP-0006-BLS-001-DH | G123: Bulandshahar | H123: District Hospital | I123: 2016 | J123: Aug | K123: 2016-08-01 | L123: 2016-08-23 | M123: 403 | N123: 795 | O123: 31 | P123: 826 | Q123: 263 | R123: 613 | S123: 876 | T123: 0 | U123: 8 | V123: 8 | W123: 0 | X123: 146 | Y123: 6908 | Z123: 114 | AA123: 79 | AB123: 0 | AC123: 104 | AD123: 16 | AE123: 0 | AF123: 120 | AJ123: 0 | AK123: 0 | AL123: 0 | AM123: 3 | AN123: 74 | AO123: 77 | AP123: 3 | AQ123: 74 | AR123: 77 | AS123: 3 | AT123: 0 | AU123: 0 | AV123: 0 | AW123: 0 | AX123: 0 | AY123: 3 | AZ123: 1 | BA123: 1 | BB123: 0 | BC123: 69 | BD123: 0 | BE123: 6 | BF123: 1 | BG123: 1 | BH123: 69 | BI123: 0 | BJ123: 2016-08-23T17:11:06 | BL123: 0 | BM123: =IF(B123="","",SUMIFS(Provider_Status!$D:$D,Provider_Status!$B:$B,Monthly_Report!$B123,Provider_Status!$C:$C,Monthly_Report!BM$1)) -> 0 | BN123: =IF(B123="","",SUMIFS(Provider_Status!$D:$D,Provider_Status!$B:$B,Monthly_Report!$B123,Provider_Status!$C:$C,Monthly_Report!BN$1)) -> 0 | BO123: =IF(B123="","",SUMIFS(Provider_Status!$E:$E,Provider_Status!$B:$B,Monthly_Report!$B123,Provider_Status!$C:$C,Monthly_Report!BO$1)) -> 0 | BP123: =IF(B123="","",SUMIFS(Provider_Status!$E:$E,Provider_Status!$B:$B,Monthly_Report!$B123,Provider_Status!$C:$C,Monthly_Report!BP$1)) -> 0 | BQ123: =IF(F123="","",SUMIFS(Training_BMGF!P:P,Training_BMGF!C:C,Monthly_Report!F123,Training_BMGF!L:L,Monthly_Report!K123)) -> 0 | BR123: =VLOOKUP(G123,'Facility List'!Q:R,2,FALSE) -> Meerut | BT123: 1 | BU123: 1 | BV123: =SUMIFS(Training_BMGF!P:P,Training_BMGF!C:C,Monthly_Report!F123,Training_BMGF!D:D,Monthly_Report!BV$1,Training_BMGF!L:L,"<="&K123) -> 4 | BW123: =SUMIFS(Training_BMGF!P:P,Training_BMGF!C:C,Monthly_Report!F123,Training_BMGF!D:D,Monthly_Report!BW$1,Training_BMGF!L:L,"<="&K123) -> 3 | BX123: =COUNTIFS('Service Data'!$E:$E,">=1",'Service Data'!$I:$I,Monthly_Report!$E123,'Service Data'!$J:$J,Monthly_Report!BX$1,'Service Data'!$C:$C,Monthly_Report!$K123) -> 2 | BY123: =COUNTIFS('Service Data'!$E:$E,">=1",'Service Data'!$I:$I,Monthly_Report!$E123,'Service Data'!$J:$J,Monthly_Report!BY$1,'Service Data'!$C:$C,Monthly_Report!$K123) -> 3
A124: 20557 | B124: UP-0006-BLS-001-DH_2016_Dec | C124: BMGF (MCHIP-SUP) | D124: Uttar Pradesh | E124: Bulandshahr_DWH-DH | F124: UP-0006-BLS-001-DH | G124: Bulandshahar | H124: District Hospital | I124: 2016 | J124: Dec | K124: 2016-12-01 | L124: 2017-01-03 | M124: 379 | N124: 642 | O124: 55 | P124: 697 | Q124: 285 | R124: 618 | S124: 903 | T124: 3 | U124: 144 | V124: 147 | W124: 0 | X124: 0 | Y124: 0 | Z124: 81 | AA124: 28 | AB124: 0 | AC124: 84 | AD124: 1 | AE124: 0 | AF124: 85 | AJ124: 0 | AK124: 7 | AL124: 7 | AM124: 1 | AN124: 111 | AO124: 112 | AP124: 1 | AQ124: 118 | AR124: 119 | AS124: 1 | AT124: 0 | AU124: 0 | AV124: 0 | AW124: 0 | AX124: 0 | AY124: 0 | AZ124: 1 | BA124: 7 | BB124: 0 | BC124: 109 | BD124: 0 | BE124: 1 | BF124: 1 | BG124: 7 | BH124: 109 | BI124: 0 | BJ124: 2017-01-06T09:49:21 | BL124: 0 | BM124: =IF(B124="","",SUMIFS(Provider_Status!$D:$D,Provider_Status!$B:$B,Monthly_Report!$B124,Provider_Status!$C:$C,Monthly_Report!BM$1)) -> 6 | BN124: =IF(B124="","",SUMIFS(Provider_Status!$D:$D,Provider_Status!$B:$B,Monthly_Report!$B124,Provider_Status!$C:$C,Monthly_Report!BN$1)) -> 4 | BO124: =IF(B124="","",SUMIFS(Provider_Status!$E:$E,Provider_Status!$B:$B,Monthly_Report!$B124,Provider_Status!$C:$C,Monthly_Report!BO$1)) -> 4 | BP124: =IF(B124="","",SUMIFS(Provider_Status!$E:$E,Provider_Status!$B:$B,Monthly_Report!$B124,Provider_Status!$C:$C,Monthly_Report!BP$1)) -> 3 | BQ124: =IF(F124="","",SUMIFS(Training_BMGF!P:P,Training_BMGF!C:C,Monthly_Report!F124,Training_BMGF!L:L,Monthly_Report!K124)) -> 1 | BR124: =VLOOKUP(G124,'Facility List'!Q:R,2,FALSE) -> Meerut | BT124: 1 | BU124: 1 | BV124: =SUMIFS(Training_BMGF!P:P,Training_BMGF!C:C,Monthly_Report!F124,Training_BMGF!D:D,Monthly_Report!BV$1,Training_BMGF!L:L,"<="&K124) -> 4 | BW124: =SUMIFS(Training_BMGF!P:P,Training_BMGF!C:C,Monthly_Report!F124,Training_BMGF!D:D,Monthly_Report!BW$1,Training_BMGF!L:L,"<="&K124) -> 4 | BX124: =COUNTIFS('Service Data'!$E:$E,">=1",'Service Data'!$I:$I,Monthly_Report!$E124,'Service Data'!$J:$J,Monthly_Report!BX$1,'Service Data'!$C:$C,Monthly_Report!$K124) -> 2 | BY124: =COUNTIFS('Service Data'!$E:$E,">=1",'Service Data'!$I:$I,Monthly_Report!$E124,'Service Data'!$J:$J,Monthly_Report!BY$1,'Service Data'!$C:$C,Monthly_Report!$K124) -> 2
A125: 15515 | B125: UP-0006-BLS-001-DH_2016_Feb | C125: BMGF (MCHIP-SUP) | D125: Uttar Pradesh | E125: Bulandshahr_DWH-DH | F125: UP-0006-BLS-001-DH | G125: bulandshahar | H125: District Hospital | I125: 2016 | J125: Feb | K125: 2016-02-01 | L125: 2016-02-24 | M125: 337 | N125: 630 | O125: 41 | P125: 671 | Q125: 293 | R125: 482 | S125: 775 | T125: 2 | U125: 88 | V125: 90 | W125: 0 | X125: 200 | Y125: 8500 | Z125: 213 | AA125: 0 | AB125: 0 | AC125: 13 | AD125: 49 | AE125: 1 | AF125: 63 | AJ125: 0 | AK125: 2 | AL125: 2 | AM125: 13 | AN125: 48 | AO125: 61 | AP125: 13 | AQ125: 50 | AR125: 63 | AS125: 3 | AT125: 2 | AU125: 2 | AV125: 0 | AW125: 6 | AX125: 0 | AY125: 4 | AZ125: 0 | BA125: 2 | BB125: 0 | BC125: 44 | BD125: 0 | BE125: 7 | BF125: 2 | BG125: 4 | BH125: 50 | BI125: 0 | BJ125: 2016-02-25T17:19:35 | BL125: 0 | BM125: =IF(B125="","",SUMIFS(Provider_Status!$D:$D,Provider_Status!$B:$B,Monthly_Report!$B125,Provider_Status!$C:$C,Monthly_Report!BM$1)) -> 0 | BN125: =IF(B125="","",SUMIFS(Provider_Status!$D:$D,Provider_Status!$B:$B,Monthly_Report!$B125,Provider_Status!$C:$C,Monthly_Report!BN$1)) -> 0 | BO125: =IF(B125="","",SUMIFS(Provider_Status!$E:$E,Provider_Status!$B:$B,Monthly_Report!$B125,Provider_Status!$C:$C,Monthly_Report!BO$1)) -> 0 | BP125: =IF(B125="","",SUMIFS(Provider_Status!$E:$E,Provider_Status!$B:$B,Monthly_Report!$B125,Provider_Status!$C:$C,Monthly_Report!BP$1)) -> 0 | BQ125: =IF(F125="","",SUMIFS(Training_BMGF!P:P,Training_BMGF!C:C,Monthly_Report!F125,Training_BMGF!L:L,Monthly_Report!K125)) -> 0 | BR125: =VLOOKUP(G125,'Facility List'!Q:R,2,FALSE) -> Meerut | BT125: 1 | BU125: 1 | BV125: =SUMIFS(Training_BMGF!P:P,Training_BMGF!C:C,Monthly_Report!F125,Training_BMGF!D:D,Monthly_Report!BV$1,Training_BMGF!L:L,"<="&K125) -> 3 | BW125: =SUMIFS(Training_BMGF!P:P,Training_BMGF!C:C,Monthly_Report!F125,Training_BMGF!D:D,Monthly_Report!BW$1,Training_BMGF!L:L,"<="&K125) -> 3 | BX125: =COUNTIFS('Service Data'!$E:$E,">=1",'Service Data'!$I:$I,Monthly_Report!$E125,'Service Data'!$J:$J,Monthly_Report!BX$1,'Service Data'!$C:$C,Monthly_Report!$K125) -> 1 | BY125: =COUNTIFS('Service Data'!$E:$E,">=1",'Service Data'!$I:$I,Monthly_Report!$E125,'Service Data'!$J:$J,Monthly_Report!BY$1,'Service Data'!$C:$C,Monthly_Report!$K125) -> 3
A126: 15166 | B126: UP-0006-BLS-001-DH_2016_Jan | C126: BMGF (MCHIP-SUP) | D126: Uttar Pradesh | E126: Bulandshahr_DWH-DH | F126: UP-0006-BLS-001-DH | G126: Bulandshahar | H126: District Hospital | I126: 2016 | J126: Jan | K126: 2016-01-01 | L126: 42394 | M126: 445 | N126: 610 | O126: 31 | P126: 641 | Q126: 316 | R126: 573 | S126: 889 | T126: 1 | U126: 150 | V126: 151 | W126: 0 | X126: 0 | Y126: 0 | Z126: 109 | AA126: 0 | AB126: 0 | AC126: 16 | AD126: 50 | AE126: 1 | AF126: 67 | AJ126: 0 | AK126: 2 | AL126: 2 | AM126: 16 | AN126: 66 | AO126: 82 | AP126: 16 | AQ126: 68 | AR126: 84 | AS126: 5 | AT126: 0 | AU126: 0 | AV126: 0 | AW126: 0 | AX126: 0 | AY126: 4 | AZ126: 1 | BA126: 5 | BB126: 0 | BC126: 53 | BD126: 0 | BE126: 9 | BF126: 1 | BG126: 5 | BH126: 53 | BI126: 0 | BJ126: 2016-01-28T14:03:06 | BL126: 0 | BM126: =IF(B126="","",SUMIFS(Provider_Status!$D:$D,Provider_Status!$B:$B,Monthly_Report!$B126,Provider_Status!$C:$C,Monthly_Report!BM$1)) -> 0 | BN126: =IF(B126="","",SUMIFS(Provider_Status!$D:$D,Provider_Status!$B:$B,Monthly_Report!$B126,Provider_Status!$C:$C,Monthly_Report!BN$1)) -> 0 | BO126: =IF(B126="","",SUMIFS(Provider_Status!$E:$E,Provider_Status!$B:$B,Monthly_Report!$B126,Provider_Status!$C:$C,Monthly_Report!BO$1)) -> 0 | BP126: =IF(B126="","",SUMIFS(Provider_Status!$E:$E,Provider_Status!$B:$B,Monthly_Report!$B126,Provider_Status!$C:$C,Monthly_Report!BP$1)) -> 0 | BQ126: =IF(F126="","",SUMIFS(Training_BMGF!P:P,Training_BMGF!C:C,Monthly_Report!F126,Training_BMGF!L:L,Monthly_Report!K126)) -> 0 | BR126: =VLOOKUP(G126,'Facility List'!Q:R,2,FALSE) -> Meerut | BT126: 1 | BU126: 1 | BV126: =SUMIFS(Training_BMGF!P:P,Training_BMGF!C:C,Monthly_Report!F126,Training_BMGF!D:D,Monthly_Report!BV$1,Training_BMGF!L:L,"<="&K126) -> 3 | BW126: =SUMIFS(Training_BMGF!P:P,Training_BMGF!C:C,Monthly_Report!F126,Training_BMGF!D:D,Monthly_Report!BW$1,Training_BMGF!L:L,"<="&K126) -> 3 | BX126: =COUNTIFS('Service Data'!$E:$E,">=1",'Service Data'!$I:$I,Monthly_Report!$E126,'Service Data'!$J:$J,Monthly_Report!BX$1,'Service Data'!$C:$C,Monthly_Report!$K126) -> 0 | BY126: =COUNTIFS('Service Data'!$E:$E,">=1",'Service Data'!$I:$I,Monthly_Report!$E126,'Service Data'!$J:$J,Monthly_Report!BY$1,'Service Data'!$C:$C,Monthly_Report!$K126) -> 3
